Workbook

Sheet Index
A1: Table of Contents
A2: Fund Group Detail (FGD)
A3: Displays the Sources & Uses data for the selected institution as reported on the FY 2023 - Sources & Uses Survey.
A4: Summaries
A5: Displays summary Sources & Uses data for the selected institution, institution type, or system as reported on the FY 2023 - Sources & Uses Survey.
A6: Summary (by Institution) | B6: Provides a summary of the individual institution's data.
A7: Summary (by Institution Type) | B7: Provides aggregated data for Health-Related Institutions, Lamar State Colleges and Texas State Technical Colleges, and Texas Public Universities.
A9: Summary (by System) | B9: Provides aggregated data for all institutions under the selected sector.
A10: Academic Cost Study
A11: Provides a summary of operating expenses related to Instruction, Research, Academic Support, Student Services, and Institutional Support for Texas Public Universities, Health-Related Institutions, Lamar State Colleges, and Texas State Technical Colleges.
A13: Accountability, Almanac, & Institutional Resume
A14: Provides a summary of the revenue, revenue by FTSE, expenditures, and expenditures by FTSE for Health-Related Institutions, Lamar State Colleges, Texas State Technical Colleges, and Texas Public Universities. Published data can be found in the THECB Accountability System, Almanac, and Institutional Online Resumes. Revenue excludes Hospital & Clinic, and Professional Fees Revenue, and Auxiliary. Expenditures excludes Public Service & Auxiliary expenditures.
A17: Accountability: | B17: http://www.txhigheredaccountability.org/AcctPublic/
A18: Almanac: | B18: https://reportcenter.highered.texas.gov/agency-publication/almanac/
A19: Institutional Resumes: | B19: https://apps.highered.texas.gov/resumes/
A20: Tuition & Fees
A21: The tables display net tuition and net fees for Texas Public Universities, Health-Related Institutions, Lamar State Colleges, and Texas State Technical Colleges, and display both statutory and institutional waivers and exemptions as reported on the AFR.
A23: Definitions
A24: Provides definitions for financial terms, methods of funding, and reporting categories, and descriptions for acronyms. Definitions align with rules for reporting for fiscal year 2023.
A26: Input
A27: Data as reported on the FY 2023 - Sources & Uses Survey.
A28: FTSE | FTFE
A29: Provides full-time student equivalent (FTSE) and faculty full-time equivalent (FTE) for the 2022-2023 academic year for Texas Public Universities, Health-Related Institutions, Lamar State Colleges, and Texas State Technical Colleges.
A31: Contact Information
A32: Provides name, phone number, and email address for the point of contact for the college or university.

Sheet Fund Group Detail (FGD)
A2: =IF(ISBLANK($A$1),"▲ Select institution name from dropdown ▲",VLOOKUP($A$1,SearchNames,2,FALSE)) -> ▲ Select institution name from dropdown ▲
A3: For the Year Ended August 31, 2023
A4: Fund Group Detail - FY 2023
A7: Operating Sources
A8: State of Texas | B8: Educational & General | C8: Designated | D8: Auxiliary Enterprises | E8: Restricted Expendable | F8: Loan Funds | G8: Annuity, Life, & Endowment & Similar Funds | H8: Unexpended Plant | I8: Retirement of Indebtedness | J8: Investment In Plant | K8: Total
A11: State Appropriations | B11: =SUMIFS(Input[St. Ap. E & G],Input[Institution Name],$A$1) -> 0 | C11: =SUMIFS(Input[St. Ap. Desg],Input[Institution Name],$A$1) -> 0 | D11: =SUMIFS(Input[St. Ap. Aux],Input[Institution Name],$A$1) -> 0 | E11: =SUMIFS(Input[St. Ap. R Exp],Input[Institution Name],$A$1) -> 0 | F11: =SUMIFS(Input[St. Ap. Loan],Input[Institution Name],$A$1) -> 0 | G11: =SUMIFS(Input[St. Ap. Annuity],Input[Institution Name],$A$1) -> 0 | H11: =SUMIFS(Input[St. Ap. Unexp],Input[Institution Name],$A$1) -> 0 | I11: =SUMIFS(Input[St. Ap. R of Ind],Input[Institution Name],$A$1) -> 0 | J11: =SUMIFS(Input[St. Ap. Inv in P],Input[Institution Name],$A$1) -> 0 | K11: =SUM(B11:J11) -> 0
A12: State Grants and Contracts - Restricted | B12: =SUMIFS(Input[St. G&C - Rstr E&G],Input[Institution Name],$A$1) -> 0 | C12: =SUMIFS(Input[St. G&C - Rstr Desg],Input[Institution Name],$A$1) -> 0 | D12: =SUMIFS(Input[St. G&C - Rstr Aux],Input[Institution Name],$A$1) -> 0 | E12: =SUMIFS(Input[St. G&C - Rstr R Exp],Input[Institution Name],$A$1) -> 0 | F12: =SUMIFS(Input[St. G&C - Rstr Loan],Input[Institution Name],$A$1) -> 0 | G12: =SUMIFS(Input[St. G&C - Rstr Annuity],Input[Institution Name],$A$1) -> 0 | H12: =SUMIFS(Input[St. G&C - Rstr Unexp],Input[Institution Name],$A$1) -> 0 | I12: =SUMIFS(Input[St. G&C - Rstr R of Ind],Input[Institution Name],$A$1) -> 0 | J12: =SUMIFS(Input[St. G&C - Rstr Inv in P],Input[Institution Name],$A$1) -> 0 | K12: =SUM(B12:J12) -> 0
A13: Higher Education Fund | B13: =SUMIFS(Input[HEF E&G],Input[Institution Name],$A$1) -> 0 | C13: =SUMIFS(Input[HEF Desg],Input[Institution Name],$A$1) -> 0 | D13: =SUMIFS(Input[HEF Aux],Input[Institution Name],$A$1) -> 0 | E13: =SUMIFS(Input[HEF R Exp],Input[Institution Name],$A$1) -> 0 | F13: =SUMIFS(Input[HEF Loan],Input[Institution Name],$A$1) -> 0 | G13: =SUMIFS(Input[HEF Annuity],Input[Institution Name],$A$1) -> 0 | H13: =SUMIFS(Input[HEF Unexp],Input[Institution Name],$A$1) -> 0 | I13: =SUMIFS(Input[HEF R of Ind],Input[Institution Name],$A$1) -> 0 | J13: =SUMIFS(Input[HEF Inv in P],Input[Institution Name],$A$1) -> 0 | K13: =SUM(B13:J13) -> 0
A14: Available University Fund Excellence⁸ | B14: =SUMIFS(Input[Available E&G],Input[Institution Name],$A$1) -> 0 | C14: =SUMIFS(Input[Available Desg],Input[Institution Name],$A$1) -> 0 | D14: =SUMIFS(Input[Available Aux],Input[Institution Name],$A$1) -> 0 | E14: =SUMIFS(Input[Available R Exp],Input[Institution Name],$A$1) -> 0 | F14: =SUMIFS(Input[Available Loan],Input[Institution Name],$A$1) -> 0 | G14: =SUMIFS(Input[Available Annuity],Input[Institution Name],$A$1) -> 0 | H14: =SUMIFS(Input[Available Unexp],Input[Institution Name],$A$1) -> 0 | I14: =SUMIFS(Input[Available R of Ind],Input[Institution Name],$A$1) -> 0 | J14: =SUMIFS(Input[Available Inv in P],Input[Institution Name],$A$1) -> 0 | K14: =SUM(B14:J14) -> 0
A15: Subtotal | B15: =SUM(B11:B14) -> 0 | C15: =SUM(C11:C14) -> 0 | D15: 0 | E15: 0 | F15: 0 | G15: 0 | H15: 0 | I15: 0 | J15: 0 | K15: 0
A17: Student & Parent | B17: Educational & General | C17: Designated | D17: Auxiliary Enterprises | E17: Restricted Expendable | F17: Loan Funds | G17: Annuity, Life, & Endowment & Similar Funds | H17: Unexpended Plant | I17: Retirement of Indebtedness | J17: Investment In Plant | K17: Total
A20: Tuition Potential 100% | B20: =B26-SUM(B22:B25) -> 0 | C20: =C26-SUM(C22:C25) -> 0 | D20: 0 | E20: 0 | F20: 0 | G20: 0 | H20: 0 | I20: 0 | J20: 0 | K20: =SUM(B20:J20) -> 0
A21: Not Reported in AFR (Report as negative numbers)
A22: Waivers - Statutory | B22: =SUMIFS(Input[T. W. - Stat (NR AFR) E&G],Input[Institution Name],$A$1) -> 0 | C22: =SUMIFS(Input[T. W. - Stat (NR AFR) Desg],Input[Institution Name],$A$1) -> 0 | D22: =SUMIFS(Input[T. W. - Stat (NR AFR) Aux],Input[Institution Name],$A$1) -> 0 | E22: =SUMIFS(Input[T. W. - Stat (NR AFR) R Exp],Input[Institution Name],$A$1) -> 0 | F22: =SUMIFS(Input[T. W. - Stat (NR AFR) Loan],Input[Institution Name],$A$1) -> 0 | G22: =SUMIFS(Input[T. W. - Stat (NR AFR) Annuity],Input[Institution Name],$A$1) -> 0 | H22: =SUMIFS(Input[T. W. - Stat (NR AFR) Unexp],Input[Institution Name],$A$1) -> 0 | I22: =SUMIFS(Input[T. W. - Stat (NR AFR) R of Ind],Input[Institution Name],$A$1) -> 0 | J22: =SUMIFS(Input[T. W. - Stat (NR AFR) Inv in P],Input[Institution Name],$A$1) -> 0 | K22: =SUM(B22:J22) -> 0
A23: Waivers - Institutional | B23: =SUMIFS(Input[T. W. - Inst. (NR AFR) E&G],Input[Institution Name],$A$1) -> 0 | C23: =SUMIFS(Input[T. W. - Inst. (NR AFR) Desg],Input[Institution Name],$A$1) -> 0 | D23: =SUMIFS(Input[T. W. - Inst. (NR AFR) Aux],Input[Institution Name],$A$1) -> 0 | E23: =SUMIFS(Input[T. W. - Inst. (NR AFR) R Exp],Input[Institution Name],$A$1) -> 0 | F23: =SUMIFS(Input[T. W. - Inst. (NR AFR) Loan],Input[Institution Name],$A$1) -> 0 | G23: =SUMIFS(Input[T. W. - Inst. (NR AFR) Annuity],Input[Institution Name],$A$1) -> 0 | H23: =SUMIFS(Input[T. W. - Inst. (NR AFR) Unexp],Input[Institution Name],$A$1) -> 0 | I23: =SUMIFS(Input[T. W. - Inst. (NR AFR) R of Ind],Input[Institution Name],$A$1) -> 0 | J23: =SUMIFS(Input[T. W. - Inst. (NR AFR) Inv in P],Input[Institution Name],$A$1) -> 0 | K23: =SUM(B23:J23) -> 0
A24: Exemptions - Statutory | B24: =SUMIFS(Input[T. Exp. - Stat (NR AFR) E&G],Input[Institution Name],$A$1) -> 0 | C24: =SUMIFS(Input[T. Exp. - Stat (NR AFR) Desg],Input[Institution Name],$A$1) -> 0 | D24: =SUMIFS(Input[T. Exp. - Stat (NR AFR) Aux],Input[Institution Name],$A$1) -> 0 | E24: =SUMIFS(Input[T. Exp. - Stat (NR AFR) R Exp],Input[Institution Name],$A$1) -> 0 | F24: =SUMIFS(Input[T. Exp. - Stat (NR AFR) Loan],Input[Institution Name],$A$1) -> 0 | G24: =SUMIFS(Input[T. Exp. - Stat (NR AFR) Annuity],Input[Institution Name],$A$1) -> 0 | H24: =SUMIFS(Input[T. Exp. - Stat (NR AFR) Unexp],Input[Institution Name],$A$1) -> 0 | I24: =SUMIFS(Input[T. Exp. - Stat (NR AFR) R of Ind],Input[Institution Name],$A$1) -> 0 | J24: =SUMIFS(Input[T. Exp. - Stat (NR AFR) Inv in P],Input[Institution Name],$A$1) -> 0 | K24: =SUM(B24:I24) -> 0
A25: Exemptions - Institutional | B25: =SUMIFS(Input[T. Exp. - Inst. (NR AFR) E&G],Input[Institution Name],$A$1) -> 0 | C25: =SUMIFS(Input[T. Exp. - Inst. (NR AFR) Desg],Input[Institution Name],$A$1) -> 0 | D25: =SUMIFS(Input[T. Exp. - Inst. (NR AFR) Aux],Input[Institution Name],$A$1) -> 0 | E25: =SUMIFS(Input[T. Exp. - Inst. (NR AFR) R Exp],Input[Institution Name],$A$1) -> 0 | F25: =SUMIFS(Input[T. Exp. - Inst. (NR AFR) Loan],Input[Institution Name],$A$1) -> 0 | G25: =SUMIFS(Input[T. Exp. - Inst. (NR AFR) Annuity],Input[Institution Name],$A$1) -> 0 | H25: =SUMIFS(Input[T. Exp. - Inst. (NR AFR) Unexp],Input[Institution Name],$A$1) -> 0 | I25: =SUMIFS(Input[T. Exp. - Inst. (NR AFR) R of Ind],Input[Institution Name],$A$1) -> 0 | J25: =SUMIFS(Input[T. Exp. - Inst. (NR AFR) Inv in P],Input[Institution Name],$A$1) -> 0 | K25: =SUM(B25:I25) -> 0
A26: Tuition - Gross - AFR Presentation | B26: =SUMIFS(Input[T. - Gross E&G],Input[Institution Name],$A$1) -> 0 | C26: =SUMIFS(Input[T. - Gross Desg],Input[Institution Name],$A$1) -> 0 | D26: =SUMIFS(Input[T. - Gross Aux],Input[Institution Name],$A$1) -> 0 | E26: =SUMIFS(Input[T. - Gross R Exp],Input[Institution Name],$A$1) -> 0 | F26: =SUMIFS(Input[T. - Gross Loan],Input[Institution Name],$A$1) -> 0 | G26: =SUMIFS(Input[T. - Gross Annuity],Input[Institution Name],$A$1) -> 0 | H26: =SUMIFS(Input[T. - Gross Unexp],Input[Institution Name],$A$1) -> 0 | I26: =SUMIFS(Input[T. - Gross R of Ind],Input[Institution Name],$A$1) -> 0 | J26: =SUMIFS(Input[T. - Gross Inv in P],Input[Institution Name],$A$1) -> 0 | K26: =SUM(B26:J26) -> 0
A27: Reported in AFR (Report as negative numbers)
A28: Waivers - Statutory | B28: =SUMIFS(Input[T. W. - Stat (R AFR) E&G],Input[Institution Name],$A$1) -> 0 | C28: =SUMIFS(Input[T. W. - Stat (R AFR) Desg],Input[Institution Name],$A$1) -> 0 | D28: =SUMIFS(Input[T. W. - Stat (R AFR) Aux],Input[Institution Name],$A$1) -> 0 | E28: =SUMIFS(Input[T. W. - Stat (R AFR) R Exp],Input[Institution Name],$A$1) -> 0 | F28: =SUMIFS(Input[T. W. - Stat (R AFR) Loan],Input[Institution Name],$A$1) -> 0 | G28: =SUMIFS(Input[T. W. - Stat (R AFR) Annuity],Input[Institution Name],$A$1) -> 0 | H28: =SUMIFS(Input[T. W. - Stat (R AFR) Unexp],Input[Institution Name],$A$1) -> 0 | I28: =SUMIFS(Input[T. W. - Stat (R AFR) R of Ind],Input[Institution Name],$A$1) -> 0 | J28: =SUMIFS(Input[T. W. - Stat (R AFR) Inv in P],Input[Institution Name],$A$1) -> 0 | K28: =SUM(B28:J28) -> 0
A29: Waivers - Institutional | B29: =SUMIFS(Input[T. W. - Inst. (R AFR) E&G],Input[Institution Name],$A$1) -> 0 | C29: =SUMIFS(Input[T. W. - Inst. (R AFR) Desg],Input[Institution Name],$A$1) -> 0 | D29: =SUMIFS(Input[T. W. - Inst. (R AFR) Aux],Input[Institution Name],$A$1) -> 0 | E29: =SUMIFS(Input[T. W. - Inst. (R AFR) R Exp],Input[Institution Name],$A$1) -> 0 | F29: =SUMIFS(Input[T. W. - Inst. (R AFR) Loan],Input[Institution Name],$A$1) -> 0 | G29: =SUMIFS(Input[T. W. - Inst. (R AFR) Annuity],Input[Institution Name],$A$1) -> 0 | H29: =SUMIFS(Input[T. W. - Inst. (R AFR) Unexp],Input[Institution Name],$A$1) -> 0 | I29: =SUMIFS(Input[T. W. - Inst. (R AFR) R of Ind],Input[Institution Name],$A$1) -> 0 | J29: =SUMIFS(Input[T. W. - Inst. (R AFR) Inv in P],Input[Institution Name],$A$1) -> 0 | K29: 0
A30: Exemptions - Statutory | B30: =SUMIFS(Input[T. Exp. - Stat (R AFR) E&G],Input[Institution Name],$A$1) -> 0 | C30: =SUMIFS(Input[T. Exp. - Stat (R AFR) Desg],Input[Institution Name],$A$1) -> 0 | D30: =SUMIFS(Input[T. Exp. - Stat (R AFR) Aux],Input[Institution Name],$A$1) -> 0 | E30: =SUMIFS(Input[T. Exp. - Stat (R AFR) R Exp],Input[Institution Name],$A$1) -> 0 | F30: =SUMIFS(Input[T. Exp. - Stat (R AFR) Loan],Input[Institution Name],$A$1) -> 0 | G30: =SUMIFS(Input[T. Exp. - Stat (R AFR) Annuity],Input[Institution Name],$A$1) -> 0 | H30: =SUMIFS(Input[T. Exp. - Stat (R AFR) Unexp],Input[Institution Name],$A$1) -> 0 | I30: =SUMIFS(Input[T. Exp. - Stat (R AFR) R of Ind],Input[Institution Name],$A$1) -> 0 | J30: =SUMIFS(Input[T. Exp. - Stat (R AFR) Inv in P],Input[Institution Name],$A$1) -> 0 | K30: 0
A31: Exemptions - Institutional | B31: =SUMIFS(Input[T. Exp. - Inst. (R AFR) E&G],Input[Institution Name],$A$1) -> 0 | C31: =SUMIFS(Input[T. Exp. - Inst. (R AFR) Desg],Input[Institution Name],$A$1) -> 0 | D31: =SUMIFS(Input[T. Exp. - Inst. (R AFR) Aux],Input[Institution Name],$A$1) -> 0 | E31: =SUMIFS(Input[T. Exp. - Inst. (R AFR) R Exp],Input[Institution Name],$A$1) -> 0 | F31: =SUMIFS(Input[T. Exp. - Inst. (R AFR) Loan],Input[Institution Name],$A$1) -> 0 | G31: =SUMIFS(Input[T. Exp. - Inst. (R AFR) Annuity],Input[Institution Name],$A$1) -> 0 | H31: =SUMIFS(Input[T. Exp. - Inst. (R AFR) Unexp],Input[Institution Name],$A$1) -> 0 | I31: =SUMIFS(Input[T. Exp. - Inst. (R AFR) R of Ind],Input[Institution Name],$A$1) -> 0 | J31: =SUMIFS(Input[T. Exp. - Inst. (R AFR) Inv in P],Input[Institution Name],$A$1) -> 0 | K31: 0
A32: All Other Scholarship Disc.& Allow.¹ | B32: =SUMIFS(Input[T. Schlr E&G],Input[Institution Name],$A$1) -> 0 | C32: =SUMIFS(Input[T. Schlr Desg],Input[Institution Name],$A$1) -> 0 | D32: =SUMIFS(Input[T. Schlr Aux],Input[Institution Name],$A$1) -> 0 | E32: =SUMIFS(Input[T. Schlr R Exp],Input[Institution Name],$A$1) -> 0 | F32: =SUMIFS(Input[T. Schlr Loan],Input[Institution Name],$A$1) -> 0 | G32: =SUMIFS(Input[T. Schlr Annuity],Input[Institution Name],$A$1) -> 0 | H32: =SUMIFS(Input[T. Schlr Unexp],Input[Institution Name],$A$1) -> 0 | I32: =SUMIFS(Input[T. Schlr R of Ind],Input[Institution Name],$A$1) -> 0 | J32: =SUMIFS(Input[T. Schlr Inv in P],Input[Institution Name],$A$1) -> 0 | K32: 0
A33: Net Tuition | B33: =SUM(B26,B28:B32) -> 0 | C33: =SUM(C26,C28:C32) -> 0 | D33: 0 | E33: 0 | F33: 0 | G33: 0 | H33: 0 | I33: 0 | J33: 0 | K33: 0
A35: Fees Potential 100% | B35: =B41-SUM(B37:B40) -> 0 | C35: =C41-SUM(C37:C40) -> 0 | D35: 0 | E35: 0 | F35: 0 | G35: 0 | H35: 0 | I35: 0 | J35: 0 | K35: =SUM(B35:J35) -> 0
A36: Not Reported in AFR (Report as negative numbers)
A37: Waivers - Statutory | B37: =SUMIFS(Input[F. W. - Stat (NR AFR) E&G],Input[Institution Name],$A$1) -> 0 | C37: =SUMIFS(Input[F. W. - Stat (NR AFR) Desg],Input[Institution Name],$A$1) -> 0 | D37: =SUMIFS(Input[F. W. - Stat (NR AFR) Aux],Input[Institution Name],$A$1) -> 0 | E37: =SUMIFS(Input[F. W. - Stat (NR AFR) R Exp],Input[Institution Name],$A$1) -> 0 | F37: =SUMIFS(Input[F. W. - Stat (NR AFR) Loan],Input[Institution Name],$A$1) -> 0 | G37: =SUMIFS(Input[F. W. - Stat (NR AFR) Annuity],Input[Institution Name],$A$1) -> 0 | H37: =SUMIFS(Input[F. W. - Stat (NR AFR) Unexp],Input[Institution Name],$A$1) -> 0 | I37: =SUMIFS(Input[F. W. - Stat (NR AFR) R of Ind],Input[Institution Name],$A$1) -> 0 | J37: =SUMIFS(Input[F. W. - Stat (NR AFR) Inv in P],Input[Institution Name],$A$1) -> 0 | K37: =SUM(B37:J37) -> 0
A38: Waivers - Institutional | B38: =SUMIFS(Input[F. W. - Inst. (NR AFR) E&G],Input[Institution Name],$A$1) -> 0 | C38: =SUMIFS(Input[F. W. - Inst. (NR AFR) Desg],Input[Institution Name],$A$1) -> 0 | D38: =SUMIFS(Input[F. W. - Inst. (NR AFR) Aux],Input[Institution Name],$A$1) -> 0 | E38: =SUMIFS(Input[F. W. - Inst. (NR AFR) R Exp],Input[Institution Name],$A$1) -> 0 | F38: =SUMIFS(Input[F. W. - Inst. (NR AFR) Loan],Input[Institution Name],$A$1) -> 0 | G38: =SUMIFS(Input[F. W. - Inst. (NR AFR) Annuity],Input[Institution Name],$A$1) -> 0 | H38: =SUMIFS(Input[F. W. - Inst. (NR AFR) Unexp],Input[Institution Name],$A$1) -> 0 | I38: =SUMIFS(Input[F. W. - Inst. (NR AFR) R of Ind],Input[Institution Name],$A$1) -> 0 | J38: =SUMIFS(Input[F. W. - Inst. (NR AFR) Inv in P],Input[Institution Name],$A$1) -> 0 | K38: =SUM(B38:J38) -> 0
A39: Exemptions - Statutory | B39: =SUMIFS(Input[F. Exp. - Stat (NR AFR) E&G],Input[Institution Name],$A$1) -> 0 | C39: =SUMIFS(Input[F. Exp. - Stat (NR AFR) Desg],Input[Institution Name],$A$1) -> 0 | D39: =SUMIFS(Input[F. Exp. - Stat (NR AFR) Aux],Input[Institution Name],$A$1) -> 0 | E39: =SUMIFS(Input[F. Exp. - Stat (NR AFR) R Exp],Input[Institution Name],$A$1) -> 0 | F39: =SUMIFS(Input[F. Exp. - Stat (NR AFR) Loan],Input[Institution Name],$A$1) -> 0 | G39: =SUMIFS(Input[F. Exp. - Stat (NR AFR) Annuity],Input[Institution Name],$A$1) -> 0 | H39: =SUMIFS(Input[F. Exp. - Stat (NR AFR) Unexp],Input[Institution Name],$A$1) -> 0 | I39: =SUMIFS(Input[F. Exp. - Stat (NR AFR) R of Ind],Input[Institution Name],$A$1) -> 0 | J39: =SUMIFS(Input[F. Exp. - Stat (NR AFR) Inv in P],Input[Institution Name],$A$1) -> 0 | K39: =SUM(B39:J39) -> 0
A40: Exemptions - Institutional | B40: =SUMIFS(Input[F. Exp. - Inst. (NR AFR) E&G],Input[Institution Name],$A$1) -> 0 | C40: =SUMIFS(Input[F. Exp. - Inst. (NR AFR) Desg],Input[Institution Name],$A$1) -> 0 | D40: =SUMIFS(Input[F. Exp. - Inst. (NR AFR) Aux],Input[Institution Name],$A$1) -> 0 | E40: =SUMIFS(Input[F. Exp. - Inst. (NR AFR) R Exp],Input[Institution Name],$A$1) -> 0 | F40: =SUMIFS(Input[F. Exp. - Inst. (NR AFR) Loan],Input[Institution Name],$A$1) -> 0 | G40: =SUMIFS(Input[F. Exp. - Inst. (NR AFR) Annuity],Input[Institution Name],$A$1) -> 0 | H40: =SUMIFS(Input[F. Exp. - Inst. (NR AFR) Unexp],Input[Institution Name],$A$1) -> 0 | I40: =SUMIFS(Input[F. Exp. - Inst. (NR AFR) R of Ind],Input[Institution Name],$A$1) -> 0 | J40: =SUMIFS(Input[F. Exp. - Inst. (NR AFR) Inv in P],Input[Institution Name],$A$1) -> 0 | K40: =SUM(B40:J40) -> 0
A41: Fees - Gross - AFR Presentation | B41: =SUMIFS(Input[Fees - Gross E&G],Input[Institution Name],$A$1) -> 0 | C41: =SUMIFS(Input[Fees - Gross Desg],Input[Institution Name],$A$1) -> 0 | D41: =SUMIFS(Input[Fees - Gross Aux],Input[Institution Name],$A$1) -> 0 | E41: =SUMIFS(Input[Fees - Gross R Exp],Input[Institution Name],$A$1) -> 0 | F41: =SUMIFS(Input[Fees - Gross Loan],Input[Institution Name],$A$1) -> 0 | G41: =SUMIFS(Input[Fees - Gross Annuity],Input[Institution Name],$A$1) -> 0 | H41: =SUMIFS(Input[Fees - Gross Unexp],Input[Institution Name],$A$1) -> 0 | I41: =SUMIFS(Input[Fees - Gross R of Ind],Input[Institution Name],$A$1) -> 0 | J41: =SUMIFS(Input[Fees - Gross Inv in P],Input[Institution Name],$A$1) -> 0 | K41: 0
A42: Reported in AFR (Report as negative numbers)
A43: Waivers - Statutory | B43: =SUMIFS(Input[F. W. - Stat (R AFR) E&G],Input[Institution Name],$A$1) -> 0 | C43: =SUMIFS(Input[F. W. - Stat (R AFR) Desg],Input[Institution Name],$A$1) -> 0 | D43: =SUMIFS(Input[F. W. - Stat (R AFR) Aux],Input[Institution Name],$A$1) -> 0 | E43: =SUMIFS(Input[F. W. - Stat (R AFR) R Exp],Input[Institution Name],$A$1) -> 0 | F43: =SUMIFS(Input[F. W. - Stat (R AFR) Loan],Input[Institution Name],$A$1) -> 0 | G43: =SUMIFS(Input[F. W. - Stat (R AFR) Annuity],Input[Institution Name],$A$1) -> 0 | H43: =SUMIFS(Input[F. W. - Stat (R AFR) Unexp],Input[Institution Name],$A$1) -> 0 | I43: =SUMIFS(Input[F. W. - Stat (R AFR) R of Ind],Input[Institution Name],$A$1) -> 0 | J43: =SUMIFS(Input[F. W. - Stat (R AFR) Inv in P],Input[Institution Name],$A$1) -> 0 | K43: =SUM(B43:J43) -> 0
A44: Waivers - Institutional | B44: =SUMIFS(Input[F. W. - Inst. (R AFR) E&G],Input[Institution Name],$A$1) -> 0 | C44: =SUMIFS(Input[F. W. - Inst. (R AFR) Desg],Input[Institution Name],$A$1) -> 0 | D44: =SUMIFS(Input[F. W. - Inst. (R AFR) Aux],Input[Institution Name],$A$1) -> 0 | E44: =SUMIFS(Input[F. W. - Inst. (R AFR) R Exp],Input[Institution Name],$A$1) -> 0 | F44: =SUMIFS(Input[F. W. - Inst. (R AFR) Loan],Input[Institution Name],$A$1) -> 0 | G44: =SUMIFS(Input[F. W. - Inst. (R AFR) Annuity],Input[Institution Name],$A$1) -> 0 | H44: =SUMIFS(Input[F. W. - Inst. (R AFR) Unexp],Input[Institution Name],$A$1) -> 0 | I44: =SUMIFS(Input[F. W. - Inst. (R AFR) R of Ind],Input[Institution Name],$A$1) -> 0 | J44: =SUMIFS(Input[F. W. - Inst. (R AFR) Inv in P],Input[Institution Name],$A$1) -> 0 | K44: 0
A45: Exemptions - Statutory | B45: =SUMIFS(Input[F. Exp. - Stat (R AFR) E&G],Input[Institution Name],$A$1) -> 0 | C45: =SUMIFS(Input[F. Exp. - Stat (R AFR) Desg],Input[Institution Name],$A$1) -> 0 | D45: =SUMIFS(Input[F. Exp. - Stat (R AFR) Aux],Input[Institution Name],$A$1) -> 0 | E45: =SUMIFS(Input[F. Exp. - Stat (R AFR) R Exp],Input[Institution Name],$A$1) -> 0 | F45: =SUMIFS(Input[F. Exp. - Stat (R AFR) Loan],Input[Institution Name],$A$1) -> 0 | G45: =SUMIFS(Input[F. Exp. - Stat (R AFR) Annuity],Input[Institution Name],$A$1) -> 0 | H45: =SUMIFS(Input[F. Exp. - Stat (R AFR) Unexp],Input[Institution Name],$A$1) -> 0 | I45: =SUMIFS(Input[F. Exp. - Stat (R AFR) R of Ind],Input[Institution Name],$A$1) -> 0 | J45: =SUMIFS(Input[F. Exp. - Stat (R AFR) Inv in P],Input[Institution Name],$A$1) -> 0 | K45: 0
A46: Exemptions - Institutional | B46: =SUMIFS(Input[F. Exp. - Inst. (R AFR) E&G],Input[Institution Name],$A$1) -> 0 | C46: =SUMIFS(Input[F. Exp. - Inst. (R AFR) Desg],Input[Institution Name],$A$1) -> 0 | D46: =SUMIFS(Input[F. Exp. - Inst. (R AFR) Aux],Input[Institution Name],$A$1) -> 0 | E46: =SUMIFS(Input[F. Exp. - Inst. (R AFR) R Exp],Input[Institution Name],$A$1) -> 0 | F46: =SUMIFS(Input[F. Exp. - Inst. (R AFR) Loan],Input[Institution Name],$A$1) -> 0 | G46: =SUMIFS(Input[F. Exp. - Inst. (R AFR) Annuity],Input[Institution Name],$A$1) -> 0 | H46: =SUMIFS(Input[F. Exp. - Inst. (R AFR) Unexp],Input[Institution Name],$A$1) -> 0 | I46: =SUMIFS(Input[F. Exp. - Inst. (R AFR) R of Ind],Input[Institution Name],$A$1) -> 0 | J46: =SUMIFS(Input[F. Exp. - Inst. (R AFR) Inv in P],Input[Institution Name],$A$1) -> 0 | K46: 0
A47: All Other Scholarship Disc.& Allow.¹ | B47: =SUMIFS(Input[Fee Schlr E&G],Input[Institution Name],$A$1) -> 0 | C47: =SUMIFS(Input[Fee Schlr Desg],Input[Institution Name],$A$1) -> 0 | D47: =SUMIFS(Input[Fee Schlr Aux],Input[Institution Name],$A$1) -> 0 | E47: =SUMIFS(Input[Fee Schlr R Exp],Input[Institution Name],$A$1) -> 0 | F47: =SUMIFS(Input[Fee Schlr Loan],Input[Institution Name],$A$1) -> 0 | G47: =SUMIFS(Input[Fee Schlr Annuity],Input[Institution Name],$A$1) -> 0 | H47: =SUMIFS(Input[Fee Schlr Unexp],Input[Institution Name],$A$1) -> 0 | I47: =SUMIFS(Input[Fee Schlr R of Ind],Input[Institution Name],$A$1) -> 0 | J47: =SUMIFS(Input[Fee Schlr Inv in P],Input[Institution Name],$A$1) -> 0 | K47: 0
A48: Net Fees | B48: =SUM(B41,B43:B47) -> 0 | C48: =SUM(C41,C43:C47) -> 0 | D48: 0 | E48: 0 | F48: 0 | G48: 0 | H48: 0 | I48: 0 | J48: 0 | K48: 0
A50: Net Tuition and Fees (Funds Collected) | B50: =B33+B48 -> 0 | C50: =C33+C48 -> 0 | D50: 0 | E50: 0 | F50: 0 | G50: 0 | H50: 0 | I50: 0 | J50: 0 | K50: 0
A52: Federal Government | B52: Educational & General | C52: Designated | D52: Auxiliary Enterprises | E52: Restricted Expendable | F52: Loan Funds | G52: Annuity, Life, & Endowment & Similar Funds | H52: Unexpended Plant | I52: Retirement of Indebtedness | J52: Investment In Plant | K52: Total
A55: Federal Grants and Contracts - Restricted | B55: =SUMIFS(Input[Fed G&C - Rest E&G],Input[Institution Name],$A$1) -> 0 | C55: =SUMIFS(Input[Fed G&C - Rest Desg],Input[Institution Name],$A$1) -> 0 | D55: =SUMIFS(Input[Fed G&C - Rest Aux],Input[Institution Name],$A$1) -> 0 | E55: =SUMIFS(Input[Fed G&C - Rest R Exp],Input[Institution Name],$A$1) -> 0 | F55: =SUMIFS(Input[Fed G&C - Rest Loan],Input[Institution Name],$A$1) -> 0 | G55: =SUMIFS(Input[Fed G&C - Rest Annuity],Input[Institution Name],$A$1) -> 0 | H55: =SUMIFS(Input[Fed G&C - Rest Unexp],Input[Institution Name],$A$1) -> 0 | I55: =SUMIFS(Input[Fed G&C - Rest R of Ind],Input[Institution Name],$A$1) -> 0 | J55: =SUMIFS(Input[Fed G&C - Rest Inv in P],Input[Institution Name],$A$1) -> 0 | K55: =SUM(B55:J55) -> 0
A57: Professional Fees | B57: Educational & General | C57: Designated | D57: Auxiliary Enterprises | E57: Restricted Expendable | F57: Loan Funds | G57: Annuity, Life, & Endowment & Similar Funds | H57: Unexpended Plant | I57: Retirement of Indebtedness | J57: Investment In Plant | K57: Total
A60: =IF(OR($A$2="Health - Related Institutions",$A$2="Texas Public Universities with Medical Schools"),"All Sources (Net)","Not Applicable") -> Not Applicable | B60: =IF($A$60="Not Applicable", "",SUMIFS(Input[Professional Fees E&G],Input[Institution Name],$A$1)) ->  | C60: =IF($A$60="Not Applicable", "",SUMIFS(Input[Professional Fees Desg],Input[Institution Name],$A$1)) ->  | D60: =IF($A$60="Not Applicable", "",SUMIFS(Input[Professional Fees Aux],Input[Institution Name],$A$1)) ->  | E60: =IF($A$60="Not Applicable", "",SUMIFS(Input[Professional Fees R Exp],Input[Institution Name],$A$1)) ->  | F60: =IF($A$60="Not Applicable", "",SUMIFS(Input[Professional Fees Loan],Input[Institution Name],$A$1)) ->  | G60: =IF($A$60="Not Applicable", "",SUMIFS(Input[Professional Fees Annuity],Input[Institution Name],$A$1)) ->  | H60: =IF($A$60="Not Applicable", "",SUMIFS(Input[Professional Fees Unexp],Input[Institution Name],$A$1)) ->  | I60: =IF($A$60="Not Applicable", "",SUMIFS(Input[Professional Fees R of Ind],Input[Institution Name],$A$1)) ->  | J60: =IF($A$60="Not Applicable", "",SUMIFS(Input[Professional Fees Inv in P],Input[Institution Name],$A$1)) ->  | K60: =IF($A$2="Health - Related Institutions",SUM(B60:J60),0) -> 0
A62: Hospitals and Clinics | B62: Educational & General | C62: Designated | D62: Auxiliary Enterprises | E62: Restricted Expendable | F62: Loan Funds | G62: Annuity, Life, & Endowment & Similar Funds | H62: Unexpended Plant | I62: Retirement of Indebtedness | J62: Investment In Plant | K62: Total
A65: =IF(OR($A$2="Health - Related Institutions",$A$2="Texas Public Universities with Medical Schools"),"All Sources (Net)","Not Applicable") -> Not Applicable | B65: =IF($A$65="Not Applicable", "",SUMIFS(Input[H&C E&G],Input[Institution Name],$A$1)) ->  | C65: =IF($A$65="Not Applicable", "",SUMIFS(Input[H&C Desg],Input[Institution Name],$A$1)) ->  | D65: =IF($A$65="Not Applicable", "",SUMIFS(Input[H&C Aux],Input[Institution Name],$A$1)) ->  | E65: =IF($A$65="Not Applicable", "",SUMIFS(Input[H&C R Exp],Input[Institution Name],$A$1)) ->  | F65: =IF($A$65="Not Applicable", "",SUMIFS(Input[H&C Loan],Input[Institution Name],$A$1)) ->  | G65: =IF($A$65="Not Applicable", "",SUMIFS(Input[H&C Annuity],Input[Institution Name],$A$1)) ->  | H65: =IF($A$65="Not Applicable", "",SUMIFS(Input[H&C Unexp],Input[Institution Name],$A$1)) ->  | I65: =IF($A$65="Not Applicable", "",SUMIFS(Input[H&C R of Ind],Input[Institution Name],$A$1)) ->  | J65: =IF($A$65="Not Applicable", "",SUMIFS(Input[H&C Inv in P],Input[Institution Name],$A$1)) ->  | K65: =IF($A$2="Health - Related Institutions",SUM(B65:J65),0) -> 0
A67: Institutional Resources | B67: Educational & General | C67: Designated | D67: Auxiliary Enterprises | E67: Restricted Expendable | F67: Loan Funds | G67: Annuity, Life, & Endowment & Similar Funds | H67: Unexpended Plant | I67: Retirement of Indebtedness | J67: Investment In Plant | K67: Total
A70: Endowment and Interest Income² | B70: =SUMIFS(Input[End & Int Inc E&G],Input[Institution Name],$A$1) -> 0 | C70: =SUMIFS(Input[End & Int Inc Desg],Input[Institution Name],$A$1) -> 0 | D70: =SUMIFS(Input[End & Int Inc Aux],Input[Institution Name],$A$1) -> 0 | E70: =SUMIFS(Input[End & Int Inc R Exp],Input[Institution Name],$A$1) -> 0 | F70: =SUMIFS(Input[End & Int Inc Loan],Input[Institution Name],$A$1) -> 0 | G70: =SUMIFS(Input[End & Int Inc Annuity],Input[Institution Name],$A$1) -> 0 | H70: =SUMIFS(Input[End & Int Inc Unexp],Input[Institution Name],$A$1) -> 0 | I70: =SUMIFS(Input[End & Int Inc R of Ind],Input[Institution Name],$A$1) -> 0 | J70: =SUMIFS(Input[End & Int Inc Inv in P],Input[Institution Name],$A$1) -> 0 | K70: =SUM(B70:J70) -> 0
A71: Local Government Grants - Restricted | B71: =SUMIFS(Input[Loc Gov G - Rest E&G],Input[Institution Name],$A$1) -> 0 | C71: =SUMIFS(Input[Loc Gov G - Rest Desg],Input[Institution Name],$A$1) -> 0 | D71: =SUMIFS(Input[Loc Gov G - Rest Aux],Input[Institution Name],$A$1) -> 0 | E71: =SUMIFS(Input[Loc Gov G - Rest R Exp],Input[Institution Name],$A$1) -> 0 | F71: =SUMIFS(Input[Loc Gov G - Rest Loan],Input[Institution Name],$A$1) -> 0 | G71: =SUMIFS(Input[Loc Gov G - Rest Annuity],Input[Institution Name],$A$1) -> 0 | H71: =SUMIFS(Input[Loc Gov G - Rest Unexp],Input[Institution Name],$A$1) -> 0 | I71: =SUMIFS(Input[Loc Gov G - Rest R of Ind],Input[Institution Name],$A$1) -> 0 | J71: =SUMIFS(Input[Loc Gov G - Rest Inv in P],Input[Institution Name],$A$1) -> 0 | K71: =SUM(B71:J71) -> 0
A72: Private Gifts and Grants - Restricted | B72: =SUMIFS(Input[Pvt G&G - Rest E&G],Input[Institution Name],$A$1) -> 0 | C72: =SUMIFS(Input[Pvt G&G - Rest Desg],Input[Institution Name],$A$1) -> 0 | D72: =SUMIFS(Input[Pvt G&G - Rest Aux],Input[Institution Name],$A$1) -> 0 | E72: =SUMIFS(Input[Pvt G&G - Rest R Exp],Input[Institution Name],$A$1) -> 0 | F72: =SUMIFS(Input[Pvt G&G - Rest Loan],Input[Institution Name],$A$1) -> 0 | G72: =SUMIFS(Input[Pvt G&G - Rest Annuity],Input[Institution Name],$A$1) -> 0 | H72: =SUMIFS(Input[Pvt G&G - Rest Unexp],Input[Institution Name],$A$1) -> 0 | I72: =SUMIFS(Input[Pvt G&G - Rest R of Ind],Input[Institution Name],$A$1) -> 0 | J72: =SUMIFS(Input[Pvt G&G - Rest Inv in P],Input[Institution Name],$A$1) -> 0 | K72: =SUM(B72:J72) -> 0
A73: Sales and Services | B73: =SUMIFS(Input[S&S E&G],Input[Institution Name],$A$1) -> 0 | C73: =SUMIFS(Input[S&S Desg],Input[Institution Name],$A$1) -> 0 | D73: =SUMIFS(Input[S&S Aux],Input[Institution Name],$A$1) -> 0 | E73: =SUMIFS(Input[S&S R Exp],Input[Institution Name],$A$1) -> 0 | F73: =SUMIFS(Input[S&S Loan],Input[Institution Name],$A$1) -> 0 | G73: =SUMIFS(Input[S&S Annuity],Input[Institution Name],$A$1) -> 0 | H73: =SUMIFS(Input[S&S Unexp],Input[Institution Name],$A$1) -> 0 | I73: =SUMIFS(Input[S&S R of Ind],Input[Institution Name],$A$1) -> 0 | J73: =SUMIFS(Input[S&S Inv in P],Input[Institution Name],$A$1) -> 0 | K73: =SUM(B73:J73) -> 0
A74: Net Auxiliary Enterprises | B74: =SUMIFS(Input[Net Aux Ent E&G],Input[Institution Name],$A$1) -> 0 | C74: =SUMIFS(Input[Net Aux Ent Desg],Input[Institution Name],$A$1) -> 0 | D74: =SUMIFS(Input[Net Aux Ent Aux],Input[Institution Name],$A$1) -> 0 | E74: =SUMIFS(Input[Net Aux Ent R Exp],Input[Institution Name],$A$1) -> 0 | F74: =SUMIFS(Input[Net Aux Ent Loan],Input[Institution Name],$A$1) -> 0 | G74: =SUMIFS(Input[Net Aux Ent Annuity],Input[Institution Name],$A$1) -> 0 | H74: =SUMIFS(Input[Net Aux Ent Unexp],Input[Institution Name],$A$1) -> 0 | I74: =SUMIFS(Input[Net Aux Ent R of Ind],Input[Institution Name],$A$1) -> 0 | J74: =SUMIFS(Input[Net Aux Ent Inv in P],Input[Institution Name],$A$1) -> 0 | K74: 0
A75: Other Income³ | B75: =SUMIFS(Input[Oth Inc E&G],Input[Institution Name],$A$1) -> 0 | C75: =SUMIFS(Input[Oth Inc Desg],Input[Institution Name],$A$1) -> 0 | D75: =SUMIFS(Input[Oth Inc Aux],Input[Institution Name],$A$1) -> 0 | E75: =SUMIFS(Input[Oth Inc R Exp],Input[Institution Name],$A$1) -> 0 | F75: =SUMIFS(Input[Oth Inc Loan],Input[Institution Name],$A$1) -> 0 | G75: =SUMIFS(Input[Oth Inc Annuity],Input[Institution Name],$A$1) -> 0 | H75: =SUMIFS(Input[Oth Inc Unexp],Input[Institution Name],$A$1) -> 0 | I75: =SUMIFS(Input[Oth Inc R of Ind],Input[Institution Name],$A$1) -> 0 | J75: =SUMIFS(Input[Oth Inc Inv in P],Input[Institution Name],$A$1) -> 0 | K75: 0
A76: Subtotal | B76: =SUM(B70:B75) -> 0 | C76: =SUM(C70:C75) -> 0 | D76: 0 | E76: 0 | F76: 0 | G76: 0 | H76: 0 | I76: 0 | J76: 0 | K76: 0
A78: Total Operating Sources | B78: =SUM(B15,B33,B48,B55,B60,B65,B76) -> 0 | C78: =SUM(C15,C33,C48,C55,C60,C65,C76) -> 0 | D78: 0 | E78: 0 | F78: 0 | G78: 0 | H78: 0 | I78: 0 | J78: 0 | K78: 0
A80: Operating Uses
A81: Function | B81: Educational & General | C81: Designated | D81: Auxiliary Enterprises | E81: Restricted Expendable | F81: Loan Funds | G81: Annuity, Life, & Endowment & Similar Funds | H81: Unexpended Plant | I81: Retirement of Indebtedness | J81: Investment In Plant | K81: Total
A84: Instruction | B84: =SUMIFS(Input[Instr E&G],Input[Institution Name],$A$1) -> 0 | C84: =SUMIFS(Input[Instr Desg],Input[Institution Name],$A$1) -> 0 | D84: =SUMIFS(Input[Instr Aux],Input[Institution Name],$A$1) -> 0 | E84: =SUMIFS(Input[Instr R Exp],Input[Institution Name],$A$1) -> 0 | F84: =SUMIFS(Input[Instr Loan],Input[Institution Name],$A$1) -> 0 | G84: =SUMIFS(Input[Instr Annuity],Input[Institution Name],$A$1) -> 0 | H84: =SUMIFS(Input[Instr Unexp],Input[Institution Name],$A$1) -> 0 | I84: =SUMIFS(Input[Instr R of Ind],Input[Institution Name],$A$1) -> 0 | J84: =SUMIFS(Input[Instr Inv in P],Input[Institution Name],$A$1) -> 0 | K84: =SUM(B84:J84) -> 0
A85: Research | B85: =SUMIFS(Input[Res E&G],Input[Institution Name],$A$1) -> 0 | C85: =SUMIFS(Input[Res Desg],Input[Institution Name],$A$1) -> 0 | D85: =SUMIFS(Input[Res Aux],Input[Institution Name],$A$1) -> 0 | E85: =SUMIFS(Input[Res R Exp],Input[Institution Name],$A$1) -> 0 | F85: =SUMIFS(Input[Res Loan],Input[Institution Name],$A$1) -> 0 | G85: =SUMIFS(Input[Res Annuity],Input[Institution Name],$A$1) -> 0 | H85: =SUMIFS(Input[Res Unexp],Input[Institution Name],$A$1) -> 0 | I85: =SUMIFS(Input[Res R of Ind],Input[Institution Name],$A$1) -> 0 | J85: =SUMIFS(Input[Res Inv in P],Input[Institution Name],$A$1) -> 0 | K85: 0
A86: Public Service | B86: =SUMIFS(Input[Pub Srv E&G],Input[Institution Name],$A$1) -> 0 | C86: =SUMIFS(Input[Pub Srv Desg],Input[Institution Name],$A$1) -> 0 | D86: =SUMIFS(Input[Pub Srv Aux],Input[Institution Name],$A$1) -> 0 | E86: =SUMIFS(Input[Pub Srv R Exp],Input[Institution Name],$A$1) -> 0 | F86: =SUMIFS(Input[Pub Srv Loan],Input[Institution Name],$A$1) -> 0 | G86: =SUMIFS(Input[Pub Srv Annuity],Input[Institution Name],$A$1) -> 0 | H86: =SUMIFS(Input[Pub Srv Unexp],Input[Institution Name],$A$1) -> 0 | I86: =SUMIFS(Input[Pub Srv R of Ind],Input[Institution Name],$A$1) -> 0 | J86: =SUMIFS(Input[Pub Srv Inv in P],Input[Institution Name],$A$1) -> 0 | K86: 0
A87: =IF(OR($A$2="Health - Related Institutions",$A$2="Texas Public Universities with Medical Schools"),"Hospitals and Clinics","Hospitals and Clinics - Not Applicable") -> Hospitals and Clinics - Not Applicable | B87: =IF($A$87="Hospitals and Clinics - Not Applicable", "",SUMIFS(Input[H&C (OU) E&G],Input[Institution Name],$A$1)) ->  | C87: =IF($A$87="Hospitals and Clinics - Not Applicable", "",SUMIFS(Input[H&C (OU) Desg],Input[Institution Name],$A$1)) ->  | D87: =IF($A$87="Hospitals and Clinics - Not Applicable", "",SUMIFS(Input[H&C (OU) Aux],Input[Institution Name],$A$1)) ->  | E87: =IF($A$87="Hospitals and Clinics - Not Applicable", "",SUMIFS(Input[H&C (OU) R Exp],Input[Institution Name],$A$1)) ->  | F87: =IF($A$87="Hospitals and Clinics - Not Applicable", "",SUMIFS(Input[H&C (OU) Loan],Input[Institution Name],$A$1)) ->  | G87: =IF($A$87="Hospitals and Clinics - Not Applicable", "",SUMIFS(Input[H&C (OU) Annuity],Input[Institution Name],$A$1)) ->  | H87: =IF($A$87="Hospitals and Clinics - Not Applicable", "",SUMIFS(Input[H&C (OU) Unexp],Input[Institution Name],$A$1)) ->  | I87: =IF($A$87="Hospitals and Clinics - Not Applicable", "",SUMIFS(Input[H&C (OU) R of Ind],Input[Institution Name],$A$1)) ->  | J87: =IF($A$87="Hospitals and Clinics - Not Applicable", "",SUMIFS(Input[H&C (OU) Inv in P],Input[Institution Name],$A$1)) ->  | K87: =IF($A$2="Health - Related Institutions",SUM(B87:J87),0) -> 0
A88: Academic Support | B88: =SUMIFS(Input[Acad Sup E&G],Input[Institution Name],$A$1) -> 0 | C88: =SUMIFS(Input[Acad Sup Desg],Input[Institution Name],$A$1) -> 0 | D88: =SUMIFS(Input[Acad Sup Aux],Input[Institution Name],$A$1) -> 0 | E88: =SUMIFS(Input[Acad Sup R Exp],Input[Institution Name],$A$1) -> 0 | F88: =SUMIFS(Input[Acad Sup Loan],Input[Institution Name],$A$1) -> 0 | G88: =SUMIFS(Input[Acad Sup Annuity],Input[Institution Name],$A$1) -> 0 | H88: =SUMIFS(Input[Acad Sup Unexp],Input[Institution Name],$A$1) -> 0 | I88: =SUMIFS(Input[Acad Sup R of Ind],Input[Institution Name],$A$1) -> 0 | J88: =SUMIFS(Input[Acad Sup Inv in P],Input[Institution Name],$A$1) -> 0 | K88: 0
A89: Student Services | B89: =SUMIFS(Input[Stu Svc E&G],Input[Institution Name],$A$1) -> 0 | C89: =SUMIFS(Input[Stu Svc Desg],Input[Institution Name],$A$1) -> 0 | D89: =SUMIFS(Input[Stu Svc Aux],Input[Institution Name],$A$1) -> 0 | E89: =SUMIFS(Input[Stu Svc R Exp],Input[Institution Name],$A$1) -> 0 | F89: =SUMIFS(Input[Stu Svc Loan],Input[Institution Name],$A$1) -> 0 | G89: =SUMIFS(Input[Stu Svc Annuity],Input[Institution Name],$A$1) -> 0 | H89: =SUMIFS(Input[Stu Svc Unexp],Input[Institution Name],$A$1) -> 0 | I89: =SUMIFS(Input[Stu Svc R of Ind],Input[Institution Name],$A$1) -> 0 | J89: =SUMIFS(Input[Stu Svc Inv in P],Input[Institution Name],$A$1) -> 0 | K89: 0
A90: Institutional Support | B90: =SUMIFS(Input[Inst. Spt E&G],Input[Institution Name],$A$1) -> 0 | C90: =SUMIFS(Input[Inst. Spt Desg],Input[Institution Name],$A$1) -> 0 | D90: =SUMIFS(Input[Inst. Spt Aux],Input[Institution Name],$A$1) -> 0 | E90: =SUMIFS(Input[Inst. Spt R Exp],Input[Institution Name],$A$1) -> 0 | F90: =SUMIFS(Input[Inst. Spt Loan],Input[Institution Name],$A$1) -> 0 | G90: =SUMIFS(Input[Inst. Spt Annuity],Input[Institution Name],$A$1) -> 0 | H90: =SUMIFS(Input[Inst. Spt Unexp],Input[Institution Name],$A$1) -> 0 | I90: =SUMIFS(Input[Inst. Spt R of Ind],Input[Institution Name],$A$1) -> 0 | J90: =SUMIFS(Input[Inst. Spt Inv in P],Input[Institution Name],$A$1) -> 0 | K90: 0
A91: Operations and Maintenance of Plant | B91: =SUMIFS(Input[M&O Plnt E&G],Input[Institution Name],$A$1) -> 0 | C91: =SUMIFS(Input[M&O Plnt Desg],Input[Institution Name],$A$1) -> 0 | D91: =SUMIFS(Input[M&O Plnt Aux],Input[Institution Name],$A$1) -> 0 | E91: =SUMIFS(Input[M&O Plnt R Exp],Input[Institution Name],$A$1) -> 0 | F91: =SUMIFS(Input[M&O Plnt Loan],Input[Institution Name],$A$1) -> 0 | G91: =SUMIFS(Input[M&O Plnt Annuity],Input[Institution Name],$A$1) -> 0 | H91: =SUMIFS(Input[M&O Plnt Unexp],Input[Institution Name],$A$1) -> 0 | I91: =SUMIFS(Input[M&O Plnt R of Ind],Input[Institution Name],$A$1) -> 0 | J91: =SUMIFS(Input[M&O Plnt Inv in P],Input[Institution Name],$A$1) -> 0 | K91: 0
A92: Scholarships and Fellowships | B92: =SUMIFS(Input[Schl & Fell E&G],Input[Institution Name],$A$1) -> 0 | C92: =SUMIFS(Input[Schl & Fell Desg],Input[Institution Name],$A$1) -> 0 | D92: =SUMIFS(Input[Schl & Fell Aux],Input[Institution Name],$A$1) -> 0 | E92: =SUMIFS(Input[Schl & Fell R Exp],Input[Institution Name],$A$1) -> 0 | F92: =SUMIFS(Input[Schl & Fell Loan],Input[Institution Name],$A$1) -> 0 | G92: =SUMIFS(Input[Schl & Fell Annuity],Input[Institution Name],$A$1) -> 0 | H92: =SUMIFS(Input[Schl & Fell Unexp],Input[Institution Name],$A$1) -> 0 | I92: =SUMIFS(Input[Schl & Fell R of Ind],Input[Institution Name],$A$1) -> 0 | J92: =SUMIFS(Input[Schl & Fell Inv in P],Input[Institution Name],$A$1) -> 0 | K92: 0
A93: Auxiliary Enterprises⁹ | B93: =SUMIFS(Input[Aux Ent E&G],Input[Institution Name],$A$1) -> 0 | C93: =SUMIFS(Input[Aux Ent Desg],Input[Institution Name],$A$1) -> 0 | D93: =SUMIFS(Input[Aux Ent Aux],Input[Institution Name],$A$1) -> 0 | E93: =SUMIFS(Input[Aux Ent R Exp],Input[Institution Name],$A$1) -> 0 | F93: =SUMIFS(Input[Aux Ent Loan],Input[Institution Name],$A$1) -> 0 | G93: =SUMIFS(Input[Aux Ent Annuity],Input[Institution Name],$A$1) -> 0 | H93: =SUMIFS(Input[Aux Ent Unexp],Input[Institution Name],$A$1) -> 0 | I93: =SUMIFS(Input[Aux Ent R of Ind],Input[Institution Name],$A$1) -> 0 | J93: =SUMIFS(Input[Aux Ent Inv in P],Input[Institution Name],$A$1) -> 0 | K93: 0
A94: Capital Outlay from Current Fund Sources | B94: =SUMIFS(Input[Cap Out fund E&G],Input[Institution Name],$A$1) -> 0 | C94: =SUMIFS(Input[Cap Out fund Desg],Input[Institution Name],$A$1) -> 0 | D94: =SUMIFS(Input[Cap Out fund Aux],Input[Institution Name],$A$1) -> 0 | E94: =SUMIFS(Input[Cap Out fund R Exp],Input[Institution Name],$A$1) -> 0 | F94: =SUMIFS(Input[Cap Out fund Loan],Input[Institution Name],$A$1) -> 0 | G94: =SUMIFS(Input[Cap Out fund Annuity],Input[Institution Name],$A$1) -> 0 | H94: =SUMIFS(Input[Cap Out fund Unexp],Input[Institution Name],$A$1) -> 0 | I94: =SUMIFS(Input[Cap Out fund R of Ind],Input[Institution Name],$A$1) -> 0 | J94: =SUMIFS(Input[Cap Out fund Inv in P],Input[Institution Name],$A$1) -> 0 | K94: 0
A95: Other Expenses³ | B95: =SUMIFS(Input[Oth Exp E&G],Input[Institution Name],$A$1) -> 0 | C95: =SUMIFS(Input[Oth Exp Desg],Input[Institution Name],$A$1) -> 0 | D95: =SUMIFS(Input[Oth Exp Aux],Input[Institution Name],$A$1) -> 0 | E95: =SUMIFS(Input[Oth Exp R Exp],Input[Institution Name],$A$1) -> 0 | F95: =SUMIFS(Input[Oth Exp Loan],Input[Institution Name],$A$1) -> 0 | G95: =SUMIFS(Input[Oth Exp Annuity],Input[Institution Name],$A$1) -> 0 | H95: =SUMIFS(Input[Oth Exp Unexp],Input[Institution Name],$A$1) -> 0 | I95: =SUMIFS(Input[Oth Exp R of Ind],Input[Institution Name],$A$1) -> 0 | J95: =SUMIFS(Input[Oth Exp Inv in P],Input[Institution Name],$A$1) -> 0 | K95: 0
A96: Subtotal | B96: =SUM(B84:B95) -> 0 | C96: =SUM(C84:C95) -> 0 | D96: 0 | E96: 0 | F96: 0 | G96: 0 | H96: 0 | I96: 0 | J96: =SUM(J84:J95) -> 0 | K96: 0
A98: Other Sources / (Uses) of Funds | B98: Educational & General | C98: Designated | D98: Auxiliary Enterprises | E98: Restricted Expendable | F98: Loan Funds | G98: Annuity, Life, & Endowment & Similar Funds | H98: Unexpended Plant | I98: Retirement of Indebtedness | J98: Investment In Plant | K98: Total
A101: Capital Outlay from Non-Current Fund Sources | B101: =SUMIFS(Input[Cap Out n-Fund E&G],Input[Institution Name],$A$1) -> 0 | C101: =SUMIFS(Input[Cap Out n-Fund Desg],Input[Institution Name],$A$1) -> 0 | D101: =SUMIFS(Input[Cap Out n-Fund Aux],Input[Institution Name],$A$1) -> 0 | E101: =SUMIFS(Input[Cap Out n-Fund R Exp],Input[Institution Name],$A$1) -> 0 | F101: =SUMIFS(Input[Cap Out n-Fund Loan],Input[Institution Name],$A$1) -> 0 | G101: =SUMIFS(Input[Cap Out n-Fund Annuity],Input[Institution Name],$A$1) -> 0 | H101: =SUMIFS(Input[Cap Out n-Fund Unexp],Input[Institution Name],$A$1) -> 0 | I101: =SUMIFS(Input[Cap Out n-Fund R of Ind],Input[Institution Name],$A$1) -> 0 | J101: =SUMIFS(Input[Cap Out n-Fund Inv in P],Input[Institution Name],$A$1) -> 0 | K101: =SUM(B101:J101) -> 0
A102: Mandatory and Non-mandatory Transfers¹⁰ | B102: =SUMIFS(Input[M&Nm Xfrs E&G],Input[Institution Name],$A$1) -> 0 | C102: =SUMIFS(Input[M&Nm Xfrs Desg],Input[Institution Name],$A$1) -> 0 | D102: =SUMIFS(Input[M&Nm Xfrs Aux],Input[Institution Name],$A$1) -> 0 | E102: =SUMIFS(Input[M&Nm Xfrs R Exp],Input[Institution Name],$A$1) -> 0 | F102: =SUMIFS(Input[M&Nm Xfrs Loan],Input[Institution Name],$A$1) -> 0 | G102: =SUMIFS(Input[M&Nm Xfrs Annuity],Input[Institution Name],$A$1) -> 0 | H102: =SUMIFS(Input[M&Nm Xfrs Unexp],Input[Institution Name],$A$1) -> 0 | I102: =SUMIFS(Input[M&Nm Xfrs R of Ind],Input[Institution Name],$A$1) -> 0 | J102: =SUMIFS(Input[M&Nm Xfrs Inv in P],Input[Institution Name],$A$1) -> 0 | K102: 0
A103: Bond Proceeds Transfers In⁴ | B103: =SUMIFS(Input[Bond Xfrs In E&G],Input[Institution Name],$A$1) -> 0 | C103: =SUMIFS(Input[Bond Xfrs In Desg],Input[Institution Name],$A$1) -> 0 | D103: =SUMIFS(Input[Bond Xfrs In Aux],Input[Institution Name],$A$1) -> 0 | E103: =SUMIFS(Input[Bond Xfrs In R Exp],Input[Institution Name],$A$1) -> 0 | F103: =SUMIFS(Input[Bond Xfrs In Loan],Input[Institution Name],$A$1) -> 0 | G103: =SUMIFS(Input[Bond Xfrs In Annuity],Input[Institution Name],$A$1) -> 0 | H103: =SUMIFS(Input[Bond Xfrs In Unexp],Input[Institution Name],$A$1) -> 0 | I103: =SUMIFS(Input[Bond Xfrs In R of Ind],Input[Institution Name],$A$1) -> 0 | J103: =SUMIFS(Input[Bond Xfrs In Inv in P],Input[Institution Name],$A$1) -> 0 | K103: =SUM(B103:J103) -> 0
A104: Debt Service Payments⁵ | B104: =SUMIFS(Input[Debt Srv Pay E&G],Input[Institution Name],$A$1) -> 0 | C104: =SUMIFS(Input[Debt Srv Pay Desg],Input[Institution Name],$A$1) -> 0 | D104: =SUMIFS(Input[Debt Srv Pay Aux],Input[Institution Name],$A$1) -> 0 | E104: =SUMIFS(Input[Debt Srv Pay R Exp],Input[Institution Name],$A$1) -> 0 | F104: =SUMIFS(Input[Debt Srv Pay Loan],Input[Institution Name],$A$1) -> 0 | G104: =SUMIFS(Input[Debt Srv Pay Annuity],Input[Institution Name],$A$1) -> 0 | H104: =SUMIFS(Input[Debt Srv Pay Unexp],Input[Institution Name],$A$1) -> 0 | I104: =SUMIFS(Input[Debt Srv Pay R of Ind],Input[Institution Name],$A$1) -> 0 | J104: =SUMIFS(Input[Debt Srv Pay Inv in P],Input[Institution Name],$A$1) -> 0 | K104: =SUM(B104:J104) -> 0
A105: Subtotal | B105: =SUM(B101:B104) -> 0 | C105: 0 | D105: 0 | E105: 0 | F105: 0 | G105: 0 | H105: 0 | I105: 0 | J105: =SUM(J101:J104) -> 0 | K105: =SUM(K101:K104) -> 0
A107: Other Items Not for Current Operating Use | B107: Educational & General | C107: Designated | D107: Auxiliary Enterprises | E107: Restricted Expendable | F107: Loan Funds | G107: Annuity, Life, & Endowment & Similar Funds | H107: Unexpended Plant | I107: Retirement of Indebtedness | J107: Investment In Plant | K107: Total
A110: Unrealized Gains/(Losses)⁶ | B110: =SUMIFS(Input[Unreal G/L E&G],Input[Institution Name],$A$1) -> 0 | C110: =SUMIFS(Input[Unreal G/L Desg],Input[Institution Name],$A$1) -> 0 | D110: =SUMIFS(Input[Unreal G/L Aux],Input[Institution Name],$A$1) -> 0 | E110: =SUMIFS(Input[Unreal G/L R Exp],Input[Institution Name],$A$1) -> 0 | F110: =SUMIFS(Input[Unreal G/L Loan],Input[Institution Name],$A$1) -> 0 | G110: =SUMIFS(Input[Unreal G/L Annuity],Input[Institution Name],$A$1) -> 0 | H110: =SUMIFS(Input[Unreal G/L Unexp],Input[Institution Name],$A$1) -> 0 | I110: =SUMIFS(Input[Unreal G/L R of Ind],Input[Institution Name],$A$1) -> 0 | J110: =SUMIFS(Input[Unreal G/L Inv in P],Input[Institution Name],$A$1) -> 0 | K110: =SUM(B110:J110) -> 0
A111: Additions to Permanent Endowments⁷ | B111: =SUMIFS(Input[Add End E&G],Input[Institution Name],$A$1) -> 0 | C111: =SUMIFS(Input[Add End Desg],Input[Institution Name],$A$1) -> 0 | D111: =SUMIFS(Input[Add End Aux],Input[Institution Name],$A$1) -> 0 | E111: =SUMIFS(Input[Add End R Exp],Input[Institution Name],$A$1) -> 0 | F111: =SUMIFS(Input[Add End Loan],Input[Institution Name],$A$1) -> 0 | G111: =SUMIFS(Input[Add End Annuity],Input[Institution Name],$A$1) -> 0 | H111: =SUMIFS(Input[Add End Unexp],Input[Institution Name],$A$1) -> 0 | I111: =SUMIFS(Input[Add End R of Ind],Input[Institution Name],$A$1) -> 0 | J111: =SUMIFS(Input[Add End Inv in P],Input[Institution Name],$A$1) -> 0 | K111: 0
A112: Subtotal | B112: =SUM(B110:B111) -> 0 | C112: =SUM(C110:C111) -> 0 | D112: 0 | E112: 0 | F112: 0 | G112: 0 | H112: 0 | I112: 0 | J112: 0 | K112: =SUM(K106:K111) -> 0
A114: Total Sources Over / Under Uses¹¹ | B114: =B78-B96+B105+B112 -> 0 | C114: =C78-C96+C105+C112 -> 0 | D114: 0 | E114: 0 | F114: 0 | G114: 0 | H114: 0 | I114: 0 | J114: 0 | K114: 0
B116: Educational & General | C116: Designated | D116: Auxiliary Enterprises | E116: Restricted Expendable | F116: Loan Funds | G116: Annuity, Life, & Endowment & Similar Funds | H116: Unexpended Plant | I116: Retirement of Indebtedness | J116: Investment In Plant | K116: Total
A119: Bond Proceeds/(Principal Debt Payments) | B119: =SUMIFS(Input[Bond Proceeds E&G],Input[Institution Name],$A$1) -> 0 | C119: =SUMIFS(Input[Bond Proceeds Desg],Input[Institution Name],$A$1) -> 0 | D119: =SUMIFS(Input[Bond Proceeds Aux],Input[Institution Name],$A$1) -> 0 | E119: =SUMIFS(Input[Bond Proceeds R Exp],Input[Institution Name],$A$1) -> 0 | F119: =SUMIFS(Input[Bond Proceeds Loan],Input[Institution Name],$A$1) -> 0 | G119: =SUMIFS(Input[Bond Proceeds Annuity],Input[Institution Name],$A$1) -> 0 | H119: =SUMIFS(Input[Bond Proceeds Unexp],Input[Institution Name],$A$1) -> 0 | I119: =SUMIFS(Input[Bond Proceeds R of Ind],Input[Institution Name],$A$1) -> 0 | J119: =SUMIFS(Input[Bond Proceeds Inv in P],Input[Institution Name],$A$1) -> 0 | K119: =SUM(B119:J119) -> 0
A120: Depreciation Expense | B120: =SUMIFS(Input[Dep Exp E&G],Input[Institution Name],$A$1) -> 0 | C120: =SUMIFS(Input[Dep Exp Desg],Input[Institution Name],$A$1) -> 0 | D120: =SUMIFS(Input[Dep Exp Aux],Input[Institution Name],$A$1) -> 0 | E120: =SUMIFS(Input[Dep Exp R Exp],Input[Institution Name],$A$1) -> 0 | F120: =SUMIFS(Input[Dep Exp Loan],Input[Institution Name],$A$1) -> 0 | G120: =SUMIFS(Input[Dep Exp Annuity],Input[Institution Name],$A$1) -> 0 | H120: =SUMIFS(Input[Dep Exp Unexp],Input[Institution Name],$A$1) -> 0 | I120: =SUMIFS(Input[Dep Exp R of Ind],Input[Institution Name],$A$1) -> 0 | J120: =SUMIFS(Input[Dep Exp Inv in P],Input[Institution Name],$A$1) -> 0 | K120: 0
A121: Transfer of Capital Asset(s) from System | B121: =SUMIFS(Input[Xfr Cap Sys E&G],Input[Institution Name],$A$1) -> 0 | C121: =SUMIFS(Input[Xfr Cap Sys Desg],Input[Institution Name],$A$1) -> 0 | D121: =SUMIFS(Input[Xfr Cap Sys Aux],Input[Institution Name],$A$1) -> 0 | E121: =SUMIFS(Input[Xfr Cap Sys R Exp],Input[Institution Name],$A$1) -> 0 | F121: =SUMIFS(Input[Xfr Cap Sys Loan],Input[Institution Name],$A$1) -> 0 | G121: =SUMIFS(Input[Xfr Cap Sys Annuity],Input[Institution Name],$A$1) -> 0 | H121: =SUMIFS(Input[Xfr Cap Sys Unexp],Input[Institution Name],$A$1) -> 0 | I121: =SUMIFS(Input[Xfr Cap Sys R of Ind],Input[Institution Name],$A$1) -> 0 | J121: =SUMIFS(Input[Xfr Cap Sys Inv in P],Input[Institution Name],$A$1) -> 0 | K121: 0
A122: Other Post-Employment Benefit (OPEB) Expense | B122: =SUMIFS(Input[OPEB Exp E&G],Input[Institution Name],$A$1) -> 0 | C122: =SUMIFS(Input[OPEB Exp Desg],Input[Institution Name],$A$1) -> 0 | D122: =SUMIFS(Input[OPEB Exp Aux],Input[Institution Name],$A$1) -> 0 | E122: =SUMIFS(Input[OPEB Exp R Exp],Input[Institution Name],$A$1) -> 0 | F122: =SUMIFS(Input[OPEB Exp Loan],Input[Institution Name],$A$1) -> 0 | G122: =SUMIFS(Input[OPEB Exp Annuity],Input[Institution Name],$A$1) -> 0 | H122: =SUMIFS(Input[OPEB Exp Unexp],Input[Institution Name],$A$1) -> 0 | I122: =SUMIFS(Input[OPEB Exp R of Ind],Input[Institution Name],$A$1) -> 0 | J122: =SUMIFS(Input[OPEB Exp Inv in P],Input[Institution Name],$A$1) -> 0 | K122: 0
A123: Non-Cash Capital Gifts | B123: =SUMIFS(Input[Non-Cash Cap E&G],Input[Institution Name],$A$1) -> 0 | C123: =SUMIFS(Input[Non-Cash Cap Desg],Input[Institution Name],$A$1) -> 0 | D123: =SUMIFS(Input[Non-Cash Cap Aux],Input[Institution Name],$A$1) -> 0 | E123: =SUMIFS(Input[Non-Cash Cap R Exp],Input[Institution Name],$A$1) -> 0 | F123: =SUMIFS(Input[Non-Cash Cap Loan],Input[Institution Name],$A$1) -> 0 | G123: =SUMIFS(Input[Non-Cash Cap Annuity],Input[Institution Name],$A$1) -> 0 | H123: =SUMIFS(Input[Non-Cash Cap Unexp],Input[Institution Name],$A$1) -> 0 | I123: =SUMIFS(Input[Non-Cash Cap R of Ind],Input[Institution Name],$A$1) -> 0 | J123: =SUMIFS(Input[Non-Cash Cap Inv in P],Input[Institution Name],$A$1) -> 0 | K123: 0
A124: Capital Outlay | B124: =SUMIFS(Input[Cap Out E&G],Input[Institution Name],$A$1) -> 0 | C124: =SUMIFS(Input[Cap Out Desg],Input[Institution Name],$A$1) -> 0 | D124: =SUMIFS(Input[Cap Out Aux],Input[Institution Name],$A$1) -> 0 | E124: =SUMIFS(Input[Cap Out R Exp],Input[Institution Name],$A$1) -> 0 | F124: =SUMIFS(Input[Cap Out Loan],Input[Institution Name],$A$1) -> 0 | G124: =SUMIFS(Input[Cap Out Annuity],Input[Institution Name],$A$1) -> 0 | H124: =SUMIFS(Input[Cap Out Unexp],Input[Institution Name],$A$1) -> 0 | I124: =SUMIFS(Input[Cap Out R of Ind],Input[Institution Name],$A$1) -> 0 | J124: =SUMIFS(Input[Cap Out Inv in P],Input[Institution Name],$A$1) -> 0 | K124: 0
A125: Change in Net Assets (Total Agrees with AFR) | B125: =SUM(B114,B119:B124) -> 0 | C125: =SUM(C114,C119:C124) -> 0 | D125: 0 | E125: 0 | F125: 0 | G125: 0 | H125: 0 | I125: 0 | J125: =SUM(J114,J119:J124) -> 0 | K125: =SUM(K114,K119:K124) -> 0
A129: Footnotes
A130: 1) Scholarship Discounts and Allowances are scholarships, fellowships, and grants applied to tuition. The discount eliminates tuition revenues that are paid for by University resources which are recorded as revenue elsewhere on the financial statements (i.e. federal and state contracts and grants revenues). In addition, Scholarship Discounts and Allowances eliminate tuition revenue that is exempted from payment due to tuition exemptions approved by the Texas Legislature. Waivers, remissions, and exemptions represent tuition and fee dollars forgone by the university - some are required by statute. See the Integrated Financial Reporting System (IFRS) report submitted to THECB for details on waivers, exemptions, tuition, and fees. Allocation methods to individual funds shown may vary between institutions.
A134: 2) Endowment and Interest Income includes interest income and endowment payouts.
A135: 3) Other Income is primarily Other Operating and Other Non-operating Revenues from the AFR. Other Expenses is primarily Other Nonoperating Expenses from the AFR.
A136: 4) Bond Proceeds are funds received from the sale of bonds and commercial paper used to finance capital projects. This amount includes actual proceeds and accrued or anticipated proceeds to be transferred from System. Independent institutions report only to the extent expended in current year.
A138: 5) Debt service payments are payments to service and retire debt issued to fund capital projects. System components do this via transfers to System Administrations. Independent institutions use direct payment to appropriate paying agents.
A139: 6) Unrealized Gains / (Losses) represent the increase in the Fair Market Value of Investments and Endowments. Unrealized Gains / (Losses) are accrued as non-cash transactions. Therefore, funds are not actually received for this revenue stream. Accordingly, this revenue is not cash revenue and cannot be used by the University to fund operations.
A141: 7) Additions to Permanent Endowments are additions to endowment principal. This revenue is restricted for investment purposes only and cannot be used to fund operations. Only interest income from these endowments, which is reported on the Endowment and Investment Income line of this report, can be used by the University to fund operations.
A143: 8) Distributions from the Available University Fund appropriated through the Appropriation Bill are first used to pay debt service costs on Permanent University Fund Bonds. Funds remaining are distributed to constitutionally designated institutions to promote academic excellence. Only the Excellence funding is shown at the institution level. The AUF funds used to pay debt service on PUF bonds are reported at the System level.
A145: 9) Auxiliary Enterprises include athletics, housing and food, student services, and parking and transportation. Auxiliary Enterprises are required to be self-supporting, and therefore must operate on the funds they generate.
A146: 10) Mandatory and non-mandatory transfers includes transfers between funds, transfers between the University System and institutions and transfers to and from other state agencies. In total, all transfers between funds net to zero with the exception of any amounts transferred between the University System, between other institutions, or to and from another state agency. There are no transfers of education and general funds provided by the State of Texas to restricted or auxiliary fund groups. Transfers between education and general funds and designated funds are related to Texas Public Education Grant as provided by the State of Texas.
A149: =IF(0>=K114,"","11)"&A156&TEXT(K114,"#,##0")&A157&TEXT(SUMIFS(Input[Footnote Rev Rec''d],Input[Institution Name],$A$1),"#,##0")&A158&TEXT((K114-SUMIFS(Input[Footnote Rev Rec''d],Input[Institution Name],$A$1)),"#,##0")&A159&TEXT(SUMIFS(Input[Footnote Non Exp],Input[Institution Name],$A$1),"#,##0")&A160&TEXT((K114-SUMIFS(Input[Footnote Rev Rec''d],Input[Institution Name],$A$1)-SUMIFS(Input[Footnote Non Exp],Input[Institution Name],$A$1)),"#,##0")&A161) -> 
A156: Of the net increase of $
A157: , approximately $
A158: represents revenues received but not yet expended. This income is fully committed to program expenditures and capital disbursements. The remaining $
A159: represents non-expendable funds from unrealized gains and additions to permanent endowments of approximately $
A160: and $
A161: respectively. Unrealized gains and additions to permanent endowments do not contribute to the availability of the institution’s operating cash as discussed in FN6 and FN7 above.

Sheet Summary (by Institution)
F1: =IFERROR(SUMIFS(Input[FTSE],Input[Institution Name],$A$1),"") -> 0 | G1: FTSE
A2: =IF(ISBLANK($A$1),"▲ Select institution name from dropdown ▲",VLOOKUP($A$1,SearchNames,2,FALSE)) -> ▲ Select institution name from dropdown ▲ | F2: =IFERROR(SUMIFS(Input[FTFE],Input[Institution Name],$A$1),"") -> 0 | G2: Faculty FTE
A3: For the Year Ended August 31, 2023
A7: Summary Worksheet
A8: Operating Sources | E8: Total Revenue by Operating Source Category
A9: State of Texas | B9: Summary | C9: Per FTSE | E9: Operating Sources | F9: Amount | G9: Percent
A10: State Appropriations | B10: =SUMIFS(Input[St. Ap. E & G],Input[Institution Name],$A$1)+SUMIFS(Input[St. Ap. Desg],Input[Institution Name],$A$1)+SUMIFS(Input[St. Ap. Aux],Input[Institution Name],$A$1)+SUMIFS(Input[St. Ap. R Exp],Input[Institution Name],$A$1)+SUMIFS(Input[St. Ap. Loan],Input[Institution Name],$A$1)+SUMIFS(Input[St. Ap. Annuity],Input[Institution Name],$A$1)+SUMIFS(Input[St. Ap. Unexp],Input[Institution Name],$A$1)+SUMIFS(Input[St. Ap. R of Ind],Input[Institution Name],$A$1)+SUMIFS(Input[St. Ap. Inv in P],Input[Institution Name],$A$1) -> 0 | C10: =IFERROR(B10/$F$1,0) -> 0 | E10: State of Texas | F10: =B14 -> 0 | G10: =IFERROR(F10/$F$14,0) -> 0
A11: State Grants and Contracts* | B11: =SUMIFS(Input[St. G&C - Rstr E&G],Input[Institution Name],$A$1)+SUMIFS(Input[St. G&C - Rstr Desg],Input[Institution Name],$A$1)+SUMIFS(Input[St. G&C - Rstr Aux],Input[Institution Name],$A$1)+SUMIFS(Input[St. G&C - Rstr R Exp],Input[Institution Name],$A$1)+SUMIFS(Input[St. G&C - Rstr Loan],Input[Institution Name],$A$1)+SUMIFS(Input[St. G&C - Rstr Annuity],Input[Institution Name],$A$1)+SUMIFS(Input[St. G&C - Rstr Unexp],Input[Institution Name],$A$1)+SUMIFS(Input[St. G&C - Rstr R of Ind],Input[Institution Name],$A$1)+SUMIFS(Input[St. G&C - Rstr Inv in P],Input[Institution Name],$A$1) -> 0 | C11: =IFERROR(B11/$F$1,0) -> 0 | E11: Student & Parent | F11: =B47 -> 0 | G11: =IFERROR(F11/$F$14,0) -> 0
A12: Higher Education Fund | B12: =SUMIFS(Input[HEF E&G],Input[Institution Name],$A$1)+SUMIFS(Input[HEF Desg],Input[Institution Name],$A$1)+SUMIFS(Input[HEF Aux],Input[Institution Name],$A$1)+SUMIFS(Input[HEF R Exp],Input[Institution Name],$A$1)+SUMIFS(Input[HEF Loan],Input[Institution Name],$A$1)+SUMIFS(Input[HEF Annuity],Input[Institution Name],$A$1)+SUMIFS(Input[HEF Unexp],Input[Institution Name],$A$1)+SUMIFS(Input[HEF R of Ind],Input[Institution Name],$A$1)+SUMIFS(Input[HEF Inv in P],Input[Institution Name],$A$1) -> 0 | C12: =IFERROR(B12/$F$1,0) -> 0 | E12: Federal | F12: =B50 -> 0 | G12: 0
A13: Available University Fund Excellence | B13: =SUMIFS(Input[Available E&G],Input[Institution Name],$A$1)+SUMIFS(Input[Available Desg],Input[Institution Name],$A$1)+SUMIFS(Input[Available Aux],Input[Institution Name],$A$1)+SUMIFS(Input[Available R Exp],Input[Institution Name],$A$1)+SUMIFS(Input[Available Loan],Input[Institution Name],$A$1)+SUMIFS(Input[Available Annuity],Input[Institution Name],$A$1)+SUMIFS(Input[Available Unexp],Input[Institution Name],$A$1)+SUMIFS(Input[Available R of Ind],Input[Institution Name],$A$1)+SUMIFS(Input[Available Inv in P],Input[Institution Name],$A$1) -> 0 | C13: =IFERROR(B13/$F$1,0) -> 0 | E13: Institutional | F13: =SUM(B53,B56,B65) -> 0 | G13: 0
A14: Subtotal | B14: =SUM(B10:B13) -> 0 | C14: =SUM(C10:C13) -> 0 | F14: =SUM(F10:F13) -> 0 | G14: =SUM(G10:G13) -> 0
A16: Student & Parent | B16: Summary | C16: Per FTSE
A17: Tuition Potential 100% | B17: =SUM(B23,B19:B22) -> 0 | C17: =IFERROR(B17/$F$1,0) -> 0
A18: Not Reported in AFR (Report as negative numbers) | E18: SRECNP Reconciliation of Net Tuition and Fees
A19: Waivers - Statutory | B19: =SUMIFS(Input[T. W. - Stat (NR AFR) E&G],Input[Institution Name],$A$1)+SUMIFS(Input[T. W. - Stat (NR AFR) Desg],Input[Institution Name],$A$1)+SUMIFS(Input[T. W. - Stat (NR AFR) Aux],Input[Institution Name],$A$1)+SUMIFS(Input[T. W. - Stat (NR AFR) R Exp],Input[Institution Name],$A$1)+SUMIFS(Input[T. W. - Stat (NR AFR) Loan],Input[Institution Name],$A$1)+SUMIFS(Input[T. W. - Stat (NR AFR) Annuity],Input[Institution Name],$A$1)+SUMIFS(Input[T. W. - Stat (NR AFR) Unexp],Input[Institution Name],$A$1)+SUMIFS(Input[T. W. - Stat (NR AFR) R of Ind],Input[Institution Name],$A$1)+SUMIFS(Input[T. W. - Stat (NR AFR) Inv in P],Input[Institution Name],$A$1) -> 0 | C19: =IFERROR(B19/$F$1,0) -> 0 | E19: Gross T&F | G19: =SUMIFS(Input[SRECNA T & F (Total Gross)],Input[Institution Name],$A$1) -> 0
A20: Waivers - Institutional | B20: =SUMIFS(Input[T. W. - Inst. (NR AFR) E&G],Input[Institution Name],$A$1)+SUMIFS(Input[T. W. - Inst. (NR AFR) Desg],Input[Institution Name],$A$1)+SUMIFS(Input[T. W. - Inst. (NR AFR) Aux],Input[Institution Name],$A$1)+SUMIFS(Input[T. W. - Inst. (NR AFR) R Exp],Input[Institution Name],$A$1)+SUMIFS(Input[T. W. - Inst. (NR AFR) Loan],Input[Institution Name],$A$1)+SUMIFS(Input[T. W. - Inst. (NR AFR) Annuity],Input[Institution Name],$A$1)+SUMIFS(Input[T. W. - Inst. (NR AFR) Unexp],Input[Institution Name],$A$1)+SUMIFS(Input[T. W. - Inst. (NR AFR) R of Ind],Input[Institution Name],$A$1)+SUMIFS(Input[T. W. - Inst. (NR AFR) Inv in P],Input[Institution Name],$A$1) -> 0 | C20: =IFERROR(B20/$F$1,0) -> 0 | E20: Discounts & Allowances | G20: =SUMIFS(Input[SRECNA R-AFR, W,Exp,Schl],Input[Institution Name],$A$1) -> 0
A21: Exemptions - Statutory | B21: =SUMIFS(Input[T. Exp. - Stat (NR AFR) E&G],Input[Institution Name],$A$1)+SUMIFS(Input[T. Exp. - Stat (NR AFR) Desg],Input[Institution Name],$A$1)+SUMIFS(Input[T. Exp. - Stat (NR AFR) Aux],Input[Institution Name],$A$1)+SUMIFS(Input[T. Exp. - Stat (NR AFR) R Exp],Input[Institution Name],$A$1)+SUMIFS(Input[T. Exp. - Stat (NR AFR) Loan],Input[Institution Name],$A$1)+SUMIFS(Input[T. Exp. - Stat (NR AFR) Annuity],Input[Institution Name],$A$1)+SUMIFS(Input[T. Exp. - Stat (NR AFR) Unexp],Input[Institution Name],$A$1)+SUMIFS(Input[T. Exp. - Stat (NR AFR) R of Ind],Input[Institution Name],$A$1)+SUMIFS(Input[T. Exp. - Stat (NR AFR) Inv in P],Input[Institution Name],$A$1) -> 0 | C21: =IFERROR(B21/$F$1,0) -> 0 | E21: Net Tuition & Fees | G21: =SUM(G19:G20) -> 0
A22: Exemptions - Institutional | B22: =SUMIFS(Input[T. Exp. - Inst. (NR AFR) E&G],Input[Institution Name],$A$1)+SUMIFS(Input[T. Exp. - Inst. (NR AFR) Desg],Input[Institution Name],$A$1)+SUMIFS(Input[T. Exp. - Inst. (NR AFR) Aux],Input[Institution Name],$A$1)+SUMIFS(Input[T. Exp. - Inst. (NR AFR) R Exp],Input[Institution Name],$A$1)+SUMIFS(Input[T. Exp. - Inst. (NR AFR) Loan],Input[Institution Name],$A$1)+SUMIFS(Input[T. Exp. - Inst. (NR AFR) Annuity],Input[Institution Name],$A$1)+SUMIFS(Input[T. Exp. - Inst. (NR AFR) Unexp],Input[Institution Name],$A$1)+SUMIFS(Input[T. Exp. - Inst. (NR AFR) R of Ind],Input[Institution Name],$A$1)+SUMIFS(Input[T. Exp. - Inst. (NR AFR) Inv in P],Input[Institution Name],$A$1) -> 0 | C22: =IFERROR(B22/$F$1,0) -> 0 | F22: =IF(G22<>0,"Out of Balance","Balanced") -> Balanced | G22: =G21-B47 -> 0
A23: Tuition - Gross - AFR Presentation | B23: =SUMIFS(Input[T. - Gross E&G],Input[Institution Name],$A$1)+SUMIFS(Input[T. - Gross Desg],Input[Institution Name],$A$1)+SUMIFS(Input[T. - Gross Aux],Input[Institution Name],$A$1)+SUMIFS(Input[T. - Gross R Exp],Input[Institution Name],$A$1)+SUMIFS(Input[T. - Gross Loan],Input[Institution Name],$A$1)+SUMIFS(Input[T. - Gross Annuity],Input[Institution Name],$A$1)+SUMIFS(Input[T. - Gross Unexp],Input[Institution Name],$A$1)+SUMIFS(Input[T. - Gross R of Ind],Input[Institution Name],$A$1)+SUMIFS(Input[T. - Gross Inv in P],Input[Institution Name],$A$1) -> 0 | C23: =IFERROR(B23/$F$1,0) -> 0
A24: Reported in AFR (Report as negative numbers)
A25: Waivers - Statutory | B25: =SUMIFS(Input[T. W. - Stat (R AFR) E&G],Input[Institution Name],$A$1)+SUMIFS(Input[T. W. - Stat (R AFR) Desg],Input[Institution Name],$A$1)+SUMIFS(Input[T. W. - Stat (R AFR) Aux],Input[Institution Name],$A$1)+SUMIFS(Input[T. W. - Stat (R AFR) R Exp],Input[Institution Name],$A$1)+SUMIFS(Input[T. W. - Stat (R AFR) Loan],Input[Institution Name],$A$1)+SUMIFS(Input[T. W. - Stat (R AFR) Annuity],Input[Institution Name],$A$1)+SUMIFS(Input[T. W. - Stat (R AFR) Unexp],Input[Institution Name],$A$1)+SUMIFS(Input[T. W. - Stat (R AFR) R of Ind],Input[Institution Name],$A$1)+SUMIFS(Input[T. W. - Stat (R AFR) Inv in P],Input[Institution Name],$A$1) -> 0 | C25: =IFERROR(B25/$F$1,0) -> 0 | I25: Top 5 Sources
A26: Waivers - Institutional | B26: =SUMIFS(Input[T. W. - Inst. (R AFR) E&G],Input[Institution Name],$A$1)+SUMIFS(Input[T. W. - Inst. (R AFR) Desg],Input[Institution Name],$A$1)+SUMIFS(Input[T. W. - Inst. (R AFR) Aux],Input[Institution Name],$A$1)+SUMIFS(Input[T. W. - Inst. (R AFR) R Exp],Input[Institution Name],$A$1)+SUMIFS(Input[T. W. - Inst. (R AFR) Loan],Input[Institution Name],$A$1)+SUMIFS(Input[T. W. - Inst. (R AFR) Annuity],Input[Institution Name],$A$1)+SUMIFS(Input[T. W. - Inst. (R AFR) Unexp],Input[Institution Name],$A$1)+SUMIFS(Input[T. W. - Inst. (R AFR) R of Ind],Input[Institution Name],$A$1)+SUMIFS(Input[T. W. - Inst. (R AFR) Inv in P],Input[Institution Name],$A$1) -> 0 | C26: 0 | E26: Operating Sources
A27: Exemptions - Statutory | B27: =SUMIFS(Input[T. Exp. - Stat (R AFR) E&G],Input[Institution Name],$A$1)+SUMIFS(Input[T. Exp. - Stat (R AFR) Desg],Input[Institution Name],$A$1)+SUMIFS(Input[T. Exp. - Stat (R AFR) Aux],Input[Institution Name],$A$1)+SUMIFS(Input[T. Exp. - Stat (R AFR) R Exp],Input[Institution Name],$A$1)+SUMIFS(Input[T. Exp. - Stat (R AFR) Loan],Input[Institution Name],$A$1)+SUMIFS(Input[T. Exp. - Stat (R AFR) Annuity],Input[Institution Name],$A$1)+SUMIFS(Input[T. Exp. - Stat (R AFR) Unexp],Input[Institution Name],$A$1)+SUMIFS(Input[T. Exp. - Stat (R AFR) R of Ind],Input[Institution Name],$A$1)+SUMIFS(Input[T. Exp. - Stat (R AFR) Inv in P],Input[Institution Name],$A$1) -> 0 | C27: 0 | E27: Source | F27: Amount | G27: Percent | I27: Source | J27: Amount
A28: Exemptions - Institutional | B28: =SUMIFS(Input[T. Exp. - Inst. (R AFR) E&G],Input[Institution Name],$A$1)+SUMIFS(Input[T. Exp. - Inst. (R AFR) Desg],Input[Institution Name],$A$1)+SUMIFS(Input[T. Exp. - Inst. (R AFR) Aux],Input[Institution Name],$A$1)+SUMIFS(Input[T. Exp. - Inst. (R AFR) R Exp],Input[Institution Name],$A$1)+SUMIFS(Input[T. Exp. - Inst. (R AFR) Loan],Input[Institution Name],$A$1)+SUMIFS(Input[T. Exp. - Inst. (R AFR) Annuity],Input[Institution Name],$A$1)+SUMIFS(Input[T. Exp. - Inst. (R AFR) Unexp],Input[Institution Name],$A$1)+SUMIFS(Input[T. Exp. - Inst. (R AFR) R of Ind],Input[Institution Name],$A$1)+SUMIFS(Input[T. Exp. - Inst. (R AFR) Inv in P],Input[Institution Name],$A$1) -> 0 | C28: 0 | E28: State Appropriations | F28: =B10 -> 0 | G28: =IFERROR(F28/$F$14,0) -> 0 | I28: =IF(ISBLANK(A1),"",INDEX(E28:E41,MATCH(LARGE(F28:F41,ROW(1:5)),F28:F41,0))) ->  | J28: =IFERROR(VLOOKUP(I28,$E$28:$F$41,2,FALSE),"") -> 
A29: All Other Scholarship Disc.& Allow. | B29: =SUMIFS(Input[T. Schlr E&G],Input[Institution Name],$A$1)+SUMIFS(Input[T. Schlr Desg],Input[Institution Name],$A$1)+SUMIFS(Input[T. Schlr Aux],Input[Institution Name],$A$1)+SUMIFS(Input[T. Schlr R Exp],Input[Institution Name],$A$1)+SUMIFS(Input[T. Schlr Loan],Input[Institution Name],$A$1)+SUMIFS(Input[T. Schlr Annuity],Input[Institution Name],$A$1)+SUMIFS(Input[T. Schlr Unexp],Input[Institution Name],$A$1)+SUMIFS(Input[T. Schlr R of Ind],Input[Institution Name],$A$1)+SUMIFS(Input[T. Schlr Inv in P],Input[Institution Name],$A$1) -> 0 | C29: 0 | E29: State Grants & Contracts | F29: =B11 -> 0 | G29: =IFERROR(F29/$F$14,0) -> 0 | J29: =IFERROR(VLOOKUP(I29,$E$28:$F$41,2,FALSE),"") -> 
A30: Net Tuition | B30: =SUM(B23,B25:B29) -> 0 | C30: 0 | E30: Higher Education Fund | F30: =B12 -> 0 | G30: 0 | J30: =IFERROR(VLOOKUP(I30,$E$28:$F$41,2,FALSE),"") -> 
E31: Available University Fund Excellence | F31: =B13 -> 0 | G31: 0 | J31: =IFERROR(VLOOKUP(I31,$E$28:$F$41,2,FALSE),"") -> 
A32: Fees Potential 100% | B32: =SUM(B38,B34:B37) -> 0 | C32: =IFERROR(B32/$F$1,0) -> 0 | E32: Tuition & Fees | F32: =B30+B45 -> 0 | G32: 0 | J32: =IFERROR(VLOOKUP(I32,$E$28:$F$41,2,FALSE),"") -> 
A33: Not Reported in AFR (Report as negative numbers) | E33: Federal Grants & Contracts | F33: =B50 -> 0 | G33: 0 | J33: =IFERROR(VLOOKUP(I33,$E$28:$G$41,2,FALSE),"") -> 
A34: Waivers - Statutory | B34: =SUMIFS(Input[F. W. - Stat (NR AFR) E&G],Input[Institution Name],$A$1)+SUMIFS(Input[F. W. - Stat (NR AFR) Desg],Input[Institution Name],$A$1)+SUMIFS(Input[F. W. - Stat (NR AFR) Aux],Input[Institution Name],$A$1)+SUMIFS(Input[F. W. - Stat (NR AFR) R Exp],Input[Institution Name],$A$1)+SUMIFS(Input[F. W. - Stat (NR AFR) Loan],Input[Institution Name],$A$1)+SUMIFS(Input[F. W. - Stat (NR AFR) Annuity],Input[Institution Name],$A$1)+SUMIFS(Input[F. W. - Stat (NR AFR) Unexp],Input[Institution Name],$A$1)+SUMIFS(Input[F. W. - Stat (NR AFR) R of Ind],Input[Institution Name],$A$1)+SUMIFS(Input[F. W. - Stat (NR AFR) Inv in P],Input[Institution Name],$A$1) -> 0 | C34: =IFERROR(B34/$F$1,0) -> 0 | E34: Professional Fees | F34: =IF($A$2<>"Health - Related Institutions",0,B53) -> 0 | G34: =IFERROR(F34/SUM($F$28:$F$41),0) -> 0 | I34: Top 5 Sources
A35: Waivers - Institutional | B35: =SUMIFS(Input[F. W. - Inst. (NR AFR) E&G],Input[Institution Name],$A$1)+SUMIFS(Input[F. W. - Inst. (NR AFR) Desg],Input[Institution Name],$A$1)+SUMIFS(Input[F. W. - Inst. (NR AFR) Aux],Input[Institution Name],$A$1)+SUMIFS(Input[F. W. - Inst. (NR AFR) R Exp],Input[Institution Name],$A$1)+SUMIFS(Input[F. W. - Inst. (NR AFR) Loan],Input[Institution Name],$A$1)+SUMIFS(Input[F. W. - Inst. (NR AFR) Annuity],Input[Institution Name],$A$1)+SUMIFS(Input[F. W. - Inst. (NR AFR) Unexp],Input[Institution Name],$A$1)+SUMIFS(Input[F. W. - Inst. (NR AFR) R of Ind],Input[Institution Name],$A$1)+SUMIFS(Input[F. W. - Inst. (NR AFR) Inv in P],Input[Institution Name],$A$1) -> 0 | C35: =IFERROR(B35/$F$1,0) -> 0 | E35: Hospitals and Clinics | F35: =IF($A$2<>"Health - Related Institutions",0,B56) -> 0 | G35: =IFERROR(F35/SUM($F$28:$F$41),0) -> 0
A36: Exemptions - Statutory | B36: =SUMIFS(Input[F. Exp. - Stat (NR AFR) E&G],Input[Institution Name],$A$1)+SUMIFS(Input[F. Exp. - Stat (NR AFR) Desg],Input[Institution Name],$A$1)+SUMIFS(Input[F. Exp. - Stat (NR AFR) Aux],Input[Institution Name],$A$1)+SUMIFS(Input[F. Exp. - Stat (NR AFR) R Exp],Input[Institution Name],$A$1)+SUMIFS(Input[F. Exp. - Stat (NR AFR) Loan],Input[Institution Name],$A$1)+SUMIFS(Input[F. Exp. - Stat (NR AFR) Annuity],Input[Institution Name],$A$1)+SUMIFS(Input[F. Exp. - Stat (NR AFR) Unexp],Input[Institution Name],$A$1)+SUMIFS(Input[F. Exp. - Stat (NR AFR) R of Ind],Input[Institution Name],$A$1)+SUMIFS(Input[F. Exp. - Stat (NR AFR) Inv in P],Input[Institution Name],$A$1) -> 0 | C36: =IFERROR(B36/$F$1,0) -> 0 | E36: Endowment & Interest Income | F36: =B59 -> 0 | G36: =IFERROR(F36/SUM($F$28:$F$41),0) -> 0
A37: Exemptions - Institutional | B37: =SUMIFS(Input[F. Exp. - Inst. (NR AFR) E&G],Input[Institution Name],$A$1)+SUMIFS(Input[F. Exp. - Inst. (NR AFR) Desg],Input[Institution Name],$A$1)+SUMIFS(Input[F. Exp. - Inst. (NR AFR) Aux],Input[Institution Name],$A$1)+SUMIFS(Input[F. Exp. - Inst. (NR AFR) R Exp],Input[Institution Name],$A$1)+SUMIFS(Input[F. Exp. - Inst. (NR AFR) Loan],Input[Institution Name],$A$1)+SUMIFS(Input[F. Exp. - Inst. (NR AFR) Annuity],Input[Institution Name],$A$1)+SUMIFS(Input[F. Exp. - Inst. (NR AFR) Unexp],Input[Institution Name],$A$1)+SUMIFS(Input[F. Exp. - Inst. (NR AFR) R of Ind],Input[Institution Name],$A$1)+SUMIFS(Input[F. Exp. - Inst. (NR AFR) Inv in P],Input[Institution Name],$A$1) -> 0 | C37: =IFERROR(B37/$F$1,0) -> 0 | E37: Local Government Grants | F37: 0 | G37: =IFERROR(F37/SUM($F$28:$F$41),0) -> 0
A38: Fees - Gross - AFR Presentation | B38: =SUMIFS(Input[Fees - Gross E&G],Input[Institution Name],$A$1)+SUMIFS(Input[Fees - Gross Desg],Input[Institution Name],$A$1)+SUMIFS(Input[Fees - Gross Aux],Input[Institution Name],$A$1)+SUMIFS(Input[Fees - Gross R Exp],Input[Institution Name],$A$1)+SUMIFS(Input[Fees - Gross Loan],Input[Institution Name],$A$1)+SUMIFS(Input[Fees - Gross Annuity],Input[Institution Name],$A$1)+SUMIFS(Input[Fees - Gross Unexp],Input[Institution Name],$A$1)+SUMIFS(Input[Fees - Gross R of Ind],Input[Institution Name],$A$1)+SUMIFS(Input[Fees - Gross Inv in P],Input[Institution Name],$A$1) -> 0 | C38: =IFERROR(B38/$F$1,0) -> 0 | E38: Private Gifts & Grants | F38: 0 | G38: 0
A39: Reported in AFR (Report as negative numbers) | E39: Sales & Services | F39: 0 | G39: 0
A40: Waivers - Statutory | B40: =SUMIFS(Input[F. W. - Stat (R AFR) E&G],Input[Institution Name],$A$1)+SUMIFS(Input[F. W. - Stat (R AFR) Desg],Input[Institution Name],$A$1)+SUMIFS(Input[F. W. - Stat (R AFR) Aux],Input[Institution Name],$A$1)+SUMIFS(Input[F. W. - Stat (R AFR) R Exp],Input[Institution Name],$A$1)+SUMIFS(Input[F. W. - Stat (R AFR) Loan],Input[Institution Name],$A$1)+SUMIFS(Input[F. W. - Stat (R AFR) Annuity],Input[Institution Name],$A$1)+SUMIFS(Input[F. W. - Stat (R AFR) Unexp],Input[Institution Name],$A$1)+SUMIFS(Input[F. W. - Stat (R AFR) R of Ind],Input[Institution Name],$A$1)+SUMIFS(Input[F. W. - Stat (R AFR) Inv in P],Input[Institution Name],$A$1) -> 0 | C40: =IFERROR(B40/$F$1,0) -> 0 | E40: Net Auxiliary Enterprises | F40: 0 | G40: 0
A41: Waivers - Institutional | B41: =SUMIFS(Input[F. W. - Inst. (R AFR) E&G],Input[Institution Name],$A$1)+SUMIFS(Input[F. W. - Inst. (R AFR) Desg],Input[Institution Name],$A$1)+SUMIFS(Input[F. W. - Inst. (R AFR) Aux],Input[Institution Name],$A$1)+SUMIFS(Input[F. W. - Inst. (R AFR) R Exp],Input[Institution Name],$A$1)+SUMIFS(Input[F. W. - Inst. (R AFR) Loan],Input[Institution Name],$A$1)+SUMIFS(Input[F. W. - Inst. (R AFR) Annuity],Input[Institution Name],$A$1)+SUMIFS(Input[F. W. - Inst. (R AFR) Unexp],Input[Institution Name],$A$1)+SUMIFS(Input[F. W. - Inst. (R AFR) R of Ind],Input[Institution Name],$A$1)+SUMIFS(Input[F. W. - Inst. (R AFR) Inv in P],Input[Institution Name],$A$1) -> 0 | C41: 0 | E41: Other Income | F41: 0 | G41: 0 | J41: =IFERROR(VLOOKUP(I41,$E$28:$G$41,2,FALSE),"") -> 
A42: Exemptions - Statutory | B42: =SUMIFS(Input[F. Exp. - Stat (R AFR) E&G],Input[Institution Name],$A$1)+SUMIFS(Input[F. Exp. - Stat (R AFR) Desg],Input[Institution Name],$A$1)+SUMIFS(Input[F. Exp. - Stat (R AFR) Aux],Input[Institution Name],$A$1)+SUMIFS(Input[F. Exp. - Stat (R AFR) R Exp],Input[Institution Name],$A$1)+SUMIFS(Input[F. Exp. - Stat (R AFR) Loan],Input[Institution Name],$A$1)+SUMIFS(Input[F. Exp. - Stat (R AFR) Annuity],Input[Institution Name],$A$1)+SUMIFS(Input[F. Exp. - Stat (R AFR) Unexp],Input[Institution Name],$A$1)+SUMIFS(Input[F. Exp. - Stat (R AFR) R of Ind],Input[Institution Name],$A$1)+SUMIFS(Input[F. Exp. - Stat (R AFR) Inv in P],Input[Institution Name],$A$1) -> 0 | C42: 0
A43: Exemptions - Institutional | B43: =SUMIFS(Input[F. Exp. - Inst. (R AFR) E&G],Input[Institution Name],$A$1)+SUMIFS(Input[F. Exp. - Inst. (R AFR) Desg],Input[Institution Name],$A$1)+SUMIFS(Input[F. Exp. - Inst. (R AFR) Aux],Input[Institution Name],$A$1)+SUMIFS(Input[F. Exp. - Inst. (R AFR) R Exp],Input[Institution Name],$A$1)+SUMIFS(Input[F. Exp. - Inst. (R AFR) Loan],Input[Institution Name],$A$1)+SUMIFS(Input[F. Exp. - Inst. (R AFR) Annuity],Input[Institution Name],$A$1)+SUMIFS(Input[F. Exp. - Inst. (R AFR) Unexp],Input[Institution Name],$A$1)+SUMIFS(Input[F. Exp. - Inst. (R AFR) R of Ind],Input[Institution Name],$A$1)+SUMIFS(Input[F. Exp. - Inst. (R AFR) Inv in P],Input[Institution Name],$A$1) -> 0 | C43: 0
A44: All Other Scholarship Disc.& Allow. | B44: =SUMIFS(Input[Fee Schlr E&G],Input[Institution Name],$A$1)+SUMIFS(Input[Fee Schlr Desg],Input[Institution Name],$A$1)+SUMIFS(Input[Fee Schlr Aux],Input[Institution Name],$A$1)+SUMIFS(Input[Fee Schlr R Exp],Input[Institution Name],$A$1)+SUMIFS(Input[Fee Schlr Loan],Input[Institution Name],$A$1)+SUMIFS(Input[Fee Schlr Annuity],Input[Institution Name],$A$1)+SUMIFS(Input[Fee Schlr Unexp],Input[Institution Name],$A$1)+SUMIFS(Input[Fee Schlr R of Ind],Input[Institution Name],$A$1)+SUMIFS(Input[Fee Schlr Inv in P],Input[Institution Name],$A$1) -> 0 | C44: 0
A45: Net Fees | B45: =SUM(B38,B40:B44) -> 0 | C45: 0
A47: Net Tuition and Fees (Funds Collected) | B47: =B30+B45 -> 0 | C47: =IFERROR(B47/$F$1,0) -> 0
A49: Federal Government | B49: Summary | C49: Per FTSE
A50: Federal Grants and Contracts* | B50: =SUMIFS(Input[Fed G&C - Rest E&G],Input[Institution Name],$A$1)+SUMIFS(Input[Fed G&C - Rest Desg],Input[Institution Name],$A$1)+SUMIFS(Input[Fed G&C - Rest Aux],Input[Institution Name],$A$1)+SUMIFS(Input[Fed G&C - Rest R Exp],Input[Institution Name],$A$1)+SUMIFS(Input[Fed G&C - Rest Loan],Input[Institution Name],$A$1)+SUMIFS(Input[Fed G&C - Rest Annuity],Input[Institution Name],$A$1)+SUMIFS(Input[Fed G&C - Rest Unexp],Input[Institution Name],$A$1)+SUMIFS(Input[Fed G&C - Rest R of Ind],Input[Institution Name],$A$1)+SUMIFS(Input[Fed G&C - Rest Inv in P],Input[Institution Name],$A$1) -> 0 | C50: =IFERROR(B50/$F$1,0) -> 0
A52: Professional Fees | B52: Summary | C52: Per FTSE
A53: =IF($A$2="Health - Related Institutions","All Sources (Net)","Not Applicable") -> Not Applicable | B53: =IF($A$53="Not Applicable", "",SUMIFS(Input[Professional Fees E&G],Input[Institution Name],$A$1)+SUMIFS(Input[Professional Fees Desg],Input[Institution Name],$A$1)+SUMIFS(Input[Professional Fees Aux],Input[Institution Name],$A$1)+SUMIFS(Input[Professional Fees R Exp],Input[Institution Name],$A$1)+SUMIFS(Input[Professional Fees Loan],Input[Institution Name],$A$1)+SUMIFS(Input[Professional Fees Annuity],Input[Institution Name],$A$1)+SUMIFS(Input[Professional Fees Unexp],Input[Institution Name],$A$1)+SUMIFS(Input[Professional Fees R of Ind],Input[Institution Name],$A$1)+SUMIFS(Input[Professional Fees Inv in P],Input[Institution Name],$A$1)) ->  | C53: =IF($A$53="Not Applicable", "",B53/$F$1) -> 
A55: Hospitals and Clinics | B55: Summary | C55: Per FTSE
A56: =IF($A$2="Health - Related Institutions","All Sources (Net)","Not Applicable") -> Not Applicable | B56: =IF($A$56="Not Applicable", "",SUMIFS(Input[H&C E&G],Input[Institution Name],$A$1)+SUMIFS(Input[H&C Desg],Input[Institution Name],$A$1)+SUMIFS(Input[H&C Aux],Input[Institution Name],$A$1)+SUMIFS(Input[H&C R Exp],Input[Institution Name],$A$1)+SUMIFS(Input[H&C Loan],Input[Institution Name],$A$1)+SUMIFS(Input[H&C Annuity],Input[Institution Name],$A$1)+SUMIFS(Input[H&C Unexp],Input[Institution Name],$A$1)+SUMIFS(Input[H&C R of Ind],Input[Institution Name],$A$1)+SUMIFS(Input[H&C Inv in P],Input[Institution Name],$A$1)) ->  | C56: =IF($A$56="Not Applicable", "",B56/$F$1) -> 
A58: Institutional Resources | B58: Summary
A59: Endowment and Interest Income | B59: =SUMIFS(Input[End & Int Inc E&G],Input[Institution Name],$A$1)+SUMIFS(Input[End & Int Inc Desg],Input[Institution Name],$A$1)+SUMIFS(Input[End & Int Inc Aux],Input[Institution Name],$A$1)+SUMIFS(Input[End & Int Inc R Exp],Input[Institution Name],$A$1)+SUMIFS(Input[End & Int Inc Loan],Input[Institution Name],$A$1)+SUMIFS(Input[End & Int Inc Annuity],Input[Institution Name],$A$1)+SUMIFS(Input[End & Int Inc Unexp],Input[Institution Name],$A$1)+SUMIFS(Input[End & Int Inc R of Ind],Input[Institution Name],$A$1)+SUMIFS(Input[End & Int Inc Inv in P],Input[Institution Name],$A$1) -> 0 | C59: =IFERROR(B59/$F$1,0) -> 0
A60: Local Government Grants* | B60: =SUMIFS(Input[Loc Gov G - Rest E&G],Input[Institution Name],$A$1)+SUMIFS(Input[Loc Gov G - Rest Desg],Input[Institution Name],$A$1)+SUMIFS(Input[Loc Gov G - Rest Aux],Input[Institution Name],$A$1)+SUMIFS(Input[Loc Gov G - Rest R Exp],Input[Institution Name],$A$1)+SUMIFS(Input[Loc Gov G - Rest Loan],Input[Institution Name],$A$1)+SUMIFS(Input[Loc Gov G - Rest Annuity],Input[Institution Name],$A$1)+SUMIFS(Input[Loc Gov G - Rest Unexp],Input[Institution Name],$A$1)+SUMIFS(Input[Loc Gov G - Rest R of Ind],Input[Institution Name],$A$1)+SUMIFS(Input[Loc Gov G - Rest Inv in P],Input[Institution Name],$A$1) -> 0 | C60: 0
A61: Private Gifts and Grants* | B61: =SUMIFS(Input[Pvt G&G - Rest E&G],Input[Institution Name],$A$1)+SUMIFS(Input[Pvt G&G - Rest Desg],Input[Institution Name],$A$1)+SUMIFS(Input[Pvt G&G - Rest Aux],Input[Institution Name],$A$1)+SUMIFS(Input[Pvt G&G - Rest R Exp],Input[Institution Name],$A$1)+SUMIFS(Input[Pvt G&G - Rest Loan],Input[Institution Name],$A$1)+SUMIFS(Input[Pvt G&G - Rest Annuity],Input[Institution Name],$A$1)+SUMIFS(Input[Pvt G&G - Rest Unexp],Input[Institution Name],$A$1)+SUMIFS(Input[Pvt G&G - Rest R of Ind],Input[Institution Name],$A$1)+SUMIFS(Input[Pvt G&G - Rest Inv in P],Input[Institution Name],$A$1) -> 0 | C61: 0
A62: Sales and Services | B62: =SUMIFS(Input[S&S E&G],Input[Institution Name],$A$1)+SUMIFS(Input[S&S Desg],Input[Institution Name],$A$1)+SUMIFS(Input[S&S Aux],Input[Institution Name],$A$1)+SUMIFS(Input[S&S R Exp],Input[Institution Name],$A$1)+SUMIFS(Input[S&S Loan],Input[Institution Name],$A$1)+SUMIFS(Input[S&S Annuity],Input[Institution Name],$A$1)+SUMIFS(Input[S&S Unexp],Input[Institution Name],$A$1)+SUMIFS(Input[S&S R of Ind],Input[Institution Name],$A$1)+SUMIFS(Input[S&S Inv in P],Input[Institution Name],$A$1) -> 0 | C62: 0
A63: Net Auxiliary Enterprises | B63: =SUMIFS(Input[Net Aux Ent E&G],Input[Institution Name],$A$1)+SUMIFS(Input[Net Aux Ent Desg],Input[Institution Name],$A$1)+SUMIFS(Input[Net Aux Ent Aux],Input[Institution Name],$A$1)+SUMIFS(Input[Net Aux Ent R Exp],Input[Institution Name],$A$1)+SUMIFS(Input[Net Aux Ent Loan],Input[Institution Name],$A$1)+SUMIFS(Input[Net Aux Ent Annuity],Input[Institution Name],$A$1)+SUMIFS(Input[Net Aux Ent Unexp],Input[Institution Name],$A$1)+SUMIFS(Input[Net Aux Ent R of Ind],Input[Institution Name],$A$1)+SUMIFS(Input[Net Aux Ent Inv in P],Input[Institution Name],$A$1) -> 0 | C63: 0
A64: Other Income | B64: =SUMIFS(Input[Oth Inc E&G],Input[Institution Name],$A$1)+SUMIFS(Input[Oth Inc Desg],Input[Institution Name],$A$1)+SUMIFS(Input[Oth Inc Aux],Input[Institution Name],$A$1)+SUMIFS(Input[Oth Inc R Exp],Input[Institution Name],$A$1)+SUMIFS(Input[Oth Inc Loan],Input[Institution Name],$A$1)+SUMIFS(Input[Oth Inc Annuity],Input[Institution Name],$A$1)+SUMIFS(Input[Oth Inc Unexp],Input[Institution Name],$A$1)+SUMIFS(Input[Oth Inc R of Ind],Input[Institution Name],$A$1)+SUMIFS(Input[Oth Inc Inv in P],Input[Institution Name],$A$1) -> 0 | C64: 0
A65: Subtotal | B65: =SUM(B59:B64) -> 0 | C65: 0
A67: Total Operating Sources | B67: =SUM(B14,B30,B45,B50,B53,B56,B65) -> 0 | C67: =IFERROR(B67/$F$1,0) -> 0
I68: Top 5 Functions
A69: Operating Uses
A70: Function | B70: Summary | C70: Per FTSE | E70: SRECNP Reconciliation | I70: Source | J70: Amount
A71: Instruction | B71: =SUMIFS(Input[Instr E&G],Input[Institution Name],$A$1)+SUMIFS(Input[Instr Desg],Input[Institution Name],$A$1)+SUMIFS(Input[Instr Aux],Input[Institution Name],$A$1)+SUMIFS(Input[Instr R Exp],Input[Institution Name],$A$1)+SUMIFS(Input[Instr Loan],Input[Institution Name],$A$1)+SUMIFS(Input[Instr Annuity],Input[Institution Name],$A$1)+SUMIFS(Input[Instr Unexp],Input[Institution Name],$A$1)+SUMIFS(Input[Instr R of Ind],Input[Institution Name],$A$1)+SUMIFS(Input[Instr Inv in P],Input[Institution Name],$A$1) -> 0 | C71: =IFERROR(B71/$F$1,0) -> 0 | E71: Instruction | G71: =SUMIFS(Input[SRECNA Inst.],Input[Institution Name],$A$1) -> 0 | I71: =IF(ISBLANK(A1),"",INDEX(E71:E80,MATCH(LARGE(G71:G80,ROW(1:5)),G71:G80,0))) ->  | J71: =IFERROR(VLOOKUP(I71,$E$71:$G$80,3,FALSE),"") -> 
A72: Research | B72: =SUMIFS(Input[Res E&G],Input[Institution Name],$A$1)+SUMIFS(Input[Res Desg],Input[Institution Name],$A$1)+SUMIFS(Input[Res Aux],Input[Institution Name],$A$1)+SUMIFS(Input[Res R Exp],Input[Institution Name],$A$1)+SUMIFS(Input[Res Loan],Input[Institution Name],$A$1)+SUMIFS(Input[Res Annuity],Input[Institution Name],$A$1)+SUMIFS(Input[Res Unexp],Input[Institution Name],$A$1)+SUMIFS(Input[Res R of Ind],Input[Institution Name],$A$1)+SUMIFS(Input[Res Inv in P],Input[Institution Name],$A$1) -> 0 | C72: 0 | E72: Research | G72: =SUMIFS(Input[SRECNA Resh],Input[Institution Name],$A$1) -> 0 | J72: =IFERROR(VLOOKUP(I72,$E$71:$G$80,3,FALSE),"") -> 
A73: Public Service | B73: =SUMIFS(Input[Pub Srv E&G],Input[Institution Name],$A$1)+SUMIFS(Input[Pub Srv Desg],Input[Institution Name],$A$1)+SUMIFS(Input[Pub Srv Aux],Input[Institution Name],$A$1)+SUMIFS(Input[Pub Srv R Exp],Input[Institution Name],$A$1)+SUMIFS(Input[Pub Srv Loan],Input[Institution Name],$A$1)+SUMIFS(Input[Pub Srv Annuity],Input[Institution Name],$A$1)+SUMIFS(Input[Pub Srv Unexp],Input[Institution Name],$A$1)+SUMIFS(Input[Pub Srv R of Ind],Input[Institution Name],$A$1)+SUMIFS(Input[Pub Srv Inv in P],Input[Institution Name],$A$1) -> 0 | C73: 0 | E73: Public Service | G73: =SUMIFS(Input[SRECNA Pub Svc],Input[Institution Name],$A$1) -> 0
A74: Hospitals and Clinics | B74: =IF($A$74="Hospitals and Clinics - Not Applicable", "",SUMIFS(Input[H&C (OU) E&G],Input[Institution Name],$A$1)+SUMIFS(Input[H&C (OU) Desg],Input[Institution Name],$A$1)+SUMIFS(Input[H&C (OU) Aux],Input[Institution Name],$A$1)+SUMIFS(Input[H&C (OU) R Exp],Input[Institution Name],$A$1)+SUMIFS(Input[H&C (OU) Loan],Input[Institution Name],$A$1)+SUMIFS(Input[H&C (OU) Annuity],Input[Institution Name],$A$1)+SUMIFS(Input[H&C (OU) Unexp],Input[Institution Name],$A$1)+SUMIFS(Input[H&C (OU) R of Ind],Input[Institution Name],$A$1)+SUMIFS(Input[H&C (OU) Inv in P],Input[Institution Name],$A$1)) -> 0 | C74: 0 | E74: Hospitals and Clinics | G74: =IF($A$2<>"Health - Related Institutions",0,SUMIFS(Input[SRECNA H&C],Input[Institution Name],$A$1)) -> 0
A75: Academic Support | B75: =SUMIFS(Input[Acad Sup E&G],Input[Institution Name],$A$1)+SUMIFS(Input[Acad Sup Desg],Input[Institution Name],$A$1)+SUMIFS(Input[Acad Sup Aux],Input[Institution Name],$A$1)+SUMIFS(Input[Acad Sup R Exp],Input[Institution Name],$A$1)+SUMIFS(Input[Acad Sup Loan],Input[Institution Name],$A$1)+SUMIFS(Input[Acad Sup Annuity],Input[Institution Name],$A$1)+SUMIFS(Input[Acad Sup Unexp],Input[Institution Name],$A$1)+SUMIFS(Input[Acad Sup R of Ind],Input[Institution Name],$A$1)+SUMIFS(Input[Acad Sup Inv in P],Input[Institution Name],$A$1) -> 0 | C75: 0 | E75: Academic Support | G75: =SUMIFS(Input[SRECNA Aca Sppt],Input[Institution Name],$A$1) -> 0
A76: Student Services | B76: =SUMIFS(Input[Stu Svc E&G],Input[Institution Name],$A$1)+SUMIFS(Input[Stu Svc Desg],Input[Institution Name],$A$1)+SUMIFS(Input[Stu Svc Aux],Input[Institution Name],$A$1)+SUMIFS(Input[Stu Svc R Exp],Input[Institution Name],$A$1)+SUMIFS(Input[Stu Svc Loan],Input[Institution Name],$A$1)+SUMIFS(Input[Stu Svc Annuity],Input[Institution Name],$A$1)+SUMIFS(Input[Stu Svc Unexp],Input[Institution Name],$A$1)+SUMIFS(Input[Stu Svc R of Ind],Input[Institution Name],$A$1)+SUMIFS(Input[Stu Svc Inv in P],Input[Institution Name],$A$1) -> 0 | C76: 0 | E76: Student Services | G76: =SUMIFS(Input[SRECNA Stu Svcs],Input[Institution Name],$A$1) -> 0 | J76: =IFERROR(VLOOKUP(I76,$E$28:$G$41,2,FALSE),"") -> 
A77: Institutional Support | B77: =SUMIFS(Input[Inst. Spt E&G],Input[Institution Name],$A$1)+SUMIFS(Input[Inst. Spt Desg],Input[Institution Name],$A$1)+SUMIFS(Input[Inst. Spt Aux],Input[Institution Name],$A$1)+SUMIFS(Input[Inst. Spt R Exp],Input[Institution Name],$A$1)+SUMIFS(Input[Inst. Spt Loan],Input[Institution Name],$A$1)+SUMIFS(Input[Inst. Spt Annuity],Input[Institution Name],$A$1)+SUMIFS(Input[Inst. Spt Unexp],Input[Institution Name],$A$1)+SUMIFS(Input[Inst. Spt R of Ind],Input[Institution Name],$A$1)+SUMIFS(Input[Inst. Spt Inv in P],Input[Institution Name],$A$1) -> 0 | C77: 0 | E77: Institutional Support | G77: =SUMIFS(Input[SRECNA Inst. Sppt],Input[Institution Name],$A$1) -> 0 | I77: Top 5 Functions
A78: Operations & Maintenance of Plant | B78: =SUMIFS(Input[M&O Plnt E&G],Input[Institution Name],$A$1)+SUMIFS(Input[M&O Plnt Desg],Input[Institution Name],$A$1)+SUMIFS(Input[M&O Plnt Aux],Input[Institution Name],$A$1)+SUMIFS(Input[M&O Plnt R Exp],Input[Institution Name],$A$1)+SUMIFS(Input[M&O Plnt Loan],Input[Institution Name],$A$1)+SUMIFS(Input[M&O Plnt Annuity],Input[Institution Name],$A$1)+SUMIFS(Input[M&O Plnt Unexp],Input[Institution Name],$A$1)+SUMIFS(Input[M&O Plnt R of Ind],Input[Institution Name],$A$1)+SUMIFS(Input[M&O Plnt Inv in P],Input[Institution Name],$A$1) -> 0 | C78: 0 | E78: Operations and Maintenance of Plant | G78: =SUMIFS(Input[SRECNA Op & Maint],Input[Institution Name],$A$1) -> 0
A79: Scholarships & Fellowships | B79: =SUMIFS(Input[Schl & Fell E&G],Input[Institution Name],$A$1)+SUMIFS(Input[Schl & Fell Desg],Input[Institution Name],$A$1)+SUMIFS(Input[Schl & Fell Aux],Input[Institution Name],$A$1)+SUMIFS(Input[Schl & Fell R Exp],Input[Institution Name],$A$1)+SUMIFS(Input[Schl & Fell Loan],Input[Institution Name],$A$1)+SUMIFS(Input[Schl & Fell Annuity],Input[Institution Name],$A$1)+SUMIFS(Input[Schl & Fell Unexp],Input[Institution Name],$A$1)+SUMIFS(Input[Schl & Fell R of Ind],Input[Institution Name],$A$1)+SUMIFS(Input[Schl & Fell Inv in P],Input[Institution Name],$A$1) -> 0 | C79: 0 | E79: Scholarships and Fellowships | G79: =SUMIFS(Input[SRECNA Schl & Fell],Input[Institution Name],$A$1) -> 0
A80: Auxiliary Enterprises | B80: =SUMIFS(Input[Aux Ent E&G],Input[Institution Name],$A$1)+SUMIFS(Input[Aux Ent Desg],Input[Institution Name],$A$1)+SUMIFS(Input[Aux Ent Aux],Input[Institution Name],$A$1)+SUMIFS(Input[Aux Ent R Exp],Input[Institution Name],$A$1)+SUMIFS(Input[Aux Ent Loan],Input[Institution Name],$A$1)+SUMIFS(Input[Aux Ent Annuity],Input[Institution Name],$A$1)+SUMIFS(Input[Aux Ent Unexp],Input[Institution Name],$A$1)+SUMIFS(Input[Aux Ent R of Ind],Input[Institution Name],$A$1)+SUMIFS(Input[Aux Ent Inv in P],Input[Institution Name],$A$1) -> 0 | C80: 0 | E80: Auxiliary Enterprises | G80: =SUMIFS(Input[SRECNA Aux],Input[Institution Name],$A$1) -> 0
A81: Capital Outlay from Current Fund Sources | B81: =SUMIFS(Input[Cap Out fund E&G],Input[Institution Name],$A$1)+SUMIFS(Input[Cap Out fund Desg],Input[Institution Name],$A$1)+SUMIFS(Input[Cap Out fund Aux],Input[Institution Name],$A$1)+SUMIFS(Input[Cap Out fund R Exp],Input[Institution Name],$A$1)+SUMIFS(Input[Cap Out fund Loan],Input[Institution Name],$A$1)+SUMIFS(Input[Cap Out fund Annuity],Input[Institution Name],$A$1)+SUMIFS(Input[Cap Out fund Unexp],Input[Institution Name],$A$1)+SUMIFS(Input[Cap Out fund R of Ind],Input[Institution Name],$A$1)+SUMIFS(Input[Cap Out fund Inv in P],Input[Institution Name],$A$1) -> 0 | C81: 0 | F81: =IF(G81<>0,"Out of Balance","Balanced") -> Balanced | G81: =SUM(G71:G80,-SUM(B71:B80)) -> 0
A82: Other Expenses | B82: =SUMIFS(Input[Oth Exp E&G],Input[Institution Name],$A$1)+SUMIFS(Input[Oth Exp Desg],Input[Institution Name],$A$1)+SUMIFS(Input[Oth Exp Aux],Input[Institution Name],$A$1)+SUMIFS(Input[Oth Exp R Exp],Input[Institution Name],$A$1)+SUMIFS(Input[Oth Exp Loan],Input[Institution Name],$A$1)+SUMIFS(Input[Oth Exp Annuity],Input[Institution Name],$A$1)+SUMIFS(Input[Oth Exp Unexp],Input[Institution Name],$A$1)+SUMIFS(Input[Oth Exp R of Ind],Input[Institution Name],$A$1)+SUMIFS(Input[Oth Exp Inv in P],Input[Institution Name],$A$1) -> 0 | C82: 0
A83: Subtotal | B83: =SUM(B71:B82) -> 0 | C83: 0
J84: =IFERROR(VLOOKUP(I84,$E$28:$G$41,2,FALSE),"") -> 
A85: Other Sources / (Uses) of Funds | B85: Summary | C85: Per FTSE
A86: Capital Outlay from Non-Current Fund Sources | B86: =SUMIFS(Input[Cap Out n-Fund E&G],Input[Institution Name],$A$1)+SUMIFS(Input[Cap Out n-Fund Desg],Input[Institution Name],$A$1)+SUMIFS(Input[Cap Out n-Fund Aux],Input[Institution Name],$A$1)+SUMIFS(Input[Cap Out n-Fund R Exp],Input[Institution Name],$A$1)+SUMIFS(Input[Cap Out n-Fund Loan],Input[Institution Name],$A$1)+SUMIFS(Input[Cap Out n-Fund Annuity],Input[Institution Name],$A$1)+SUMIFS(Input[Cap Out n-Fund Unexp],Input[Institution Name],$A$1)+SUMIFS(Input[Cap Out n-Fund R of Ind],Input[Institution Name],$A$1)+SUMIFS(Input[Cap Out n-Fund Inv in P],Input[Institution Name],$A$1) -> 0 | C86: =IFERROR(B86/$F$1,0) -> 0
A87: Mandatory and Non-mandatory Transfers | B87: =SUMIFS(Input[M&Nm Xfrs E&G],Input[Institution Name],$A$1)+SUMIFS(Input[M&Nm Xfrs Desg],Input[Institution Name],$A$1)+SUMIFS(Input[M&Nm Xfrs Aux],Input[Institution Name],$A$1)+SUMIFS(Input[M&Nm Xfrs R Exp],Input[Institution Name],$A$1)+SUMIFS(Input[M&Nm Xfrs Loan],Input[Institution Name],$A$1)+SUMIFS(Input[M&Nm Xfrs Annuity],Input[Institution Name],$A$1)+SUMIFS(Input[M&Nm Xfrs Unexp],Input[Institution Name],$A$1)+SUMIFS(Input[M&Nm Xfrs R of Ind],Input[Institution Name],$A$1)+SUMIFS(Input[M&Nm Xfrs Inv in P],Input[Institution Name],$A$1) -> 0 | C87: 0
A88: Bond Proceeds Transfers In | B88: =SUMIFS(Input[Bond Xfrs In E&G],Input[Institution Name],$A$1)+SUMIFS(Input[Bond Xfrs In Desg],Input[Institution Name],$A$1)+SUMIFS(Input[Bond Xfrs In Aux],Input[Institution Name],$A$1)+SUMIFS(Input[Bond Xfrs In R Exp],Input[Institution Name],$A$1)+SUMIFS(Input[Bond Xfrs In Loan],Input[Institution Name],$A$1)+SUMIFS(Input[Bond Xfrs In Annuity],Input[Institution Name],$A$1)+SUMIFS(Input[Bond Xfrs In Unexp],Input[Institution Name],$A$1)+SUMIFS(Input[Bond Xfrs In R of Ind],Input[Institution Name],$A$1)+SUMIFS(Input[Bond Xfrs In Inv in P],Input[Institution Name],$A$1) -> 0 | C88: 0
A89: Debt Service Payments | B89: =SUMIFS(Input[Debt Srv Pay E&G],Input[Institution Name],$A$1)+SUMIFS(Input[Debt Srv Pay Desg],Input[Institution Name],$A$1)+SUMIFS(Input[Debt Srv Pay Aux],Input[Institution Name],$A$1)+SUMIFS(Input[Debt Srv Pay R Exp],Input[Institution Name],$A$1)+SUMIFS(Input[Debt Srv Pay Loan],Input[Institution Name],$A$1)+SUMIFS(Input[Debt Srv Pay Annuity],Input[Institution Name],$A$1)+SUMIFS(Input[Debt Srv Pay Unexp],Input[Institution Name],$A$1)+SUMIFS(Input[Debt Srv Pay R of Ind],Input[Institution Name],$A$1)+SUMIFS(Input[Debt Srv Pay Inv in P],Input[Institution Name],$A$1) -> 0 | C89: 0
A90: Subtotal | B90: =SUM(B86:B89) -> 0 | C90: =IFERROR(B90/$F$1,0) -> 0
A92: Other Items Not for Current Operating Use | B92: Summary | C92: Per FTSE
A93: Unrealized Gains/(Losses) | B93: =SUMIFS(Input[Unreal G/L E&G],Input[Institution Name],$A$1)+SUMIFS(Input[Unreal G/L Desg],Input[Institution Name],$A$1)+SUMIFS(Input[Unreal G/L Aux],Input[Institution Name],$A$1)+SUMIFS(Input[Unreal G/L R Exp],Input[Institution Name],$A$1)+SUMIFS(Input[Unreal G/L Loan],Input[Institution Name],$A$1)+SUMIFS(Input[Unreal G/L Annuity],Input[Institution Name],$A$1)+SUMIFS(Input[Unreal G/L Unexp],Input[Institution Name],$A$1)+SUMIFS(Input[Unreal G/L R of Ind],Input[Institution Name],$A$1)+SUMIFS(Input[Unreal G/L Inv in P],Input[Institution Name],$A$1) -> 0 | C93: =IFERROR(B93/$F$1,0) -> 0
A94: Additions to Permanent Endowments | B94: =SUMIFS(Input[Add End E&G],Input[Institution Name],$A$1)+SUMIFS(Input[Add End Desg],Input[Institution Name],$A$1)+SUMIFS(Input[Add End Aux],Input[Institution Name],$A$1)+SUMIFS(Input[Add End R Exp],Input[Institution Name],$A$1)+SUMIFS(Input[Add End Loan],Input[Institution Name],$A$1)+SUMIFS(Input[Add End Annuity],Input[Institution Name],$A$1)+SUMIFS(Input[Add End Unexp],Input[Institution Name],$A$1)+SUMIFS(Input[Add End R of Ind],Input[Institution Name],$A$1)+SUMIFS(Input[Add End Inv in P],Input[Institution Name],$A$1) -> 0 | C94: 0
A95: Subtotal | B95: =SUM(B93:B94) -> 0 | C95: =IFERROR(B95/$F$1,0) -> 0
A97: Total Operating Uses | B97: =B67-B83+B90+B95 -> 0 | C97: =C67-C83+C90+C95 -> 0
B99: Summary | C99: Per FTSE | E99: SRECNP Reconciliation
A100: Bond Proceeds/(Principal Debt Payments) | B100: =SUMIFS(Input[Bond Proceeds E&G],Input[Institution Name],$A$1)+SUMIFS(Input[Bond Proceeds Desg],Input[Institution Name],$A$1)+SUMIFS(Input[Bond Proceeds Aux],Input[Institution Name],$A$1)+SUMIFS(Input[Bond Proceeds R Exp],Input[Institution Name],$A$1)+SUMIFS(Input[Bond Proceeds Loan],Input[Institution Name],$A$1)+SUMIFS(Input[Bond Proceeds Annuity],Input[Institution Name],$A$1)+SUMIFS(Input[Bond Proceeds Unexp],Input[Institution Name],$A$1)+SUMIFS(Input[Bond Proceeds R of Ind],Input[Institution Name],$A$1)+SUMIFS(Input[Bond Proceeds Inv in P],Input[Institution Name],$A$1) -> 0 | C100: =IFERROR(B100/$F$1,0) -> 0 | E100: SRECNP Total | G100: =SUMIFS(Input[SRECNA],Input[Institution Name],$A$1) -> 0
A101: Depreciation Expense | B101: =SUMIFS(Input[Dep Exp E&G],Input[Institution Name],$A$1)+SUMIFS(Input[Dep Exp Desg],Input[Institution Name],$A$1)+SUMIFS(Input[Dep Exp Aux],Input[Institution Name],$A$1)+SUMIFS(Input[Dep Exp R Exp],Input[Institution Name],$A$1)+SUMIFS(Input[Dep Exp Loan],Input[Institution Name],$A$1)+SUMIFS(Input[Dep Exp Annuity],Input[Institution Name],$A$1)+SUMIFS(Input[Dep Exp Unexp],Input[Institution Name],$A$1)+SUMIFS(Input[Dep Exp R of Ind],Input[Institution Name],$A$1)+SUMIFS(Input[Dep Exp Inv in P],Input[Institution Name],$A$1) -> 0 | C101: 0 | F101: =IF(G101<>0,"Out of Balance","Balanced") -> Balanced | G101: =B106-G100 -> 0
A102: Transfer of Capital Asset(s) from System | B102: =SUMIFS(Input[Xfr Cap Sys E&G],Input[Institution Name],$A$1)+SUMIFS(Input[Xfr Cap Sys Desg],Input[Institution Name],$A$1)+SUMIFS(Input[Xfr Cap Sys Aux],Input[Institution Name],$A$1)+SUMIFS(Input[Xfr Cap Sys R Exp],Input[Institution Name],$A$1)+SUMIFS(Input[Xfr Cap Sys Loan],Input[Institution Name],$A$1)+SUMIFS(Input[Xfr Cap Sys Annuity],Input[Institution Name],$A$1)+SUMIFS(Input[Xfr Cap Sys Unexp],Input[Institution Name],$A$1)+SUMIFS(Input[Xfr Cap Sys R of Ind],Input[Institution Name],$A$1)+SUMIFS(Input[Xfr Cap Sys Inv in P],Input[Institution Name],$A$1) -> 0 | C102: 0
A103: Other Post-Employment Benefit (OPEB) Expense | B103: =SUMIFS(Input[OPEB Exp E&G],Input[Institution Name],$A$1)+SUMIFS(Input[OPEB Exp Desg],Input[Institution Name],$A$1)+SUMIFS(Input[OPEB Exp Aux],Input[Institution Name],$A$1)+SUMIFS(Input[OPEB Exp R Exp],Input[Institution Name],$A$1)+SUMIFS(Input[OPEB Exp Loan],Input[Institution Name],$A$1)+SUMIFS(Input[OPEB Exp Annuity],Input[Institution Name],$A$1)+SUMIFS(Input[OPEB Exp Unexp],Input[Institution Name],$A$1)+SUMIFS(Input[OPEB Exp R of Ind],Input[Institution Name],$A$1)+SUMIFS(Input[OPEB Exp Inv in P],Input[Institution Name],$A$1) -> 0 | C103: 0
A104: Non-Cash Capital Gifts | B104: =SUMIFS(Input[Non-Cash Cap E&G],Input[Institution Name],$A$1)+SUMIFS(Input[Non-Cash Cap Desg],Input[Institution Name],$A$1)+SUMIFS(Input[Non-Cash Cap Aux],Input[Institution Name],$A$1)+SUMIFS(Input[Non-Cash Cap R Exp],Input[Institution Name],$A$1)+SUMIFS(Input[Non-Cash Cap Loan],Input[Institution Name],$A$1)+SUMIFS(Input[Non-Cash Cap Annuity],Input[Institution Name],$A$1)+SUMIFS(Input[Non-Cash Cap Unexp],Input[Institution Name],$A$1)+SUMIFS(Input[Non-Cash Cap R of Ind],Input[Institution Name],$A$1)+SUMIFS(Input[Non-Cash Cap Inv in P],Input[Institution Name],$A$1) -> 0 | C104: 0
A105: Capital Outlay | B105: =SUMIFS(Input[Cap Out E&G],Input[Institution Name],$A$1)+SUMIFS(Input[Cap Out Desg],Input[Institution Name],$A$1)+SUMIFS(Input[Cap Out Aux],Input[Institution Name],$A$1)+SUMIFS(Input[Cap Out R Exp],Input[Institution Name],$A$1)+SUMIFS(Input[Cap Out Loan],Input[Institution Name],$A$1)+SUMIFS(Input[Cap Out Annuity],Input[Institution Name],$A$1)+SUMIFS(Input[Cap Out Unexp],Input[Institution Name],$A$1)+SUMIFS(Input[Cap Out R of Ind],Input[Institution Name],$A$1)+SUMIFS(Input[Cap Out Inv in P],Input[Institution Name],$A$1) -> 0 | C105: 0
A106: Change in Net Assets | B106: =SUM(B97,B100:B105) -> 0 | C106: =IFERROR(B106/$F$1,0) -> 0
A108: * Restricted Fund/Use

Sheet Summary (by Institution Type)
F1: =SUMIFS(Input[FTSE], Input[Type],VLOOKUP($A$1,SearchTypes,2,FALSE)) -> 0 | G1: FTSE
A2: =IF(ISBLANK($A$1),"▲ Select institution type from dropdown ▲","For the Year Ended August 31, 2023") -> ▲ Select institution type from dropdown ▲ | F2: =SUMIFS(Input[FTFE], Input[Type],VLOOKUP($A$1,SearchTypes,2,FALSE)) -> 0 | G2: Faculty FTE
A7: System Summary Worksheet
A8: Operating Sources | E8: Total Revenue by Operating Source Category
A9: State of Texas | B9: Summary | C9: Per FTSE | E9: Operating Sources | F9: Amount | G9: Percent
A10: State Appropriations | B10: =SUMIFS(Input[St. Ap. E & G], Input[Type],VLOOKUP($A$1,SearchTypes,2,FALSE)) +SUMIFS(Input[St. Ap. Desg], Input[Type],VLOOKUP($A$1,SearchTypes,2,FALSE)) +SUMIFS(Input[St. Ap. Aux], Input[Type],VLOOKUP($A$1,SearchTypes,2,FALSE)) +SUMIFS(Input[St. Ap. R Exp], Input[Type],VLOOKUP($A$1,SearchTypes,2,FALSE)) +SUMIFS(Input[St. Ap. Loan], Input[Type],VLOOKUP($A$1,SearchTypes,2,FALSE)) +SUMIFS(Input[St. Ap. Annuity], Input[Type],VLOOKUP($A$1,SearchTypes,2,FALSE)) +SUMIFS(Input[St. Ap. Unexp], Input[Type],VLOOKUP($A$1,SearchTypes,2,FALSE)) +SUMIFS(Input[St. Ap. R of Ind], Input[Type],VLOOKUP($A$1,SearchTypes,2,FALSE)) +SUMIFS(Input[St. Ap. Inv in P], Input[Type],VLOOKUP($A$1,SearchTypes,2,FALSE)) -> 0 | C10: =IFERROR(B10/$F$1,0) -> 0 | E10: State of Texas | F10: =B14 -> 0 | G10: =IFERROR(F10/$F$14,0) -> 0
A11: State Grants and Contracts* | B11: =SUMIFS(Input[St. G&C - Rstr E&G], Input[Type],VLOOKUP($A$1,SearchTypes,2,FALSE))+SUMIFS(Input[St. G&C - Rstr Desg], Input[Type],VLOOKUP($A$1,SearchTypes,2,FALSE))+SUMIFS(Input[St. G&C - Rstr Aux], Input[Type],VLOOKUP($A$1,SearchTypes,2,FALSE))+SUMIFS(Input[St. G&C - Rstr R Exp], Input[Type],VLOOKUP($A$1,SearchTypes,2,FALSE))+SUMIFS(Input[St. G&C - Rstr Loan], Input[Type],VLOOKUP($A$1,SearchTypes,2,FALSE))+SUMIFS(Input[St. G&C - Rstr Annuity], Input[Type],VLOOKUP($A$1,SearchTypes,2,FALSE))+SUMIFS(Input[St. G&C - Rstr Unexp], Input[Type],VLOOKUP($A$1,SearchTypes,2,FALSE))+SUMIFS(Input[St. G&C - Rstr R of Ind], Input[Type],VLOOKUP($A$1,SearchTypes,2,FALSE))+SUMIFS(Input[St. G&C - Rstr Inv in P], Input[Type],VLOOKUP($A$1,SearchTypes,2,FALSE)) -> 0 | C11: =IFERROR(B11/$F$1,0) -> 0 | E11: Student & Parent | F11: =B47 -> 0 | G11: =IFERROR(F11/$F$14,0) -> 0
A12: Higher Education Fund | B12: =SUMIFS(Input[HEF E&G], Input[Type],VLOOKUP($A$1,SearchTypes,2,FALSE))+SUMIFS(Input[HEF Desg], Input[Type],VLOOKUP($A$1,SearchTypes,2,FALSE))+SUMIFS(Input[HEF Aux], Input[Type],VLOOKUP($A$1,SearchTypes,2,FALSE))+SUMIFS(Input[HEF R Exp], Input[Type],VLOOKUP($A$1,SearchTypes,2,FALSE))+SUMIFS(Input[HEF Loan], Input[Type],VLOOKUP($A$1,SearchTypes,2,FALSE))+SUMIFS(Input[HEF Annuity], Input[Type],VLOOKUP($A$1,SearchTypes,2,FALSE))+SUMIFS(Input[HEF Unexp], Input[Type],VLOOKUP($A$1,SearchTypes,2,FALSE))+SUMIFS(Input[HEF R of Ind], Input[Type],VLOOKUP($A$1,SearchTypes,2,FALSE))+SUMIFS(Input[HEF Inv in P], Input[Type],VLOOKUP($A$1,SearchTypes,2,FALSE)) -> 0 | C12: =IFERROR(B12/$F$1,0) -> 0 | E12: Federal | F12: =B50 -> 0 | G12: 0
A13: Available University Fund Excellence | B13: =SUMIFS(Input[Available E&G], Input[Type],VLOOKUP($A$1,SearchTypes,2,FALSE))+SUMIFS(Input[Available Desg], Input[Type],VLOOKUP($A$1,SearchTypes,2,FALSE))+SUMIFS(Input[Available Aux], Input[Type],VLOOKUP($A$1,SearchTypes,2,FALSE))+SUMIFS(Input[Available R Exp], Input[Type],VLOOKUP($A$1,SearchTypes,2,FALSE))+SUMIFS(Input[Available Loan], Input[Type],VLOOKUP($A$1,SearchTypes,2,FALSE))+SUMIFS(Input[Available Annuity], Input[Type],VLOOKUP($A$1,SearchTypes,2,FALSE))+SUMIFS(Input[Available Unexp], Input[Type],VLOOKUP($A$1,SearchTypes,2,FALSE))+SUMIFS(Input[Available R of Ind], Input[Type],VLOOKUP($A$1,SearchTypes,2,FALSE))+SUMIFS(Input[Available Inv in P], Input[Type],VLOOKUP($A$1,SearchTypes,2,FALSE)) -> 0 | C13: =IFERROR(B13/$F$1,0) -> 0 | E13: Institutional | F13: =SUM(B53,B56,B65) -> 0 | G13: 0
A14: Subtotal | B14: =SUM(B10:B13) -> 0 | C14: =SUM(C10:C13) -> 0 | F14: =SUM(F10:F13) -> 0 | G14: =SUM(G10:G13) -> 0
A16: Student & Parent | B16: Summary | C16: Per FTSE
A17: Tuition Potential 100% | B17: =SUM(B23,B19:B22) -> 0 | C17: =IFERROR(B17/$F$1,0) -> 0
A18: Not Reported in AFR (Report as negative numbers) | E18: SRECNP Reconciliation of Net Tuition and Fees
A19: Waivers - Statutory | B19: =SUMIFS(Input[T. W. - Stat (NR AFR) E&G], Input[Type],VLOOKUP($A$1,SearchTypes,2,FALSE))+SUMIFS(Input[T. W. - Stat (NR AFR) Desg], Input[Type],VLOOKUP($A$1,SearchTypes,2,FALSE))+SUMIFS(Input[T. W. - Stat (NR AFR) Aux], Input[Type],VLOOKUP($A$1,SearchTypes,2,FALSE))+SUMIFS(Input[T. W. - Stat (NR AFR) R Exp], Input[Type],VLOOKUP($A$1,SearchTypes,2,FALSE))+SUMIFS(Input[T. W. - Stat (NR AFR) Loan], Input[Type],VLOOKUP($A$1,SearchTypes,2,FALSE))+SUMIFS(Input[T. W. - Stat (NR AFR) Annuity], Input[Type],VLOOKUP($A$1,SearchTypes,2,FALSE))+SUMIFS(Input[T. W. - Stat (NR AFR) Unexp], Input[Type],VLOOKUP($A$1,SearchTypes,2,FALSE))+SUMIFS(Input[T. W. - Stat (NR AFR) R of Ind], Input[Type],VLOOKUP($A$1,SearchTypes,2,FALSE))+SUMIFS(Input[T. W. - Stat (NR AFR) Inv in P], Input[Type],VLOOKUP($A$1,SearchTypes,2,FALSE)) -> 0 | C19: =IFERROR(B19/$F$1,0) -> 0 | E19: Gross T&F | G19: =SUMIFS(Input[SRECNA T & F (Total Gross)], Input[Type],VLOOKUP($A$1,SearchTypes,2,FALSE)) -> 0
A20: Waivers - Institutional | B20: =SUMIFS(Input[T. W. - Inst. (NR AFR) E&G], Input[Type],VLOOKUP($A$1,SearchTypes,2,FALSE))+SUMIFS(Input[T. W. - Inst. (NR AFR) Desg], Input[Type],VLOOKUP($A$1,SearchTypes,2,FALSE))+SUMIFS(Input[T. W. - Inst. (NR AFR) Aux], Input[Type],VLOOKUP($A$1,SearchTypes,2,FALSE))+SUMIFS(Input[T. W. - Inst. (NR AFR) R Exp], Input[Type],VLOOKUP($A$1,SearchTypes,2,FALSE))+SUMIFS(Input[T. W. - Inst. (NR AFR) Loan], Input[Type],VLOOKUP($A$1,SearchTypes,2,FALSE))+SUMIFS(Input[T. W. - Inst. (NR AFR) Annuity], Input[Type],VLOOKUP($A$1,SearchTypes,2,FALSE))+SUMIFS(Input[T. W. - Inst. (NR AFR) Unexp], Input[Type],VLOOKUP($A$1,SearchTypes,2,FALSE))+SUMIFS(Input[T. W. - Inst. (NR AFR) R of Ind], Input[Type],VLOOKUP($A$1,SearchTypes,2,FALSE))+SUMIFS(Input[T. W. - Inst. (NR AFR) Inv in P], Input[Type],VLOOKUP($A$1,SearchTypes,2,FALSE)) -> 0 | C20: =IFERROR(B20/$F$1,0) -> 0 | E20: Discounts & Allowances | G20: =SUMIFS(Input[SRECNA R-AFR, W,Exp,Schl], Input[Type],VLOOKUP($A$1,SearchTypes,2,FALSE)) -> 0
A21: Exemptions - Statutory | B21: =SUMIFS(Input[T. Exp. - Stat (NR AFR) E&G], Input[Type],VLOOKUP($A$1,SearchTypes,2,FALSE))+SUMIFS(Input[T. Exp. - Stat (NR AFR) Desg], Input[Type],VLOOKUP($A$1,SearchTypes,2,FALSE))+SUMIFS(Input[T. Exp. - Stat (NR AFR) Aux], Input[Type],VLOOKUP($A$1,SearchTypes,2,FALSE))+SUMIFS(Input[T. Exp. - Stat (NR AFR) R Exp], Input[Type],VLOOKUP($A$1,SearchTypes,2,FALSE))+SUMIFS(Input[T. Exp. - Stat (NR AFR) Loan], Input[Type],VLOOKUP($A$1,SearchTypes,2,FALSE))+SUMIFS(Input[T. Exp. - Stat (NR AFR) Annuity], Input[Type],VLOOKUP($A$1,SearchTypes,2,FALSE))+SUMIFS(Input[T. Exp. - Stat (NR AFR) Unexp], Input[Type],VLOOKUP($A$1,SearchTypes,2,FALSE))+SUMIFS(Input[T. Exp. - Stat (NR AFR) R of Ind], Input[Type],VLOOKUP($A$1,SearchTypes,2,FALSE))+SUMIFS(Input[T. Exp. - Stat (NR AFR) Inv in P], Input[Type],VLOOKUP($A$1,SearchTypes,2,FALSE)) -> 0 | C21: =IFERROR(B21/$F$1,0) -> 0 | E21: Net Tuition & Fees | G21: =SUM(G19:G20) -> 0
A22: Exemptions - Institutional | B22: =SUMIFS(Input[T. Exp. - Inst. (NR AFR) E&G], Input[Type],VLOOKUP($A$1,SearchTypes,2,FALSE))+SUMIFS(Input[T. Exp. - Inst. (NR AFR) Desg], Input[Type],VLOOKUP($A$1,SearchTypes,2,FALSE))+SUMIFS(Input[T. Exp. - Inst. (NR AFR) Aux], Input[Type],VLOOKUP($A$1,SearchTypes,2,FALSE))+SUMIFS(Input[T. Exp. - Inst. (NR AFR) R Exp], Input[Type],VLOOKUP($A$1,SearchTypes,2,FALSE))+SUMIFS(Input[T. Exp. - Inst. (NR AFR) Loan], Input[Type],VLOOKUP($A$1,SearchTypes,2,FALSE))+SUMIFS(Input[T. Exp. - Inst. (NR AFR) Annuity], Input[Type],VLOOKUP($A$1,SearchTypes,2,FALSE))+SUMIFS(Input[T. Exp. - Inst. (NR AFR) Unexp], Input[Type],VLOOKUP($A$1,SearchTypes,2,FALSE))+SUMIFS(Input[T. Exp. - Inst. (NR AFR) R of Ind], Input[Type],VLOOKUP($A$1,SearchTypes,2,FALSE))+SUMIFS(Input[T. Exp. - Inst. (NR AFR) Inv in P], Input[Type],VLOOKUP($A$1,SearchTypes,2,FALSE)) -> 0 | C22: =IFERROR(B22/$F$1,0) -> 0 | F22: =IF(G22<>0,"Out of Balance","Balanced") -> Balanced | G22: =G21-B47 -> 0
A23: Tuition - Gross - AFR Presentation | B23: =SUMIFS(Input[T. - Gross E&G], Input[Type],VLOOKUP($A$1,SearchTypes,2,FALSE))+SUMIFS(Input[T. - Gross Desg], Input[Type],VLOOKUP($A$1,SearchTypes,2,FALSE))+SUMIFS(Input[T. - Gross Aux], Input[Type],VLOOKUP($A$1,SearchTypes,2,FALSE))+SUMIFS(Input[T. - Gross R Exp], Input[Type],VLOOKUP($A$1,SearchTypes,2,FALSE))+SUMIFS(Input[T. - Gross Loan], Input[Type],VLOOKUP($A$1,SearchTypes,2,FALSE))+SUMIFS(Input[T. - Gross Annuity], Input[Type],VLOOKUP($A$1,SearchTypes,2,FALSE))+SUMIFS(Input[T. - Gross Unexp], Input[Type],VLOOKUP($A$1,SearchTypes,2,FALSE))+SUMIFS(Input[T. - Gross R of Ind], Input[Type],VLOOKUP($A$1,SearchTypes,2,FALSE))+SUMIFS(Input[T. - Gross Inv in P], Input[Type],VLOOKUP($A$1,SearchTypes,2,FALSE)) -> 0 | C23: =IFERROR(B23/$F$1,0) -> 0
A24: Reported in AFR (Report as negative numbers)
A25: Waivers - Statutory | B25: =SUMIFS(Input[T. W. - Stat (R AFR) E&G], Input[Type],VLOOKUP($A$1,SearchTypes,2,FALSE))+SUMIFS(Input[T. W. - Stat (R AFR) Desg], Input[Type],VLOOKUP($A$1,SearchTypes,2,FALSE))+SUMIFS(Input[T. W. - Stat (R AFR) Aux], Input[Type],VLOOKUP($A$1,SearchTypes,2,FALSE))+SUMIFS(Input[T. W. - Stat (R AFR) R Exp], Input[Type],VLOOKUP($A$1,SearchTypes,2,FALSE))+SUMIFS(Input[T. W. - Stat (R AFR) Loan], Input[Type],VLOOKUP($A$1,SearchTypes,2,FALSE))+SUMIFS(Input[T. W. - Stat (R AFR) Annuity], Input[Type],VLOOKUP($A$1,SearchTypes,2,FALSE))+SUMIFS(Input[T. W. - Stat (R AFR) Unexp], Input[Type],VLOOKUP($A$1,SearchTypes,2,FALSE))+SUMIFS(Input[T. W. - Stat (R AFR) R of Ind], Input[Type],VLOOKUP($A$1,SearchTypes,2,FALSE))+SUMIFS(Input[T. W. - Stat (R AFR) Inv in P], Input[Type],VLOOKUP($A$1,SearchTypes,2,FALSE)) -> 0 | C25: =IFERROR(B25/$F$1,0) -> 0 | I25: Top 5 Sources
A26: Waivers - Institutional | B26: =SUMIFS(Input[T. W. - Inst. (R AFR) E&G], Input[Type],VLOOKUP($A$1,SearchTypes,2,FALSE))+SUMIFS(Input[T. W. - Inst. (R AFR) Desg], Input[Type],VLOOKUP($A$1,SearchTypes,2,FALSE))+SUMIFS(Input[T. W. - Inst. (R AFR) Aux], Input[Type],VLOOKUP($A$1,SearchTypes,2,FALSE))+SUMIFS(Input[T. W. - Inst. (R AFR) R Exp], Input[Type],VLOOKUP($A$1,SearchTypes,2,FALSE))+SUMIFS(Input[T. W. - Inst. (R AFR) Loan], Input[Type],VLOOKUP($A$1,SearchTypes,2,FALSE))+SUMIFS(Input[T. W. - Inst. (R AFR) Annuity], Input[Type],VLOOKUP($A$1,SearchTypes,2,FALSE))+SUMIFS(Input[T. W. - Inst. (R AFR) Unexp], Input[Type],VLOOKUP($A$1,SearchTypes,2,FALSE))+SUMIFS(Input[T. W. - Inst. (R AFR) R of Ind], Input[Type],VLOOKUP($A$1,SearchTypes,2,FALSE))+SUMIFS(Input[T. W. - Inst. (R AFR) Inv in P], Input[Type],VLOOKUP($A$1,SearchTypes,2,FALSE)) -> 0 | C26: 0 | E26: Operating Sources
A27: Exemptions - Statutory | B27: =SUMIFS(Input[T. Exp. - Stat (R AFR) E&G], Input[Type],VLOOKUP($A$1,SearchTypes,2,FALSE))+SUMIFS(Input[T. Exp. - Stat (R AFR) Desg], Input[Type],VLOOKUP($A$1,SearchTypes,2,FALSE))+SUMIFS(Input[T. Exp. - Stat (R AFR) Aux], Input[Type],VLOOKUP($A$1,SearchTypes,2,FALSE))+SUMIFS(Input[T. Exp. - Stat (R AFR) R Exp], Input[Type],VLOOKUP($A$1,SearchTypes,2,FALSE))+SUMIFS(Input[T. Exp. - Stat (R AFR) Loan], Input[Type],VLOOKUP($A$1,SearchTypes,2,FALSE))+SUMIFS(Input[T. Exp. - Stat (R AFR) Annuity], Input[Type],VLOOKUP($A$1,SearchTypes,2,FALSE))+SUMIFS(Input[T. Exp. - Stat (R AFR) Unexp], Input[Type],VLOOKUP($A$1,SearchTypes,2,FALSE))+SUMIFS(Input[T. Exp. - Stat (R AFR) R of Ind], Input[Type],VLOOKUP($A$1,SearchTypes,2,FALSE))+SUMIFS(Input[T. Exp. - Stat (R AFR) Inv in P], Input[Type],VLOOKUP($A$1,SearchTypes,2,FALSE)) -> 0 | C27: 0 | E27: Source | F27: Amount | G27: Percent | I27: Source | J27: Amount
A28: Exemptions - Institutional | B28: =SUMIFS(Input[T. Exp. - Inst. (R AFR) E&G], Input[Type],VLOOKUP($A$1,SearchTypes,2,FALSE))+SUMIFS(Input[T. Exp. - Inst. (R AFR) Desg], Input[Type],VLOOKUP($A$1,SearchTypes,2,FALSE))+SUMIFS(Input[T. Exp. - Inst. (R AFR) Aux], Input[Type],VLOOKUP($A$1,SearchTypes,2,FALSE))+SUMIFS(Input[T. Exp. - Inst. (R AFR) R Exp], Input[Type],VLOOKUP($A$1,SearchTypes,2,FALSE))+SUMIFS(Input[T. Exp. - Inst. (R AFR) Loan], Input[Type],VLOOKUP($A$1,SearchTypes,2,FALSE))+SUMIFS(Input[T. Exp. - Inst. (R AFR) Annuity], Input[Type],VLOOKUP($A$1,SearchTypes,2,FALSE))+SUMIFS(Input[T. Exp. - Inst. (R AFR) Unexp], Input[Type],VLOOKUP($A$1,SearchTypes,2,FALSE))+SUMIFS(Input[T. Exp. - Inst. (R AFR) R of Ind], Input[Type],VLOOKUP($A$1,SearchTypes,2,FALSE))+SUMIFS(Input[T. Exp. - Inst. (R AFR) Inv in P], Input[Type],VLOOKUP($A$1,SearchTypes,2,FALSE)) -> 0 | C28: 0 | E28: State Appropriations | F28: =B10 -> 0 | G28: =IFERROR(F28/$F$14,0) -> 0 | I28: =IF(ISBLANK(A1),"",INDEX(E28:E41,MATCH(LARGE(F28:F41,ROW(1:5)),F28:F41,0))) ->  | J28: =IFERROR(VLOOKUP(I28,$E$28:$F$41,2,FALSE),"") -> 
A29: All Other Scholarship Disc.& Allow. | B29: =SUMIFS(Input[T. Schlr E&G], Input[Type],VLOOKUP($A$1,SearchTypes,2,FALSE))+SUMIFS(Input[T. Schlr Desg], Input[Type],VLOOKUP($A$1,SearchTypes,2,FALSE))+SUMIFS(Input[T. Schlr Aux], Input[Type],VLOOKUP($A$1,SearchTypes,2,FALSE))+SUMIFS(Input[T. Schlr R Exp], Input[Type],VLOOKUP($A$1,SearchTypes,2,FALSE))+SUMIFS(Input[T. Schlr Loan], Input[Type],VLOOKUP($A$1,SearchTypes,2,FALSE))+SUMIFS(Input[T. Schlr Annuity], Input[Type],VLOOKUP($A$1,SearchTypes,2,FALSE))+SUMIFS(Input[T. Schlr Unexp], Input[Type],VLOOKUP($A$1,SearchTypes,2,FALSE))+SUMIFS(Input[T. Schlr R of Ind], Input[Type],VLOOKUP($A$1,SearchTypes,2,FALSE))+SUMIFS(Input[T. Schlr Inv in P], Input[Type],VLOOKUP($A$1,SearchTypes,2,FALSE)) -> 0 | C29: 0 | E29: State Grants & Contracts | F29: =B11 -> 0 | G29: =IFERROR(F29/$F$14,0) -> 0 | J29: =IFERROR(VLOOKUP(I29,$E$28:$F$41,2,FALSE),"") -> 
A30: Net Tuition | B30: =SUM(B23,B25:B29) -> 0 | C30: 0 | E30: Higher Education Fund | F30: =B12 -> 0 | G30: 0 | J30: =IFERROR(VLOOKUP(I30,$E$28:$F$41,2,FALSE),"") -> 
E31: Available University Fund Excellence | F31: =B13 -> 0 | G31: 0 | J31: =IFERROR(VLOOKUP(I31,$E$28:$F$41,2,FALSE),"") -> 
A32: Fees Potential 100% | B32: =SUM(B38,B34:B37) -> 0 | C32: =IFERROR(B32/$F$1,0) -> 0 | E32: Tuition & Fees | F32: =B30+B45 -> 0 | G32: 0 | J32: =IFERROR(VLOOKUP(I32,$E$28:$F$41,2,FALSE),"") -> 
A33: Not Reported in AFR (Report as negative numbers) | E33: Federal Grants & Contracts | F33: =B50 -> 0 | G33: 0 | J33: =IFERROR(VLOOKUP(I33,$E$28:$G$41,2,FALSE),"") -> 
A34: Waivers - Statutory | B34: =SUMIFS(Input[F. W. - Stat (NR AFR) E&G], Input[Type],VLOOKUP($A$1,SearchTypes,2,FALSE))+SUMIFS(Input[F. W. - Stat (NR AFR) Desg], Input[Type],VLOOKUP($A$1,SearchTypes,2,FALSE))+SUMIFS(Input[F. W. - Stat (NR AFR) Aux], Input[Type],VLOOKUP($A$1,SearchTypes,2,FALSE))+SUMIFS(Input[F. W. - Stat (NR AFR) R Exp], Input[Type],VLOOKUP($A$1,SearchTypes,2,FALSE))+SUMIFS(Input[F. W. - Stat (NR AFR) Loan], Input[Type],VLOOKUP($A$1,SearchTypes,2,FALSE))+SUMIFS(Input[F. W. - Stat (NR AFR) Annuity], Input[Type],VLOOKUP($A$1,SearchTypes,2,FALSE))+SUMIFS(Input[F. W. - Stat (NR AFR) Unexp], Input[Type],VLOOKUP($A$1,SearchTypes,2,FALSE))+SUMIFS(Input[F. W. - Stat (NR AFR) R of Ind], Input[Type],VLOOKUP($A$1,SearchTypes,2,FALSE))+SUMIFS(Input[F. W. - Stat (NR AFR) Inv in P], Input[Type],VLOOKUP($A$1,SearchTypes,2,FALSE)) -> 0 | C34: =IFERROR(B34/$F$1,0) -> 0 | E34: Professional Fees | F34: =IF($A$2<>"Health - Related Institutions",0,B53) -> 0 | G34: =IFERROR(F34/SUM($F$28:$F$41),0) -> 0 | I34: Top 5 Sources
A35: Waivers - Institutional | B35: =SUMIFS(Input[F. W. - Inst. (NR AFR) E&G], Input[Type],VLOOKUP($A$1,SearchTypes,2,FALSE))+SUMIFS(Input[F. W. - Inst. (NR AFR) Desg], Input[Type],VLOOKUP($A$1,SearchTypes,2,FALSE))+SUMIFS(Input[F. W. - Inst. (NR AFR) Aux], Input[Type],VLOOKUP($A$1,SearchTypes,2,FALSE))+SUMIFS(Input[F. W. - Inst. (NR AFR) R Exp], Input[Type],VLOOKUP($A$1,SearchTypes,2,FALSE))+SUMIFS(Input[F. W. - Inst. (NR AFR) Loan], Input[Type],VLOOKUP($A$1,SearchTypes,2,FALSE))+SUMIFS(Input[F. W. - Inst. (NR AFR) Annuity], Input[Type],VLOOKUP($A$1,SearchTypes,2,FALSE))+SUMIFS(Input[F. W. - Inst. (NR AFR) Unexp], Input[Type],VLOOKUP($A$1,SearchTypes,2,FALSE))+SUMIFS(Input[F. W. - Inst. (NR AFR) R of Ind], Input[Type],VLOOKUP($A$1,SearchTypes,2,FALSE))+SUMIFS(Input[F. W. - Inst. (NR AFR) Inv in P], Input[Type],VLOOKUP($A$1,SearchTypes,2,FALSE)) -> 0 | C35: =IFERROR(B35/$F$1,0) -> 0 | E35: Hospitals and Clinics | F35: =IF($A$2<>"Health - Related Institutions",0,B56) -> 0 | G35: =IFERROR(F35/SUM($F$28:$F$41),0) -> 0
A36: Exemptions - Statutory | B36: =SUMIFS(Input[F. Exp. - Stat (NR AFR) E&G], Input[Type],VLOOKUP($A$1,SearchTypes,2,FALSE))+SUMIFS(Input[F. Exp. - Stat (NR AFR) Desg], Input[Type],VLOOKUP($A$1,SearchTypes,2,FALSE))+SUMIFS(Input[F. Exp. - Stat (NR AFR) Aux], Input[Type],VLOOKUP($A$1,SearchTypes,2,FALSE))+SUMIFS(Input[F. Exp. - Stat (NR AFR) R Exp], Input[Type],VLOOKUP($A$1,SearchTypes,2,FALSE))+SUMIFS(Input[F. Exp. - Stat (NR AFR) Loan], Input[Type],VLOOKUP($A$1,SearchTypes,2,FALSE))+SUMIFS(Input[F. Exp. - Stat (NR AFR) Annuity], Input[Type],VLOOKUP($A$1,SearchTypes,2,FALSE))+SUMIFS(Input[F. Exp. - Stat (NR AFR) Unexp], Input[Type],VLOOKUP($A$1,SearchTypes,2,FALSE))+SUMIFS(Input[F. Exp. - Stat (NR AFR) R of Ind], Input[Type],VLOOKUP($A$1,SearchTypes,2,FALSE))+SUMIFS(Input[F. Exp. - Stat (NR AFR) Inv in P], Input[Type],VLOOKUP($A$1,SearchTypes,2,FALSE)) -> 0 | C36: =IFERROR(B36/$F$1,0) -> 0 | E36: Endowment & Interest Income | F36: =B59 -> 0 | G36: =IFERROR(F36/SUM($F$28:$F$41),0) -> 0
A37: Exemptions - Institutional | B37: =SUMIFS(Input[F. Exp. - Inst. (NR AFR) E&G], Input[Type],VLOOKUP($A$1,SearchTypes,2,FALSE))+SUMIFS(Input[F. Exp. - Inst. (NR AFR) Desg], Input[Type],VLOOKUP($A$1,SearchTypes,2,FALSE))+SUMIFS(Input[F. Exp. - Inst. (NR AFR) Aux], Input[Type],VLOOKUP($A$1,SearchTypes,2,FALSE))+SUMIFS(Input[F. Exp. - Inst. (NR AFR) R Exp], Input[Type],VLOOKUP($A$1,SearchTypes,2,FALSE))+SUMIFS(Input[F. Exp. - Inst. (NR AFR) Loan], Input[Type],VLOOKUP($A$1,SearchTypes,2,FALSE))+SUMIFS(Input[F. Exp. - Inst. (NR AFR) Annuity], Input[Type],VLOOKUP($A$1,SearchTypes,2,FALSE))+SUMIFS(Input[F. Exp. - Inst. (NR AFR) Unexp], Input[Type],VLOOKUP($A$1,SearchTypes,2,FALSE))+SUMIFS(Input[F. Exp. - Inst. (NR AFR) R of Ind], Input[Type],VLOOKUP($A$1,SearchTypes,2,FALSE))+SUMIFS(Input[F. Exp. - Inst. (NR AFR) Inv in P], Input[Type],VLOOKUP($A$1,SearchTypes,2,FALSE)) -> 0 | C37: =IFERROR(B37/$F$1,0) -> 0 | E37: Local Government Grants | F37: 0 | G37: =IFERROR(F37/SUM($F$28:$F$41),0) -> 0
A38: Fees - Gross - AFR Presentation | B38: =SUMIFS(Input[Fees - Gross E&G], Input[Type],VLOOKUP($A$1,SearchTypes,2,FALSE))+SUMIFS(Input[Fees - Gross Desg], Input[Type],VLOOKUP($A$1,SearchTypes,2,FALSE))+SUMIFS(Input[Fees - Gross Aux], Input[Type],VLOOKUP($A$1,SearchTypes,2,FALSE))+SUMIFS(Input[Fees - Gross R Exp], Input[Type],VLOOKUP($A$1,SearchTypes,2,FALSE))+SUMIFS(Input[Fees - Gross Loan], Input[Type],VLOOKUP($A$1,SearchTypes,2,FALSE))+SUMIFS(Input[Fees - Gross Annuity], Input[Type],VLOOKUP($A$1,SearchTypes,2,FALSE))+SUMIFS(Input[Fees - Gross Unexp], Input[Type],VLOOKUP($A$1,SearchTypes,2,FALSE))+SUMIFS(Input[Fees - Gross R of Ind], Input[Type],VLOOKUP($A$1,SearchTypes,2,FALSE))+SUMIFS(Input[Fees - Gross Inv in P], Input[Type],VLOOKUP($A$1,SearchTypes,2,FALSE)) -> 0 | C38: =IFERROR(B38/$F$1,0) -> 0 | E38: Private Gifts & Grants | F38: 0 | G38: 0
A39: Reported in AFR (Report as negative numbers) | E39: Sales & Services | F39: 0 | G39: 0
A40: Waivers - Statutory | B40: =SUMIFS(Input[F. W. - Stat (R AFR) E&G], Input[Type],VLOOKUP($A$1,SearchTypes,2,FALSE))+SUMIFS(Input[F. W. - Stat (R AFR) Desg], Input[Type],VLOOKUP($A$1,SearchTypes,2,FALSE))+SUMIFS(Input[F. W. - Stat (R AFR) Aux], Input[Type],VLOOKUP($A$1,SearchTypes,2,FALSE))+SUMIFS(Input[F. W. - Stat (R AFR) R Exp], Input[Type],VLOOKUP($A$1,SearchTypes,2,FALSE))+SUMIFS(Input[F. W. - Stat (R AFR) Loan], Input[Type],VLOOKUP($A$1,SearchTypes,2,FALSE))+SUMIFS(Input[F. W. - Stat (R AFR) Annuity], Input[Type],VLOOKUP($A$1,SearchTypes,2,FALSE))+SUMIFS(Input[F. W. - Stat (R AFR) Unexp], Input[Type],VLOOKUP($A$1,SearchTypes,2,FALSE))+SUMIFS(Input[F. W. - Stat (R AFR) R of Ind], Input[Type],VLOOKUP($A$1,SearchTypes,2,FALSE))+SUMIFS(Input[F. W. - Stat (R AFR) Inv in P], Input[Type],VLOOKUP($A$1,SearchTypes,2,FALSE)) -> 0 | C40: =IFERROR(B40/$F$1,0) -> 0 | E40: Net Auxiliary Enterprises | F40: 0 | G40: 0
A41: Waivers - Institutional | B41: =SUMIFS(Input[F. W. - Inst. (R AFR) E&G], Input[Type],VLOOKUP($A$1,SearchTypes,2,FALSE))+SUMIFS(Input[F. W. - Inst. (R AFR) Desg], Input[Type],VLOOKUP($A$1,SearchTypes,2,FALSE))+SUMIFS(Input[F. W. - Inst. (R AFR) Aux], Input[Type],VLOOKUP($A$1,SearchTypes,2,FALSE))+SUMIFS(Input[F. W. - Inst. (R AFR) R Exp], Input[Type],VLOOKUP($A$1,SearchTypes,2,FALSE))+SUMIFS(Input[F. W. - Inst. (R AFR) Loan], Input[Type],VLOOKUP($A$1,SearchTypes,2,FALSE))+SUMIFS(Input[F. W. - Inst. (R AFR) Annuity], Input[Type],VLOOKUP($A$1,SearchTypes,2,FALSE))+SUMIFS(Input[F. W. - Inst. (R AFR) Unexp], Input[Type],VLOOKUP($A$1,SearchTypes,2,FALSE))+SUMIFS(Input[F. W. - Inst. (R AFR) R of Ind], Input[Type],VLOOKUP($A$1,SearchTypes,2,FALSE))+SUMIFS(Input[F. W. - Inst. (R AFR) Inv in P], Input[Type],VLOOKUP($A$1,SearchTypes,2,FALSE)) -> 0 | C41: 0 | E41: Other Income | F41: 0 | G41: 0 | J41: =IFERROR(VLOOKUP(I41,$E$28:$G$41,2,FALSE),"") -> 
A42: Exemptions - Statutory | B42: =SUMIFS(Input[F. Exp. - Stat (R AFR) E&G], Input[Type],VLOOKUP($A$1,SearchTypes,2,FALSE))+SUMIFS(Input[F. Exp. - Stat (R AFR) Desg], Input[Type],VLOOKUP($A$1,SearchTypes,2,FALSE))+SUMIFS(Input[F. Exp. - Stat (R AFR) Aux], Input[Type],VLOOKUP($A$1,SearchTypes,2,FALSE))+SUMIFS(Input[F. Exp. - Stat (R AFR) R Exp], Input[Type],VLOOKUP($A$1,SearchTypes,2,FALSE))+SUMIFS(Input[F. Exp. - Stat (R AFR) Loan], Input[Type],VLOOKUP($A$1,SearchTypes,2,FALSE))+SUMIFS(Input[F. Exp. - Stat (R AFR) Annuity], Input[Type],VLOOKUP($A$1,SearchTypes,2,FALSE))+SUMIFS(Input[F. Exp. - Stat (R AFR) Unexp], Input[Type],VLOOKUP($A$1,SearchTypes,2,FALSE))+SUMIFS(Input[F. Exp. - Stat (R AFR) R of Ind], Input[Type],VLOOKUP($A$1,SearchTypes,2,FALSE))+SUMIFS(Input[F. Exp. - Stat (R AFR) Inv in P], Input[Type],VLOOKUP($A$1,SearchTypes,2,FALSE)) -> 0 | C42: 0
A43: Exemptions - Institutional | B43: =SUMIFS(Input[F. Exp. - Inst. (R AFR) E&G], Input[Type],VLOOKUP($A$1,SearchTypes,2,FALSE))+SUMIFS(Input[F. Exp. - Inst. (R AFR) Desg], Input[Type],VLOOKUP($A$1,SearchTypes,2,FALSE))+SUMIFS(Input[F. Exp. - Inst. (R AFR) Aux], Input[Type],VLOOKUP($A$1,SearchTypes,2,FALSE))+SUMIFS(Input[F. Exp. - Inst. (R AFR) R Exp], Input[Type],VLOOKUP($A$1,SearchTypes,2,FALSE))+SUMIFS(Input[F. Exp. - Inst. (R AFR) Loan], Input[Type],VLOOKUP($A$1,SearchTypes,2,FALSE))+SUMIFS(Input[F. Exp. - Inst. (R AFR) Annuity], Input[Type],VLOOKUP($A$1,SearchTypes,2,FALSE))+SUMIFS(Input[F. Exp. - Inst. (R AFR) Unexp], Input[Type],VLOOKUP($A$1,SearchTypes,2,FALSE))+SUMIFS(Input[F. Exp. - Inst. (R AFR) R of Ind], Input[Type],VLOOKUP($A$1,SearchTypes,2,FALSE))+SUMIFS(Input[F. Exp. - Inst. (R AFR) Inv in P], Input[Type],VLOOKUP($A$1,SearchTypes,2,FALSE)) -> 0 | C43: 0
A44: All Other Scholarship Disc.& Allow. | B44: =SUMIFS(Input[Fee Schlr E&G], Input[Type],VLOOKUP($A$1,SearchTypes,2,FALSE))+SUMIFS(Input[Fee Schlr Desg], Input[Type],VLOOKUP($A$1,SearchTypes,2,FALSE))+SUMIFS(Input[Fee Schlr Aux], Input[Type],VLOOKUP($A$1,SearchTypes,2,FALSE))+SUMIFS(Input[Fee Schlr R Exp], Input[Type],VLOOKUP($A$1,SearchTypes,2,FALSE))+SUMIFS(Input[Fee Schlr Loan], Input[Type],VLOOKUP($A$1,SearchTypes,2,FALSE))+SUMIFS(Input[Fee Schlr Annuity], Input[Type],VLOOKUP($A$1,SearchTypes,2,FALSE))+SUMIFS(Input[Fee Schlr Unexp], Input[Type],VLOOKUP($A$1,SearchTypes,2,FALSE))+SUMIFS(Input[Fee Schlr R of Ind], Input[Type],VLOOKUP($A$1,SearchTypes,2,FALSE))+SUMIFS(Input[Fee Schlr Inv in P], Input[Type],VLOOKUP($A$1,SearchTypes,2,FALSE)) -> 0 | C44: 0
A45: Net Fees | B45: =SUM(B38,B40:B44) -> 0 | C45: 0
A47: Net Tuition and Fees (Funds Collected) | B47: =B30+B45 -> 0 | C47: =IFERROR(B47/$F$1,0) -> 0
A49: Federal Government | B49: Summary | C49: Per FTSE
A50: Federal Grants and Contracts* | B50: =SUMIFS(Input[Fed G&C - Rest E&G], Input[Type],VLOOKUP($A$1,SearchTypes,2,FALSE))+SUMIFS(Input[Fed G&C - Rest Desg], Input[Type],VLOOKUP($A$1,SearchTypes,2,FALSE))+SUMIFS(Input[Fed G&C - Rest Aux], Input[Type],VLOOKUP($A$1,SearchTypes,2,FALSE))+SUMIFS(Input[Fed G&C - Rest R Exp], Input[Type],VLOOKUP($A$1,SearchTypes,2,FALSE))+SUMIFS(Input[Fed G&C - Rest Loan], Input[Type],VLOOKUP($A$1,SearchTypes,2,FALSE))+SUMIFS(Input[Fed G&C - Rest Annuity], Input[Type],VLOOKUP($A$1,SearchTypes,2,FALSE))+SUMIFS(Input[Fed G&C - Rest Unexp], Input[Type],VLOOKUP($A$1,SearchTypes,2,FALSE))+SUMIFS(Input[Fed G&C - Rest R of Ind], Input[Type],VLOOKUP($A$1,SearchTypes,2,FALSE))+SUMIFS(Input[Fed G&C - Rest Inv in P], Input[Type],VLOOKUP($A$1,SearchTypes,2,FALSE)) -> 0 | C50: =IFERROR(B50/$F$1,0) -> 0
A52: Professional Fees | B52: Summary | C52: Per FTSE
A53: =IF($A$1="Health - Related Institutions","All Sources (Net)","Not Applicable") -> Not Applicable | B53: =IF($A$53="Not Applicable", "",SUMIFS(Input[Professional Fees E&G], Input[Type],VLOOKUP($A$1,SearchTypes,2,FALSE))+SUMIFS(Input[Professional Fees Desg], Input[Type],VLOOKUP($A$1,SearchTypes,2,FALSE))+SUMIFS(Input[Professional Fees Aux], Input[Type],VLOOKUP($A$1,SearchTypes,2,FALSE))+SUMIFS(Input[Professional Fees R Exp], Input[Type],VLOOKUP($A$1,SearchTypes,2,FALSE))+SUMIFS(Input[Professional Fees Loan], Input[Type],VLOOKUP($A$1,SearchTypes,2,FALSE))+SUMIFS(Input[Professional Fees Annuity], Input[Type],VLOOKUP($A$1,SearchTypes,2,FALSE))+SUMIFS(Input[Professional Fees Unexp], Input[Type],VLOOKUP($A$1,SearchTypes,2,FALSE))+SUMIFS(Input[Professional Fees R of Ind], Input[Type],VLOOKUP($A$1,SearchTypes,2,FALSE))+SUMIFS(Input[Professional Fees Inv in P], Input[Type],VLOOKUP($A$1,SearchTypes,2,FALSE))) ->  | C53: =IF($A$53="Not Applicable", "",B53/$F$1) -> 
A55: Hospitals and Clinics | B55: Summary | C55: Per FTSE
A56: =IF($A$1="Health - Related Institutions","All Sources (Net)","Not Applicable") -> Not Applicable | B56: =IF($A$56="Not Applicable", "",SUMIFS(Input[H&C E&G], Input[Type],VLOOKUP($A$1,SearchTypes,2,FALSE))+SUMIFS(Input[H&C Desg], Input[Type],VLOOKUP($A$1,SearchTypes,2,FALSE))+SUMIFS(Input[H&C Aux], Input[Type],VLOOKUP($A$1,SearchTypes,2,FALSE))+SUMIFS(Input[H&C R Exp], Input[Type],VLOOKUP($A$1,SearchTypes,2,FALSE))+SUMIFS(Input[H&C Loan], Input[Type],VLOOKUP($A$1,SearchTypes,2,FALSE))+SUMIFS(Input[H&C Annuity], Input[Type],VLOOKUP($A$1,SearchTypes,2,FALSE))+SUMIFS(Input[H&C Unexp], Input[Type],VLOOKUP($A$1,SearchTypes,2,FALSE))+SUMIFS(Input[H&C R of Ind], Input[Type],VLOOKUP($A$1,SearchTypes,2,FALSE))+SUMIFS(Input[H&C Inv in P], Input[Type],VLOOKUP($A$1,SearchTypes,2,FALSE))) ->  | C56: =IF($A$56="Not Applicable", "",B56/$F$1) -> 
A58: Institutional Resources | B58: Summary
A59: Endowment and Interest Income | B59: =SUMIFS(Input[End & Int Inc E&G], Input[Type],VLOOKUP($A$1,SearchTypes,2,FALSE))+SUMIFS(Input[End & Int Inc Desg], Input[Type],VLOOKUP($A$1,SearchTypes,2,FALSE))+SUMIFS(Input[End & Int Inc Aux], Input[Type],VLOOKUP($A$1,SearchTypes,2,FALSE))+SUMIFS(Input[End & Int Inc R Exp], Input[Type],VLOOKUP($A$1,SearchTypes,2,FALSE))+SUMIFS(Input[End & Int Inc Loan], Input[Type],VLOOKUP($A$1,SearchTypes,2,FALSE))+SUMIFS(Input[End & Int Inc Annuity], Input[Type],VLOOKUP($A$1,SearchTypes,2,FALSE))+SUMIFS(Input[End & Int Inc Unexp], Input[Type],VLOOKUP($A$1,SearchTypes,2,FALSE))+SUMIFS(Input[End & Int Inc R of Ind], Input[Type],VLOOKUP($A$1,SearchTypes,2,FALSE))+SUMIFS(Input[End & Int Inc Inv in P], Input[Type],VLOOKUP($A$1,SearchTypes,2,FALSE)) -> 0 | C59: =IFERROR(B59/$F$1,0) -> 0
A60: Local Government Grants* | B60: =SUMIFS(Input[Loc Gov G - Rest E&G], Input[Type],VLOOKUP($A$1,SearchTypes,2,FALSE))+SUMIFS(Input[Loc Gov G - Rest Desg], Input[Type],VLOOKUP($A$1,SearchTypes,2,FALSE))+SUMIFS(Input[Loc Gov G - Rest Aux], Input[Type],VLOOKUP($A$1,SearchTypes,2,FALSE))+SUMIFS(Input[Loc Gov G - Rest R Exp], Input[Type],VLOOKUP($A$1,SearchTypes,2,FALSE))+SUMIFS(Input[Loc Gov G - Rest Loan], Input[Type],VLOOKUP($A$1,SearchTypes,2,FALSE))+SUMIFS(Input[Loc Gov G - Rest Annuity], Input[Type],VLOOKUP($A$1,SearchTypes,2,FALSE))+SUMIFS(Input[Loc Gov G - Rest Unexp], Input[Type],VLOOKUP($A$1,SearchTypes,2,FALSE))+SUMIFS(Input[Loc Gov G - Rest R of Ind], Input[Type],VLOOKUP($A$1,SearchTypes,2,FALSE))+SUMIFS(Input[Loc Gov G - Rest Inv in P], Input[Type],VLOOKUP($A$1,SearchTypes,2,FALSE)) -> 0 | C60: 0
A61: Private Gifts and Grants* | B61: =SUMIFS(Input[Pvt G&G - Rest E&G], Input[Type],VLOOKUP($A$1,SearchTypes,2,FALSE))+SUMIFS(Input[Pvt G&G - Rest Desg], Input[Type],VLOOKUP($A$1,SearchTypes,2,FALSE))+SUMIFS(Input[Pvt G&G - Rest Aux], Input[Type],VLOOKUP($A$1,SearchTypes,2,FALSE))+SUMIFS(Input[Pvt G&G - Rest R Exp], Input[Type],VLOOKUP($A$1,SearchTypes,2,FALSE))+SUMIFS(Input[Pvt G&G - Rest Loan], Input[Type],VLOOKUP($A$1,SearchTypes,2,FALSE))+SUMIFS(Input[Pvt G&G - Rest Annuity], Input[Type],VLOOKUP($A$1,SearchTypes,2,FALSE))+SUMIFS(Input[Pvt G&G - Rest Unexp], Input[Type],VLOOKUP($A$1,SearchTypes,2,FALSE))+SUMIFS(Input[Pvt G&G - Rest R of Ind], Input[Type],VLOOKUP($A$1,SearchTypes,2,FALSE))+SUMIFS(Input[Pvt G&G - Rest Inv in P], Input[Type],VLOOKUP($A$1,SearchTypes,2,FALSE)) -> 0 | C61: 0
A62: Sales and Services | B62: =SUMIFS(Input[S&S E&G], Input[Type],VLOOKUP($A$1,SearchTypes,2,FALSE))+SUMIFS(Input[S&S Desg], Input[Type],VLOOKUP($A$1,SearchTypes,2,FALSE))+SUMIFS(Input[S&S Aux], Input[Type],VLOOKUP($A$1,SearchTypes,2,FALSE))+SUMIFS(Input[S&S R Exp], Input[Type],VLOOKUP($A$1,SearchTypes,2,FALSE))+SUMIFS(Input[S&S Loan], Input[Type],VLOOKUP($A$1,SearchTypes,2,FALSE))+SUMIFS(Input[S&S Annuity], Input[Type],VLOOKUP($A$1,SearchTypes,2,FALSE))+SUMIFS(Input[S&S Unexp], Input[Type],VLOOKUP($A$1,SearchTypes,2,FALSE))+SUMIFS(Input[S&S R of Ind], Input[Type],VLOOKUP($A$1,SearchTypes,2,FALSE))+SUMIFS(Input[S&S Inv in P], Input[Type],VLOOKUP($A$1,SearchTypes,2,FALSE)) -> 0 | C62: 0
A63: Net Auxiliary Enterprises | B63: =SUMIFS(Input[Net Aux Ent E&G], Input[Type],VLOOKUP($A$1,SearchTypes,2,FALSE))+SUMIFS(Input[Net Aux Ent Desg], Input[Type],VLOOKUP($A$1,SearchTypes,2,FALSE))+SUMIFS(Input[Net Aux Ent Aux], Input[Type],VLOOKUP($A$1,SearchTypes,2,FALSE))+SUMIFS(Input[Net Aux Ent R Exp], Input[Type],VLOOKUP($A$1,SearchTypes,2,FALSE))+SUMIFS(Input[Net Aux Ent Loan], Input[Type],VLOOKUP($A$1,SearchTypes,2,FALSE))+SUMIFS(Input[Net Aux Ent Annuity], Input[Type],VLOOKUP($A$1,SearchTypes,2,FALSE))+SUMIFS(Input[Net Aux Ent Unexp], Input[Type],VLOOKUP($A$1,SearchTypes,2,FALSE))+SUMIFS(Input[Net Aux Ent R of Ind], Input[Type],VLOOKUP($A$1,SearchTypes,2,FALSE))+SUMIFS(Input[Net Aux Ent Inv in P], Input[Type],VLOOKUP($A$1,SearchTypes,2,FALSE)) -> 0 | C63: 0
A64: Other Income | B64: =SUMIFS(Input[Oth Inc E&G], Input[Type],VLOOKUP($A$1,SearchTypes,2,FALSE))+SUMIFS(Input[Oth Inc Desg], Input[Type],VLOOKUP($A$1,SearchTypes,2,FALSE))+SUMIFS(Input[Oth Inc Aux], Input[Type],VLOOKUP($A$1,SearchTypes,2,FALSE))+SUMIFS(Input[Oth Inc R Exp], Input[Type],VLOOKUP($A$1,SearchTypes,2,FALSE))+SUMIFS(Input[Oth Inc Loan], Input[Type],VLOOKUP($A$1,SearchTypes,2,FALSE))+SUMIFS(Input[Oth Inc Annuity], Input[Type],VLOOKUP($A$1,SearchTypes,2,FALSE))+SUMIFS(Input[Oth Inc Unexp], Input[Type],VLOOKUP($A$1,SearchTypes,2,FALSE))+SUMIFS(Input[Oth Inc R of Ind], Input[Type],VLOOKUP($A$1,SearchTypes,2,FALSE))+SUMIFS(Input[Oth Inc Inv in P], Input[Type],VLOOKUP($A$1,SearchTypes,2,FALSE)) -> 0 | C64: 0
A65: Subtotal | B65: =SUM(B59:B64) -> 0 | C65: 0
A67: Total Operating Sources | B67: =SUM(B14,B30,B45,B50,B53,B56,B65) -> 0 | C67: =IFERROR(B67/$F$1,0) -> 0
I68: Top 5 Functions
A69: Operating Uses
A70: Function | B70: Summary | C70: Per FTSE | E70: SRECNP Reconciliation | I70: Source | J70: Amount
A71: Instruction | B71: =SUMIFS(Input[Instr E&G], Input[Type],VLOOKUP($A$1,SearchTypes,2,FALSE))+SUMIFS(Input[Instr Desg], Input[Type],VLOOKUP($A$1,SearchTypes,2,FALSE))+SUMIFS(Input[Instr Aux], Input[Type],VLOOKUP($A$1,SearchTypes,2,FALSE))+SUMIFS(Input[Instr R Exp], Input[Type],VLOOKUP($A$1,SearchTypes,2,FALSE))+SUMIFS(Input[Instr Loan], Input[Type],VLOOKUP($A$1,SearchTypes,2,FALSE))+SUMIFS(Input[Instr Annuity], Input[Type],VLOOKUP($A$1,SearchTypes,2,FALSE))+SUMIFS(Input[Instr Unexp], Input[Type],VLOOKUP($A$1,SearchTypes,2,FALSE))+SUMIFS(Input[Instr R of Ind], Input[Type],VLOOKUP($A$1,SearchTypes,2,FALSE))+SUMIFS(Input[Instr Inv in P], Input[Type],VLOOKUP($A$1,SearchTypes,2,FALSE)) -> 0 | C71: =IFERROR(B71/$F$1,0) -> 0 | E71: Instruction | G71: =SUMIFS(Input[SRECNA Inst.], Input[Type],VLOOKUP($A$1,SearchTypes,2,FALSE)) -> 0 | I71: =IF(ISBLANK(A1),"",INDEX(E71:E80,MATCH(LARGE(G71:G80,ROW(1:5)),G71:G80,0))) ->  | J71: =IFERROR(VLOOKUP(I71,$E$71:$G$80,3,FALSE),"") -> 
A72: Research | B72: =SUMIFS(Input[Res E&G], Input[Type],VLOOKUP($A$1,SearchTypes,2,FALSE))+SUMIFS(Input[Res Desg], Input[Type],VLOOKUP($A$1,SearchTypes,2,FALSE))+SUMIFS(Input[Res Aux], Input[Type],VLOOKUP($A$1,SearchTypes,2,FALSE))+SUMIFS(Input[Res R Exp], Input[Type],VLOOKUP($A$1,SearchTypes,2,FALSE))+SUMIFS(Input[Res Loan], Input[Type],VLOOKUP($A$1,SearchTypes,2,FALSE))+SUMIFS(Input[Res Annuity], Input[Type],VLOOKUP($A$1,SearchTypes,2,FALSE))+SUMIFS(Input[Res Unexp], Input[Type],VLOOKUP($A$1,SearchTypes,2,FALSE))+SUMIFS(Input[Res R of Ind], Input[Type],VLOOKUP($A$1,SearchTypes,2,FALSE))+SUMIFS(Input[Res Inv in P], Input[Type],VLOOKUP($A$1,SearchTypes,2,FALSE)) -> 0 | C72: 0 | E72: Research | G72: =SUMIFS(Input[SRECNA Resh], Input[Type],VLOOKUP($A$1,SearchTypes,2,FALSE)) -> 0 | J72: =IFERROR(VLOOKUP(I72,$E$71:$G$80,3,FALSE),"") -> 
A73: Public Service | B73: =SUMIFS(Input[Pub Srv E&G], Input[Type],VLOOKUP($A$1,SearchTypes,2,FALSE))+SUMIFS(Input[Pub Srv Desg], Input[Type],VLOOKUP($A$1,SearchTypes,2,FALSE))+SUMIFS(Input[Pub Srv Aux], Input[Type],VLOOKUP($A$1,SearchTypes,2,FALSE))+SUMIFS(Input[Pub Srv R Exp], Input[Type],VLOOKUP($A$1,SearchTypes,2,FALSE))+SUMIFS(Input[Pub Srv Loan], Input[Type],VLOOKUP($A$1,SearchTypes,2,FALSE))+SUMIFS(Input[Pub Srv Annuity], Input[Type],VLOOKUP($A$1,SearchTypes,2,FALSE))+SUMIFS(Input[Pub Srv Unexp], Input[Type],VLOOKUP($A$1,SearchTypes,2,FALSE))+SUMIFS(Input[Pub Srv R of Ind], Input[Type],VLOOKUP($A$1,SearchTypes,2,FALSE))+SUMIFS(Input[Pub Srv Inv in P], Input[Type],VLOOKUP($A$1,SearchTypes,2,FALSE)) -> 0 | C73: 0 | E73: Public Service | G73: =SUMIFS(Input[SRECNA Pub Svc], Input[Type],VLOOKUP($A$1,SearchTypes,2,FALSE)) -> 0
A74: Hospitals and Clinics | B74: =IF($A$74="Hospitals and Clinics - Not Applicable", "",SUMIFS(Input[H&C (OU) E&G], Input[Type],VLOOKUP($A$1,SearchTypes,2,FALSE))+SUMIFS(Input[H&C (OU) Desg], Input[Type],VLOOKUP($A$1,SearchTypes,2,FALSE))+SUMIFS(Input[H&C (OU) Aux], Input[Type],VLOOKUP($A$1,SearchTypes,2,FALSE))+SUMIFS(Input[H&C (OU) R Exp], Input[Type],VLOOKUP($A$1,SearchTypes,2,FALSE))+SUMIFS(Input[H&C (OU) Loan], Input[Type],VLOOKUP($A$1,SearchTypes,2,FALSE))+SUMIFS(Input[H&C (OU) Annuity], Input[Type],VLOOKUP($A$1,SearchTypes,2,FALSE))+SUMIFS(Input[H&C (OU) Unexp], Input[Type],VLOOKUP($A$1,SearchTypes,2,FALSE))+SUMIFS(Input[H&C (OU) R of Ind], Input[Type],VLOOKUP($A$1,SearchTypes,2,FALSE))+SUMIFS(Input[H&C (OU) Inv in P], Input[Type],VLOOKUP($A$1,SearchTypes,2,FALSE))) -> 0 | C74: 0 | E74: Hospitals and Clinics | G74: =IF($A$2<>"Health - Related Institutions",0,SUMIFS(Input[SRECNA H&C], Input[Type],VLOOKUP($A$1,SearchTypes,2,FALSE))) -> 0
A75: Academic Support | B75: =SUMIFS(Input[Acad Sup E&G], Input[Type],VLOOKUP($A$1,SearchTypes,2,FALSE))+SUMIFS(Input[Acad Sup Desg], Input[Type],VLOOKUP($A$1,SearchTypes,2,FALSE))+SUMIFS(Input[Acad Sup Aux], Input[Type],VLOOKUP($A$1,SearchTypes,2,FALSE))+SUMIFS(Input[Acad Sup R Exp], Input[Type],VLOOKUP($A$1,SearchTypes,2,FALSE))+SUMIFS(Input[Acad Sup Loan], Input[Type],VLOOKUP($A$1,SearchTypes,2,FALSE))+SUMIFS(Input[Acad Sup Annuity], Input[Type],VLOOKUP($A$1,SearchTypes,2,FALSE))+SUMIFS(Input[Acad Sup Unexp], Input[Type],VLOOKUP($A$1,SearchTypes,2,FALSE))+SUMIFS(Input[Acad Sup R of Ind], Input[Type],VLOOKUP($A$1,SearchTypes,2,FALSE))+SUMIFS(Input[Acad Sup Inv in P], Input[Type],VLOOKUP($A$1,SearchTypes,2,FALSE)) -> 0 | C75: 0 | E75: Academic Support | G75: =SUMIFS(Input[SRECNA Aca Sppt], Input[Type],VLOOKUP($A$1,SearchTypes,2,FALSE)) -> 0
A76: Student Services | B76: =SUMIFS(Input[Stu Svc E&G], Input[Type],VLOOKUP($A$1,SearchTypes,2,FALSE))+SUMIFS(Input[Stu Svc Desg], Input[Type],VLOOKUP($A$1,SearchTypes,2,FALSE))+SUMIFS(Input[Stu Svc Aux], Input[Type],VLOOKUP($A$1,SearchTypes,2,FALSE))+SUMIFS(Input[Stu Svc R Exp], Input[Type],VLOOKUP($A$1,SearchTypes,2,FALSE))+SUMIFS(Input[Stu Svc Loan], Input[Type],VLOOKUP($A$1,SearchTypes,2,FALSE))+SUMIFS(Input[Stu Svc Annuity], Input[Type],VLOOKUP($A$1,SearchTypes,2,FALSE))+SUMIFS(Input[Stu Svc Unexp], Input[Type],VLOOKUP($A$1,SearchTypes,2,FALSE))+SUMIFS(Input[Stu Svc R of Ind], Input[Type],VLOOKUP($A$1,SearchTypes,2,FALSE))+SUMIFS(Input[Stu Svc Inv in P], Input[Type],VLOOKUP($A$1,SearchTypes,2,FALSE)) -> 0 | C76: 0 | E76: Student Services | G76: =SUMIFS(Input[SRECNA Stu Svcs], Input[Type],VLOOKUP($A$1,SearchTypes,2,FALSE)) -> 0 | J76: =IFERROR(VLOOKUP(I76,$E$28:$G$41,2,FALSE),"") -> 
A77: Institutional Support | B77: =SUMIFS(Input[Inst. Spt E&G], Input[Type],VLOOKUP($A$1,SearchTypes,2,FALSE))+SUMIFS(Input[Inst. Spt Desg], Input[Type],VLOOKUP($A$1,SearchTypes,2,FALSE))+SUMIFS(Input[Inst. Spt Aux], Input[Type],VLOOKUP($A$1,SearchTypes,2,FALSE))+SUMIFS(Input[Inst. Spt R Exp], Input[Type],VLOOKUP($A$1,SearchTypes,2,FALSE))+SUMIFS(Input[Inst. Spt Loan], Input[Type],VLOOKUP($A$1,SearchTypes,2,FALSE))+SUMIFS(Input[Inst. Spt Annuity], Input[Type],VLOOKUP($A$1,SearchTypes,2,FALSE))+SUMIFS(Input[Inst. Spt Unexp], Input[Type],VLOOKUP($A$1,SearchTypes,2,FALSE))+SUMIFS(Input[Inst. Spt R of Ind], Input[Type],VLOOKUP($A$1,SearchTypes,2,FALSE))+SUMIFS(Input[Inst. Spt Inv in P], Input[Type],VLOOKUP($A$1,SearchTypes,2,FALSE)) -> 0 | C77: 0 | E77: Institutional Support | G77: =SUMIFS(Input[SRECNA Inst. Sppt], Input[Type],VLOOKUP($A$1,SearchTypes,2,FALSE)) -> 0 | I77: Top 5 Functions
A78: Operations & Maintenance of Plant | B78: =SUMIFS(Input[M&O Plnt E&G], Input[Type],VLOOKUP($A$1,SearchTypes,2,FALSE))+SUMIFS(Input[M&O Plnt Desg], Input[Type],VLOOKUP($A$1,SearchTypes,2,FALSE))+SUMIFS(Input[M&O Plnt Aux], Input[Type],VLOOKUP($A$1,SearchTypes,2,FALSE))+SUMIFS(Input[M&O Plnt R Exp], Input[Type],VLOOKUP($A$1,SearchTypes,2,FALSE))+SUMIFS(Input[M&O Plnt Loan], Input[Type],VLOOKUP($A$1,SearchTypes,2,FALSE))+SUMIFS(Input[M&O Plnt Annuity], Input[Type],VLOOKUP($A$1,SearchTypes,2,FALSE))+SUMIFS(Input[M&O Plnt Unexp], Input[Type],VLOOKUP($A$1,SearchTypes,2,FALSE))+SUMIFS(Input[M&O Plnt R of Ind], Input[Type],VLOOKUP($A$1,SearchTypes,2,FALSE))+SUMIFS(Input[M&O Plnt Inv in P], Input[Type],VLOOKUP($A$1,SearchTypes,2,FALSE)) -> 0 | C78: 0 | E78: Operations and Maintenance of Plant | G78: =SUMIFS(Input[SRECNA Op & Maint], Input[Type],VLOOKUP($A$1,SearchTypes,2,FALSE)) -> 0
A79: Scholarships & Fellowships | B79: =SUMIFS(Input[Schl & Fell E&G], Input[Type],VLOOKUP($A$1,SearchTypes,2,FALSE))+SUMIFS(Input[Schl & Fell Desg], Input[Type],VLOOKUP($A$1,SearchTypes,2,FALSE))+SUMIFS(Input[Schl & Fell Aux], Input[Type],VLOOKUP($A$1,SearchTypes,2,FALSE))+SUMIFS(Input[Schl & Fell R Exp], Input[Type],VLOOKUP($A$1,SearchTypes,2,FALSE))+SUMIFS(Input[Schl & Fell Loan], Input[Type],VLOOKUP($A$1,SearchTypes,2,FALSE))+SUMIFS(Input[Schl & Fell Annuity], Input[Type],VLOOKUP($A$1,SearchTypes,2,FALSE))+SUMIFS(Input[Schl & Fell Unexp], Input[Type],VLOOKUP($A$1,SearchTypes,2,FALSE))+SUMIFS(Input[Schl & Fell R of Ind], Input[Type],VLOOKUP($A$1,SearchTypes,2,FALSE))+SUMIFS(Input[Schl & Fell Inv in P], Input[Type],VLOOKUP($A$1,SearchTypes,2,FALSE)) -> 0 | C79: 0 | E79: Scholarships and Fellowships | G79: =SUMIFS(Input[SRECNA Schl & Fell], Input[Type],VLOOKUP($A$1,SearchTypes,2,FALSE)) -> 0
A80: Auxiliary Enterprises | B80: =SUMIFS(Input[Aux Ent E&G], Input[Type],VLOOKUP($A$1,SearchTypes,2,FALSE))+SUMIFS(Input[Aux Ent Desg], Input[Type],VLOOKUP($A$1,SearchTypes,2,FALSE))+SUMIFS(Input[Aux Ent Aux], Input[Type],VLOOKUP($A$1,SearchTypes,2,FALSE))+SUMIFS(Input[Aux Ent R Exp], Input[Type],VLOOKUP($A$1,SearchTypes,2,FALSE))+SUMIFS(Input[Aux Ent Loan], Input[Type],VLOOKUP($A$1,SearchTypes,2,FALSE))+SUMIFS(Input[Aux Ent Annuity], Input[Type],VLOOKUP($A$1,SearchTypes,2,FALSE))+SUMIFS(Input[Aux Ent Unexp], Input[Type],VLOOKUP($A$1,SearchTypes,2,FALSE))+SUMIFS(Input[Aux Ent R of Ind], Input[Type],VLOOKUP($A$1,SearchTypes,2,FALSE))+SUMIFS(Input[Aux Ent Inv in P], Input[Type],VLOOKUP($A$1,SearchTypes,2,FALSE)) -> 0 | C80: 0 | E80: Auxiliary Enterprises | G80: =SUMIFS(Input[SRECNA Aux], Input[Type],VLOOKUP($A$1,SearchTypes,2,FALSE)) -> 0
A81: Capital Outlay from Current Fund Sources | B81: =SUMIFS(Input[Cap Out fund E&G], Input[Type],VLOOKUP($A$1,SearchTypes,2,FALSE))+SUMIFS(Input[Cap Out fund Desg], Input[Type],VLOOKUP($A$1,SearchTypes,2,FALSE))+SUMIFS(Input[Cap Out fund Aux], Input[Type],VLOOKUP($A$1,SearchTypes,2,FALSE))+SUMIFS(Input[Cap Out fund R Exp], Input[Type],VLOOKUP($A$1,SearchTypes,2,FALSE))+SUMIFS(Input[Cap Out fund Loan], Input[Type],VLOOKUP($A$1,SearchTypes,2,FALSE))+SUMIFS(Input[Cap Out fund Annuity], Input[Type],VLOOKUP($A$1,SearchTypes,2,FALSE))+SUMIFS(Input[Cap Out fund Unexp], Input[Type],VLOOKUP($A$1,SearchTypes,2,FALSE))+SUMIFS(Input[Cap Out fund R of Ind], Input[Type],VLOOKUP($A$1,SearchTypes,2,FALSE))+SUMIFS(Input[Cap Out fund Inv in P], Input[Type],VLOOKUP($A$1,SearchTypes,2,FALSE)) -> 0 | C81: 0 | F81: =IF(G81<>0,"Out of Balance","Balanced") -> Balanced | G81: =SUM(G71:G80,-SUM(B71:B80)) -> 0
A82: Other Expenses | B82: =SUMIFS(Input[Oth Exp E&G], Input[Type],VLOOKUP($A$1,SearchTypes,2,FALSE))+SUMIFS(Input[Oth Exp Desg], Input[Type],VLOOKUP($A$1,SearchTypes,2,FALSE))+SUMIFS(Input[Oth Exp Aux], Input[Type],VLOOKUP($A$1,SearchTypes,2,FALSE))+SUMIFS(Input[Oth Exp R Exp], Input[Type],VLOOKUP($A$1,SearchTypes,2,FALSE))+SUMIFS(Input[Oth Exp Loan], Input[Type],VLOOKUP($A$1,SearchTypes,2,FALSE))+SUMIFS(Input[Oth Exp Annuity], Input[Type],VLOOKUP($A$1,SearchTypes,2,FALSE))+SUMIFS(Input[Oth Exp Unexp], Input[Type],VLOOKUP($A$1,SearchTypes,2,FALSE))+SUMIFS(Input[Oth Exp R of Ind], Input[Type],VLOOKUP($A$1,SearchTypes,2,FALSE))+SUMIFS(Input[Oth Exp Inv in P], Input[Type],VLOOKUP($A$1,SearchTypes,2,FALSE)) -> 0 | C82: 0
A83: Subtotal | B83: =SUM(B71:B82) -> 0 | C83: 0
J84: =IFERROR(VLOOKUP(I84,$E$28:$G$41,2,FALSE),"") -> 
A85: Other Sources / (Uses) of Funds | B85: Summary | C85: Per FTSE
A86: Capital Outlay from Non-Current Fund Sources | B86: =SUMIFS(Input[Cap Out n-Fund E&G], Input[Type],VLOOKUP($A$1,SearchTypes,2,FALSE))+SUMIFS(Input[Cap Out n-Fund Desg], Input[Type],VLOOKUP($A$1,SearchTypes,2,FALSE))+SUMIFS(Input[Cap Out n-Fund Aux], Input[Type],VLOOKUP($A$1,SearchTypes,2,FALSE))+SUMIFS(Input[Cap Out n-Fund R Exp], Input[Type],VLOOKUP($A$1,SearchTypes,2,FALSE))+SUMIFS(Input[Cap Out n-Fund Loan], Input[Type],VLOOKUP($A$1,SearchTypes,2,FALSE))+SUMIFS(Input[Cap Out n-Fund Annuity], Input[Type],VLOOKUP($A$1,SearchTypes,2,FALSE))+SUMIFS(Input[Cap Out n-Fund Unexp], Input[Type],VLOOKUP($A$1,SearchTypes,2,FALSE))+SUMIFS(Input[Cap Out n-Fund R of Ind], Input[Type],VLOOKUP($A$1,SearchTypes,2,FALSE))+SUMIFS(Input[Cap Out n-Fund Inv in P], Input[Type],VLOOKUP($A$1,SearchTypes,2,FALSE)) -> 0 | C86: =IFERROR(B86/$F$1,0) -> 0
A87: Mandatory and Non-mandatory Transfers | B87: =SUMIFS(Input[M&Nm Xfrs E&G], Input[Type],VLOOKUP($A$1,SearchTypes,2,FALSE))+SUMIFS(Input[M&Nm Xfrs Desg], Input[Type],VLOOKUP($A$1,SearchTypes,2,FALSE))+SUMIFS(Input[M&Nm Xfrs Aux], Input[Type],VLOOKUP($A$1,SearchTypes,2,FALSE))+SUMIFS(Input[M&Nm Xfrs R Exp], Input[Type],VLOOKUP($A$1,SearchTypes,2,FALSE))+SUMIFS(Input[M&Nm Xfrs Loan], Input[Type],VLOOKUP($A$1,SearchTypes,2,FALSE))+SUMIFS(Input[M&Nm Xfrs Annuity], Input[Type],VLOOKUP($A$1,SearchTypes,2,FALSE))+SUMIFS(Input[M&Nm Xfrs Unexp], Input[Type],VLOOKUP($A$1,SearchTypes,2,FALSE))+SUMIFS(Input[M&Nm Xfrs R of Ind], Input[Type],VLOOKUP($A$1,SearchTypes,2,FALSE))+SUMIFS(Input[M&Nm Xfrs Inv in P], Input[Type],VLOOKUP($A$1,SearchTypes,2,FALSE)) -> 0 | C87: 0
A88: Bond Proceeds Transfers In | B88: =SUMIFS(Input[Bond Xfrs In E&G], Input[Type],VLOOKUP($A$1,SearchTypes,2,FALSE))+SUMIFS(Input[Bond Xfrs In Desg], Input[Type],VLOOKUP($A$1,SearchTypes,2,FALSE))+SUMIFS(Input[Bond Xfrs In Aux], Input[Type],VLOOKUP($A$1,SearchTypes,2,FALSE))+SUMIFS(Input[Bond Xfrs In R Exp], Input[Type],VLOOKUP($A$1,SearchTypes,2,FALSE))+SUMIFS(Input[Bond Xfrs In Loan], Input[Type],VLOOKUP($A$1,SearchTypes,2,FALSE))+SUMIFS(Input[Bond Xfrs In Annuity], Input[Type],VLOOKUP($A$1,SearchTypes,2,FALSE))+SUMIFS(Input[Bond Xfrs In Unexp], Input[Type],VLOOKUP($A$1,SearchTypes,2,FALSE))+SUMIFS(Input[Bond Xfrs In R of Ind], Input[Type],VLOOKUP($A$1,SearchTypes,2,FALSE))+SUMIFS(Input[Bond Xfrs In Inv in P], Input[Type],VLOOKUP($A$1,SearchTypes,2,FALSE)) -> 0 | C88: 0
A89: Debt Service Payments | B89: =SUMIFS(Input[Debt Srv Pay E&G], Input[Type],VLOOKUP($A$1,SearchTypes,2,FALSE))+SUMIFS(Input[Debt Srv Pay Desg], Input[Type],VLOOKUP($A$1,SearchTypes,2,FALSE))+SUMIFS(Input[Debt Srv Pay Aux], Input[Type],VLOOKUP($A$1,SearchTypes,2,FALSE))+SUMIFS(Input[Debt Srv Pay R Exp], Input[Type],VLOOKUP($A$1,SearchTypes,2,FALSE))+SUMIFS(Input[Debt Srv Pay Loan], Input[Type],VLOOKUP($A$1,SearchTypes,2,FALSE))+SUMIFS(Input[Debt Srv Pay Annuity], Input[Type],VLOOKUP($A$1,SearchTypes,2,FALSE))+SUMIFS(Input[Debt Srv Pay Unexp], Input[Type],VLOOKUP($A$1,SearchTypes,2,FALSE))+SUMIFS(Input[Debt Srv Pay R of Ind], Input[Type],VLOOKUP($A$1,SearchTypes,2,FALSE))+SUMIFS(Input[Debt Srv Pay Inv in P], Input[Type],VLOOKUP($A$1,SearchTypes,2,FALSE)) -> 0 | C89: 0
A90: Subtotal | B90: =SUM(B86:B89) -> 0 | C90: =IFERROR(B90/$F$1,0) -> 0
A92: Other Items Not for Current Operating Use | B92: Summary | C92: Per FTSE
A93: Unrealized Gains/(Losses) | B93: =SUMIFS(Input[Unreal G/L E&G], Input[Type],VLOOKUP($A$1,SearchTypes,2,FALSE))+SUMIFS(Input[Unreal G/L Desg], Input[Type],VLOOKUP($A$1,SearchTypes,2,FALSE))+SUMIFS(Input[Unreal G/L Aux], Input[Type],VLOOKUP($A$1,SearchTypes,2,FALSE))+SUMIFS(Input[Unreal G/L R Exp], Input[Type],VLOOKUP($A$1,SearchTypes,2,FALSE))+SUMIFS(Input[Unreal G/L Loan], Input[Type],VLOOKUP($A$1,SearchTypes,2,FALSE))+SUMIFS(Input[Unreal G/L Annuity], Input[Type],VLOOKUP($A$1,SearchTypes,2,FALSE))+SUMIFS(Input[Unreal G/L Unexp], Input[Type],VLOOKUP($A$1,SearchTypes,2,FALSE))+SUMIFS(Input[Unreal G/L R of Ind], Input[Type],VLOOKUP($A$1,SearchTypes,2,FALSE))+SUMIFS(Input[Unreal G/L Inv in P], Input[Type],VLOOKUP($A$1,SearchTypes,2,FALSE)) -> 0 | C93: =IFERROR(B93/$F$1,0) -> 0
A94: Additions to Permanent Endowments | B94: =SUMIFS(Input[Add End E&G], Input[Type],VLOOKUP($A$1,SearchTypes,2,FALSE))+SUMIFS(Input[Add End Desg], Input[Type],VLOOKUP($A$1,SearchTypes,2,FALSE))+SUMIFS(Input[Add End Aux], Input[Type],VLOOKUP($A$1,SearchTypes,2,FALSE))+SUMIFS(Input[Add End R Exp], Input[Type],VLOOKUP($A$1,SearchTypes,2,FALSE))+SUMIFS(Input[Add End Loan], Input[Type],VLOOKUP($A$1,SearchTypes,2,FALSE))+SUMIFS(Input[Add End Annuity], Input[Type],VLOOKUP($A$1,SearchTypes,2,FALSE))+SUMIFS(Input[Add End Unexp], Input[Type],VLOOKUP($A$1,SearchTypes,2,FALSE))+SUMIFS(Input[Add End R of Ind], Input[Type],VLOOKUP($A$1,SearchTypes,2,FALSE))+SUMIFS(Input[Add End Inv in P], Input[Type],VLOOKUP($A$1,SearchTypes,2,FALSE)) -> 0 | C94: 0
A95: Subtotal | B95: =SUM(B93:B94) -> 0 | C95: =IFERROR(B95/$F$1,0) -> 0
A97: Total Operating Uses | B97: =B67-B83+B90+B95 -> 0 | C97: =C67-C83+C90+C95 -> 0
B99: Summary | C99: Per FTSE | E99: SRECNP Reconciliation
A100: Bond Proceeds/(Principal Debt Payments) | B100: =SUMIFS(Input[Bond Proceeds E&G], Input[Type],VLOOKUP($A$1,SearchTypes,2,FALSE))+SUMIFS(Input[Bond Proceeds Desg], Input[Type],VLOOKUP($A$1,SearchTypes,2,FALSE))+SUMIFS(Input[Bond Proceeds Aux], Input[Type],VLOOKUP($A$1,SearchTypes,2,FALSE))+SUMIFS(Input[Bond Proceeds R Exp], Input[Type],VLOOKUP($A$1,SearchTypes,2,FALSE))+SUMIFS(Input[Bond Proceeds Loan], Input[Type],VLOOKUP($A$1,SearchTypes,2,FALSE))+SUMIFS(Input[Bond Proceeds Annuity], Input[Type],VLOOKUP($A$1,SearchTypes,2,FALSE))+SUMIFS(Input[Bond Proceeds Unexp], Input[Type],VLOOKUP($A$1,SearchTypes,2,FALSE))+SUMIFS(Input[Bond Proceeds R of Ind], Input[Type],VLOOKUP($A$1,SearchTypes,2,FALSE))+SUMIFS(Input[Bond Proceeds Inv in P], Input[Type],VLOOKUP($A$1,SearchTypes,2,FALSE)) -> 0 | C100: =IFERROR(B100/$F$1,0) -> 0 | E100: SRECNP Total | G100: =SUMIFS(Input[SRECNA], Input[Type],VLOOKUP($A$1,SearchTypes,2,FALSE)) -> 0
A101: Depreciation Expense | B101: =SUMIFS(Input[Dep Exp E&G], Input[Type],VLOOKUP($A$1,SearchTypes,2,FALSE))+SUMIFS(Input[Dep Exp Desg], Input[Type],VLOOKUP($A$1,SearchTypes,2,FALSE))+SUMIFS(Input[Dep Exp Aux], Input[Type],VLOOKUP($A$1,SearchTypes,2,FALSE))+SUMIFS(Input[Dep Exp R Exp], Input[Type],VLOOKUP($A$1,SearchTypes,2,FALSE))+SUMIFS(Input[Dep Exp Loan], Input[Type],VLOOKUP($A$1,SearchTypes,2,FALSE))+SUMIFS(Input[Dep Exp Annuity], Input[Type],VLOOKUP($A$1,SearchTypes,2,FALSE))+SUMIFS(Input[Dep Exp Unexp], Input[Type],VLOOKUP($A$1,SearchTypes,2,FALSE))+SUMIFS(Input[Dep Exp R of Ind], Input[Type],VLOOKUP($A$1,SearchTypes,2,FALSE))+SUMIFS(Input[Dep Exp Inv in P], Input[Type],VLOOKUP($A$1,SearchTypes,2,FALSE)) -> 0 | C101: 0 | F101: =IF(G101<>0,"Out of Balance","Balanced") -> Balanced | G101: =B106-G100 -> 0
A102: Transfer of Capital Asset(s) from System | B102: =SUMIFS(Input[Xfr Cap Sys E&G], Input[Type],VLOOKUP($A$1,SearchTypes,2,FALSE))+SUMIFS(Input[Xfr Cap Sys Desg], Input[Type],VLOOKUP($A$1,SearchTypes,2,FALSE))+SUMIFS(Input[Xfr Cap Sys Aux], Input[Type],VLOOKUP($A$1,SearchTypes,2,FALSE))+SUMIFS(Input[Xfr Cap Sys R Exp], Input[Type],VLOOKUP($A$1,SearchTypes,2,FALSE))+SUMIFS(Input[Xfr Cap Sys Loan], Input[Type],VLOOKUP($A$1,SearchTypes,2,FALSE))+SUMIFS(Input[Xfr Cap Sys Annuity], Input[Type],VLOOKUP($A$1,SearchTypes,2,FALSE))+SUMIFS(Input[Xfr Cap Sys Unexp], Input[Type],VLOOKUP($A$1,SearchTypes,2,FALSE))+SUMIFS(Input[Xfr Cap Sys R of Ind], Input[Type],VLOOKUP($A$1,SearchTypes,2,FALSE))+SUMIFS(Input[Xfr Cap Sys Inv in P], Input[Type],VLOOKUP($A$1,SearchTypes,2,FALSE)) -> 0 | C102: 0
A103: Other Post-Employment Benefit (OPEB) Expense | B103: =SUMIFS(Input[OPEB Exp E&G], Input[Type],VLOOKUP($A$1,SearchTypes,2,FALSE))+SUMIFS(Input[OPEB Exp Desg], Input[Type],VLOOKUP($A$1,SearchTypes,2,FALSE))+SUMIFS(Input[OPEB Exp Aux], Input[Type],VLOOKUP($A$1,SearchTypes,2,FALSE))+SUMIFS(Input[OPEB Exp R Exp], Input[Type],VLOOKUP($A$1,SearchTypes,2,FALSE))+SUMIFS(Input[OPEB Exp Loan], Input[Type],VLOOKUP($A$1,SearchTypes,2,FALSE))+SUMIFS(Input[OPEB Exp Annuity], Input[Type],VLOOKUP($A$1,SearchTypes,2,FALSE))+SUMIFS(Input[OPEB Exp Unexp], Input[Type],VLOOKUP($A$1,SearchTypes,2,FALSE))+SUMIFS(Input[OPEB Exp R of Ind], Input[Type],VLOOKUP($A$1,SearchTypes,2,FALSE))+SUMIFS(Input[OPEB Exp Inv in P], Input[Type],VLOOKUP($A$1,SearchTypes,2,FALSE)) -> 0 | C103: 0
A104: Non-Cash Capital Gifts | B104: =SUMIFS(Input[Non-Cash Cap E&G], Input[Type],VLOOKUP($A$1,SearchTypes,2,FALSE))+SUMIFS(Input[Non-Cash Cap Desg], Input[Type],VLOOKUP($A$1,SearchTypes,2,FALSE))+SUMIFS(Input[Non-Cash Cap Aux], Input[Type],VLOOKUP($A$1,SearchTypes,2,FALSE))+SUMIFS(Input[Non-Cash Cap R Exp], Input[Type],VLOOKUP($A$1,SearchTypes,2,FALSE))+SUMIFS(Input[Non-Cash Cap Loan], Input[Type],VLOOKUP($A$1,SearchTypes,2,FALSE))+SUMIFS(Input[Non-Cash Cap Annuity], Input[Type],VLOOKUP($A$1,SearchTypes,2,FALSE))+SUMIFS(Input[Non-Cash Cap Unexp], Input[Type],VLOOKUP($A$1,SearchTypes,2,FALSE))+SUMIFS(Input[Non-Cash Cap R of Ind], Input[Type],VLOOKUP($A$1,SearchTypes,2,FALSE))+SUMIFS(Input[Non-Cash Cap Inv in P], Input[Type],VLOOKUP($A$1,SearchTypes,2,FALSE)) -> 0 | C104: 0
A105: Capital Outlay | B105: =SUMIFS(Input[Cap Out E&G], Input[Type],VLOOKUP($A$1,SearchTypes,2,FALSE))+SUMIFS(Input[Cap Out Desg], Input[Type],VLOOKUP($A$1,SearchTypes,2,FALSE))+SUMIFS(Input[Cap Out Aux], Input[Type],VLOOKUP($A$1,SearchTypes,2,FALSE))+SUMIFS(Input[Cap Out R Exp], Input[Type],VLOOKUP($A$1,SearchTypes,2,FALSE))+SUMIFS(Input[Cap Out Loan], Input[Type],VLOOKUP($A$1,SearchTypes,2,FALSE))+SUMIFS(Input[Cap Out Annuity], Input[Type],VLOOKUP($A$1,SearchTypes,2,FALSE))+SUMIFS(Input[Cap Out Unexp], Input[Type],VLOOKUP($A$1,SearchTypes,2,FALSE))+SUMIFS(Input[Cap Out R of Ind], Input[Type],VLOOKUP($A$1,SearchTypes,2,FALSE))+SUMIFS(Input[Cap Out Inv in P], Input[Type],VLOOKUP($A$1,SearchTypes,2,FALSE)) -> 0 | C105: 0
A106: Change in Net Assets | B106: =SUM(B97,B100:B105) -> 0 | C106: =IFERROR(B106/$F$1,0) -> 0
A108: * Restricted Fund/Use

Sheet Summary (by System)
F1: =SUMIFS(Input[FTSE], Input[System],VLOOKUP($A$1,SearchSystems,2,FALSE)) -> 0 | G1: FTSE
A2: =IF(ISBLANK($A$1),"▲ Select system name from dropdown ▲","For the Year Ended August 31, 2023") -> ▲ Select system name from dropdown ▲ | F2: =SUMIFS(Input[FTFE], Input[System],VLOOKUP($A$1,SearchSystems,2,FALSE)) -> 0 | G2: Faculty FTE
A7: System Summary Worksheet
A8: Operating Sources | E8: Total Revenue by Operating Source Category
A9: State of Texas | B9: Summary | C9: Per FTSE | E9: Operating Sources | F9: Amount | G9: Percent
A10: State Appropriations | B10: =SUMIFS(Input[St. Ap. E & G], Input[System],VLOOKUP($A$1,SearchSystems,2,FALSE)) +SUMIFS(Input[St. Ap. Desg], Input[System],VLOOKUP($A$1,SearchSystems,2,FALSE)) +SUMIFS(Input[St. Ap. Aux], Input[System],VLOOKUP($A$1,SearchSystems,2,FALSE)) +SUMIFS(Input[St. Ap. R Exp], Input[System],VLOOKUP($A$1,SearchSystems,2,FALSE)) +SUMIFS(Input[St. Ap. Loan], Input[System],VLOOKUP($A$1,SearchSystems,2,FALSE)) +SUMIFS(Input[St. Ap. Annuity], Input[System],VLOOKUP($A$1,SearchSystems,2,FALSE)) +SUMIFS(Input[St. Ap. Unexp], Input[System],VLOOKUP($A$1,SearchSystems,2,FALSE)) +SUMIFS(Input[St. Ap. R of Ind], Input[System],VLOOKUP($A$1,SearchSystems,2,FALSE)) +SUMIFS(Input[St. Ap. Inv in P], Input[System],VLOOKUP($A$1,SearchSystems,2,FALSE)) -> 0 | C10: =IFERROR(B10/$F$1,0) -> 0 | E10: State of Texas | F10: =B14 -> 0 | G10: =IFERROR(F10/$F$14,0) -> 0
A11: State Grants and Contracts* | B11: =SUMIFS(Input[St. G&C - Rstr E&G], Input[System],VLOOKUP($A$1,SearchSystems,2,FALSE))+SUMIFS(Input[St. G&C - Rstr Desg], Input[System],VLOOKUP($A$1,SearchSystems,2,FALSE))+SUMIFS(Input[St. G&C - Rstr Aux], Input[System],VLOOKUP($A$1,SearchSystems,2,FALSE))+SUMIFS(Input[St. G&C - Rstr R Exp], Input[System],VLOOKUP($A$1,SearchSystems,2,FALSE))+SUMIFS(Input[St. G&C - Rstr Loan], Input[System],VLOOKUP($A$1,SearchSystems,2,FALSE))+SUMIFS(Input[St. G&C - Rstr Annuity], Input[System],VLOOKUP($A$1,SearchSystems,2,FALSE))+SUMIFS(Input[St. G&C - Rstr Unexp], Input[System],VLOOKUP($A$1,SearchSystems,2,FALSE))+SUMIFS(Input[St. G&C - Rstr R of Ind], Input[System],VLOOKUP($A$1,SearchSystems,2,FALSE))+SUMIFS(Input[St. G&C - Rstr Inv in P], Input[System],VLOOKUP($A$1,SearchSystems,2,FALSE)) -> 0 | C11: =IFERROR(B11/$F$1,0) -> 0 | E11: Student & Parent | F11: =B47 -> 0 | G11: =IFERROR(F11/$F$14,0) -> 0
A12: Higher Education Fund | B12: =SUMIFS(Input[HEF E&G], Input[System],VLOOKUP($A$1,SearchSystems,2,FALSE))+SUMIFS(Input[HEF Desg], Input[System],VLOOKUP($A$1,SearchSystems,2,FALSE))+SUMIFS(Input[HEF Aux], Input[System],VLOOKUP($A$1,SearchSystems,2,FALSE))+SUMIFS(Input[HEF R Exp], Input[System],VLOOKUP($A$1,SearchSystems,2,FALSE))+SUMIFS(Input[HEF Loan], Input[System],VLOOKUP($A$1,SearchSystems,2,FALSE))+SUMIFS(Input[HEF Annuity], Input[System],VLOOKUP($A$1,SearchSystems,2,FALSE))+SUMIFS(Input[HEF Unexp], Input[System],VLOOKUP($A$1,SearchSystems,2,FALSE))+SUMIFS(Input[HEF R of Ind], Input[System],VLOOKUP($A$1,SearchSystems,2,FALSE))+SUMIFS(Input[HEF Inv in P], Input[System],VLOOKUP($A$1,SearchSystems,2,FALSE)) -> 0 | C12: =IFERROR(B12/$F$1,0) -> 0 | E12: Federal | F12: =B50 -> 0 | G12: 0
A13: Available University Fund Excellence | B13: =SUMIFS(Input[Available E&G], Input[System],VLOOKUP($A$1,SearchSystems,2,FALSE))+SUMIFS(Input[Available Desg], Input[System],VLOOKUP($A$1,SearchSystems,2,FALSE))+SUMIFS(Input[Available Aux], Input[System],VLOOKUP($A$1,SearchSystems,2,FALSE))+SUMIFS(Input[Available R Exp], Input[System],VLOOKUP($A$1,SearchSystems,2,FALSE))+SUMIFS(Input[Available Loan], Input[System],VLOOKUP($A$1,SearchSystems,2,FALSE))+SUMIFS(Input[Available Annuity], Input[System],VLOOKUP($A$1,SearchSystems,2,FALSE))+SUMIFS(Input[Available Unexp], Input[System],VLOOKUP($A$1,SearchSystems,2,FALSE))+SUMIFS(Input[Available R of Ind], Input[System],VLOOKUP($A$1,SearchSystems,2,FALSE))+SUMIFS(Input[Available Inv in P], Input[System],VLOOKUP($A$1,SearchSystems,2,FALSE)) -> 0 | C13: =IFERROR(B13/$F$1,0) -> 0 | E13: Institutional | F13: =SUM(B53,B56,B65) -> 0 | G13: 0
A14: Subtotal | B14: =SUM(B10:B13) -> 0 | C14: =SUM(C10:C13) -> 0 | F14: =SUM(F10:F13) -> 0 | G14: =SUM(G10:G13) -> 0
A16: Student & Parent | B16: Summary | C16: Per FTSE
A17: Tuition Potential 100% | B17: =SUM(B23,B19:B22) -> 0 | C17: =IFERROR(B17/$F$1,0) -> 0
A18: Not Reported in AFR (Report as negative numbers) | E18: SRECNP Reconciliation of Net Tuition and Fees
A19: Waivers - Statutory | B19: =SUMIFS(Input[T. W. - Stat (NR AFR) E&G], Input[System],VLOOKUP($A$1,SearchSystems,2,FALSE))+SUMIFS(Input[T. W. - Stat (NR AFR) Desg], Input[System],VLOOKUP($A$1,SearchSystems,2,FALSE))+SUMIFS(Input[T. W. - Stat (NR AFR) Aux], Input[System],VLOOKUP($A$1,SearchSystems,2,FALSE))+SUMIFS(Input[T. W. - Stat (NR AFR) R Exp], Input[System],VLOOKUP($A$1,SearchSystems,2,FALSE))+SUMIFS(Input[T. W. - Stat (NR AFR) Loan], Input[System],VLOOKUP($A$1,SearchSystems,2,FALSE))+SUMIFS(Input[T. W. - Stat (NR AFR) Annuity], Input[System],VLOOKUP($A$1,SearchSystems,2,FALSE))+SUMIFS(Input[T. W. - Stat (NR AFR) Unexp], Input[System],VLOOKUP($A$1,SearchSystems,2,FALSE))+SUMIFS(Input[T. W. - Stat (NR AFR) R of Ind], Input[System],VLOOKUP($A$1,SearchSystems,2,FALSE))+SUMIFS(Input[T. W. - Stat (NR AFR) Inv in P], Input[System],VLOOKUP($A$1,SearchSystems,2,FALSE)) -> 0 | C19: =IFERROR(B19/$F$1,0) -> 0 | E19: Gross T&F | G19: =SUMIFS(Input[SRECNA T & F (Total Gross)], Input[System],VLOOKUP($A$1,SearchSystems,2,FALSE)) -> 0
A20: Waivers - Institutional | B20: =SUMIFS(Input[T. W. - Inst. (NR AFR) E&G], Input[System],VLOOKUP($A$1,SearchSystems,2,FALSE))+SUMIFS(Input[T. W. - Inst. (NR AFR) Desg], Input[System],VLOOKUP($A$1,SearchSystems,2,FALSE))+SUMIFS(Input[T. W. - Inst. (NR AFR) Aux], Input[System],VLOOKUP($A$1,SearchSystems,2,FALSE))+SUMIFS(Input[T. W. - Inst. (NR AFR) R Exp], Input[System],VLOOKUP($A$1,SearchSystems,2,FALSE))+SUMIFS(Input[T. W. - Inst. (NR AFR) Loan], Input[System],VLOOKUP($A$1,SearchSystems,2,FALSE))+SUMIFS(Input[T. W. - Inst. (NR AFR) Annuity], Input[System],VLOOKUP($A$1,SearchSystems,2,FALSE))+SUMIFS(Input[T. W. - Inst. (NR AFR) Unexp], Input[System],VLOOKUP($A$1,SearchSystems,2,FALSE))+SUMIFS(Input[T. W. - Inst. (NR AFR) R of Ind], Input[System],VLOOKUP($A$1,SearchSystems,2,FALSE))+SUMIFS(Input[T. W. - Inst. (NR AFR) Inv in P], Input[System],VLOOKUP($A$1,SearchSystems,2,FALSE)) -> 0 | C20: =IFERROR(B20/$F$1,0) -> 0 | E20: Discounts & Allowances | G20: =SUMIFS(Input[SRECNA R-AFR, W,Exp,Schl], Input[System],VLOOKUP($A$1,SearchSystems,2,FALSE)) -> 0
A21: Exemptions - Statutory | B21: =SUMIFS(Input[T. Exp. - Stat (NR AFR) E&G], Input[System],VLOOKUP($A$1,SearchSystems,2,FALSE))+SUMIFS(Input[T. Exp. - Stat (NR AFR) Desg], Input[System],VLOOKUP($A$1,SearchSystems,2,FALSE))+SUMIFS(Input[T. Exp. - Stat (NR AFR) Aux], Input[System],VLOOKUP($A$1,SearchSystems,2,FALSE))+SUMIFS(Input[T. Exp. - Stat (NR AFR) R Exp], Input[System],VLOOKUP($A$1,SearchSystems,2,FALSE))+SUMIFS(Input[T. Exp. - Stat (NR AFR) Loan], Input[System],VLOOKUP($A$1,SearchSystems,2,FALSE))+SUMIFS(Input[T. Exp. - Stat (NR AFR) Annuity], Input[System],VLOOKUP($A$1,SearchSystems,2,FALSE))+SUMIFS(Input[T. Exp. - Stat (NR AFR) Unexp], Input[System],VLOOKUP($A$1,SearchSystems,2,FALSE))+SUMIFS(Input[T. Exp. - Stat (NR AFR) R of Ind], Input[System],VLOOKUP($A$1,SearchSystems,2,FALSE))+SUMIFS(Input[T. Exp. - Stat (NR AFR) Inv in P], Input[System],VLOOKUP($A$1,SearchSystems,2,FALSE)) -> 0 | C21: =IFERROR(B21/$F$1,0) -> 0 | E21: Net Tuition & Fees | G21: =SUM(G19:G20) -> 0
A22: Exemptions - Institutional | B22: =SUMIFS(Input[T. Exp. - Inst. (NR AFR) E&G], Input[System],VLOOKUP($A$1,SearchSystems,2,FALSE))+SUMIFS(Input[T. Exp. - Inst. (NR AFR) Desg], Input[System],VLOOKUP($A$1,SearchSystems,2,FALSE))+SUMIFS(Input[T. Exp. - Inst. (NR AFR) Aux], Input[System],VLOOKUP($A$1,SearchSystems,2,FALSE))+SUMIFS(Input[T. Exp. - Inst. (NR AFR) R Exp], Input[System],VLOOKUP($A$1,SearchSystems,2,FALSE))+SUMIFS(Input[T. Exp. - Inst. (NR AFR) Loan], Input[System],VLOOKUP($A$1,SearchSystems,2,FALSE))+SUMIFS(Input[T. Exp. - Inst. (NR AFR) Annuity], Input[System],VLOOKUP($A$1,SearchSystems,2,FALSE))+SUMIFS(Input[T. Exp. - Inst. (NR AFR) Unexp], Input[System],VLOOKUP($A$1,SearchSystems,2,FALSE))+SUMIFS(Input[T. Exp. - Inst. (NR AFR) R of Ind], Input[System],VLOOKUP($A$1,SearchSystems,2,FALSE))+SUMIFS(Input[T. Exp. - Inst. (NR AFR) Inv in P], Input[System],VLOOKUP($A$1,SearchSystems,2,FALSE)) -> 0 | C22: =IFERROR(B22/$F$1,0) -> 0 | F22: =IF(G22<>0,"Out of Balance","Balanced") -> Balanced | G22: =G21-B47 -> 0
A23: Tuition - Gross - AFR Presentation | B23: =SUMIFS(Input[T. - Gross E&G], Input[System],VLOOKUP($A$1,SearchSystems,2,FALSE))+SUMIFS(Input[T. - Gross Desg], Input[System],VLOOKUP($A$1,SearchSystems,2,FALSE))+SUMIFS(Input[T. - Gross Aux], Input[System],VLOOKUP($A$1,SearchSystems,2,FALSE))+SUMIFS(Input[T. - Gross R Exp], Input[System],VLOOKUP($A$1,SearchSystems,2,FALSE))+SUMIFS(Input[T. - Gross Loan], Input[System],VLOOKUP($A$1,SearchSystems,2,FALSE))+SUMIFS(Input[T. - Gross Annuity], Input[System],VLOOKUP($A$1,SearchSystems,2,FALSE))+SUMIFS(Input[T. - Gross Unexp], Input[System],VLOOKUP($A$1,SearchSystems,2,FALSE))+SUMIFS(Input[T. - Gross R of Ind], Input[System],VLOOKUP($A$1,SearchSystems,2,FALSE))+SUMIFS(Input[T. - Gross Inv in P], Input[System],VLOOKUP($A$1,SearchSystems,2,FALSE)) -> 0 | C23: =IFERROR(B23/$F$1,0) -> 0
A24: Reported in AFR (Report as negative numbers)
A25: Waivers - Statutory | B25: =SUMIFS(Input[T. W. - Stat (R AFR) E&G], Input[System],VLOOKUP($A$1,SearchSystems,2,FALSE))+SUMIFS(Input[T. W. - Stat (R AFR) Desg], Input[System],VLOOKUP($A$1,SearchSystems,2,FALSE))+SUMIFS(Input[T. W. - Stat (R AFR) Aux], Input[System],VLOOKUP($A$1,SearchSystems,2,FALSE))+SUMIFS(Input[T. W. - Stat (R AFR) R Exp], Input[System],VLOOKUP($A$1,SearchSystems,2,FALSE))+SUMIFS(Input[T. W. - Stat (R AFR) Loan], Input[System],VLOOKUP($A$1,SearchSystems,2,FALSE))+SUMIFS(Input[T. W. - Stat (R AFR) Annuity], Input[System],VLOOKUP($A$1,SearchSystems,2,FALSE))+SUMIFS(Input[T. W. - Stat (R AFR) Unexp], Input[System],VLOOKUP($A$1,SearchSystems,2,FALSE))+SUMIFS(Input[T. W. - Stat (R AFR) R of Ind], Input[System],VLOOKUP($A$1,SearchSystems,2,FALSE))+SUMIFS(Input[T. W. - Stat (R AFR) Inv in P], Input[System],VLOOKUP($A$1,SearchSystems,2,FALSE)) -> 0 | C25: =IFERROR(B25/$F$1,0) -> 0 | I25: Top 5 Sources
A26: Waivers - Institutional | B26: =SUMIFS(Input[T. W. - Inst. (R AFR) E&G], Input[System],VLOOKUP($A$1,SearchSystems,2,FALSE))+SUMIFS(Input[T. W. - Inst. (R AFR) Desg], Input[System],VLOOKUP($A$1,SearchSystems,2,FALSE))+SUMIFS(Input[T. W. - Inst. (R AFR) Aux], Input[System],VLOOKUP($A$1,SearchSystems,2,FALSE))+SUMIFS(Input[T. W. - Inst. (R AFR) R Exp], Input[System],VLOOKUP($A$1,SearchSystems,2,FALSE))+SUMIFS(Input[T. W. - Inst. (R AFR) Loan], Input[System],VLOOKUP($A$1,SearchSystems,2,FALSE))+SUMIFS(Input[T. W. - Inst. (R AFR) Annuity], Input[System],VLOOKUP($A$1,SearchSystems,2,FALSE))+SUMIFS(Input[T. W. - Inst. (R AFR) Unexp], Input[System],VLOOKUP($A$1,SearchSystems,2,FALSE))+SUMIFS(Input[T. W. - Inst. (R AFR) R of Ind], Input[System],VLOOKUP($A$1,SearchSystems,2,FALSE))+SUMIFS(Input[T. W. - Inst. (R AFR) Inv in P], Input[System],VLOOKUP($A$1,SearchSystems,2,FALSE)) -> 0 | C26: 0 | E26: Operating Sources
A27: Exemptions - Statutory | B27: =SUMIFS(Input[T. Exp. - Stat (R AFR) E&G], Input[System],VLOOKUP($A$1,SearchSystems,2,FALSE))+SUMIFS(Input[T. Exp. - Stat (R AFR) Desg], Input[System],VLOOKUP($A$1,SearchSystems,2,FALSE))+SUMIFS(Input[T. Exp. - Stat (R AFR) Aux], Input[System],VLOOKUP($A$1,SearchSystems,2,FALSE))+SUMIFS(Input[T. Exp. - Stat (R AFR) R Exp], Input[System],VLOOKUP($A$1,SearchSystems,2,FALSE))+SUMIFS(Input[T. Exp. - Stat (R AFR) Loan], Input[System],VLOOKUP($A$1,SearchSystems,2,FALSE))+SUMIFS(Input[T. Exp. - Stat (R AFR) Annuity], Input[System],VLOOKUP($A$1,SearchSystems,2,FALSE))+SUMIFS(Input[T. Exp. - Stat (R AFR) Unexp], Input[System],VLOOKUP($A$1,SearchSystems,2,FALSE))+SUMIFS(Input[T. Exp. - Stat (R AFR) R of Ind], Input[System],VLOOKUP($A$1,SearchSystems,2,FALSE))+SUMIFS(Input[T. Exp. - Stat (R AFR) Inv in P], Input[System],VLOOKUP($A$1,SearchSystems,2,FALSE)) -> 0 | C27: 0 | E27: Source | F27: Amount | G27: Percent | I27: Source | J27: Amount
A28: Exemptions - Institutional | B28: =SUMIFS(Input[T. Exp. - Inst. (R AFR) E&G], Input[System],VLOOKUP($A$1,SearchSystems,2,FALSE))+SUMIFS(Input[T. Exp. - Inst. (R AFR) Desg], Input[System],VLOOKUP($A$1,SearchSystems,2,FALSE))+SUMIFS(Input[T. Exp. - Inst. (R AFR) Aux], Input[System],VLOOKUP($A$1,SearchSystems,2,FALSE))+SUMIFS(Input[T. Exp. - Inst. (R AFR) R Exp], Input[System],VLOOKUP($A$1,SearchSystems,2,FALSE))+SUMIFS(Input[T. Exp. - Inst. (R AFR) Loan], Input[System],VLOOKUP($A$1,SearchSystems,2,FALSE))+SUMIFS(Input[T. Exp. - Inst. (R AFR) Annuity], Input[System],VLOOKUP($A$1,SearchSystems,2,FALSE))+SUMIFS(Input[T. Exp. - Inst. (R AFR) Unexp], Input[System],VLOOKUP($A$1,SearchSystems,2,FALSE))+SUMIFS(Input[T. Exp. - Inst. (R AFR) R of Ind], Input[System],VLOOKUP($A$1,SearchSystems,2,FALSE))+SUMIFS(Input[T. Exp. - Inst. (R AFR) Inv in P], Input[System],VLOOKUP($A$1,SearchSystems,2,FALSE)) -> 0 | C28: 0 | E28: State Appropriations | F28: =B10 -> 0 | G28: =IFERROR(F28/$F$14,0) -> 0 | I28: =IF(ISBLANK(A1),"",INDEX(E28:E41,MATCH(LARGE(F28:F41,ROW(1:5)),F28:F41,0))) ->  | J28: =IFERROR(VLOOKUP(I28,$E$28:$F$41,2,FALSE),"") -> 
A29: All Other Scholarship Disc.& Allow. | B29: =SUMIFS(Input[T. Schlr E&G], Input[System],VLOOKUP($A$1,SearchSystems,2,FALSE))+SUMIFS(Input[T. Schlr Desg], Input[System],VLOOKUP($A$1,SearchSystems,2,FALSE))+SUMIFS(Input[T. Schlr Aux], Input[System],VLOOKUP($A$1,SearchSystems,2,FALSE))+SUMIFS(Input[T. Schlr R Exp], Input[System],VLOOKUP($A$1,SearchSystems,2,FALSE))+SUMIFS(Input[T. Schlr Loan], Input[System],VLOOKUP($A$1,SearchSystems,2,FALSE))+SUMIFS(Input[T. Schlr Annuity], Input[System],VLOOKUP($A$1,SearchSystems,2,FALSE))+SUMIFS(Input[T. Schlr Unexp], Input[System],VLOOKUP($A$1,SearchSystems,2,FALSE))+SUMIFS(Input[T. Schlr R of Ind], Input[System],VLOOKUP($A$1,SearchSystems,2,FALSE))+SUMIFS(Input[T. Schlr Inv in P], Input[System],VLOOKUP($A$1,SearchSystems,2,FALSE)) -> 0 | C29: 0 | E29: State Grants & Contracts | F29: =B11 -> 0 | G29: =IFERROR(F29/$F$14,0) -> 0 | J29: =IFERROR(VLOOKUP(I29,$E$28:$F$41,2,FALSE),"") -> 
A30: Net Tuition | B30: =SUM(B23,B25:B29) -> 0 | C30: 0 | E30: Higher Education Fund | F30: =B12 -> 0 | G30: 0 | J30: =IFERROR(VLOOKUP(I30,$E$28:$F$41,2,FALSE),"") -> 
E31: Available University Fund Excellence | F31: =B13 -> 0 | G31: 0 | J31: =IFERROR(VLOOKUP(I31,$E$28:$F$41,2,FALSE),"") -> 
A32: Fees Potential 100% | B32: =SUM(B38,B34:B37) -> 0 | C32: =IFERROR(B32/$F$1,0) -> 0 | E32: Tuition & Fees | F32: =B30+B45 -> 0 | G32: 0 | J32: =IFERROR(VLOOKUP(I32,$E$28:$F$41,2,FALSE),"") -> 
A33: Not Reported in AFR (Report as negative numbers) | E33: Federal Grants & Contracts | F33: =B50 -> 0 | G33: 0 | J33: =IFERROR(VLOOKUP(I33,$E$28:$G$41,2,FALSE),"") -> 
A34: Waivers - Statutory | B34: =SUMIFS(Input[F. W. - Stat (NR AFR) E&G], Input[System],VLOOKUP($A$1,SearchSystems,2,FALSE))+SUMIFS(Input[F. W. - Stat (NR AFR) Desg], Input[System],VLOOKUP($A$1,SearchSystems,2,FALSE))+SUMIFS(Input[F. W. - Stat (NR AFR) Aux], Input[System],VLOOKUP($A$1,SearchSystems,2,FALSE))+SUMIFS(Input[F. W. - Stat (NR AFR) R Exp], Input[System],VLOOKUP($A$1,SearchSystems,2,FALSE))+SUMIFS(Input[F. W. - Stat (NR AFR) Loan], Input[System],VLOOKUP($A$1,SearchSystems,2,FALSE))+SUMIFS(Input[F. W. - Stat (NR AFR) Annuity], Input[System],VLOOKUP($A$1,SearchSystems,2,FALSE))+SUMIFS(Input[F. W. - Stat (NR AFR) Unexp], Input[System],VLOOKUP($A$1,SearchSystems,2,FALSE))+SUMIFS(Input[F. W. - Stat (NR AFR) R of Ind], Input[System],VLOOKUP($A$1,SearchSystems,2,FALSE))+SUMIFS(Input[F. W. - Stat (NR AFR) Inv in P], Input[System],VLOOKUP($A$1,SearchSystems,2,FALSE)) -> 0 | C34: =IFERROR(B34/$F$1,0) -> 0 | E34: Professional Fees | F34: =IF($A$2<>"Health - Related Institutions",0,B53) -> 0 | G34: =IFERROR(F34/SUM($F$28:$F$41),0) -> 0 | I34: Top 5 Sources
A35: Waivers - Institutional | B35: =SUMIFS(Input[F. W. - Inst. (NR AFR) E&G], Input[System],VLOOKUP($A$1,SearchSystems,2,FALSE))+SUMIFS(Input[F. W. - Inst. (NR AFR) Desg], Input[System],VLOOKUP($A$1,SearchSystems,2,FALSE))+SUMIFS(Input[F. W. - Inst. (NR AFR) Aux], Input[System],VLOOKUP($A$1,SearchSystems,2,FALSE))+SUMIFS(Input[F. W. - Inst. (NR AFR) R Exp], Input[System],VLOOKUP($A$1,SearchSystems,2,FALSE))+SUMIFS(Input[F. W. - Inst. (NR AFR) Loan], Input[System],VLOOKUP($A$1,SearchSystems,2,FALSE))+SUMIFS(Input[F. W. - Inst. (NR AFR) Annuity], Input[System],VLOOKUP($A$1,SearchSystems,2,FALSE))+SUMIFS(Input[F. W. - Inst. (NR AFR) Unexp], Input[System],VLOOKUP($A$1,SearchSystems,2,FALSE))+SUMIFS(Input[F. W. - Inst. (NR AFR) R of Ind], Input[System],VLOOKUP($A$1,SearchSystems,2,FALSE))+SUMIFS(Input[F. W. - Inst. (NR AFR) Inv in P], Input[System],VLOOKUP($A$1,SearchSystems,2,FALSE)) -> 0 | C35: =IFERROR(B35/$F$1,0) -> 0 | E35: Hospitals and Clinics | F35: =IF($A$2<>"Health - Related Institutions",0,B56) -> 0 | G35: =IFERROR(F35/SUM($F$28:$F$41),0) -> 0
A36: Exemptions - Statutory | B36: =SUMIFS(Input[F. Exp. - Stat (NR AFR) E&G], Input[System],VLOOKUP($A$1,SearchSystems,2,FALSE))+SUMIFS(Input[F. Exp. - Stat (NR AFR) Desg], Input[System],VLOOKUP($A$1,SearchSystems,2,FALSE))+SUMIFS(Input[F. Exp. - Stat (NR AFR) Aux], Input[System],VLOOKUP($A$1,SearchSystems,2,FALSE))+SUMIFS(Input[F. Exp. - Stat (NR AFR) R Exp], Input[System],VLOOKUP($A$1,SearchSystems,2,FALSE))+SUMIFS(Input[F. Exp. - Stat (NR AFR) Loan], Input[System],VLOOKUP($A$1,SearchSystems,2,FALSE))+SUMIFS(Input[F. Exp. - Stat (NR AFR) Annuity], Input[System],VLOOKUP($A$1,SearchSystems,2,FALSE))+SUMIFS(Input[F. Exp. - Stat (NR AFR) Unexp], Input[System],VLOOKUP($A$1,SearchSystems,2,FALSE))+SUMIFS(Input[F. Exp. - Stat (NR AFR) R of Ind], Input[System],VLOOKUP($A$1,SearchSystems,2,FALSE))+SUMIFS(Input[F. Exp. - Stat (NR AFR) Inv in P], Input[System],VLOOKUP($A$1,SearchSystems,2,FALSE)) -> 0 | C36: =IFERROR(B36/$F$1,0) -> 0 | E36: Endowment & Interest Income | F36: =B59 -> 0 | G36: =IFERROR(F36/SUM($F$28:$F$41),0) -> 0
A37: Exemptions - Institutional | B37: =SUMIFS(Input[F. Exp. - Inst. (NR AFR) E&G], Input[System],VLOOKUP($A$1,SearchSystems,2,FALSE))+SUMIFS(Input[F. Exp. - Inst. (NR AFR) Desg], Input[System],VLOOKUP($A$1,SearchSystems,2,FALSE))+SUMIFS(Input[F. Exp. - Inst. (NR AFR) Aux], Input[System],VLOOKUP($A$1,SearchSystems,2,FALSE))+SUMIFS(Input[F. Exp. - Inst. (NR AFR) R Exp], Input[System],VLOOKUP($A$1,SearchSystems,2,FALSE))+SUMIFS(Input[F. Exp. - Inst. (NR AFR) Loan], Input[System],VLOOKUP($A$1,SearchSystems,2,FALSE))+SUMIFS(Input[F. Exp. - Inst. (NR AFR) Annuity], Input[System],VLOOKUP($A$1,SearchSystems,2,FALSE))+SUMIFS(Input[F. Exp. - Inst. (NR AFR) Unexp], Input[System],VLOOKUP($A$1,SearchSystems,2,FALSE))+SUMIFS(Input[F. Exp. - Inst. (NR AFR) R of Ind], Input[System],VLOOKUP($A$1,SearchSystems,2,FALSE))+SUMIFS(Input[F. Exp. - Inst. (NR AFR) Inv in P], Input[System],VLOOKUP($A$1,SearchSystems,2,FALSE)) -> 0 | C37: =IFERROR(B37/$F$1,0) -> 0 | E37: Local Government Grants | F37: 0 | G37: =IFERROR(F37/SUM($F$28:$F$41),0) -> 0
A38: Fees - Gross - AFR Presentation | B38: =SUMIFS(Input[Fees - Gross E&G], Input[System],VLOOKUP($A$1,SearchSystems,2,FALSE))+SUMIFS(Input[Fees - Gross Desg], Input[System],VLOOKUP($A$1,SearchSystems,2,FALSE))+SUMIFS(Input[Fees - Gross Aux], Input[System],VLOOKUP($A$1,SearchSystems,2,FALSE))+SUMIFS(Input[Fees - Gross R Exp], Input[System],VLOOKUP($A$1,SearchSystems,2,FALSE))+SUMIFS(Input[Fees - Gross Loan], Input[System],VLOOKUP($A$1,SearchSystems,2,FALSE))+SUMIFS(Input[Fees - Gross Annuity], Input[System],VLOOKUP($A$1,SearchSystems,2,FALSE))+SUMIFS(Input[Fees - Gross Unexp], Input[System],VLOOKUP($A$1,SearchSystems,2,FALSE))+SUMIFS(Input[Fees - Gross R of Ind], Input[System],VLOOKUP($A$1,SearchSystems,2,FALSE))+SUMIFS(Input[Fees - Gross Inv in P], Input[System],VLOOKUP($A$1,SearchSystems,2,FALSE)) -> 0 | C38: =IFERROR(B38/$F$1,0) -> 0 | E38: Private Gifts & Grants | F38: 0 | G38: 0
A39: Reported in AFR (Report as negative numbers) | E39: Sales & Services | F39: 0 | G39: 0
A40: Waivers - Statutory | B40: =SUMIFS(Input[F. W. - Stat (R AFR) E&G], Input[System],VLOOKUP($A$1,SearchSystems,2,FALSE))+SUMIFS(Input[F. W. - Stat (R AFR) Desg], Input[System],VLOOKUP($A$1,SearchSystems,2,FALSE))+SUMIFS(Input[F. W. - Stat (R AFR) Aux], Input[System],VLOOKUP($A$1,SearchSystems,2,FALSE))+SUMIFS(Input[F. W. - Stat (R AFR) R Exp], Input[System],VLOOKUP($A$1,SearchSystems,2,FALSE))+SUMIFS(Input[F. W. - Stat (R AFR) Loan], Input[System],VLOOKUP($A$1,SearchSystems,2,FALSE))+SUMIFS(Input[F. W. - Stat (R AFR) Annuity], Input[System],VLOOKUP($A$1,SearchSystems,2,FALSE))+SUMIFS(Input[F. W. - Stat (R AFR) Unexp], Input[System],VLOOKUP($A$1,SearchSystems,2,FALSE))+SUMIFS(Input[F. W. - Stat (R AFR) R of Ind], Input[System],VLOOKUP($A$1,SearchSystems,2,FALSE))+SUMIFS(Input[F. W. - Stat (R AFR) Inv in P], Input[System],VLOOKUP($A$1,SearchSystems,2,FALSE)) -> 0 | C40: =IFERROR(B40/$F$1,0) -> 0 | E40: Net Auxiliary Enterprises | F40: 0 | G40: 0
A41: Waivers - Institutional | B41: =SUMIFS(Input[F. W. - Inst. (R AFR) E&G], Input[System],VLOOKUP($A$1,SearchSystems,2,FALSE))+SUMIFS(Input[F. W. - Inst. (R AFR) Desg], Input[System],VLOOKUP($A$1,SearchSystems,2,FALSE))+SUMIFS(Input[F. W. - Inst. (R AFR) Aux], Input[System],VLOOKUP($A$1,SearchSystems,2,FALSE))+SUMIFS(Input[F. W. - Inst. (R AFR) R Exp], Input[System],VLOOKUP($A$1,SearchSystems,2,FALSE))+SUMIFS(Input[F. W. - Inst. (R AFR) Loan], Input[System],VLOOKUP($A$1,SearchSystems,2,FALSE))+SUMIFS(Input[F. W. - Inst. (R AFR) Annuity], Input[System],VLOOKUP($A$1,SearchSystems,2,FALSE))+SUMIFS(Input[F. W. - Inst. (R AFR) Unexp], Input[System],VLOOKUP($A$1,SearchSystems,2,FALSE))+SUMIFS(Input[F. W. - Inst. (R AFR) R of Ind], Input[System],VLOOKUP($A$1,SearchSystems,2,FALSE))+SUMIFS(Input[F. W. - Inst. (R AFR) Inv in P], Input[System],VLOOKUP($A$1,SearchSystems,2,FALSE)) -> 0 | C41: 0 | E41: Other Income | F41: 0 | G41: 0 | J41: =IFERROR(VLOOKUP(I41,$E$28:$G$41,2,FALSE),"") -> 
A42: Exemptions - Statutory | B42: =SUMIFS(Input[F. Exp. - Stat (R AFR) E&G], Input[System],VLOOKUP($A$1,SearchSystems,2,FALSE))+SUMIFS(Input[F. Exp. - Stat (R AFR) Desg], Input[System],VLOOKUP($A$1,SearchSystems,2,FALSE))+SUMIFS(Input[F. Exp. - Stat (R AFR) Aux], Input[System],VLOOKUP($A$1,SearchSystems,2,FALSE))+SUMIFS(Input[F. Exp. - Stat (R AFR) R Exp], Input[System],VLOOKUP($A$1,SearchSystems,2,FALSE))+SUMIFS(Input[F. Exp. - Stat (R AFR) Loan], Input[System],VLOOKUP($A$1,SearchSystems,2,FALSE))+SUMIFS(Input[F. Exp. - Stat (R AFR) Annuity], Input[System],VLOOKUP($A$1,SearchSystems,2,FALSE))+SUMIFS(Input[F. Exp. - Stat (R AFR) Unexp], Input[System],VLOOKUP($A$1,SearchSystems,2,FALSE))+SUMIFS(Input[F. Exp. - Stat (R AFR) R of Ind], Input[System],VLOOKUP($A$1,SearchSystems,2,FALSE))+SUMIFS(Input[F. Exp. - Stat (R AFR) Inv in P], Input[System],VLOOKUP($A$1,SearchSystems,2,FALSE)) -> 0 | C42: 0
A43: Exemptions - Institutional | B43: =SUMIFS(Input[F. Exp. - Inst. (R AFR) E&G], Input[System],VLOOKUP($A$1,SearchSystems,2,FALSE))+SUMIFS(Input[F. Exp. - Inst. (R AFR) Desg], Input[System],VLOOKUP($A$1,SearchSystems,2,FALSE))+SUMIFS(Input[F. Exp. - Inst. (R AFR) Aux], Input[System],VLOOKUP($A$1,SearchSystems,2,FALSE))+SUMIFS(Input[F. Exp. - Inst. (R AFR) R Exp], Input[System],VLOOKUP($A$1,SearchSystems,2,FALSE))+SUMIFS(Input[F. Exp. - Inst. (R AFR) Loan], Input[System],VLOOKUP($A$1,SearchSystems,2,FALSE))+SUMIFS(Input[F. Exp. - Inst. (R AFR) Annuity], Input[System],VLOOKUP($A$1,SearchSystems,2,FALSE))+SUMIFS(Input[F. Exp. - Inst. (R AFR) Unexp], Input[System],VLOOKUP($A$1,SearchSystems,2,FALSE))+SUMIFS(Input[F. Exp. - Inst. (R AFR) R of Ind], Input[System],VLOOKUP($A$1,SearchSystems,2,FALSE))+SUMIFS(Input[F. Exp. - Inst. (R AFR) Inv in P], Input[System],VLOOKUP($A$1,SearchSystems,2,FALSE)) -> 0 | C43: 0
A44: All Other Scholarship Disc.& Allow. | B44: =SUMIFS(Input[Fee Schlr E&G], Input[System],VLOOKUP($A$1,SearchSystems,2,FALSE))+SUMIFS(Input[Fee Schlr Desg], Input[System],VLOOKUP($A$1,SearchSystems,2,FALSE))+SUMIFS(Input[Fee Schlr Aux], Input[System],VLOOKUP($A$1,SearchSystems,2,FALSE))+SUMIFS(Input[Fee Schlr R Exp], Input[System],VLOOKUP($A$1,SearchSystems,2,FALSE))+SUMIFS(Input[Fee Schlr Loan], Input[System],VLOOKUP($A$1,SearchSystems,2,FALSE))+SUMIFS(Input[Fee Schlr Annuity], Input[System],VLOOKUP($A$1,SearchSystems,2,FALSE))+SUMIFS(Input[Fee Schlr Unexp], Input[System],VLOOKUP($A$1,SearchSystems,2,FALSE))+SUMIFS(Input[Fee Schlr R of Ind], Input[System],VLOOKUP($A$1,SearchSystems,2,FALSE))+SUMIFS(Input[Fee Schlr Inv in P], Input[System],VLOOKUP($A$1,SearchSystems,2,FALSE)) -> 0 | C44: 0
A45: Net Fees | B45: =SUM(B38,B40:B44) -> 0 | C45: 0
A47: Net Tuition and Fees (Funds Collected) | B47: =B30+B45 -> 0 | C47: =IFERROR(B47/$F$1,0) -> 0
A49: Federal Government | B49: Summary | C49: Per FTSE
A50: Federal Grants and Contracts* | B50: =SUMIFS(Input[Fed G&C - Rest E&G], Input[System],VLOOKUP($A$1,SearchSystems,2,FALSE))+SUMIFS(Input[Fed G&C - Rest Desg], Input[System],VLOOKUP($A$1,SearchSystems,2,FALSE))+SUMIFS(Input[Fed G&C - Rest Aux], Input[System],VLOOKUP($A$1,SearchSystems,2,FALSE))+SUMIFS(Input[Fed G&C - Rest R Exp], Input[System],VLOOKUP($A$1,SearchSystems,2,FALSE))+SUMIFS(Input[Fed G&C - Rest Loan], Input[System],VLOOKUP($A$1,SearchSystems,2,FALSE))+SUMIFS(Input[Fed G&C - Rest Annuity], Input[System],VLOOKUP($A$1,SearchSystems,2,FALSE))+SUMIFS(Input[Fed G&C - Rest Unexp], Input[System],VLOOKUP($A$1,SearchSystems,2,FALSE))+SUMIFS(Input[Fed G&C - Rest R of Ind], Input[System],VLOOKUP($A$1,SearchSystems,2,FALSE))+SUMIFS(Input[Fed G&C - Rest Inv in P], Input[System],VLOOKUP($A$1,SearchSystems,2,FALSE)) -> 0 | C50: =IFERROR(B50/$F$1,0) -> 0
A52: Professional Fees | B52: Summary | C52: Per FTSE
A53: All Sources (Net) | B53: =SUMIFS(Input[Professional Fees E&G], Input[System],VLOOKUP($A$1,SearchSystems,2,FALSE)) +SUMIFS(Input[Professional Fees Desg], Input[System],VLOOKUP($A$1,SearchSystems,2,FALSE)) +SUMIFS(Input[Professional Fees Aux], Input[System],VLOOKUP($A$1,SearchSystems,2,FALSE)) +SUMIFS(Input[Professional Fees R Exp], Input[System],VLOOKUP($A$1,SearchSystems,2,FALSE)) +SUMIFS(Input[Professional Fees Loan], Input[System],VLOOKUP($A$1,SearchSystems,2,FALSE)) +SUMIFS(Input[Professional Fees Annuity], Input[System],VLOOKUP($A$1,SearchSystems,2,FALSE)) +SUMIFS(Input[Professional Fees Unexp], Input[System],VLOOKUP($A$1,SearchSystems,2,FALSE)) +SUMIFS(Input[Professional Fees R of Ind], Input[System],VLOOKUP($A$1,SearchSystems,2,FALSE)) +SUMIFS(Input[Professional Fees Inv in P], Input[System],VLOOKUP($A$1,SearchSystems,2,FALSE)) -> 0 | C53: =IFERROR(B53/$F$1,0) -> 0
A55: Hospitals and Clinics | B55: Summary | C55: Per FTSE
A56: All Sources (Net) | B56: =SUMIFS(Input[H&C E&G], Input[System],VLOOKUP($A$1,SearchSystems,2,FALSE)) +SUMIFS(Input[H&C Desg], Input[System],VLOOKUP($A$1,SearchSystems,2,FALSE)) +SUMIFS(Input[H&C Aux], Input[System],VLOOKUP($A$1,SearchSystems,2,FALSE)) +SUMIFS(Input[H&C R Exp], Input[System],VLOOKUP($A$1,SearchSystems,2,FALSE)) +SUMIFS(Input[H&C Loan], Input[System],VLOOKUP($A$1,SearchSystems,2,FALSE)) +SUMIFS(Input[H&C Annuity], Input[System],VLOOKUP($A$1,SearchSystems,2,FALSE)) +SUMIFS(Input[H&C Unexp], Input[System],VLOOKUP($A$1,SearchSystems,2,FALSE)) +SUMIFS(Input[H&C R of Ind], Input[System],VLOOKUP($A$1,SearchSystems,2,FALSE)) +SUMIFS(Input[H&C Inv in P], Input[System],VLOOKUP($A$1,SearchSystems,2,FALSE)) -> 0 | C56: =IFERROR(B56/$F$1,0) -> 0
A58: Institutional Resources | B58: Summary
A59: Endowment and Interest Income | B59: =SUMIFS(Input[End & Int Inc E&G], Input[System],VLOOKUP($A$1,SearchSystems,2,FALSE))+SUMIFS(Input[End & Int Inc Desg], Input[System],VLOOKUP($A$1,SearchSystems,2,FALSE))+SUMIFS(Input[End & Int Inc Aux], Input[System],VLOOKUP($A$1,SearchSystems,2,FALSE))+SUMIFS(Input[End & Int Inc R Exp], Input[System],VLOOKUP($A$1,SearchSystems,2,FALSE))+SUMIFS(Input[End & Int Inc Loan], Input[System],VLOOKUP($A$1,SearchSystems,2,FALSE))+SUMIFS(Input[End & Int Inc Annuity], Input[System],VLOOKUP($A$1,SearchSystems,2,FALSE))+SUMIFS(Input[End & Int Inc Unexp], Input[System],VLOOKUP($A$1,SearchSystems,2,FALSE))+SUMIFS(Input[End & Int Inc R of Ind], Input[System],VLOOKUP($A$1,SearchSystems,2,FALSE))+SUMIFS(Input[End & Int Inc Inv in P], Input[System],VLOOKUP($A$1,SearchSystems,2,FALSE)) -> 0 | C59: =IFERROR(B59/$F$1,0) -> 0
A60: Local Government Grants* | B60: =SUMIFS(Input[Loc Gov G - Rest E&G], Input[System],VLOOKUP($A$1,SearchSystems,2,FALSE))+SUMIFS(Input[Loc Gov G - Rest Desg], Input[System],VLOOKUP($A$1,SearchSystems,2,FALSE))+SUMIFS(Input[Loc Gov G - Rest Aux], Input[System],VLOOKUP($A$1,SearchSystems,2,FALSE))+SUMIFS(Input[Loc Gov G - Rest R Exp], Input[System],VLOOKUP($A$1,SearchSystems,2,FALSE))+SUMIFS(Input[Loc Gov G - Rest Loan], Input[System],VLOOKUP($A$1,SearchSystems,2,FALSE))+SUMIFS(Input[Loc Gov G - Rest Annuity], Input[System],VLOOKUP($A$1,SearchSystems,2,FALSE))+SUMIFS(Input[Loc Gov G - Rest Unexp], Input[System],VLOOKUP($A$1,SearchSystems,2,FALSE))+SUMIFS(Input[Loc Gov G - Rest R of Ind], Input[System],VLOOKUP($A$1,SearchSystems,2,FALSE))+SUMIFS(Input[Loc Gov G - Rest Inv in P], Input[System],VLOOKUP($A$1,SearchSystems,2,FALSE)) -> 0 | C60: 0
A61: Private Gifts and Grants* | B61: =SUMIFS(Input[Pvt G&G - Rest E&G], Input[System],VLOOKUP($A$1,SearchSystems,2,FALSE))+SUMIFS(Input[Pvt G&G - Rest Desg], Input[System],VLOOKUP($A$1,SearchSystems,2,FALSE))+SUMIFS(Input[Pvt G&G - Rest Aux], Input[System],VLOOKUP($A$1,SearchSystems,2,FALSE))+SUMIFS(Input[Pvt G&G - Rest R Exp], Input[System],VLOOKUP($A$1,SearchSystems,2,FALSE))+SUMIFS(Input[Pvt G&G - Rest Loan], Input[System],VLOOKUP($A$1,SearchSystems,2,FALSE))+SUMIFS(Input[Pvt G&G - Rest Annuity], Input[System],VLOOKUP($A$1,SearchSystems,2,FALSE))+SUMIFS(Input[Pvt G&G - Rest Unexp], Input[System],VLOOKUP($A$1,SearchSystems,2,FALSE))+SUMIFS(Input[Pvt G&G - Rest R of Ind], Input[System],VLOOKUP($A$1,SearchSystems,2,FALSE))+SUMIFS(Input[Pvt G&G - Rest Inv in P], Input[System],VLOOKUP($A$1,SearchSystems,2,FALSE)) -> 0 | C61: 0
A62: Sales and Services | B62: =SUMIFS(Input[S&S E&G], Input[System],VLOOKUP($A$1,SearchSystems,2,FALSE))+SUMIFS(Input[S&S Desg], Input[System],VLOOKUP($A$1,SearchSystems,2,FALSE))+SUMIFS(Input[S&S Aux], Input[System],VLOOKUP($A$1,SearchSystems,2,FALSE))+SUMIFS(Input[S&S R Exp], Input[System],VLOOKUP($A$1,SearchSystems,2,FALSE))+SUMIFS(Input[S&S Loan], Input[System],VLOOKUP($A$1,SearchSystems,2,FALSE))+SUMIFS(Input[S&S Annuity], Input[System],VLOOKUP($A$1,SearchSystems,2,FALSE))+SUMIFS(Input[S&S Unexp], Input[System],VLOOKUP($A$1,SearchSystems,2,FALSE))+SUMIFS(Input[S&S R of Ind], Input[System],VLOOKUP($A$1,SearchSystems,2,FALSE))+SUMIFS(Input[S&S Inv in P], Input[System],VLOOKUP($A$1,SearchSystems,2,FALSE)) -> 0 | C62: 0
A63: Net Auxiliary Enterprises | B63: =SUMIFS(Input[Net Aux Ent E&G], Input[System],VLOOKUP($A$1,SearchSystems,2,FALSE))+SUMIFS(Input[Net Aux Ent Desg], Input[System],VLOOKUP($A$1,SearchSystems,2,FALSE))+SUMIFS(Input[Net Aux Ent Aux], Input[System],VLOOKUP($A$1,SearchSystems,2,FALSE))+SUMIFS(Input[Net Aux Ent R Exp], Input[System],VLOOKUP($A$1,SearchSystems,2,FALSE))+SUMIFS(Input[Net Aux Ent Loan], Input[System],VLOOKUP($A$1,SearchSystems,2,FALSE))+SUMIFS(Input[Net Aux Ent Annuity], Input[System],VLOOKUP($A$1,SearchSystems,2,FALSE))+SUMIFS(Input[Net Aux Ent Unexp], Input[System],VLOOKUP($A$1,SearchSystems,2,FALSE))+SUMIFS(Input[Net Aux Ent R of Ind], Input[System],VLOOKUP($A$1,SearchSystems,2,FALSE))+SUMIFS(Input[Net Aux Ent Inv in P], Input[System],VLOOKUP($A$1,SearchSystems,2,FALSE)) -> 0 | C63: 0
A64: Other Income | B64: =SUMIFS(Input[Oth Inc E&G], Input[System],VLOOKUP($A$1,SearchSystems,2,FALSE))+SUMIFS(Input[Oth Inc Desg], Input[System],VLOOKUP($A$1,SearchSystems,2,FALSE))+SUMIFS(Input[Oth Inc Aux], Input[System],VLOOKUP($A$1,SearchSystems,2,FALSE))+SUMIFS(Input[Oth Inc R Exp], Input[System],VLOOKUP($A$1,SearchSystems,2,FALSE))+SUMIFS(Input[Oth Inc Loan], Input[System],VLOOKUP($A$1,SearchSystems,2,FALSE))+SUMIFS(Input[Oth Inc Annuity], Input[System],VLOOKUP($A$1,SearchSystems,2,FALSE))+SUMIFS(Input[Oth Inc Unexp], Input[System],VLOOKUP($A$1,SearchSystems,2,FALSE))+SUMIFS(Input[Oth Inc R of Ind], Input[System],VLOOKUP($A$1,SearchSystems,2,FALSE))+SUMIFS(Input[Oth Inc Inv in P], Input[System],VLOOKUP($A$1,SearchSystems,2,FALSE)) -> 0 | C64: 0
A65: Subtotal | B65: =SUM(B59:B64) -> 0 | C65: 0
A67: Total Operating Sources | B67: =SUM(B14,B30,B45,B50,B53,B56,B65) -> 0 | C67: =IFERROR(B67/$F$1,0) -> 0
I68: Top 5 Functions
A69: Operating Uses
A70: Function | B70: Summary | C70: Per FTSE | E70: SRECNP Reconciliation | I70: Source | J70: Amount
A71: Instruction | B71: =SUMIFS(Input[Instr E&G], Input[System],VLOOKUP($A$1,SearchSystems,2,FALSE))+SUMIFS(Input[Instr Desg], Input[System],VLOOKUP($A$1,SearchSystems,2,FALSE))+SUMIFS(Input[Instr Aux], Input[System],VLOOKUP($A$1,SearchSystems,2,FALSE))+SUMIFS(Input[Instr R Exp], Input[System],VLOOKUP($A$1,SearchSystems,2,FALSE))+SUMIFS(Input[Instr Loan], Input[System],VLOOKUP($A$1,SearchSystems,2,FALSE))+SUMIFS(Input[Instr Annuity], Input[System],VLOOKUP($A$1,SearchSystems,2,FALSE))+SUMIFS(Input[Instr Unexp], Input[System],VLOOKUP($A$1,SearchSystems,2,FALSE))+SUMIFS(Input[Instr R of Ind], Input[System],VLOOKUP($A$1,SearchSystems,2,FALSE))+SUMIFS(Input[Instr Inv in P], Input[System],VLOOKUP($A$1,SearchSystems,2,FALSE)) -> 0 | C71: =IFERROR(B71/$F$1,0) -> 0 | E71: Instruction | G71: =SUMIFS(Input[SRECNA Inst.], Input[System],VLOOKUP($A$1,SearchSystems,2,FALSE)) -> 0 | I71: =IF(ISBLANK(A1),"",INDEX(E71:E80,MATCH(LARGE(G71:G80,ROW(1:5)),G71:G80,0))) ->  | J71: =IFERROR(VLOOKUP(I71,$E$71:$G$80,3,FALSE),"") -> 
A72: Research | B72: =SUMIFS(Input[Res E&G], Input[System],VLOOKUP($A$1,SearchSystems,2,FALSE))+SUMIFS(Input[Res Desg], Input[System],VLOOKUP($A$1,SearchSystems,2,FALSE))+SUMIFS(Input[Res Aux], Input[System],VLOOKUP($A$1,SearchSystems,2,FALSE))+SUMIFS(Input[Res R Exp], Input[System],VLOOKUP($A$1,SearchSystems,2,FALSE))+SUMIFS(Input[Res Loan], Input[System],VLOOKUP($A$1,SearchSystems,2,FALSE))+SUMIFS(Input[Res Annuity], Input[System],VLOOKUP($A$1,SearchSystems,2,FALSE))+SUMIFS(Input[Res Unexp], Input[System],VLOOKUP($A$1,SearchSystems,2,FALSE))+SUMIFS(Input[Res R of Ind], Input[System],VLOOKUP($A$1,SearchSystems,2,FALSE))+SUMIFS(Input[Res Inv in P], Input[System],VLOOKUP($A$1,SearchSystems,2,FALSE)) -> 0 | C72: 0 | E72: Research | G72: =SUMIFS(Input[SRECNA Resh], Input[System],VLOOKUP($A$1,SearchSystems,2,FALSE)) -> 0 | J72: =IFERROR(VLOOKUP(I72,$E$71:$G$80,3,FALSE),"") -> 
A73: Public Service | B73: =SUMIFS(Input[Pub Srv E&G], Input[System],VLOOKUP($A$1,SearchSystems,2,FALSE))+SUMIFS(Input[Pub Srv Desg], Input[System],VLOOKUP($A$1,SearchSystems,2,FALSE))+SUMIFS(Input[Pub Srv Aux], Input[System],VLOOKUP($A$1,SearchSystems,2,FALSE))+SUMIFS(Input[Pub Srv R Exp], Input[System],VLOOKUP($A$1,SearchSystems,2,FALSE))+SUMIFS(Input[Pub Srv Loan], Input[System],VLOOKUP($A$1,SearchSystems,2,FALSE))+SUMIFS(Input[Pub Srv Annuity], Input[System],VLOOKUP($A$1,SearchSystems,2,FALSE))+SUMIFS(Input[Pub Srv Unexp], Input[System],VLOOKUP($A$1,SearchSystems,2,FALSE))+SUMIFS(Input[Pub Srv R of Ind], Input[System],VLOOKUP($A$1,SearchSystems,2,FALSE))+SUMIFS(Input[Pub Srv Inv in P], Input[System],VLOOKUP($A$1,SearchSystems,2,FALSE)) -> 0 | C73: 0 | E73: Public Service | G73: =SUMIFS(Input[SRECNA Pub Svc], Input[System],VLOOKUP($A$1,SearchSystems,2,FALSE)) -> 0
A74: Hospitals and Clinics | B74: =IF($A$74="Hospitals and Clinics - Not Applicable", "",SUMIFS(Input[H&C (OU) E&G], Input[System],VLOOKUP($A$1,SearchSystems,2,FALSE))+SUMIFS(Input[H&C (OU) Desg], Input[System],VLOOKUP($A$1,SearchSystems,2,FALSE))+SUMIFS(Input[H&C (OU) Aux], Input[System],VLOOKUP($A$1,SearchSystems,2,FALSE))+SUMIFS(Input[H&C (OU) R Exp], Input[System],VLOOKUP($A$1,SearchSystems,2,FALSE))+SUMIFS(Input[H&C (OU) Loan], Input[System],VLOOKUP($A$1,SearchSystems,2,FALSE))+SUMIFS(Input[H&C (OU) Annuity], Input[System],VLOOKUP($A$1,SearchSystems,2,FALSE))+SUMIFS(Input[H&C (OU) Unexp], Input[System],VLOOKUP($A$1,SearchSystems,2,FALSE))+SUMIFS(Input[H&C (OU) R of Ind], Input[System],VLOOKUP($A$1,SearchSystems,2,FALSE))+SUMIFS(Input[H&C (OU) Inv in P], Input[System],VLOOKUP($A$1,SearchSystems,2,FALSE))) -> 0 | C74: 0 | E74: Hospitals and Clinics | G74: =IF($A$2<>"Health - Related Institutions",0,SUMIFS(Input[SRECNA H&C], Input[System],VLOOKUP($A$1,SearchSystems,2,FALSE))) -> 0
A75: Academic Support | B75: =SUMIFS(Input[Acad Sup E&G], Input[System],VLOOKUP($A$1,SearchSystems,2,FALSE))+SUMIFS(Input[Acad Sup Desg], Input[System],VLOOKUP($A$1,SearchSystems,2,FALSE))+SUMIFS(Input[Acad Sup Aux], Input[System],VLOOKUP($A$1,SearchSystems,2,FALSE))+SUMIFS(Input[Acad Sup R Exp], Input[System],VLOOKUP($A$1,SearchSystems,2,FALSE))+SUMIFS(Input[Acad Sup Loan], Input[System],VLOOKUP($A$1,SearchSystems,2,FALSE))+SUMIFS(Input[Acad Sup Annuity], Input[System],VLOOKUP($A$1,SearchSystems,2,FALSE))+SUMIFS(Input[Acad Sup Unexp], Input[System],VLOOKUP($A$1,SearchSystems,2,FALSE))+SUMIFS(Input[Acad Sup R of Ind], Input[System],VLOOKUP($A$1,SearchSystems,2,FALSE))+SUMIFS(Input[Acad Sup Inv in P], Input[System],VLOOKUP($A$1,SearchSystems,2,FALSE)) -> 0 | C75: 0 | E75: Academic Support | G75: =SUMIFS(Input[SRECNA Aca Sppt], Input[System],VLOOKUP($A$1,SearchSystems,2,FALSE)) -> 0
A76: Student Services | B76: =SUMIFS(Input[Stu Svc E&G], Input[System],VLOOKUP($A$1,SearchSystems,2,FALSE))+SUMIFS(Input[Stu Svc Desg], Input[System],VLOOKUP($A$1,SearchSystems,2,FALSE))+SUMIFS(Input[Stu Svc Aux], Input[System],VLOOKUP($A$1,SearchSystems,2,FALSE))+SUMIFS(Input[Stu Svc R Exp], Input[System],VLOOKUP($A$1,SearchSystems,2,FALSE))+SUMIFS(Input[Stu Svc Loan], Input[System],VLOOKUP($A$1,SearchSystems,2,FALSE))+SUMIFS(Input[Stu Svc Annuity], Input[System],VLOOKUP($A$1,SearchSystems,2,FALSE))+SUMIFS(Input[Stu Svc Unexp], Input[System],VLOOKUP($A$1,SearchSystems,2,FALSE))+SUMIFS(Input[Stu Svc R of Ind], Input[System],VLOOKUP($A$1,SearchSystems,2,FALSE))+SUMIFS(Input[Stu Svc Inv in P], Input[System],VLOOKUP($A$1,SearchSystems,2,FALSE)) -> 0 | C76: 0 | E76: Student Services | G76: =SUMIFS(Input[SRECNA Stu Svcs], Input[System],VLOOKUP($A$1,SearchSystems,2,FALSE)) -> 0 | J76: =IFERROR(VLOOKUP(I76,$E$28:$G$41,2,FALSE),"") -> 
A77: Institutional Support | B77: =SUMIFS(Input[Inst. Spt E&G], Input[System],VLOOKUP($A$1,SearchSystems,2,FALSE))+SUMIFS(Input[Inst. Spt Desg], Input[System],VLOOKUP($A$1,SearchSystems,2,FALSE))+SUMIFS(Input[Inst. Spt Aux], Input[System],VLOOKUP($A$1,SearchSystems,2,FALSE))+SUMIFS(Input[Inst. Spt R Exp], Input[System],VLOOKUP($A$1,SearchSystems,2,FALSE))+SUMIFS(Input[Inst. Spt Loan], Input[System],VLOOKUP($A$1,SearchSystems,2,FALSE))+SUMIFS(Input[Inst. Spt Annuity], Input[System],VLOOKUP($A$1,SearchSystems,2,FALSE))+SUMIFS(Input[Inst. Spt Unexp], Input[System],VLOOKUP($A$1,SearchSystems,2,FALSE))+SUMIFS(Input[Inst. Spt R of Ind], Input[System],VLOOKUP($A$1,SearchSystems,2,FALSE))+SUMIFS(Input[Inst. Spt Inv in P], Input[System],VLOOKUP($A$1,SearchSystems,2,FALSE)) -> 0 | C77: 0 | E77: Institutional Support | G77: =SUMIFS(Input[SRECNA Inst. Sppt], Input[System],VLOOKUP($A$1,SearchSystems,2,FALSE)) -> 0 | I77: Top 5 Functions
A78: Operations & Maintenance of Plant | B78: =SUMIFS(Input[M&O Plnt E&G], Input[System],VLOOKUP($A$1,SearchSystems,2,FALSE))+SUMIFS(Input[M&O Plnt Desg], Input[System],VLOOKUP($A$1,SearchSystems,2,FALSE))+SUMIFS(Input[M&O Plnt Aux], Input[System],VLOOKUP($A$1,SearchSystems,2,FALSE))+SUMIFS(Input[M&O Plnt R Exp], Input[System],VLOOKUP($A$1,SearchSystems,2,FALSE))+SUMIFS(Input[M&O Plnt Loan], Input[System],VLOOKUP($A$1,SearchSystems,2,FALSE))+SUMIFS(Input[M&O Plnt Annuity], Input[System],VLOOKUP($A$1,SearchSystems,2,FALSE))+SUMIFS(Input[M&O Plnt Unexp], Input[System],VLOOKUP($A$1,SearchSystems,2,FALSE))+SUMIFS(Input[M&O Plnt R of Ind], Input[System],VLOOKUP($A$1,SearchSystems,2,FALSE))+SUMIFS(Input[M&O Plnt Inv in P], Input[System],VLOOKUP($A$1,SearchSystems,2,FALSE)) -> 0 | C78: 0 | E78: Operations and Maintenance of Plant | G78: =SUMIFS(Input[SRECNA Op & Maint], Input[System],VLOOKUP($A$1,SearchSystems,2,FALSE)) -> 0
A79: Scholarships & Fellowships | B79: =SUMIFS(Input[Schl & Fell E&G], Input[System],VLOOKUP($A$1,SearchSystems,2,FALSE))+SUMIFS(Input[Schl & Fell Desg], Input[System],VLOOKUP($A$1,SearchSystems,2,FALSE))+SUMIFS(Input[Schl & Fell Aux], Input[System],VLOOKUP($A$1,SearchSystems,2,FALSE))+SUMIFS(Input[Schl & Fell R Exp], Input[System],VLOOKUP($A$1,SearchSystems,2,FALSE))+SUMIFS(Input[Schl & Fell Loan], Input[System],VLOOKUP($A$1,SearchSystems,2,FALSE))+SUMIFS(Input[Schl & Fell Annuity], Input[System],VLOOKUP($A$1,SearchSystems,2,FALSE))+SUMIFS(Input[Schl & Fell Unexp], Input[System],VLOOKUP($A$1,SearchSystems,2,FALSE))+SUMIFS(Input[Schl & Fell R of Ind], Input[System],VLOOKUP($A$1,SearchSystems,2,FALSE))+SUMIFS(Input[Schl & Fell Inv in P], Input[System],VLOOKUP($A$1,SearchSystems,2,FALSE)) -> 0 | C79: 0 | E79: Scholarships and Fellowships | G79: =SUMIFS(Input[SRECNA Schl & Fell], Input[System],VLOOKUP($A$1,SearchSystems,2,FALSE)) -> 0
A80: Auxiliary Enterprises | B80: =SUMIFS(Input[Aux Ent E&G], Input[System],VLOOKUP($A$1,SearchSystems,2,FALSE))+SUMIFS(Input[Aux Ent Desg], Input[System],VLOOKUP($A$1,SearchSystems,2,FALSE))+SUMIFS(Input[Aux Ent Aux], Input[System],VLOOKUP($A$1,SearchSystems,2,FALSE))+SUMIFS(Input[Aux Ent R Exp], Input[System],VLOOKUP($A$1,SearchSystems,2,FALSE))+SUMIFS(Input[Aux Ent Loan], Input[System],VLOOKUP($A$1,SearchSystems,2,FALSE))+SUMIFS(Input[Aux Ent Annuity], Input[System],VLOOKUP($A$1,SearchSystems,2,FALSE))+SUMIFS(Input[Aux Ent Unexp], Input[System],VLOOKUP($A$1,SearchSystems,2,FALSE))+SUMIFS(Input[Aux Ent R of Ind], Input[System],VLOOKUP($A$1,SearchSystems,2,FALSE))+SUMIFS(Input[Aux Ent Inv in P], Input[System],VLOOKUP($A$1,SearchSystems,2,FALSE)) -> 0 | C80: 0 | E80: Auxiliary Enterprises | G80: =SUMIFS(Input[SRECNA Aux], Input[System],VLOOKUP($A$1,SearchSystems,2,FALSE)) -> 0
A81: Capital Outlay from Current Fund Sources | B81: =SUMIFS(Input[Cap Out fund E&G], Input[System],VLOOKUP($A$1,SearchSystems,2,FALSE))+SUMIFS(Input[Cap Out fund Desg], Input[System],VLOOKUP($A$1,SearchSystems,2,FALSE))+SUMIFS(Input[Cap Out fund Aux], Input[System],VLOOKUP($A$1,SearchSystems,2,FALSE))+SUMIFS(Input[Cap Out fund R Exp], Input[System],VLOOKUP($A$1,SearchSystems,2,FALSE))+SUMIFS(Input[Cap Out fund Loan], Input[System],VLOOKUP($A$1,SearchSystems,2,FALSE))+SUMIFS(Input[Cap Out fund Annuity], Input[System],VLOOKUP($A$1,SearchSystems,2,FALSE))+SUMIFS(Input[Cap Out fund Unexp], Input[System],VLOOKUP($A$1,SearchSystems,2,FALSE))+SUMIFS(Input[Cap Out fund R of Ind], Input[System],VLOOKUP($A$1,SearchSystems,2,FALSE))+SUMIFS(Input[Cap Out fund Inv in P], Input[System],VLOOKUP($A$1,SearchSystems,2,FALSE)) -> 0 | C81: 0 | F81: =IF(G81<>0,"Out of Balance","Balanced") -> Balanced | G81: =SUM(G71:G80,-SUM(B71:B80)) -> 0
A82: Other Expenses | B82: =SUMIFS(Input[Oth Exp E&G], Input[System],VLOOKUP($A$1,SearchSystems,2,FALSE))+SUMIFS(Input[Oth Exp Desg], Input[System],VLOOKUP($A$1,SearchSystems,2,FALSE))+SUMIFS(Input[Oth Exp Aux], Input[System],VLOOKUP($A$1,SearchSystems,2,FALSE))+SUMIFS(Input[Oth Exp R Exp], Input[System],VLOOKUP($A$1,SearchSystems,2,FALSE))+SUMIFS(Input[Oth Exp Loan], Input[System],VLOOKUP($A$1,SearchSystems,2,FALSE))+SUMIFS(Input[Oth Exp Annuity], Input[System],VLOOKUP($A$1,SearchSystems,2,FALSE))+SUMIFS(Input[Oth Exp Unexp], Input[System],VLOOKUP($A$1,SearchSystems,2,FALSE))+SUMIFS(Input[Oth Exp R of Ind], Input[System],VLOOKUP($A$1,SearchSystems,2,FALSE))+SUMIFS(Input[Oth Exp Inv in P], Input[System],VLOOKUP($A$1,SearchSystems,2,FALSE)) -> 0 | C82: 0
A83: Subtotal | B83: =SUM(B71:B82) -> 0 | C83: 0
J84: =IFERROR(VLOOKUP(I84,$E$28:$G$41,2,FALSE),"") -> 
A85: Other Sources / (Uses) of Funds | B85: Summary | C85: Per FTSE
A86: Capital Outlay from Non-Current Fund Sources | B86: =SUMIFS(Input[Cap Out n-Fund E&G], Input[System],VLOOKUP($A$1,SearchSystems,2,FALSE))+SUMIFS(Input[Cap Out n-Fund Desg], Input[System],VLOOKUP($A$1,SearchSystems,2,FALSE))+SUMIFS(Input[Cap Out n-Fund Aux], Input[System],VLOOKUP($A$1,SearchSystems,2,FALSE))+SUMIFS(Input[Cap Out n-Fund R Exp], Input[System],VLOOKUP($A$1,SearchSystems,2,FALSE))+SUMIFS(Input[Cap Out n-Fund Loan], Input[System],VLOOKUP($A$1,SearchSystems,2,FALSE))+SUMIFS(Input[Cap Out n-Fund Annuity], Input[System],VLOOKUP($A$1,SearchSystems,2,FALSE))+SUMIFS(Input[Cap Out n-Fund Unexp], Input[System],VLOOKUP($A$1,SearchSystems,2,FALSE))+SUMIFS(Input[Cap Out n-Fund R of Ind], Input[System],VLOOKUP($A$1,SearchSystems,2,FALSE))+SUMIFS(Input[Cap Out n-Fund Inv in P], Input[System],VLOOKUP($A$1,SearchSystems,2,FALSE)) -> 0 | C86: =IFERROR(B86/$F$1,0) -> 0
A87: Mandatory and Non-mandatory Transfers | B87: =SUMIFS(Input[M&Nm Xfrs E&G], Input[System],VLOOKUP($A$1,SearchSystems,2,FALSE))+SUMIFS(Input[M&Nm Xfrs Desg], Input[System],VLOOKUP($A$1,SearchSystems,2,FALSE))+SUMIFS(Input[M&Nm Xfrs Aux], Input[System],VLOOKUP($A$1,SearchSystems,2,FALSE))+SUMIFS(Input[M&Nm Xfrs R Exp], Input[System],VLOOKUP($A$1,SearchSystems,2,FALSE))+SUMIFS(Input[M&Nm Xfrs Loan], Input[System],VLOOKUP($A$1,SearchSystems,2,FALSE))+SUMIFS(Input[M&Nm Xfrs Annuity], Input[System],VLOOKUP($A$1,SearchSystems,2,FALSE))+SUMIFS(Input[M&Nm Xfrs Unexp], Input[System],VLOOKUP($A$1,SearchSystems,2,FALSE))+SUMIFS(Input[M&Nm Xfrs R of Ind], Input[System],VLOOKUP($A$1,SearchSystems,2,FALSE))+SUMIFS(Input[M&Nm Xfrs Inv in P], Input[System],VLOOKUP($A$1,SearchSystems,2,FALSE)) -> 0 | C87: 0
A88: Bond Proceeds Transfers In | B88: =SUMIFS(Input[Bond Xfrs In E&G], Input[System],VLOOKUP($A$1,SearchSystems,2,FALSE))+SUMIFS(Input[Bond Xfrs In Desg], Input[System],VLOOKUP($A$1,SearchSystems,2,FALSE))+SUMIFS(Input[Bond Xfrs In Aux], Input[System],VLOOKUP($A$1,SearchSystems,2,FALSE))+SUMIFS(Input[Bond Xfrs In R Exp], Input[System],VLOOKUP($A$1,SearchSystems,2,FALSE))+SUMIFS(Input[Bond Xfrs In Loan], Input[System],VLOOKUP($A$1,SearchSystems,2,FALSE))+SUMIFS(Input[Bond Xfrs In Annuity], Input[System],VLOOKUP($A$1,SearchSystems,2,FALSE))+SUMIFS(Input[Bond Xfrs In Unexp], Input[System],VLOOKUP($A$1,SearchSystems,2,FALSE))+SUMIFS(Input[Bond Xfrs In R of Ind], Input[System],VLOOKUP($A$1,SearchSystems,2,FALSE))+SUMIFS(Input[Bond Xfrs In Inv in P], Input[System],VLOOKUP($A$1,SearchSystems,2,FALSE)) -> 0 | C88: 0
A89: Debt Service Payments | B89: =SUMIFS(Input[Debt Srv Pay E&G], Input[System],VLOOKUP($A$1,SearchSystems,2,FALSE))+SUMIFS(Input[Debt Srv Pay Desg], Input[System],VLOOKUP($A$1,SearchSystems,2,FALSE))+SUMIFS(Input[Debt Srv Pay Aux], Input[System],VLOOKUP($A$1,SearchSystems,2,FALSE))+SUMIFS(Input[Debt Srv Pay R Exp], Input[System],VLOOKUP($A$1,SearchSystems,2,FALSE))+SUMIFS(Input[Debt Srv Pay Loan], Input[System],VLOOKUP($A$1,SearchSystems,2,FALSE))+SUMIFS(Input[Debt Srv Pay Annuity], Input[System],VLOOKUP($A$1,SearchSystems,2,FALSE))+SUMIFS(Input[Debt Srv Pay Unexp], Input[System],VLOOKUP($A$1,SearchSystems,2,FALSE))+SUMIFS(Input[Debt Srv Pay R of Ind], Input[System],VLOOKUP($A$1,SearchSystems,2,FALSE))+SUMIFS(Input[Debt Srv Pay Inv in P], Input[System],VLOOKUP($A$1,SearchSystems,2,FALSE)) -> 0 | C89: 0
A90: Subtotal | B90: =SUM(B86:B89) -> 0 | C90: =IFERROR(B90/$F$1,0) -> 0
A92: Other Items Not for Current Operating Use | B92: Summary | C92: Per FTSE
A93: Unrealized Gains/(Losses) | B93: =SUMIFS(Input[Unreal G/L E&G], Input[System],VLOOKUP($A$1,SearchSystems,2,FALSE))+SUMIFS(Input[Unreal G/L Desg], Input[System],VLOOKUP($A$1,SearchSystems,2,FALSE))+SUMIFS(Input[Unreal G/L Aux], Input[System],VLOOKUP($A$1,SearchSystems,2,FALSE))+SUMIFS(Input[Unreal G/L R Exp], Input[System],VLOOKUP($A$1,SearchSystems,2,FALSE))+SUMIFS(Input[Unreal G/L Loan], Input[System],VLOOKUP($A$1,SearchSystems,2,FALSE))+SUMIFS(Input[Unreal G/L Annuity], Input[System],VLOOKUP($A$1,SearchSystems,2,FALSE))+SUMIFS(Input[Unreal G/L Unexp], Input[System],VLOOKUP($A$1,SearchSystems,2,FALSE))+SUMIFS(Input[Unreal G/L R of Ind], Input[System],VLOOKUP($A$1,SearchSystems,2,FALSE))+SUMIFS(Input[Unreal G/L Inv in P], Input[System],VLOOKUP($A$1,SearchSystems,2,FALSE)) -> 0 | C93: =IFERROR(B93/$F$1,0) -> 0
A94: Additions to Permanent Endowments | B94: =SUMIFS(Input[Add End E&G], Input[System],VLOOKUP($A$1,SearchSystems,2,FALSE))+SUMIFS(Input[Add End Desg], Input[System],VLOOKUP($A$1,SearchSystems,2,FALSE))+SUMIFS(Input[Add End Aux], Input[System],VLOOKUP($A$1,SearchSystems,2,FALSE))+SUMIFS(Input[Add End R Exp], Input[System],VLOOKUP($A$1,SearchSystems,2,FALSE))+SUMIFS(Input[Add End Loan], Input[System],VLOOKUP($A$1,SearchSystems,2,FALSE))+SUMIFS(Input[Add End Annuity], Input[System],VLOOKUP($A$1,SearchSystems,2,FALSE))+SUMIFS(Input[Add End Unexp], Input[System],VLOOKUP($A$1,SearchSystems,2,FALSE))+SUMIFS(Input[Add End R of Ind], Input[System],VLOOKUP($A$1,SearchSystems,2,FALSE))+SUMIFS(Input[Add End Inv in P], Input[System],VLOOKUP($A$1,SearchSystems,2,FALSE)) -> 0 | C94: 0
A95: Subtotal | B95: =SUM(B93:B94) -> 0 | C95: =IFERROR(B95/$F$1,0) -> 0
A97: Total Operating Uses | B97: =B67-B83+B90+B95 -> 0 | C97: =C67-C83+C90+C95 -> 0
B99: Summary | C99: Per FTSE | E99: SRECNP Reconciliation
A100: Bond Proceeds/(Principal Debt Payments) | B100: =SUMIFS(Input[Bond Proceeds E&G], Input[System],VLOOKUP($A$1,SearchSystems,2,FALSE))+SUMIFS(Input[Bond Proceeds Desg], Input[System],VLOOKUP($A$1,SearchSystems,2,FALSE))+SUMIFS(Input[Bond Proceeds Aux], Input[System],VLOOKUP($A$1,SearchSystems,2,FALSE))+SUMIFS(Input[Bond Proceeds R Exp], Input[System],VLOOKUP($A$1,SearchSystems,2,FALSE))+SUMIFS(Input[Bond Proceeds Loan], Input[System],VLOOKUP($A$1,SearchSystems,2,FALSE))+SUMIFS(Input[Bond Proceeds Annuity], Input[System],VLOOKUP($A$1,SearchSystems,2,FALSE))+SUMIFS(Input[Bond Proceeds Unexp], Input[System],VLOOKUP($A$1,SearchSystems,2,FALSE))+SUMIFS(Input[Bond Proceeds R of Ind], Input[System],VLOOKUP($A$1,SearchSystems,2,FALSE))+SUMIFS(Input[Bond Proceeds Inv in P], Input[System],VLOOKUP($A$1,SearchSystems,2,FALSE)) -> 0 | C100: =IFERROR(B100/$F$1,0) -> 0 | E100: SRECNP Total | G100: =SUMIFS(Input[SRECNA], Input[System],VLOOKUP($A$1,SearchSystems,2,FALSE)) -> 0
A101: Depreciation Expense | B101: =SUMIFS(Input[Dep Exp E&G], Input[System],VLOOKUP($A$1,SearchSystems,2,FALSE))+SUMIFS(Input[Dep Exp Desg], Input[System],VLOOKUP($A$1,SearchSystems,2,FALSE))+SUMIFS(Input[Dep Exp Aux], Input[System],VLOOKUP($A$1,SearchSystems,2,FALSE))+SUMIFS(Input[Dep Exp R Exp], Input[System],VLOOKUP($A$1,SearchSystems,2,FALSE))+SUMIFS(Input[Dep Exp Loan], Input[System],VLOOKUP($A$1,SearchSystems,2,FALSE))+SUMIFS(Input[Dep Exp Annuity], Input[System],VLOOKUP($A$1,SearchSystems,2,FALSE))+SUMIFS(Input[Dep Exp Unexp], Input[System],VLOOKUP($A$1,SearchSystems,2,FALSE))+SUMIFS(Input[Dep Exp R of Ind], Input[System],VLOOKUP($A$1,SearchSystems,2,FALSE))+SUMIFS(Input[Dep Exp Inv in P], Input[System],VLOOKUP($A$1,SearchSystems,2,FALSE)) -> 0 | C101: 0 | F101: =IF(G101<>0,"Out of Balance","Balanced") -> Balanced | G101: =B106-G100 -> 0
A102: Transfer of Capital Asset(s) from System | B102: =SUMIFS(Input[Xfr Cap Sys E&G], Input[System],VLOOKUP($A$1,SearchSystems,2,FALSE))+SUMIFS(Input[Xfr Cap Sys Desg], Input[System],VLOOKUP($A$1,SearchSystems,2,FALSE))+SUMIFS(Input[Xfr Cap Sys Aux], Input[System],VLOOKUP($A$1,SearchSystems,2,FALSE))+SUMIFS(Input[Xfr Cap Sys R Exp], Input[System],VLOOKUP($A$1,SearchSystems,2,FALSE))+SUMIFS(Input[Xfr Cap Sys Loan], Input[System],VLOOKUP($A$1,SearchSystems,2,FALSE))+SUMIFS(Input[Xfr Cap Sys Annuity], Input[System],VLOOKUP($A$1,SearchSystems,2,FALSE))+SUMIFS(Input[Xfr Cap Sys Unexp], Input[System],VLOOKUP($A$1,SearchSystems,2,FALSE))+SUMIFS(Input[Xfr Cap Sys R of Ind], Input[System],VLOOKUP($A$1,SearchSystems,2,FALSE))+SUMIFS(Input[Xfr Cap Sys Inv in P], Input[System],VLOOKUP($A$1,SearchSystems,2,FALSE)) -> 0 | C102: 0
A103: Other Post-Employment Benefit (OPEB) Expense | B103: =SUMIFS(Input[OPEB Exp E&G], Input[System],VLOOKUP($A$1,SearchSystems,2,FALSE))+SUMIFS(Input[OPEB Exp Desg], Input[System],VLOOKUP($A$1,SearchSystems,2,FALSE))+SUMIFS(Input[OPEB Exp Aux], Input[System],VLOOKUP($A$1,SearchSystems,2,FALSE))+SUMIFS(Input[OPEB Exp R Exp], Input[System],VLOOKUP($A$1,SearchSystems,2,FALSE))+SUMIFS(Input[OPEB Exp Loan], Input[System],VLOOKUP($A$1,SearchSystems,2,FALSE))+SUMIFS(Input[OPEB Exp Annuity], Input[System],VLOOKUP($A$1,SearchSystems,2,FALSE))+SUMIFS(Input[OPEB Exp Unexp], Input[System],VLOOKUP($A$1,SearchSystems,2,FALSE))+SUMIFS(Input[OPEB Exp R of Ind], Input[System],VLOOKUP($A$1,SearchSystems,2,FALSE))+SUMIFS(Input[OPEB Exp Inv in P], Input[System],VLOOKUP($A$1,SearchSystems,2,FALSE)) -> 0 | C103: 0
A104: Non-Cash Capital Gifts | B104: =SUMIFS(Input[Non-Cash Cap E&G], Input[System],VLOOKUP($A$1,SearchSystems,2,FALSE))+SUMIFS(Input[Non-Cash Cap Desg], Input[System],VLOOKUP($A$1,SearchSystems,2,FALSE))+SUMIFS(Input[Non-Cash Cap Aux], Input[System],VLOOKUP($A$1,SearchSystems,2,FALSE))+SUMIFS(Input[Non-Cash Cap R Exp], Input[System],VLOOKUP($A$1,SearchSystems,2,FALSE))+SUMIFS(Input[Non-Cash Cap Loan], Input[System],VLOOKUP($A$1,SearchSystems,2,FALSE))+SUMIFS(Input[Non-Cash Cap Annuity], Input[System],VLOOKUP($A$1,SearchSystems,2,FALSE))+SUMIFS(Input[Non-Cash Cap Unexp], Input[System],VLOOKUP($A$1,SearchSystems,2,FALSE))+SUMIFS(Input[Non-Cash Cap R of Ind], Input[System],VLOOKUP($A$1,SearchSystems,2,FALSE))+SUMIFS(Input[Non-Cash Cap Inv in P], Input[System],VLOOKUP($A$1,SearchSystems,2,FALSE)) -> 0 | C104: 0
A105: Capital Outlay | B105: =SUMIFS(Input[Cap Out E&G], Input[System],VLOOKUP($A$1,SearchSystems,2,FALSE))+SUMIFS(Input[Cap Out Desg], Input[System],VLOOKUP($A$1,SearchSystems,2,FALSE))+SUMIFS(Input[Cap Out Aux], Input[System],VLOOKUP($A$1,SearchSystems,2,FALSE))+SUMIFS(Input[Cap Out R Exp], Input[System],VLOOKUP($A$1,SearchSystems,2,FALSE))+SUMIFS(Input[Cap Out Loan], Input[System],VLOOKUP($A$1,SearchSystems,2,FALSE))+SUMIFS(Input[Cap Out Annuity], Input[System],VLOOKUP($A$1,SearchSystems,2,FALSE))+SUMIFS(Input[Cap Out Unexp], Input[System],VLOOKUP($A$1,SearchSystems,2,FALSE))+SUMIFS(Input[Cap Out R of Ind], Input[System],VLOOKUP($A$1,SearchSystems,2,FALSE))+SUMIFS(Input[Cap Out Inv in P], Input[System],VLOOKUP($A$1,SearchSystems,2,FALSE)) -> 0 | C105: 0
A106: Change in Net Assets | B106: =SUM(B97,B100:B105) -> 0 | C106: =IFERROR(B106/$F$1,0) -> 0
A108: * Restricted Fund/Use

Sheet Academic Cost Study
A1: Summary of data for Academic Cost Study
A2: Health - Related Institutions
A3: =Hidden!$A$4 -> 2024-05-02
A5: Institution Name | B5: Sort | C5: FICE | D5: Instruction | E5: Research | F5: Academic Support | G5: Student Services | H5: Institutional Support
A6: The University of Texas Southwestern Medical Center | B6: 390 | C6: 30 | D6: =SUMIFS(Input[Instr E&G],Input[Institution Name],A6) +SUMIFS(Input[Instr Desg],Input[Institution Name],A6) +SUMIFS(Input[Instr R Exp],Input[Institution Name],A6) +SUMIFS(Input[Instr Unexp],Input[Institution Name],A6) +SUMIFS(Input[Cost Study Inst.],Input[Institution Name],A6) -> 1441040595 | E6: =SUMIFS(Input[Res E&G],Input[Institution Name],A6) +SUMIFS(Input[Res Desg],Input[Institution Name],A6) +SUMIFS(Input[Res R Exp],Input[Institution Name],A6) +SUMIFS(Input[Res Unexp],Input[Institution Name],A6) +SUMIFS(Input[Cost Study Resh],Input[Institution Name],A6) -> 561638343 | F6: =SUMIFS(Input[Acad Sup E&G],Input[Institution Name],A6) +SUMIFS(Input[Acad Sup Desg],Input[Institution Name],A6) +SUMIFS(Input[Acad Sup R Exp],Input[Institution Name],A6) +SUMIFS(Input[Acad Sup Unexp],Input[Institution Name],A6) +SUMIFS(Input[Cost Study Aca Sppt],Input[Institution Name],A6) -> 111159415 | G6: =SUMIFS(Input[Stu Svc E&G],Input[Institution Name],A6) +SUMIFS(Input[Stu Svc Desg],Input[Institution Name],A6) +SUMIFS(Input[Stu Svc R Exp],Input[Institution Name],A6) +SUMIFS(Input[Stu Svc Unexp],Input[Institution Name],A6) +SUMIFS(Input[Cost Study Stu Svcs],Input[Institution Name],A6) -SUMIFS(Input[Cost Study Intr C. Ath],Input[Institution Name],A6) -> 3002647 | H6: =SUMIFS(Input[Inst. Spt E&G],Input[Institution Name],A6) +SUMIFS(Input[Inst. Spt Desg],Input[Institution Name],A6) +SUMIFS(Input[Inst. Spt R Exp],Input[Institution Name],A6) +SUMIFS(Input[Inst. Spt Unexp],Input[Institution Name],A6) +SUMIFS(Input[Cost Study Inst. Sppt],Input[Institution Name],A6) -> 113363867
A7: The University of Texas Medical Branch at Galveston | B7: 400 | C7: 104952 | D7: =SUMIFS(Input[Instr E&G],Input[Institution Name],A7) +SUMIFS(Input[Instr Desg],Input[Institution Name],A7) +SUMIFS(Input[Instr R Exp],Input[Institution Name],A7) +SUMIFS(Input[Instr Unexp],Input[Institution Name],A7) +SUMIFS(Input[Cost Study Inst.],Input[Institution Name],A7) -> 487332338 | E7: =SUMIFS(Input[Res E&G],Input[Institution Name],A7) +SUMIFS(Input[Res Desg],Input[Institution Name],A7) +SUMIFS(Input[Res R Exp],Input[Institution Name],A7) +SUMIFS(Input[Res Unexp],Input[Institution Name],A7) +SUMIFS(Input[Cost Study Resh],Input[Institution Name],A7) -> 156139888 | F7: =SUMIFS(Input[Acad Sup E&G],Input[Institution Name],A7) +SUMIFS(Input[Acad Sup Desg],Input[Institution Name],A7) +SUMIFS(Input[Acad Sup R Exp],Input[Institution Name],A7) +SUMIFS(Input[Acad Sup Unexp],Input[Institution Name],A7) +SUMIFS(Input[Cost Study Aca Sppt],Input[Institution Name],A7) -> 49456482 | G7: =SUMIFS(Input[Stu Svc E&G],Input[Institution Name],A7) +SUMIFS(Input[Stu Svc Desg],Input[Institution Name],A7) +SUMIFS(Input[Stu Svc R Exp],Input[Institution Name],A7) +SUMIFS(Input[Stu Svc Unexp],Input[Institution Name],A7) +SUMIFS(Input[Cost Study Stu Svcs],Input[Institution Name],A7) -SUMIFS(Input[Cost Study Intr C. Ath],Input[Institution Name],A7) -> 10032644 | H7: =SUMIFS(Input[Inst. Spt E&G],Input[Institution Name],A7) +SUMIFS(Input[Inst. Spt Desg],Input[Institution Name],A7) +SUMIFS(Input[Inst. Spt R Exp],Input[Institution Name],A7) +SUMIFS(Input[Inst. Spt Unexp],Input[Institution Name],A7) +SUMIFS(Input[Cost Study Inst. Sppt],Input[Institution Name],A7) -> 113313379
A8: The University of Texas Health Science Center at Houston | B8: 410 | C8: 11618 | D8: =SUMIFS(Input[Instr E&G],Input[Institution Name],A8) +SUMIFS(Input[Instr Desg],Input[Institution Name],A8) +SUMIFS(Input[Instr R Exp],Input[Institution Name],A8) +SUMIFS(Input[Instr Unexp],Input[Institution Name],A8) +SUMIFS(Input[Cost Study Inst.],Input[Institution Name],A8) -> 1028017559 | E8: =SUMIFS(Input[Res E&G],Input[Institution Name],A8) +SUMIFS(Input[Res Desg],Input[Institution Name],A8) +SUMIFS(Input[Res R Exp],Input[Institution Name],A8) +SUMIFS(Input[Res Unexp],Input[Institution Name],A8) +SUMIFS(Input[Cost Study Resh],Input[Institution Name],A8) -> 284836618 | F8: =SUMIFS(Input[Acad Sup E&G],Input[Institution Name],A8) +SUMIFS(Input[Acad Sup Desg],Input[Institution Name],A8) +SUMIFS(Input[Acad Sup R Exp],Input[Institution Name],A8) +SUMIFS(Input[Acad Sup Unexp],Input[Institution Name],A8) +SUMIFS(Input[Cost Study Aca Sppt],Input[Institution Name],A8) -> 76226891 | G8: =SUMIFS(Input[Stu Svc E&G],Input[Institution Name],A8) +SUMIFS(Input[Stu Svc Desg],Input[Institution Name],A8) +SUMIFS(Input[Stu Svc R Exp],Input[Institution Name],A8) +SUMIFS(Input[Stu Svc Unexp],Input[Institution Name],A8) +SUMIFS(Input[Cost Study Stu Svcs],Input[Institution Name],A8) -SUMIFS(Input[Cost Study Intr C. Ath],Input[Institution Name],A8) -> 13542702 | H8: =SUMIFS(Input[Inst. Spt E&G],Input[Institution Name],A8) +SUMIFS(Input[Inst. Spt Desg],Input[Institution Name],A8) +SUMIFS(Input[Inst. Spt R Exp],Input[Institution Name],A8) +SUMIFS(Input[Inst. Spt Unexp],Input[Institution Name],A8) +SUMIFS(Input[Cost Study Inst. Sppt],Input[Institution Name],A8) -> 105445427
A9: The University of Texas Health Science Center at San Antonio | B9: 420 | C9: 40 | D9: =SUMIFS(Input[Instr E&G],Input[Institution Name],A9) +SUMIFS(Input[Instr Desg],Input[Institution Name],A9) +SUMIFS(Input[Instr R Exp],Input[Institution Name],A9) +SUMIFS(Input[Instr Unexp],Input[Institution Name],A9) +SUMIFS(Input[Cost Study Inst.],Input[Institution Name],A9) -> 527337043 | E9: =SUMIFS(Input[Res E&G],Input[Institution Name],A9) +SUMIFS(Input[Res Desg],Input[Institution Name],A9) +SUMIFS(Input[Res R Exp],Input[Institution Name],A9) +SUMIFS(Input[Res Unexp],Input[Institution Name],A9) +SUMIFS(Input[Cost Study Resh],Input[Institution Name],A9) -> 215231518 | F9: =SUMIFS(Input[Acad Sup E&G],Input[Institution Name],A9) +SUMIFS(Input[Acad Sup Desg],Input[Institution Name],A9) +SUMIFS(Input[Acad Sup R Exp],Input[Institution Name],A9) +SUMIFS(Input[Acad Sup Unexp],Input[Institution Name],A9) +SUMIFS(Input[Cost Study Aca Sppt],Input[Institution Name],A9) -> 61547177 | G9: =SUMIFS(Input[Stu Svc E&G],Input[Institution Name],A9) +SUMIFS(Input[Stu Svc Desg],Input[Institution Name],A9) +SUMIFS(Input[Stu Svc R Exp],Input[Institution Name],A9) +SUMIFS(Input[Stu Svc Unexp],Input[Institution Name],A9) +SUMIFS(Input[Cost Study Stu Svcs],Input[Institution Name],A9) -SUMIFS(Input[Cost Study Intr C. Ath],Input[Institution Name],A9) -> 5631758 | H9: =SUMIFS(Input[Inst. Spt E&G],Input[Institution Name],A9) +SUMIFS(Input[Inst. Spt Desg],Input[Institution Name],A9) +SUMIFS(Input[Inst. Spt R Exp],Input[Institution Name],A9) +SUMIFS(Input[Inst. Spt Unexp],Input[Institution Name],A9) +SUMIFS(Input[Cost Study Inst. Sppt],Input[Institution Name],A9) -> 69553743
A10: The University of Texas M.D. Anderson Cancer Center | B10: 430 | C10: 25554 | D10: =SUMIFS(Input[Instr E&G],Input[Institution Name],A10) +SUMIFS(Input[Instr Desg],Input[Institution Name],A10) +SUMIFS(Input[Instr R Exp],Input[Institution Name],A10) +SUMIFS(Input[Instr Unexp],Input[Institution Name],A10) +SUMIFS(Input[Cost Study Inst.],Input[Institution Name],A10) -> 184359183 | E10: =SUMIFS(Input[Res E&G],Input[Institution Name],A10) +SUMIFS(Input[Res Desg],Input[Institution Name],A10) +SUMIFS(Input[Res R Exp],Input[Institution Name],A10) +SUMIFS(Input[Res Unexp],Input[Institution Name],A10) +SUMIFS(Input[Cost Study Resh],Input[Institution Name],A10) -> 1041582204 | F10: =SUMIFS(Input[Acad Sup E&G],Input[Institution Name],A10) +SUMIFS(Input[Acad Sup Desg],Input[Institution Name],A10) +SUMIFS(Input[Acad Sup R Exp],Input[Institution Name],A10) +SUMIFS(Input[Acad Sup Unexp],Input[Institution Name],A10) +SUMIFS(Input[Cost Study Aca Sppt],Input[Institution Name],A10) -> 122647954 | G10: =SUMIFS(Input[Stu Svc E&G],Input[Institution Name],A10) +SUMIFS(Input[Stu Svc Desg],Input[Institution Name],A10) +SUMIFS(Input[Stu Svc R Exp],Input[Institution Name],A10) +SUMIFS(Input[Stu Svc Unexp],Input[Institution Name],A10) +SUMIFS(Input[Cost Study Stu Svcs],Input[Institution Name],A10) -SUMIFS(Input[Cost Study Intr C. Ath],Input[Institution Name],A10) -> 2484436 | H10: =SUMIFS(Input[Inst. Spt E&G],Input[Institution Name],A10) +SUMIFS(Input[Inst. Spt Desg],Input[Institution Name],A10) +SUMIFS(Input[Inst. Spt R Exp],Input[Institution Name],A10) +SUMIFS(Input[Inst. Spt Unexp],Input[Institution Name],A10) +SUMIFS(Input[Cost Study Inst. Sppt],Input[Institution Name],A10) -> 194278883
A11: The University of Texas Health Science Center at Tyler | B11: 440 | C11: 42439 | D11: =SUMIFS(Input[Instr E&G],Input[Institution Name],A11) +SUMIFS(Input[Instr Desg],Input[Institution Name],A11) +SUMIFS(Input[Instr R Exp],Input[Institution Name],A11) +SUMIFS(Input[Instr Unexp],Input[Institution Name],A11) +SUMIFS(Input[Cost Study Inst.],Input[Institution Name],A11) -> 100629969 | E11: =SUMIFS(Input[Res E&G],Input[Institution Name],A11) +SUMIFS(Input[Res Desg],Input[Institution Name],A11) +SUMIFS(Input[Res R Exp],Input[Institution Name],A11) +SUMIFS(Input[Res Unexp],Input[Institution Name],A11) +SUMIFS(Input[Cost Study Resh],Input[Institution Name],A11) -> 27561175 | F11: =SUMIFS(Input[Acad Sup E&G],Input[Institution Name],A11) +SUMIFS(Input[Acad Sup Desg],Input[Institution Name],A11) +SUMIFS(Input[Acad Sup R Exp],Input[Institution Name],A11) +SUMIFS(Input[Acad Sup Unexp],Input[Institution Name],A11) +SUMIFS(Input[Cost Study Aca Sppt],Input[Institution Name],A11) -> 4224765 | G11: =SUMIFS(Input[Stu Svc E&G],Input[Institution Name],A11) +SUMIFS(Input[Stu Svc Desg],Input[Institution Name],A11) +SUMIFS(Input[Stu Svc R Exp],Input[Institution Name],A11) +SUMIFS(Input[Stu Svc Unexp],Input[Institution Name],A11) +SUMIFS(Input[Cost Study Stu Svcs],Input[Institution Name],A11) -SUMIFS(Input[Cost Study Intr C. Ath],Input[Institution Name],A11) -> 1649904 | H11: =SUMIFS(Input[Inst. Spt E&G],Input[Institution Name],A11) +SUMIFS(Input[Inst. Spt Desg],Input[Institution Name],A11) +SUMIFS(Input[Inst. Spt R Exp],Input[Institution Name],A11) +SUMIFS(Input[Inst. Spt Unexp],Input[Institution Name],A11) +SUMIFS(Input[Cost Study Inst. Sppt],Input[Institution Name],A11) -> 15404817
A12: Texas A&M University - System Health Science Center | B12: 450 | C12: 89 | D12: =SUMIFS(Input[Instr E&G],Input[Institution Name],A12) +SUMIFS(Input[Instr Desg],Input[Institution Name],A12) +SUMIFS(Input[Instr R Exp],Input[Institution Name],A12) +SUMIFS(Input[Instr Unexp],Input[Institution Name],A12) +SUMIFS(Input[Cost Study Inst.],Input[Institution Name],A12) -> 152403095 | E12: =SUMIFS(Input[Res E&G],Input[Institution Name],A12) +SUMIFS(Input[Res Desg],Input[Institution Name],A12) +SUMIFS(Input[Res R Exp],Input[Institution Name],A12) +SUMIFS(Input[Res Unexp],Input[Institution Name],A12) +SUMIFS(Input[Cost Study Resh],Input[Institution Name],A12) -> 104973176 | F12: =SUMIFS(Input[Acad Sup E&G],Input[Institution Name],A12) +SUMIFS(Input[Acad Sup Desg],Input[Institution Name],A12) +SUMIFS(Input[Acad Sup R Exp],Input[Institution Name],A12) +SUMIFS(Input[Acad Sup Unexp],Input[Institution Name],A12) +SUMIFS(Input[Cost Study Aca Sppt],Input[Institution Name],A12) -> 40723570 | G12: =SUMIFS(Input[Stu Svc E&G],Input[Institution Name],A12) +SUMIFS(Input[Stu Svc Desg],Input[Institution Name],A12) +SUMIFS(Input[Stu Svc R Exp],Input[Institution Name],A12) +SUMIFS(Input[Stu Svc Unexp],Input[Institution Name],A12) +SUMIFS(Input[Cost Study Stu Svcs],Input[Institution Name],A12) -SUMIFS(Input[Cost Study Intr C. Ath],Input[Institution Name],A12) -> 8350081 | H12: =SUMIFS(Input[Inst. Spt E&G],Input[Institution Name],A12) +SUMIFS(Input[Inst. Spt Desg],Input[Institution Name],A12) +SUMIFS(Input[Inst. Spt R Exp],Input[Institution Name],A12) +SUMIFS(Input[Inst. Spt Unexp],Input[Institution Name],A12) +SUMIFS(Input[Cost Study Inst. Sppt],Input[Institution Name],A12) -> 16113337
A13: University of North Texas Health Science Center at Fort Worth | B13: 461 | C13: 130 | D13: =SUMIFS(Input[Instr E&G],Input[Institution Name],A13) +SUMIFS(Input[Instr Desg],Input[Institution Name],A13) +SUMIFS(Input[Instr R Exp],Input[Institution Name],A13) +SUMIFS(Input[Instr Unexp],Input[Institution Name],A13) +SUMIFS(Input[Cost Study Inst.],Input[Institution Name],A13) -> 84139659 | E13: =SUMIFS(Input[Res E&G],Input[Institution Name],A13) +SUMIFS(Input[Res Desg],Input[Institution Name],A13) +SUMIFS(Input[Res R Exp],Input[Institution Name],A13) +SUMIFS(Input[Res Unexp],Input[Institution Name],A13) +SUMIFS(Input[Cost Study Resh],Input[Institution Name],A13) -> 71205417 | F13: =SUMIFS(Input[Acad Sup E&G],Input[Institution Name],A13) +SUMIFS(Input[Acad Sup Desg],Input[Institution Name],A13) +SUMIFS(Input[Acad Sup R Exp],Input[Institution Name],A13) +SUMIFS(Input[Acad Sup Unexp],Input[Institution Name],A13) +SUMIFS(Input[Cost Study Aca Sppt],Input[Institution Name],A13) -> 31437597 | G13: =SUMIFS(Input[Stu Svc E&G],Input[Institution Name],A13) +SUMIFS(Input[Stu Svc Desg],Input[Institution Name],A13) +SUMIFS(Input[Stu Svc R Exp],Input[Institution Name],A13) +SUMIFS(Input[Stu Svc Unexp],Input[Institution Name],A13) +SUMIFS(Input[Cost Study Stu Svcs],Input[Institution Name],A13) -SUMIFS(Input[Cost Study Intr C. Ath],Input[Institution Name],A13) -> 11120195 | H13: =SUMIFS(Input[Inst. Spt E&G],Input[Institution Name],A13) +SUMIFS(Input[Inst. Spt Desg],Input[Institution Name],A13) +SUMIFS(Input[Inst. Spt R Exp],Input[Institution Name],A13) +SUMIFS(Input[Inst. Spt Unexp],Input[Institution Name],A13) +SUMIFS(Input[Cost Study Inst. Sppt],Input[Institution Name],A13) -> 21579053
A14: Texas Tech University Health Sciences Center | B14: 470 | C14: 412 | D14: =SUMIFS(Input[Instr E&G],Input[Institution Name],A14) +SUMIFS(Input[Instr Desg],Input[Institution Name],A14) +SUMIFS(Input[Instr R Exp],Input[Institution Name],A14) +SUMIFS(Input[Instr Unexp],Input[Institution Name],A14) +SUMIFS(Input[Cost Study Inst.],Input[Institution Name],A14) -> 245719306 | E14: =SUMIFS(Input[Res E&G],Input[Institution Name],A14) +SUMIFS(Input[Res Desg],Input[Institution Name],A14) +SUMIFS(Input[Res R Exp],Input[Institution Name],A14) +SUMIFS(Input[Res Unexp],Input[Institution Name],A14) +SUMIFS(Input[Cost Study Resh],Input[Institution Name],A14) -> 43739960 | F14: =SUMIFS(Input[Acad Sup E&G],Input[Institution Name],A14) +SUMIFS(Input[Acad Sup Desg],Input[Institution Name],A14) +SUMIFS(Input[Acad Sup R Exp],Input[Institution Name],A14) +SUMIFS(Input[Acad Sup Unexp],Input[Institution Name],A14) +SUMIFS(Input[Cost Study Aca Sppt],Input[Institution Name],A14) -> 145997490 | G14: =SUMIFS(Input[Stu Svc E&G],Input[Institution Name],A14) +SUMIFS(Input[Stu Svc Desg],Input[Institution Name],A14) +SUMIFS(Input[Stu Svc R Exp],Input[Institution Name],A14) +SUMIFS(Input[Stu Svc Unexp],Input[Institution Name],A14) +SUMIFS(Input[Cost Study Stu Svcs],Input[Institution Name],A14) -SUMIFS(Input[Cost Study Intr C. Ath],Input[Institution Name],A14) -> 27783285 | H14: =SUMIFS(Input[Inst. Spt E&G],Input[Institution Name],A14) +SUMIFS(Input[Inst. Spt Desg],Input[Institution Name],A14) +SUMIFS(Input[Inst. Spt R Exp],Input[Institution Name],A14) +SUMIFS(Input[Inst. Spt Unexp],Input[Institution Name],A14) +SUMIFS(Input[Cost Study Inst. Sppt],Input[Institution Name],A14) -> 33852319
A15: Texas Tech University Health Sciences Center at El Paso | B15: 480 | C15: 862 | D15: =SUMIFS(Input[Instr E&G],Input[Institution Name],A15) +SUMIFS(Input[Instr Desg],Input[Institution Name],A15) +SUMIFS(Input[Instr R Exp],Input[Institution Name],A15) +SUMIFS(Input[Instr Unexp],Input[Institution Name],A15) +SUMIFS(Input[Cost Study Inst.],Input[Institution Name],A15) -> 135010338 | E15: =SUMIFS(Input[Res E&G],Input[Institution Name],A15) +SUMIFS(Input[Res Desg],Input[Institution Name],A15) +SUMIFS(Input[Res R Exp],Input[Institution Name],A15) +SUMIFS(Input[Res Unexp],Input[Institution Name],A15) +SUMIFS(Input[Cost Study Resh],Input[Institution Name],A15) -> 11864897 | F15: =SUMIFS(Input[Acad Sup E&G],Input[Institution Name],A15) +SUMIFS(Input[Acad Sup Desg],Input[Institution Name],A15) +SUMIFS(Input[Acad Sup R Exp],Input[Institution Name],A15) +SUMIFS(Input[Acad Sup Unexp],Input[Institution Name],A15) +SUMIFS(Input[Cost Study Aca Sppt],Input[Institution Name],A15) -> 55697250 | G15: =SUMIFS(Input[Stu Svc E&G],Input[Institution Name],A15) +SUMIFS(Input[Stu Svc Desg],Input[Institution Name],A15) +SUMIFS(Input[Stu Svc R Exp],Input[Institution Name],A15) +SUMIFS(Input[Stu Svc Unexp],Input[Institution Name],A15) +SUMIFS(Input[Cost Study Stu Svcs],Input[Institution Name],A15) -SUMIFS(Input[Cost Study Intr C. Ath],Input[Institution Name],A15) -> 10154840 | H15: =SUMIFS(Input[Inst. Spt E&G],Input[Institution Name],A15) +SUMIFS(Input[Inst. Spt Desg],Input[Institution Name],A15) +SUMIFS(Input[Inst. Spt R Exp],Input[Institution Name],A15) +SUMIFS(Input[Inst. Spt Unexp],Input[Institution Name],A15) +SUMIFS(Input[Cost Study Inst. Sppt],Input[Institution Name],A15) -> 20724357
A16: The University of Texas at Rio Grande Valley (M) | B16: 500 | C16: 203599 | D16: =SUMIFS(Input[Instr E&G],Input[Institution Name],A16) +SUMIFS(Input[Instr Desg],Input[Institution Name],A16) +SUMIFS(Input[Instr R Exp],Input[Institution Name],A16) +SUMIFS(Input[Instr Unexp],Input[Institution Name],A16) +SUMIFS(Input[Cost Study Inst.],Input[Institution Name],A16) -> 50677641 | E16: =SUMIFS(Input[Res E&G],Input[Institution Name],A16) +SUMIFS(Input[Res Desg],Input[Institution Name],A16) +SUMIFS(Input[Res R Exp],Input[Institution Name],A16) +SUMIFS(Input[Res Unexp],Input[Institution Name],A16) +SUMIFS(Input[Cost Study Resh],Input[Institution Name],A16) -> 3656808 | F16: =SUMIFS(Input[Acad Sup E&G],Input[Institution Name],A16) +SUMIFS(Input[Acad Sup Desg],Input[Institution Name],A16) +SUMIFS(Input[Acad Sup R Exp],Input[Institution Name],A16) +SUMIFS(Input[Acad Sup Unexp],Input[Institution Name],A16) +SUMIFS(Input[Cost Study Aca Sppt],Input[Institution Name],A16) -> 21940582 | G16: =SUMIFS(Input[Stu Svc E&G],Input[Institution Name],A16) +SUMIFS(Input[Stu Svc Desg],Input[Institution Name],A16) +SUMIFS(Input[Stu Svc R Exp],Input[Institution Name],A16) +SUMIFS(Input[Stu Svc Unexp],Input[Institution Name],A16) +SUMIFS(Input[Cost Study Stu Svcs],Input[Institution Name],A16) -SUMIFS(Input[Cost Study Intr C. Ath],Input[Institution Name],A16) -> 2506879 | H16: =SUMIFS(Input[Inst. Spt E&G],Input[Institution Name],A16) +SUMIFS(Input[Inst. Spt Desg],Input[Institution Name],A16) +SUMIFS(Input[Inst. Spt R Exp],Input[Institution Name],A16) +SUMIFS(Input[Inst. Spt Unexp],Input[Institution Name],A16) +SUMIFS(Input[Cost Study Inst. Sppt],Input[Institution Name],A16) -> 0
A17: The University of Texas at Austin (M) | B17: 510 | C17: 203658 | D17: =SUMIFS(Input[Instr E&G],Input[Institution Name],A17) +SUMIFS(Input[Instr Desg],Input[Institution Name],A17) +SUMIFS(Input[Instr R Exp],Input[Institution Name],A17) +SUMIFS(Input[Instr Unexp],Input[Institution Name],A17) +SUMIFS(Input[Cost Study Inst.],Input[Institution Name],A17) -> 9970206 | E17: =SUMIFS(Input[Res E&G],Input[Institution Name],A17) +SUMIFS(Input[Res Desg],Input[Institution Name],A17) +SUMIFS(Input[Res R Exp],Input[Institution Name],A17) +SUMIFS(Input[Res Unexp],Input[Institution Name],A17) +SUMIFS(Input[Cost Study Resh],Input[Institution Name],A17) -> 41232912 | F17: =SUMIFS(Input[Acad Sup E&G],Input[Institution Name],A17) +SUMIFS(Input[Acad Sup Desg],Input[Institution Name],A17) +SUMIFS(Input[Acad Sup R Exp],Input[Institution Name],A17) +SUMIFS(Input[Acad Sup Unexp],Input[Institution Name],A17) +SUMIFS(Input[Cost Study Aca Sppt],Input[Institution Name],A17) -> 39644411 | G17: =SUMIFS(Input[Stu Svc E&G],Input[Institution Name],A17) +SUMIFS(Input[Stu Svc Desg],Input[Institution Name],A17) +SUMIFS(Input[Stu Svc R Exp],Input[Institution Name],A17) +SUMIFS(Input[Stu Svc Unexp],Input[Institution Name],A17) +SUMIFS(Input[Cost Study Stu Svcs],Input[Institution Name],A17) -SUMIFS(Input[Cost Study Intr C. Ath],Input[Institution Name],A17) -> 146069 | H17: =SUMIFS(Input[Inst. Spt E&G],Input[Institution Name],A17) +SUMIFS(Input[Inst. Spt Desg],Input[Institution Name],A17) +SUMIFS(Input[Inst. Spt R Exp],Input[Institution Name],A17) +SUMIFS(Input[Inst. Spt Unexp],Input[Institution Name],A17) +SUMIFS(Input[Cost Study Inst. Sppt],Input[Institution Name],A17) -> 21982491
A18: University of Houston (M) | B18: 520 | C18: 203652 | D18: =SUMIFS(Input[Instr E&G],Input[Institution Name],A18) +SUMIFS(Input[Instr Desg],Input[Institution Name],A18) +SUMIFS(Input[Instr R Exp],Input[Institution Name],A18) +SUMIFS(Input[Instr Unexp],Input[Institution Name],A18) +SUMIFS(Input[Cost Study Inst.],Input[Institution Name],A18) -> 9710208 | E18: =SUMIFS(Input[Res E&G],Input[Institution Name],A18) +SUMIFS(Input[Res Desg],Input[Institution Name],A18) +SUMIFS(Input[Res R Exp],Input[Institution Name],A18) +SUMIFS(Input[Res Unexp],Input[Institution Name],A18) +SUMIFS(Input[Cost Study Resh],Input[Institution Name],A18) -> 1078416 | F18: =SUMIFS(Input[Acad Sup E&G],Input[Institution Name],A18) +SUMIFS(Input[Acad Sup Desg],Input[Institution Name],A18) +SUMIFS(Input[Acad Sup R Exp],Input[Institution Name],A18) +SUMIFS(Input[Acad Sup Unexp],Input[Institution Name],A18) +SUMIFS(Input[Cost Study Aca Sppt],Input[Institution Name],A18) -> 10469759 | G18: =SUMIFS(Input[Stu Svc E&G],Input[Institution Name],A18) +SUMIFS(Input[Stu Svc Desg],Input[Institution Name],A18) +SUMIFS(Input[Stu Svc R Exp],Input[Institution Name],A18) +SUMIFS(Input[Stu Svc Unexp],Input[Institution Name],A18) +SUMIFS(Input[Cost Study Stu Svcs],Input[Institution Name],A18) -SUMIFS(Input[Cost Study Intr C. Ath],Input[Institution Name],A18) -> 0 | H18: =SUMIFS(Input[Inst. Spt E&G],Input[Institution Name],A18) +SUMIFS(Input[Inst. Spt Desg],Input[Institution Name],A18) +SUMIFS(Input[Inst. Spt R Exp],Input[Institution Name],A18) +SUMIFS(Input[Inst. Spt Unexp],Input[Institution Name],A18) +SUMIFS(Input[Cost Study Inst. Sppt],Input[Institution Name],A18) -> 1247919
A19: Sam Houston State University (M) | B19: 530 | C19: 103606 | D19: =SUMIFS(Input[Instr E&G],Input[Institution Name],A19) +SUMIFS(Input[Instr Desg],Input[Institution Name],A19) +SUMIFS(Input[Instr R Exp],Input[Institution Name],A19) +SUMIFS(Input[Instr Unexp],Input[Institution Name],A19) +SUMIFS(Input[Cost Study Inst.],Input[Institution Name],A19) -> 10944701 | E19: =SUMIFS(Input[Res E&G],Input[Institution Name],A19) +SUMIFS(Input[Res Desg],Input[Institution Name],A19) +SUMIFS(Input[Res R Exp],Input[Institution Name],A19) +SUMIFS(Input[Res Unexp],Input[Institution Name],A19) +SUMIFS(Input[Cost Study Resh],Input[Institution Name],A19) -> 680654 | F19: =SUMIFS(Input[Acad Sup E&G],Input[Institution Name],A19) +SUMIFS(Input[Acad Sup Desg],Input[Institution Name],A19) +SUMIFS(Input[Acad Sup R Exp],Input[Institution Name],A19) +SUMIFS(Input[Acad Sup Unexp],Input[Institution Name],A19) +SUMIFS(Input[Cost Study Aca Sppt],Input[Institution Name],A19) -> 4781012 | G19: =SUMIFS(Input[Stu Svc E&G],Input[Institution Name],A19) +SUMIFS(Input[Stu Svc Desg],Input[Institution Name],A19) +SUMIFS(Input[Stu Svc R Exp],Input[Institution Name],A19) +SUMIFS(Input[Stu Svc Unexp],Input[Institution Name],A19) +SUMIFS(Input[Cost Study Stu Svcs],Input[Institution Name],A19) -SUMIFS(Input[Cost Study Intr C. Ath],Input[Institution Name],A19) -> 1678841 | H19: =SUMIFS(Input[Inst. Spt E&G],Input[Institution Name],A19) +SUMIFS(Input[Inst. Spt Desg],Input[Institution Name],A19) +SUMIFS(Input[Inst. Spt R Exp],Input[Institution Name],A19) +SUMIFS(Input[Inst. Spt Unexp],Input[Institution Name],A19) +SUMIFS(Input[Cost Study Inst. Sppt],Input[Institution Name],A19) -> 0
D20: =SUBTOTAL(109,CostStudyHRI[Instruction]) -> 4467291841 | E20: =SUBTOTAL(109,CostStudyHRI[Research]) -> 2565421986 | F20: =SUBTOTAL(109,CostStudyHRI[Academic Support]) -> 775954355 | G20: =SUBTOTAL(109,CostStudyHRI[Student Services]) -> 98084281 | H20: =SUBTOTAL(109,CostStudyHRI[Institutional Support]) -> 726859592
A23: Lamar State Colleges and Texas State Technical Colleges
A24: =Hidden!$A$4 -> 2024-05-02
A26: Institution Name | B26: Sort | C26: FICE | D26: Instruction | E26: Research | F26: Academic Support | G26: Student Services | H26: Institutional Support
A27: Lamar Institute of Technology | B27: 490 | C27: 36273 | D27: =SUMIFS(Input[Instr E&G],Input[Institution Name],A27) +SUMIFS(Input[Instr Desg],Input[Institution Name],A27) +SUMIFS(Input[Instr R Exp],Input[Institution Name],A27) +SUMIFS(Input[Instr Unexp],Input[Institution Name],A27) +SUMIFS(Input[Cost Study Inst.],Input[Institution Name],A27) -> 14931775 | E27: =SUMIFS(Input[Res E&G],Input[Institution Name],A27) +SUMIFS(Input[Res Desg],Input[Institution Name],A27) +SUMIFS(Input[Res R Exp],Input[Institution Name],A27) +SUMIFS(Input[Res Unexp],Input[Institution Name],A27) +SUMIFS(Input[Cost Study Resh],Input[Institution Name],A27) -> 0 | F27: =SUMIFS(Input[Acad Sup E&G],Input[Institution Name],A27) +SUMIFS(Input[Acad Sup Desg],Input[Institution Name],A27) +SUMIFS(Input[Acad Sup R Exp],Input[Institution Name],A27) +SUMIFS(Input[Acad Sup Unexp],Input[Institution Name],A27) +SUMIFS(Input[Cost Study Aca Sppt],Input[Institution Name],A27) -> 2099519 | G27: =SUMIFS(Input[Stu Svc E&G],Input[Institution Name],A27) +SUMIFS(Input[Stu Svc Desg],Input[Institution Name],A27) +SUMIFS(Input[Stu Svc R Exp],Input[Institution Name],A27) +SUMIFS(Input[Stu Svc Unexp],Input[Institution Name],A27) +SUMIFS(Input[Cost Study Stu Svcs],Input[Institution Name],A27) -SUMIFS(Input[Cost Study Intr C. Ath],Input[Institution Name],A27) -> 2129813 | H27: =SUMIFS(Input[Inst. Spt E&G],Input[Institution Name],A27) +SUMIFS(Input[Inst. Spt Desg],Input[Institution Name],A27) +SUMIFS(Input[Inst. Spt R Exp],Input[Institution Name],A27) +SUMIFS(Input[Inst. Spt Unexp],Input[Institution Name],A27) +SUMIFS(Input[Cost Study Inst. Sppt],Input[Institution Name],A27) -> 5401039
A28: Lamar State College - Orange | B28: 500 | C28: 23582 | D28: =SUMIFS(Input[Instr E&G],Input[Institution Name],A28) +SUMIFS(Input[Instr Desg],Input[Institution Name],A28) +SUMIFS(Input[Instr R Exp],Input[Institution Name],A28) +SUMIFS(Input[Instr Unexp],Input[Institution Name],A28) +SUMIFS(Input[Cost Study Inst.],Input[Institution Name],A28) -> 8518545 | E28: =SUMIFS(Input[Res E&G],Input[Institution Name],A28) +SUMIFS(Input[Res Desg],Input[Institution Name],A28) +SUMIFS(Input[Res R Exp],Input[Institution Name],A28) +SUMIFS(Input[Res Unexp],Input[Institution Name],A28) +SUMIFS(Input[Cost Study Resh],Input[Institution Name],A28) -> 0 | F28: =SUMIFS(Input[Acad Sup E&G],Input[Institution Name],A28) +SUMIFS(Input[Acad Sup Desg],Input[Institution Name],A28) +SUMIFS(Input[Acad Sup R Exp],Input[Institution Name],A28) +SUMIFS(Input[Acad Sup Unexp],Input[Institution Name],A28) +SUMIFS(Input[Cost Study Aca Sppt],Input[Institution Name],A28) -> 3162279 | G28: =SUMIFS(Input[Stu Svc E&G],Input[Institution Name],A28) +SUMIFS(Input[Stu Svc Desg],Input[Institution Name],A28) +SUMIFS(Input[Stu Svc R Exp],Input[Institution Name],A28) +SUMIFS(Input[Stu Svc Unexp],Input[Institution Name],A28) +SUMIFS(Input[Cost Study Stu Svcs],Input[Institution Name],A28) -SUMIFS(Input[Cost Study Intr C. Ath],Input[Institution Name],A28) -> 1617601 | H28: =SUMIFS(Input[Inst. Spt E&G],Input[Institution Name],A28) +SUMIFS(Input[Inst. Spt Desg],Input[Institution Name],A28) +SUMIFS(Input[Inst. Spt R Exp],Input[Institution Name],A28) +SUMIFS(Input[Inst. Spt Unexp],Input[Institution Name],A28) +SUMIFS(Input[Cost Study Inst. Sppt],Input[Institution Name],A28) -> 4029452
A29: Lamar State College - Port Arthur | B29: 510 | C29: 23485 | D29: =SUMIFS(Input[Instr E&G],Input[Institution Name],A29) +SUMIFS(Input[Instr Desg],Input[Institution Name],A29) +SUMIFS(Input[Instr R Exp],Input[Institution Name],A29) +SUMIFS(Input[Instr Unexp],Input[Institution Name],A29) +SUMIFS(Input[Cost Study Inst.],Input[Institution Name],A29) -> 18201751 | E29: =SUMIFS(Input[Res E&G],Input[Institution Name],A29) +SUMIFS(Input[Res Desg],Input[Institution Name],A29) +SUMIFS(Input[Res R Exp],Input[Institution Name],A29) +SUMIFS(Input[Res Unexp],Input[Institution Name],A29) +SUMIFS(Input[Cost Study Resh],Input[Institution Name],A29) -> 0 | F29: =SUMIFS(Input[Acad Sup E&G],Input[Institution Name],A29) +SUMIFS(Input[Acad Sup Desg],Input[Institution Name],A29) +SUMIFS(Input[Acad Sup R Exp],Input[Institution Name],A29) +SUMIFS(Input[Acad Sup Unexp],Input[Institution Name],A29) +SUMIFS(Input[Cost Study Aca Sppt],Input[Institution Name],A29) -> 2776435 | G29: =SUMIFS(Input[Stu Svc E&G],Input[Institution Name],A29) +SUMIFS(Input[Stu Svc Desg],Input[Institution Name],A29) +SUMIFS(Input[Stu Svc R Exp],Input[Institution Name],A29) +SUMIFS(Input[Stu Svc Unexp],Input[Institution Name],A29) +SUMIFS(Input[Cost Study Stu Svcs],Input[Institution Name],A29) -SUMIFS(Input[Cost Study Intr C. Ath],Input[Institution Name],A29) -> 1724287 | H29: =SUMIFS(Input[Inst. Spt E&G],Input[Institution Name],A29) +SUMIFS(Input[Inst. Spt Desg],Input[Institution Name],A29) +SUMIFS(Input[Inst. Spt R Exp],Input[Institution Name],A29) +SUMIFS(Input[Inst. Spt Unexp],Input[Institution Name],A29) +SUMIFS(Input[Cost Study Inst. Sppt],Input[Institution Name],A29) -> 5493980
A30: Texas State Technical College - Harlingen | B30: 520 | C30: 9225 | D30: =SUMIFS(Input[Instr E&G],Input[Institution Name],A30) +SUMIFS(Input[Instr Desg],Input[Institution Name],A30) +SUMIFS(Input[Instr R Exp],Input[Institution Name],A30) +SUMIFS(Input[Instr Unexp],Input[Institution Name],A30) +SUMIFS(Input[Cost Study Inst.],Input[Institution Name],A30) -> 27497850 | E30: =SUMIFS(Input[Res E&G],Input[Institution Name],A30) +SUMIFS(Input[Res Desg],Input[Institution Name],A30) +SUMIFS(Input[Res R Exp],Input[Institution Name],A30) +SUMIFS(Input[Res Unexp],Input[Institution Name],A30) +SUMIFS(Input[Cost Study Resh],Input[Institution Name],A30) -> 101846 | F30: =SUMIFS(Input[Acad Sup E&G],Input[Institution Name],A30) +SUMIFS(Input[Acad Sup Desg],Input[Institution Name],A30) +SUMIFS(Input[Acad Sup R Exp],Input[Institution Name],A30) +SUMIFS(Input[Acad Sup Unexp],Input[Institution Name],A30) +SUMIFS(Input[Cost Study Aca Sppt],Input[Institution Name],A30) -> 3128002 | G30: =SUMIFS(Input[Stu Svc E&G],Input[Institution Name],A30) +SUMIFS(Input[Stu Svc Desg],Input[Institution Name],A30) +SUMIFS(Input[Stu Svc R Exp],Input[Institution Name],A30) +SUMIFS(Input[Stu Svc Unexp],Input[Institution Name],A30) +SUMIFS(Input[Cost Study Stu Svcs],Input[Institution Name],A30) -SUMIFS(Input[Cost Study Intr C. Ath],Input[Institution Name],A30) -> 5976412 | H30: =SUMIFS(Input[Inst. Spt E&G],Input[Institution Name],A30) +SUMIFS(Input[Inst. Spt Desg],Input[Institution Name],A30) +SUMIFS(Input[Inst. Spt R Exp],Input[Institution Name],A30) +SUMIFS(Input[Inst. Spt Unexp],Input[Institution Name],A30) +SUMIFS(Input[Cost Study Inst. Sppt],Input[Institution Name],A30) -> 5157210
A31: Texas State Technical College - West Texas | B31: 530 | C31: 9932 | D31: =SUMIFS(Input[Instr E&G],Input[Institution Name],A31) +SUMIFS(Input[Instr Desg],Input[Institution Name],A31) +SUMIFS(Input[Instr R Exp],Input[Institution Name],A31) +SUMIFS(Input[Instr Unexp],Input[Institution Name],A31) +SUMIFS(Input[Cost Study Inst.],Input[Institution Name],A31) -> 12975990 | E31: =SUMIFS(Input[Res E&G],Input[Institution Name],A31) +SUMIFS(Input[Res Desg],Input[Institution Name],A31) +SUMIFS(Input[Res R Exp],Input[Institution Name],A31) +SUMIFS(Input[Res Unexp],Input[Institution Name],A31) +SUMIFS(Input[Cost Study Resh],Input[Institution Name],A31) -> 0 | F31: =SUMIFS(Input[Acad Sup E&G],Input[Institution Name],A31) +SUMIFS(Input[Acad Sup Desg],Input[Institution Name],A31) +SUMIFS(Input[Acad Sup R Exp],Input[Institution Name],A31) +SUMIFS(Input[Acad Sup Unexp],Input[Institution Name],A31) +SUMIFS(Input[Cost Study Aca Sppt],Input[Institution Name],A31) -> 1657801 | G31: =SUMIFS(Input[Stu Svc E&G],Input[Institution Name],A31) +SUMIFS(Input[Stu Svc Desg],Input[Institution Name],A31) +SUMIFS(Input[Stu Svc R Exp],Input[Institution Name],A31) +SUMIFS(Input[Stu Svc Unexp],Input[Institution Name],A31) +SUMIFS(Input[Cost Study Stu Svcs],Input[Institution Name],A31) -SUMIFS(Input[Cost Study Intr C. Ath],Input[Institution Name],A31) -> 3186482 | H31: =SUMIFS(Input[Inst. Spt E&G],Input[Institution Name],A31) +SUMIFS(Input[Inst. Spt Desg],Input[Institution Name],A31) +SUMIFS(Input[Inst. Spt R Exp],Input[Institution Name],A31) +SUMIFS(Input[Inst. Spt Unexp],Input[Institution Name],A31) +SUMIFS(Input[Cost Study Inst. Sppt],Input[Institution Name],A31) -> 2113251
A32: Texas State Technical College - Marshall | B32: 540 | C32: 33965 | D32: =SUMIFS(Input[Instr E&G],Input[Institution Name],A32) +SUMIFS(Input[Instr Desg],Input[Institution Name],A32) +SUMIFS(Input[Instr R Exp],Input[Institution Name],A32) +SUMIFS(Input[Instr Unexp],Input[Institution Name],A32) +SUMIFS(Input[Cost Study Inst.],Input[Institution Name],A32) -> 5928194 | E32: =SUMIFS(Input[Res E&G],Input[Institution Name],A32) +SUMIFS(Input[Res Desg],Input[Institution Name],A32) +SUMIFS(Input[Res R Exp],Input[Institution Name],A32) +SUMIFS(Input[Res Unexp],Input[Institution Name],A32) +SUMIFS(Input[Cost Study Resh],Input[Institution Name],A32) -> 0 | F32: =SUMIFS(Input[Acad Sup E&G],Input[Institution Name],A32) +SUMIFS(Input[Acad Sup Desg],Input[Institution Name],A32) +SUMIFS(Input[Acad Sup R Exp],Input[Institution Name],A32) +SUMIFS(Input[Acad Sup Unexp],Input[Institution Name],A32) +SUMIFS(Input[Cost Study Aca Sppt],Input[Institution Name],A32) -> 775528 | G32: =SUMIFS(Input[Stu Svc E&G],Input[Institution Name],A32) +SUMIFS(Input[Stu Svc Desg],Input[Institution Name],A32) +SUMIFS(Input[Stu Svc R Exp],Input[Institution Name],A32) +SUMIFS(Input[Stu Svc Unexp],Input[Institution Name],A32) +SUMIFS(Input[Cost Study Stu Svcs],Input[Institution Name],A32) -SUMIFS(Input[Cost Study Intr C. Ath],Input[Institution Name],A32) -> 1322674 | H32: =SUMIFS(Input[Inst. Spt E&G],Input[Institution Name],A32) +SUMIFS(Input[Inst. Spt Desg],Input[Institution Name],A32) +SUMIFS(Input[Inst. Spt R Exp],Input[Institution Name],A32) +SUMIFS(Input[Inst. Spt Unexp],Input[Institution Name],A32) +SUMIFS(Input[Cost Study Inst. Sppt],Input[Institution Name],A32) -> 1037205
A33: Texas State Technical College - Waco | B33: 550 | C33: 3634 | D33: =SUMIFS(Input[Instr E&G],Input[Institution Name],A33) +SUMIFS(Input[Instr Desg],Input[Institution Name],A33) +SUMIFS(Input[Instr R Exp],Input[Institution Name],A33) +SUMIFS(Input[Instr Unexp],Input[Institution Name],A33) +SUMIFS(Input[Cost Study Inst.],Input[Institution Name],A33) -> 46702536 | E33: =SUMIFS(Input[Res E&G],Input[Institution Name],A33) +SUMIFS(Input[Res Desg],Input[Institution Name],A33) +SUMIFS(Input[Res R Exp],Input[Institution Name],A33) +SUMIFS(Input[Res Unexp],Input[Institution Name],A33) +SUMIFS(Input[Cost Study Resh],Input[Institution Name],A33) -> 21198 | F33: =SUMIFS(Input[Acad Sup E&G],Input[Institution Name],A33) +SUMIFS(Input[Acad Sup Desg],Input[Institution Name],A33) +SUMIFS(Input[Acad Sup R Exp],Input[Institution Name],A33) +SUMIFS(Input[Acad Sup Unexp],Input[Institution Name],A33) +SUMIFS(Input[Cost Study Aca Sppt],Input[Institution Name],A33) -> 9143956 | G33: =SUMIFS(Input[Stu Svc E&G],Input[Institution Name],A33) +SUMIFS(Input[Stu Svc Desg],Input[Institution Name],A33) +SUMIFS(Input[Stu Svc R Exp],Input[Institution Name],A33) +SUMIFS(Input[Stu Svc Unexp],Input[Institution Name],A33) +SUMIFS(Input[Cost Study Stu Svcs],Input[Institution Name],A33) -SUMIFS(Input[Cost Study Intr C. Ath],Input[Institution Name],A33) -> 7439928 | H33: =SUMIFS(Input[Inst. Spt E&G],Input[Institution Name],A33) +SUMIFS(Input[Inst. Spt Desg],Input[Institution Name],A33) +SUMIFS(Input[Inst. Spt R Exp],Input[Institution Name],A33) +SUMIFS(Input[Inst. Spt Unexp],Input[Institution Name],A33) +SUMIFS(Input[Cost Study Inst. Sppt],Input[Institution Name],A33) -> 13185395
A34: Texas State Technical College - North Texas | B34: 552 | C34: 133965 | D34: =SUMIFS(Input[Instr E&G],Input[Institution Name],A34) +SUMIFS(Input[Instr Desg],Input[Institution Name],A34) +SUMIFS(Input[Instr R Exp],Input[Institution Name],A34) +SUMIFS(Input[Instr Unexp],Input[Institution Name],A34) +SUMIFS(Input[Cost Study Inst.],Input[Institution Name],A34) -> 4020909 | E34: =SUMIFS(Input[Res E&G],Input[Institution Name],A34) +SUMIFS(Input[Res Desg],Input[Institution Name],A34) +SUMIFS(Input[Res R Exp],Input[Institution Name],A34) +SUMIFS(Input[Res Unexp],Input[Institution Name],A34) +SUMIFS(Input[Cost Study Resh],Input[Institution Name],A34) -> 0 | F34: =SUMIFS(Input[Acad Sup E&G],Input[Institution Name],A34) +SUMIFS(Input[Acad Sup Desg],Input[Institution Name],A34) +SUMIFS(Input[Acad Sup R Exp],Input[Institution Name],A34) +SUMIFS(Input[Acad Sup Unexp],Input[Institution Name],A34) +SUMIFS(Input[Cost Study Aca Sppt],Input[Institution Name],A34) -> 607973 | G34: =SUMIFS(Input[Stu Svc E&G],Input[Institution Name],A34) +SUMIFS(Input[Stu Svc Desg],Input[Institution Name],A34) +SUMIFS(Input[Stu Svc R Exp],Input[Institution Name],A34) +SUMIFS(Input[Stu Svc Unexp],Input[Institution Name],A34) +SUMIFS(Input[Cost Study Stu Svcs],Input[Institution Name],A34) -SUMIFS(Input[Cost Study Intr C. Ath],Input[Institution Name],A34) -> 1048295 | H34: =SUMIFS(Input[Inst. Spt E&G],Input[Institution Name],A34) +SUMIFS(Input[Inst. Spt Desg],Input[Institution Name],A34) +SUMIFS(Input[Inst. Spt R Exp],Input[Institution Name],A34) +SUMIFS(Input[Inst. Spt Unexp],Input[Institution Name],A34) +SUMIFS(Input[Cost Study Inst. Sppt],Input[Institution Name],A34) -> 832055
A35: Texas State Technical College - Fort Bend | B35: 553 | C35: 203634 | D35: =SUMIFS(Input[Instr E&G],Input[Institution Name],A35) +SUMIFS(Input[Instr Desg],Input[Institution Name],A35) +SUMIFS(Input[Instr R Exp],Input[Institution Name],A35) +SUMIFS(Input[Instr Unexp],Input[Institution Name],A35) +SUMIFS(Input[Cost Study Inst.],Input[Institution Name],A35) -> 5020703 | E35: =SUMIFS(Input[Res E&G],Input[Institution Name],A35) +SUMIFS(Input[Res Desg],Input[Institution Name],A35) +SUMIFS(Input[Res R Exp],Input[Institution Name],A35) +SUMIFS(Input[Res Unexp],Input[Institution Name],A35) +SUMIFS(Input[Cost Study Resh],Input[Institution Name],A35) -> 0 | F35: =SUMIFS(Input[Acad Sup E&G],Input[Institution Name],A35) +SUMIFS(Input[Acad Sup Desg],Input[Institution Name],A35) +SUMIFS(Input[Acad Sup R Exp],Input[Institution Name],A35) +SUMIFS(Input[Acad Sup Unexp],Input[Institution Name],A35) +SUMIFS(Input[Cost Study Aca Sppt],Input[Institution Name],A35) -> 1228550 | G35: =SUMIFS(Input[Stu Svc E&G],Input[Institution Name],A35) +SUMIFS(Input[Stu Svc Desg],Input[Institution Name],A35) +SUMIFS(Input[Stu Svc R Exp],Input[Institution Name],A35) +SUMIFS(Input[Stu Svc Unexp],Input[Institution Name],A35) +SUMIFS(Input[Cost Study Stu Svcs],Input[Institution Name],A35) -SUMIFS(Input[Cost Study Intr C. Ath],Input[Institution Name],A35) -> 1850780 | H35: =SUMIFS(Input[Inst. Spt E&G],Input[Institution Name],A35) +SUMIFS(Input[Inst. Spt Desg],Input[Institution Name],A35) +SUMIFS(Input[Inst. Spt R Exp],Input[Institution Name],A35) +SUMIFS(Input[Inst. Spt Unexp],Input[Institution Name],A35) +SUMIFS(Input[Cost Study Inst. Sppt],Input[Institution Name],A35) -> 944628
A36: Texas State Technical College - System | B36: 555 | C36: 9642 | D36: =SUMIFS(Input[Instr E&G],Input[Institution Name],A36) +SUMIFS(Input[Instr Desg],Input[Institution Name],A36) +SUMIFS(Input[Instr R Exp],Input[Institution Name],A36) +SUMIFS(Input[Instr Unexp],Input[Institution Name],A36) +SUMIFS(Input[Cost Study Inst.],Input[Institution Name],A36) -> 6005340 | E36: =SUMIFS(Input[Res E&G],Input[Institution Name],A36) +SUMIFS(Input[Res Desg],Input[Institution Name],A36) +SUMIFS(Input[Res R Exp],Input[Institution Name],A36) +SUMIFS(Input[Res Unexp],Input[Institution Name],A36) +SUMIFS(Input[Cost Study Resh],Input[Institution Name],A36) -> 2957397 | F36: =SUMIFS(Input[Acad Sup E&G],Input[Institution Name],A36) +SUMIFS(Input[Acad Sup Desg],Input[Institution Name],A36) +SUMIFS(Input[Acad Sup R Exp],Input[Institution Name],A36) +SUMIFS(Input[Acad Sup Unexp],Input[Institution Name],A36) +SUMIFS(Input[Cost Study Aca Sppt],Input[Institution Name],A36) -> 1097532 | G36: =SUMIFS(Input[Stu Svc E&G],Input[Institution Name],A36) +SUMIFS(Input[Stu Svc Desg],Input[Institution Name],A36) +SUMIFS(Input[Stu Svc R Exp],Input[Institution Name],A36) +SUMIFS(Input[Stu Svc Unexp],Input[Institution Name],A36) +SUMIFS(Input[Cost Study Stu Svcs],Input[Institution Name],A36) -SUMIFS(Input[Cost Study Intr C. Ath],Input[Institution Name],A36) -> 1432765 | H36: =SUMIFS(Input[Inst. Spt E&G],Input[Institution Name],A36) +SUMIFS(Input[Inst. Spt Desg],Input[Institution Name],A36) +SUMIFS(Input[Inst. Spt R Exp],Input[Institution Name],A36) +SUMIFS(Input[Inst. Spt Unexp],Input[Institution Name],A36) +SUMIFS(Input[Cost Study Inst. Sppt],Input[Institution Name],A36) -> 11387749
D37: =SUBTOTAL(109,CostStudyTSTC[Instruction]) -> 149803593 | E37: =SUBTOTAL(109,CostStudyTSTC[Research]) -> 3080441 | F37: =SUBTOTAL(109,CostStudyTSTC[Academic Support]) -> 25677575 | G37: =SUBTOTAL(109,CostStudyTSTC[Student Services]) -> 27729037 | H37: =SUBTOTAL(109,CostStudyTSTC[Institutional Support]) -> 49581964
A40: Texas Public Universities
A41: =Hidden!$A$4 -> 2024-05-02
A43: Institution Name | B43: Sort | C43: FICE | D43: Instruction | E43: Research | F43: Academic Support | G43: Student Services | H43: Institutional Support
A44: The University of Texas at Arlington | B44: 40 | C44: 3656 | D44: =SUMIFS(Input[Instr E&G],Input[Institution Name],A44) +SUMIFS(Input[Instr Desg],Input[Institution Name],A44) +SUMIFS(Input[Instr R Exp],Input[Institution Name],A44) +SUMIFS(Input[Instr Unexp],Input[Institution Name],A44) +SUMIFS(Input[Cost Study Inst.],Input[Institution Name],A44) -> 217198225 | E44: =SUMIFS(Input[Res E&G],Input[Institution Name],A44) +SUMIFS(Input[Res Desg],Input[Institution Name],A44) +SUMIFS(Input[Res R Exp],Input[Institution Name],A44) +SUMIFS(Input[Res Unexp],Input[Institution Name],A44) +SUMIFS(Input[Cost Study Resh],Input[Institution Name],A44) -> 122804998 | F44: =SUMIFS(Input[Acad Sup E&G],Input[Institution Name],A44) +SUMIFS(Input[Acad Sup Desg],Input[Institution Name],A44) +SUMIFS(Input[Acad Sup R Exp],Input[Institution Name],A44) +SUMIFS(Input[Acad Sup Unexp],Input[Institution Name],A44) +SUMIFS(Input[Cost Study Aca Sppt],Input[Institution Name],A44) -> 71092609 | G44: =SUMIFS(Input[Stu Svc E&G],Input[Institution Name],A44) +SUMIFS(Input[Stu Svc Desg],Input[Institution Name],A44) +SUMIFS(Input[Stu Svc R Exp],Input[Institution Name],A44) +SUMIFS(Input[Stu Svc Unexp],Input[Institution Name],A44) +SUMIFS(Input[Cost Study Stu Svcs],Input[Institution Name],A44) -SUMIFS(Input[Cost Study Intr C. Ath],Input[Institution Name],A44) -> 83853027 | H44: =SUMIFS(Input[Inst. Spt E&G],Input[Institution Name],A44) +SUMIFS(Input[Inst. Spt Desg],Input[Institution Name],A44) +SUMIFS(Input[Inst. Spt R Exp],Input[Institution Name],A44) +SUMIFS(Input[Inst. Spt Unexp],Input[Institution Name],A44) +SUMIFS(Input[Cost Study Inst. Sppt],Input[Institution Name],A44) -> 59419741
A45: The University of Texas at Austin (A+H) | B45: 51 | C45: 3658 | D45: =SUMIFS(Input[Instr E&G],Input[Institution Name],A45) +SUMIFS(Input[Instr Desg],Input[Institution Name],A45) +SUMIFS(Input[Instr R Exp],Input[Institution Name],A45) +SUMIFS(Input[Instr Unexp],Input[Institution Name],A45) +SUMIFS(Input[Cost Study Inst.],Input[Institution Name],A45) -> 769413015 | E45: =SUMIFS(Input[Res E&G],Input[Institution Name],A45) +SUMIFS(Input[Res Desg],Input[Institution Name],A45) +SUMIFS(Input[Res R Exp],Input[Institution Name],A45) +SUMIFS(Input[Res Unexp],Input[Institution Name],A45) +SUMIFS(Input[Cost Study Resh],Input[Institution Name],A45) -> 761152633 | F45: =SUMIFS(Input[Acad Sup E&G],Input[Institution Name],A45) +SUMIFS(Input[Acad Sup Desg],Input[Institution Name],A45) +SUMIFS(Input[Acad Sup R Exp],Input[Institution Name],A45) +SUMIFS(Input[Acad Sup Unexp],Input[Institution Name],A45) +SUMIFS(Input[Cost Study Aca Sppt],Input[Institution Name],A45) -> 513777760 | G45: =SUMIFS(Input[Stu Svc E&G],Input[Institution Name],A45) +SUMIFS(Input[Stu Svc Desg],Input[Institution Name],A45) +SUMIFS(Input[Stu Svc R Exp],Input[Institution Name],A45) +SUMIFS(Input[Stu Svc Unexp],Input[Institution Name],A45) +SUMIFS(Input[Cost Study Stu Svcs],Input[Institution Name],A45) -SUMIFS(Input[Cost Study Intr C. Ath],Input[Institution Name],A45) -> 47771618 | H45: =SUMIFS(Input[Inst. Spt E&G],Input[Institution Name],A45) +SUMIFS(Input[Inst. Spt Desg],Input[Institution Name],A45) +SUMIFS(Input[Inst. Spt R Exp],Input[Institution Name],A45) +SUMIFS(Input[Inst. Spt Unexp],Input[Institution Name],A45) +SUMIFS(Input[Cost Study Inst. Sppt],Input[Institution Name],A45) -> 238909570
A46: The University of Texas at Dallas | B46: 60 | C46: 9741 | D46: =SUMIFS(Input[Instr E&G],Input[Institution Name],A46) +SUMIFS(Input[Instr Desg],Input[Institution Name],A46) +SUMIFS(Input[Instr R Exp],Input[Institution Name],A46) +SUMIFS(Input[Instr Unexp],Input[Institution Name],A46) +SUMIFS(Input[Cost Study Inst.],Input[Institution Name],A46) -> 224025395 | E46: =SUMIFS(Input[Res E&G],Input[Institution Name],A46) +SUMIFS(Input[Res Desg],Input[Institution Name],A46) +SUMIFS(Input[Res R Exp],Input[Institution Name],A46) +SUMIFS(Input[Res Unexp],Input[Institution Name],A46) +SUMIFS(Input[Cost Study Resh],Input[Institution Name],A46) -> 125757994 | F46: =SUMIFS(Input[Acad Sup E&G],Input[Institution Name],A46) +SUMIFS(Input[Acad Sup Desg],Input[Institution Name],A46) +SUMIFS(Input[Acad Sup R Exp],Input[Institution Name],A46) +SUMIFS(Input[Acad Sup Unexp],Input[Institution Name],A46) +SUMIFS(Input[Cost Study Aca Sppt],Input[Institution Name],A46) -> 88053560 | G46: =SUMIFS(Input[Stu Svc E&G],Input[Institution Name],A46) +SUMIFS(Input[Stu Svc Desg],Input[Institution Name],A46) +SUMIFS(Input[Stu Svc R Exp],Input[Institution Name],A46) +SUMIFS(Input[Stu Svc Unexp],Input[Institution Name],A46) +SUMIFS(Input[Cost Study Stu Svcs],Input[Institution Name],A46) -SUMIFS(Input[Cost Study Intr C. Ath],Input[Institution Name],A46) -> 22831353 | H46: =SUMIFS(Input[Inst. Spt E&G],Input[Institution Name],A46) +SUMIFS(Input[Inst. Spt Desg],Input[Institution Name],A46) +SUMIFS(Input[Inst. Spt R Exp],Input[Institution Name],A46) +SUMIFS(Input[Inst. Spt Unexp],Input[Institution Name],A46) +SUMIFS(Input[Cost Study Inst. Sppt],Input[Institution Name],A46) -> 50975011
A47: The University of Texas at El Paso | B47: 70 | C47: 3661 | D47: =SUMIFS(Input[Instr E&G],Input[Institution Name],A47) +SUMIFS(Input[Instr Desg],Input[Institution Name],A47) +SUMIFS(Input[Instr R Exp],Input[Institution Name],A47) +SUMIFS(Input[Instr Unexp],Input[Institution Name],A47) +SUMIFS(Input[Cost Study Inst.],Input[Institution Name],A47) -> 118441229 | E47: =SUMIFS(Input[Res E&G],Input[Institution Name],A47) +SUMIFS(Input[Res Desg],Input[Institution Name],A47) +SUMIFS(Input[Res R Exp],Input[Institution Name],A47) +SUMIFS(Input[Res Unexp],Input[Institution Name],A47) +SUMIFS(Input[Cost Study Resh],Input[Institution Name],A47) -> 125578856 | F47: =SUMIFS(Input[Acad Sup E&G],Input[Institution Name],A47) +SUMIFS(Input[Acad Sup Desg],Input[Institution Name],A47) +SUMIFS(Input[Acad Sup R Exp],Input[Institution Name],A47) +SUMIFS(Input[Acad Sup Unexp],Input[Institution Name],A47) +SUMIFS(Input[Cost Study Aca Sppt],Input[Institution Name],A47) -> 28439410 | G47: =SUMIFS(Input[Stu Svc E&G],Input[Institution Name],A47) +SUMIFS(Input[Stu Svc Desg],Input[Institution Name],A47) +SUMIFS(Input[Stu Svc R Exp],Input[Institution Name],A47) +SUMIFS(Input[Stu Svc Unexp],Input[Institution Name],A47) +SUMIFS(Input[Cost Study Stu Svcs],Input[Institution Name],A47) -SUMIFS(Input[Cost Study Intr C. Ath],Input[Institution Name],A47) -> 24481567 | H47: =SUMIFS(Input[Inst. Spt E&G],Input[Institution Name],A47) +SUMIFS(Input[Inst. Spt Desg],Input[Institution Name],A47) +SUMIFS(Input[Inst. Spt R Exp],Input[Institution Name],A47) +SUMIFS(Input[Inst. Spt Unexp],Input[Institution Name],A47) +SUMIFS(Input[Cost Study Inst. Sppt],Input[Institution Name],A47) -> 37188215
A48: The University of Texas at Rio Grande Valley (A+H) | B48: 91 | C48: 3599 | D48: =SUMIFS(Input[Instr E&G],Input[Institution Name],A48) +SUMIFS(Input[Instr Desg],Input[Institution Name],A48) +SUMIFS(Input[Instr R Exp],Input[Institution Name],A48) +SUMIFS(Input[Instr Unexp],Input[Institution Name],A48) +SUMIFS(Input[Cost Study Inst.],Input[Institution Name],A48) -> 163252989 | E48: =SUMIFS(Input[Res E&G],Input[Institution Name],A48) +SUMIFS(Input[Res Desg],Input[Institution Name],A48) +SUMIFS(Input[Res R Exp],Input[Institution Name],A48) +SUMIFS(Input[Res Unexp],Input[Institution Name],A48) +SUMIFS(Input[Cost Study Resh],Input[Institution Name],A48) -> 72707457 | F48: =SUMIFS(Input[Acad Sup E&G],Input[Institution Name],A48) +SUMIFS(Input[Acad Sup Desg],Input[Institution Name],A48) +SUMIFS(Input[Acad Sup R Exp],Input[Institution Name],A48) +SUMIFS(Input[Acad Sup Unexp],Input[Institution Name],A48) +SUMIFS(Input[Cost Study Aca Sppt],Input[Institution Name],A48) -> 59458191 | G48: =SUMIFS(Input[Stu Svc E&G],Input[Institution Name],A48) +SUMIFS(Input[Stu Svc Desg],Input[Institution Name],A48) +SUMIFS(Input[Stu Svc R Exp],Input[Institution Name],A48) +SUMIFS(Input[Stu Svc Unexp],Input[Institution Name],A48) +SUMIFS(Input[Cost Study Stu Svcs],Input[Institution Name],A48) -SUMIFS(Input[Cost Study Intr C. Ath],Input[Institution Name],A48) -> 33132317 | H48: =SUMIFS(Input[Inst. Spt E&G],Input[Institution Name],A48) +SUMIFS(Input[Inst. Spt Desg],Input[Institution Name],A48) +SUMIFS(Input[Inst. Spt R Exp],Input[Institution Name],A48) +SUMIFS(Input[Inst. Spt Unexp],Input[Institution Name],A48) +SUMIFS(Input[Cost Study Inst. Sppt],Input[Institution Name],A48) -> 40411036
A49: The University of Texas of the Permian Basin | B49: 100 | C49: 9930 | D49: =SUMIFS(Input[Instr E&G],Input[Institution Name],A49) +SUMIFS(Input[Instr Desg],Input[Institution Name],A49) +SUMIFS(Input[Instr R Exp],Input[Institution Name],A49) +SUMIFS(Input[Instr Unexp],Input[Institution Name],A49) +SUMIFS(Input[Cost Study Inst.],Input[Institution Name],A49) -> 33003404 | E49: =SUMIFS(Input[Res E&G],Input[Institution Name],A49) +SUMIFS(Input[Res Desg],Input[Institution Name],A49) +SUMIFS(Input[Res R Exp],Input[Institution Name],A49) +SUMIFS(Input[Res Unexp],Input[Institution Name],A49) +SUMIFS(Input[Cost Study Resh],Input[Institution Name],A49) -> 3349140 | F49: =SUMIFS(Input[Acad Sup E&G],Input[Institution Name],A49) +SUMIFS(Input[Acad Sup Desg],Input[Institution Name],A49) +SUMIFS(Input[Acad Sup R Exp],Input[Institution Name],A49) +SUMIFS(Input[Acad Sup Unexp],Input[Institution Name],A49) +SUMIFS(Input[Cost Study Aca Sppt],Input[Institution Name],A49) -> 8655671 | G49: =SUMIFS(Input[Stu Svc E&G],Input[Institution Name],A49) +SUMIFS(Input[Stu Svc Desg],Input[Institution Name],A49) +SUMIFS(Input[Stu Svc R Exp],Input[Institution Name],A49) +SUMIFS(Input[Stu Svc Unexp],Input[Institution Name],A49) +SUMIFS(Input[Cost Study Stu Svcs],Input[Institution Name],A49) -SUMIFS(Input[Cost Study Intr C. Ath],Input[Institution Name],A49) -> 4012173 | H49: =SUMIFS(Input[Inst. Spt E&G],Input[Institution Name],A49) +SUMIFS(Input[Inst. Spt Desg],Input[Institution Name],A49) +SUMIFS(Input[Inst. Spt R Exp],Input[Institution Name],A49) +SUMIFS(Input[Inst. Spt Unexp],Input[Institution Name],A49) +SUMIFS(Input[Cost Study Inst. Sppt],Input[Institution Name],A49) -> 14349616
A50: The University of Texas at San Antonio | B50: 110 | C50: 10115 | D50: =SUMIFS(Input[Instr E&G],Input[Institution Name],A50) +SUMIFS(Input[Instr Desg],Input[Institution Name],A50) +SUMIFS(Input[Instr R Exp],Input[Institution Name],A50) +SUMIFS(Input[Instr Unexp],Input[Institution Name],A50) +SUMIFS(Input[Cost Study Inst.],Input[Institution Name],A50) -> 136531623 | E50: =SUMIFS(Input[Res E&G],Input[Institution Name],A50) +SUMIFS(Input[Res Desg],Input[Institution Name],A50) +SUMIFS(Input[Res R Exp],Input[Institution Name],A50) +SUMIFS(Input[Res Unexp],Input[Institution Name],A50) +SUMIFS(Input[Cost Study Resh],Input[Institution Name],A50) -> 138943407 | F50: =SUMIFS(Input[Acad Sup E&G],Input[Institution Name],A50) +SUMIFS(Input[Acad Sup Desg],Input[Institution Name],A50) +SUMIFS(Input[Acad Sup R Exp],Input[Institution Name],A50) +SUMIFS(Input[Acad Sup Unexp],Input[Institution Name],A50) +SUMIFS(Input[Cost Study Aca Sppt],Input[Institution Name],A50) -> 89596058 | G50: =SUMIFS(Input[Stu Svc E&G],Input[Institution Name],A50) +SUMIFS(Input[Stu Svc Desg],Input[Institution Name],A50) +SUMIFS(Input[Stu Svc R Exp],Input[Institution Name],A50) +SUMIFS(Input[Stu Svc Unexp],Input[Institution Name],A50) +SUMIFS(Input[Cost Study Stu Svcs],Input[Institution Name],A50) -SUMIFS(Input[Cost Study Intr C. Ath],Input[Institution Name],A50) -> 41120619 | H50: =SUMIFS(Input[Inst. Spt E&G],Input[Institution Name],A50) +SUMIFS(Input[Inst. Spt Desg],Input[Institution Name],A50) +SUMIFS(Input[Inst. Spt R Exp],Input[Institution Name],A50) +SUMIFS(Input[Inst. Spt Unexp],Input[Institution Name],A50) +SUMIFS(Input[Cost Study Inst. Sppt],Input[Institution Name],A50) -> 47647646
A51: The University of Texas at Tyler | B51: 120 | C51: 11163 | D51: =SUMIFS(Input[Instr E&G],Input[Institution Name],A51) +SUMIFS(Input[Instr Desg],Input[Institution Name],A51) +SUMIFS(Input[Instr R Exp],Input[Institution Name],A51) +SUMIFS(Input[Instr Unexp],Input[Institution Name],A51) +SUMIFS(Input[Cost Study Inst.],Input[Institution Name],A51) -> 71601206 | E51: =SUMIFS(Input[Res E&G],Input[Institution Name],A51) +SUMIFS(Input[Res Desg],Input[Institution Name],A51) +SUMIFS(Input[Res R Exp],Input[Institution Name],A51) +SUMIFS(Input[Res Unexp],Input[Institution Name],A51) +SUMIFS(Input[Cost Study Resh],Input[Institution Name],A51) -> 3969899 | F51: =SUMIFS(Input[Acad Sup E&G],Input[Institution Name],A51) +SUMIFS(Input[Acad Sup Desg],Input[Institution Name],A51) +SUMIFS(Input[Acad Sup R Exp],Input[Institution Name],A51) +SUMIFS(Input[Acad Sup Unexp],Input[Institution Name],A51) +SUMIFS(Input[Cost Study Aca Sppt],Input[Institution Name],A51) -> 16833149 | G51: =SUMIFS(Input[Stu Svc E&G],Input[Institution Name],A51) +SUMIFS(Input[Stu Svc Desg],Input[Institution Name],A51) +SUMIFS(Input[Stu Svc R Exp],Input[Institution Name],A51) +SUMIFS(Input[Stu Svc Unexp],Input[Institution Name],A51) +SUMIFS(Input[Cost Study Stu Svcs],Input[Institution Name],A51) -SUMIFS(Input[Cost Study Intr C. Ath],Input[Institution Name],A51) -> 15315286 | H51: =SUMIFS(Input[Inst. Spt E&G],Input[Institution Name],A51) +SUMIFS(Input[Inst. Spt Desg],Input[Institution Name],A51) +SUMIFS(Input[Inst. Spt R Exp],Input[Institution Name],A51) +SUMIFS(Input[Inst. Spt Unexp],Input[Institution Name],A51) +SUMIFS(Input[Cost Study Inst. Sppt],Input[Institution Name],A51) -> 14450655
A52: Texas A&M University | B52: 130 | C52: 3632 | D52: =SUMIFS(Input[Instr E&G],Input[Institution Name],A52) +SUMIFS(Input[Instr Desg],Input[Institution Name],A52) +SUMIFS(Input[Instr R Exp],Input[Institution Name],A52) +SUMIFS(Input[Instr Unexp],Input[Institution Name],A52) +SUMIFS(Input[Cost Study Inst.],Input[Institution Name],A52) -> 684974607 | E52: =SUMIFS(Input[Res E&G],Input[Institution Name],A52) +SUMIFS(Input[Res Desg],Input[Institution Name],A52) +SUMIFS(Input[Res R Exp],Input[Institution Name],A52) +SUMIFS(Input[Res Unexp],Input[Institution Name],A52) +SUMIFS(Input[Cost Study Resh],Input[Institution Name],A52) -> 296876859 | F52: =SUMIFS(Input[Acad Sup E&G],Input[Institution Name],A52) +SUMIFS(Input[Acad Sup Desg],Input[Institution Name],A52) +SUMIFS(Input[Acad Sup R Exp],Input[Institution Name],A52) +SUMIFS(Input[Acad Sup Unexp],Input[Institution Name],A52) +SUMIFS(Input[Cost Study Aca Sppt],Input[Institution Name],A52) -> 310762033 | G52: =SUMIFS(Input[Stu Svc E&G],Input[Institution Name],A52) +SUMIFS(Input[Stu Svc Desg],Input[Institution Name],A52) +SUMIFS(Input[Stu Svc R Exp],Input[Institution Name],A52) +SUMIFS(Input[Stu Svc Unexp],Input[Institution Name],A52) +SUMIFS(Input[Cost Study Stu Svcs],Input[Institution Name],A52) -SUMIFS(Input[Cost Study Intr C. Ath],Input[Institution Name],A52) -> 88001771 | H52: =SUMIFS(Input[Inst. Spt E&G],Input[Institution Name],A52) +SUMIFS(Input[Inst. Spt Desg],Input[Institution Name],A52) +SUMIFS(Input[Inst. Spt R Exp],Input[Institution Name],A52) +SUMIFS(Input[Inst. Spt Unexp],Input[Institution Name],A52) +SUMIFS(Input[Cost Study Inst. Sppt],Input[Institution Name],A52) -> 110745389
A53: Texas A&M University at Galveston | B53: 140 | C53: 10298 | D53: =SUMIFS(Input[Instr E&G],Input[Institution Name],A53) +SUMIFS(Input[Instr Desg],Input[Institution Name],A53) +SUMIFS(Input[Instr R Exp],Input[Institution Name],A53) +SUMIFS(Input[Instr Unexp],Input[Institution Name],A53) +SUMIFS(Input[Cost Study Inst.],Input[Institution Name],A53) -> 26628142 | E53: =SUMIFS(Input[Res E&G],Input[Institution Name],A53) +SUMIFS(Input[Res Desg],Input[Institution Name],A53) +SUMIFS(Input[Res R Exp],Input[Institution Name],A53) +SUMIFS(Input[Res Unexp],Input[Institution Name],A53) +SUMIFS(Input[Cost Study Resh],Input[Institution Name],A53) -> 14128757 | F53: =SUMIFS(Input[Acad Sup E&G],Input[Institution Name],A53) +SUMIFS(Input[Acad Sup Desg],Input[Institution Name],A53) +SUMIFS(Input[Acad Sup R Exp],Input[Institution Name],A53) +SUMIFS(Input[Acad Sup Unexp],Input[Institution Name],A53) +SUMIFS(Input[Cost Study Aca Sppt],Input[Institution Name],A53) -> 7071011 | G53: =SUMIFS(Input[Stu Svc E&G],Input[Institution Name],A53) +SUMIFS(Input[Stu Svc Desg],Input[Institution Name],A53) +SUMIFS(Input[Stu Svc R Exp],Input[Institution Name],A53) +SUMIFS(Input[Stu Svc Unexp],Input[Institution Name],A53) +SUMIFS(Input[Cost Study Stu Svcs],Input[Institution Name],A53) -SUMIFS(Input[Cost Study Intr C. Ath],Input[Institution Name],A53) -> 3481856 | H53: =SUMIFS(Input[Inst. Spt E&G],Input[Institution Name],A53) +SUMIFS(Input[Inst. Spt Desg],Input[Institution Name],A53) +SUMIFS(Input[Inst. Spt R Exp],Input[Institution Name],A53) +SUMIFS(Input[Inst. Spt Unexp],Input[Institution Name],A53) +SUMIFS(Input[Cost Study Inst. Sppt],Input[Institution Name],A53) -> 7450518
A54: Prairie View A&M University | B54: 150 | C54: 3630 | D54: =SUMIFS(Input[Instr E&G],Input[Institution Name],A54) +SUMIFS(Input[Instr Desg],Input[Institution Name],A54) +SUMIFS(Input[Instr R Exp],Input[Institution Name],A54) +SUMIFS(Input[Instr Unexp],Input[Institution Name],A54) +SUMIFS(Input[Cost Study Inst.],Input[Institution Name],A54) -> 56810270 | E54: =SUMIFS(Input[Res E&G],Input[Institution Name],A54) +SUMIFS(Input[Res Desg],Input[Institution Name],A54) +SUMIFS(Input[Res R Exp],Input[Institution Name],A54) +SUMIFS(Input[Res Unexp],Input[Institution Name],A54) +SUMIFS(Input[Cost Study Resh],Input[Institution Name],A54) -> 22571219 | F54: =SUMIFS(Input[Acad Sup E&G],Input[Institution Name],A54) +SUMIFS(Input[Acad Sup Desg],Input[Institution Name],A54) +SUMIFS(Input[Acad Sup R Exp],Input[Institution Name],A54) +SUMIFS(Input[Acad Sup Unexp],Input[Institution Name],A54) +SUMIFS(Input[Cost Study Aca Sppt],Input[Institution Name],A54) -> 32566463 | G54: =SUMIFS(Input[Stu Svc E&G],Input[Institution Name],A54) +SUMIFS(Input[Stu Svc Desg],Input[Institution Name],A54) +SUMIFS(Input[Stu Svc R Exp],Input[Institution Name],A54) +SUMIFS(Input[Stu Svc Unexp],Input[Institution Name],A54) +SUMIFS(Input[Cost Study Stu Svcs],Input[Institution Name],A54) -SUMIFS(Input[Cost Study Intr C. Ath],Input[Institution Name],A54) -> 27743083 | H54: =SUMIFS(Input[Inst. Spt E&G],Input[Institution Name],A54) +SUMIFS(Input[Inst. Spt Desg],Input[Institution Name],A54) +SUMIFS(Input[Inst. Spt R Exp],Input[Institution Name],A54) +SUMIFS(Input[Inst. Spt Unexp],Input[Institution Name],A54) +SUMIFS(Input[Cost Study Inst. Sppt],Input[Institution Name],A54) -> 22654425
A55: Tarleton State University | B55: 160 | C55: 3631 | D55: =SUMIFS(Input[Instr E&G],Input[Institution Name],A55) +SUMIFS(Input[Instr Desg],Input[Institution Name],A55) +SUMIFS(Input[Instr R Exp],Input[Institution Name],A55) +SUMIFS(Input[Instr Unexp],Input[Institution Name],A55) +SUMIFS(Input[Cost Study Inst.],Input[Institution Name],A55) -> 54386971 | E55: =SUMIFS(Input[Res E&G],Input[Institution Name],A55) +SUMIFS(Input[Res Desg],Input[Institution Name],A55) +SUMIFS(Input[Res R Exp],Input[Institution Name],A55) +SUMIFS(Input[Res Unexp],Input[Institution Name],A55) +SUMIFS(Input[Cost Study Resh],Input[Institution Name],A55) -> 20871966 | F55: =SUMIFS(Input[Acad Sup E&G],Input[Institution Name],A55) +SUMIFS(Input[Acad Sup Desg],Input[Institution Name],A55) +SUMIFS(Input[Acad Sup R Exp],Input[Institution Name],A55) +SUMIFS(Input[Acad Sup Unexp],Input[Institution Name],A55) +SUMIFS(Input[Cost Study Aca Sppt],Input[Institution Name],A55) -> 27280161 | G55: =SUMIFS(Input[Stu Svc E&G],Input[Institution Name],A55) +SUMIFS(Input[Stu Svc Desg],Input[Institution Name],A55) +SUMIFS(Input[Stu Svc R Exp],Input[Institution Name],A55) +SUMIFS(Input[Stu Svc Unexp],Input[Institution Name],A55) +SUMIFS(Input[Cost Study Stu Svcs],Input[Institution Name],A55) -SUMIFS(Input[Cost Study Intr C. Ath],Input[Institution Name],A55) -> 19414467 | H55: =SUMIFS(Input[Inst. Spt E&G],Input[Institution Name],A55) +SUMIFS(Input[Inst. Spt Desg],Input[Institution Name],A55) +SUMIFS(Input[Inst. Spt R Exp],Input[Institution Name],A55) +SUMIFS(Input[Inst. Spt Unexp],Input[Institution Name],A55) +SUMIFS(Input[Cost Study Inst. Sppt],Input[Institution Name],A55) -> 24562748
A56: Texas A&M University - Corpus Christi | B56: 170 | C56: 11161 | D56: =SUMIFS(Input[Instr E&G],Input[Institution Name],A56) +SUMIFS(Input[Instr Desg],Input[Institution Name],A56) +SUMIFS(Input[Instr R Exp],Input[Institution Name],A56) +SUMIFS(Input[Instr Unexp],Input[Institution Name],A56) +SUMIFS(Input[Cost Study Inst.],Input[Institution Name],A56) -> 69452609 | E56: =SUMIFS(Input[Res E&G],Input[Institution Name],A56) +SUMIFS(Input[Res Desg],Input[Institution Name],A56) +SUMIFS(Input[Res R Exp],Input[Institution Name],A56) +SUMIFS(Input[Res Unexp],Input[Institution Name],A56) +SUMIFS(Input[Cost Study Resh],Input[Institution Name],A56) -> 35476086 | F56: =SUMIFS(Input[Acad Sup E&G],Input[Institution Name],A56) +SUMIFS(Input[Acad Sup Desg],Input[Institution Name],A56) +SUMIFS(Input[Acad Sup R Exp],Input[Institution Name],A56) +SUMIFS(Input[Acad Sup Unexp],Input[Institution Name],A56) +SUMIFS(Input[Cost Study Aca Sppt],Input[Institution Name],A56) -> 35892219 | G56: =SUMIFS(Input[Stu Svc E&G],Input[Institution Name],A56) +SUMIFS(Input[Stu Svc Desg],Input[Institution Name],A56) +SUMIFS(Input[Stu Svc R Exp],Input[Institution Name],A56) +SUMIFS(Input[Stu Svc Unexp],Input[Institution Name],A56) +SUMIFS(Input[Cost Study Stu Svcs],Input[Institution Name],A56) -SUMIFS(Input[Cost Study Intr C. Ath],Input[Institution Name],A56) -> 14695035 | H56: =SUMIFS(Input[Inst. Spt E&G],Input[Institution Name],A56) +SUMIFS(Input[Inst. Spt Desg],Input[Institution Name],A56) +SUMIFS(Input[Inst. Spt R Exp],Input[Institution Name],A56) +SUMIFS(Input[Inst. Spt Unexp],Input[Institution Name],A56) +SUMIFS(Input[Cost Study Inst. Sppt],Input[Institution Name],A56) -> 18659631
A57: Texas A&M University - Kingsville | B57: 180 | C57: 3639 | D57: =SUMIFS(Input[Instr E&G],Input[Institution Name],A57) +SUMIFS(Input[Instr Desg],Input[Institution Name],A57) +SUMIFS(Input[Instr R Exp],Input[Institution Name],A57) +SUMIFS(Input[Instr Unexp],Input[Institution Name],A57) +SUMIFS(Input[Cost Study Inst.],Input[Institution Name],A57) -> 44127440 | E57: =SUMIFS(Input[Res E&G],Input[Institution Name],A57) +SUMIFS(Input[Res Desg],Input[Institution Name],A57) +SUMIFS(Input[Res R Exp],Input[Institution Name],A57) +SUMIFS(Input[Res Unexp],Input[Institution Name],A57) +SUMIFS(Input[Cost Study Resh],Input[Institution Name],A57) -> 22796515 | F57: =SUMIFS(Input[Acad Sup E&G],Input[Institution Name],A57) +SUMIFS(Input[Acad Sup Desg],Input[Institution Name],A57) +SUMIFS(Input[Acad Sup R Exp],Input[Institution Name],A57) +SUMIFS(Input[Acad Sup Unexp],Input[Institution Name],A57) +SUMIFS(Input[Cost Study Aca Sppt],Input[Institution Name],A57) -> 15554687 | G57: =SUMIFS(Input[Stu Svc E&G],Input[Institution Name],A57) +SUMIFS(Input[Stu Svc Desg],Input[Institution Name],A57) +SUMIFS(Input[Stu Svc R Exp],Input[Institution Name],A57) +SUMIFS(Input[Stu Svc Unexp],Input[Institution Name],A57) +SUMIFS(Input[Cost Study Stu Svcs],Input[Institution Name],A57) -SUMIFS(Input[Cost Study Intr C. Ath],Input[Institution Name],A57) -> 16698888 | H57: =SUMIFS(Input[Inst. Spt E&G],Input[Institution Name],A57) +SUMIFS(Input[Inst. Spt Desg],Input[Institution Name],A57) +SUMIFS(Input[Inst. Spt R Exp],Input[Institution Name],A57) +SUMIFS(Input[Inst. Spt Unexp],Input[Institution Name],A57) +SUMIFS(Input[Cost Study Inst. Sppt],Input[Institution Name],A57) -> 14016064
A58: Texas A&M International University | B58: 190 | C58: 9651 | D58: =SUMIFS(Input[Instr E&G],Input[Institution Name],A58) +SUMIFS(Input[Instr Desg],Input[Institution Name],A58) +SUMIFS(Input[Instr R Exp],Input[Institution Name],A58) +SUMIFS(Input[Instr Unexp],Input[Institution Name],A58) +SUMIFS(Input[Cost Study Inst.],Input[Institution Name],A58) -> 35806256 | E58: =SUMIFS(Input[Res E&G],Input[Institution Name],A58) +SUMIFS(Input[Res Desg],Input[Institution Name],A58) +SUMIFS(Input[Res R Exp],Input[Institution Name],A58) +SUMIFS(Input[Res Unexp],Input[Institution Name],A58) +SUMIFS(Input[Cost Study Resh],Input[Institution Name],A58) -> 4526952 | F58: =SUMIFS(Input[Acad Sup E&G],Input[Institution Name],A58) +SUMIFS(Input[Acad Sup Desg],Input[Institution Name],A58) +SUMIFS(Input[Acad Sup R Exp],Input[Institution Name],A58) +SUMIFS(Input[Acad Sup Unexp],Input[Institution Name],A58) +SUMIFS(Input[Cost Study Aca Sppt],Input[Institution Name],A58) -> 24588867 | G58: =SUMIFS(Input[Stu Svc E&G],Input[Institution Name],A58) +SUMIFS(Input[Stu Svc Desg],Input[Institution Name],A58) +SUMIFS(Input[Stu Svc R Exp],Input[Institution Name],A58) +SUMIFS(Input[Stu Svc Unexp],Input[Institution Name],A58) +SUMIFS(Input[Cost Study Stu Svcs],Input[Institution Name],A58) -SUMIFS(Input[Cost Study Intr C. Ath],Input[Institution Name],A58) -> 13228665 | H58: =SUMIFS(Input[Inst. Spt E&G],Input[Institution Name],A58) +SUMIFS(Input[Inst. Spt Desg],Input[Institution Name],A58) +SUMIFS(Input[Inst. Spt R Exp],Input[Institution Name],A58) +SUMIFS(Input[Inst. Spt Unexp],Input[Institution Name],A58) +SUMIFS(Input[Cost Study Inst. Sppt],Input[Institution Name],A58) -> 8648708
A59: West Texas A&M University | B59: 200 | C59: 3665 | D59: =SUMIFS(Input[Instr E&G],Input[Institution Name],A59) +SUMIFS(Input[Instr Desg],Input[Institution Name],A59) +SUMIFS(Input[Instr R Exp],Input[Institution Name],A59) +SUMIFS(Input[Instr Unexp],Input[Institution Name],A59) +SUMIFS(Input[Cost Study Inst.],Input[Institution Name],A59) -> 48967517 | E59: =SUMIFS(Input[Res E&G],Input[Institution Name],A59) +SUMIFS(Input[Res Desg],Input[Institution Name],A59) +SUMIFS(Input[Res R Exp],Input[Institution Name],A59) +SUMIFS(Input[Res Unexp],Input[Institution Name],A59) +SUMIFS(Input[Cost Study Resh],Input[Institution Name],A59) -> 9372367 | F59: =SUMIFS(Input[Acad Sup E&G],Input[Institution Name],A59) +SUMIFS(Input[Acad Sup Desg],Input[Institution Name],A59) +SUMIFS(Input[Acad Sup R Exp],Input[Institution Name],A59) +SUMIFS(Input[Acad Sup Unexp],Input[Institution Name],A59) +SUMIFS(Input[Cost Study Aca Sppt],Input[Institution Name],A59) -> 24175338 | G59: =SUMIFS(Input[Stu Svc E&G],Input[Institution Name],A59) +SUMIFS(Input[Stu Svc Desg],Input[Institution Name],A59) +SUMIFS(Input[Stu Svc R Exp],Input[Institution Name],A59) +SUMIFS(Input[Stu Svc Unexp],Input[Institution Name],A59) +SUMIFS(Input[Cost Study Stu Svcs],Input[Institution Name],A59) -SUMIFS(Input[Cost Study Intr C. Ath],Input[Institution Name],A59) -> 12578744 | H59: =SUMIFS(Input[Inst. Spt E&G],Input[Institution Name],A59) +SUMIFS(Input[Inst. Spt Desg],Input[Institution Name],A59) +SUMIFS(Input[Inst. Spt R Exp],Input[Institution Name],A59) +SUMIFS(Input[Inst. Spt Unexp],Input[Institution Name],A59) +SUMIFS(Input[Cost Study Inst. Sppt],Input[Institution Name],A59) -> 13772671
A60: Texas A&M University - Commerce | B60: 210 | C60: 3565 | D60: =SUMIFS(Input[Instr E&G],Input[Institution Name],A60) +SUMIFS(Input[Instr Desg],Input[Institution Name],A60) +SUMIFS(Input[Instr R Exp],Input[Institution Name],A60) +SUMIFS(Input[Instr Unexp],Input[Institution Name],A60) +SUMIFS(Input[Cost Study Inst.],Input[Institution Name],A60) -> 61163971 | E60: =SUMIFS(Input[Res E&G],Input[Institution Name],A60) +SUMIFS(Input[Res Desg],Input[Institution Name],A60) +SUMIFS(Input[Res R Exp],Input[Institution Name],A60) +SUMIFS(Input[Res Unexp],Input[Institution Name],A60) +SUMIFS(Input[Cost Study Resh],Input[Institution Name],A60) -> 6774916 | F60: =SUMIFS(Input[Acad Sup E&G],Input[Institution Name],A60) +SUMIFS(Input[Acad Sup Desg],Input[Institution Name],A60) +SUMIFS(Input[Acad Sup R Exp],Input[Institution Name],A60) +SUMIFS(Input[Acad Sup Unexp],Input[Institution Name],A60) +SUMIFS(Input[Cost Study Aca Sppt],Input[Institution Name],A60) -> 17569884 | G60: =SUMIFS(Input[Stu Svc E&G],Input[Institution Name],A60) +SUMIFS(Input[Stu Svc Desg],Input[Institution Name],A60) +SUMIFS(Input[Stu Svc R Exp],Input[Institution Name],A60) +SUMIFS(Input[Stu Svc Unexp],Input[Institution Name],A60) +SUMIFS(Input[Cost Study Stu Svcs],Input[Institution Name],A60) -SUMIFS(Input[Cost Study Intr C. Ath],Input[Institution Name],A60) -> 19538010 | H60: =SUMIFS(Input[Inst. Spt E&G],Input[Institution Name],A60) +SUMIFS(Input[Inst. Spt Desg],Input[Institution Name],A60) +SUMIFS(Input[Inst. Spt R Exp],Input[Institution Name],A60) +SUMIFS(Input[Inst. Spt Unexp],Input[Institution Name],A60) +SUMIFS(Input[Cost Study Inst. Sppt],Input[Institution Name],A60) -> 15460900
A61: Texas A&M University - Texarkana | B61: 220 | C61: 29269 | D61: =SUMIFS(Input[Instr E&G],Input[Institution Name],A61) +SUMIFS(Input[Instr Desg],Input[Institution Name],A61) +SUMIFS(Input[Instr R Exp],Input[Institution Name],A61) +SUMIFS(Input[Instr Unexp],Input[Institution Name],A61) +SUMIFS(Input[Cost Study Inst.],Input[Institution Name],A61) -> 20724737 | E61: =SUMIFS(Input[Res E&G],Input[Institution Name],A61) +SUMIFS(Input[Res Desg],Input[Institution Name],A61) +SUMIFS(Input[Res R Exp],Input[Institution Name],A61) +SUMIFS(Input[Res Unexp],Input[Institution Name],A61) +SUMIFS(Input[Cost Study Resh],Input[Institution Name],A61) -> 15923 | F61: =SUMIFS(Input[Acad Sup E&G],Input[Institution Name],A61) +SUMIFS(Input[Acad Sup Desg],Input[Institution Name],A61) +SUMIFS(Input[Acad Sup R Exp],Input[Institution Name],A61) +SUMIFS(Input[Acad Sup Unexp],Input[Institution Name],A61) +SUMIFS(Input[Cost Study Aca Sppt],Input[Institution Name],A61) -> 6928011 | G61: =SUMIFS(Input[Stu Svc E&G],Input[Institution Name],A61) +SUMIFS(Input[Stu Svc Desg],Input[Institution Name],A61) +SUMIFS(Input[Stu Svc R Exp],Input[Institution Name],A61) +SUMIFS(Input[Stu Svc Unexp],Input[Institution Name],A61) +SUMIFS(Input[Cost Study Stu Svcs],Input[Institution Name],A61) -SUMIFS(Input[Cost Study Intr C. Ath],Input[Institution Name],A61) -> 4817418 | H61: =SUMIFS(Input[Inst. Spt E&G],Input[Institution Name],A61) +SUMIFS(Input[Inst. Spt Desg],Input[Institution Name],A61) +SUMIFS(Input[Inst. Spt R Exp],Input[Institution Name],A61) +SUMIFS(Input[Inst. Spt Unexp],Input[Institution Name],A61) +SUMIFS(Input[Cost Study Inst. Sppt],Input[Institution Name],A61) -> 6725868
A62: Texas A&M University - Central Texas | B62: 223 | C62: 42295 | D62: =SUMIFS(Input[Instr E&G],Input[Institution Name],A62) +SUMIFS(Input[Instr Desg],Input[Institution Name],A62) +SUMIFS(Input[Instr R Exp],Input[Institution Name],A62) +SUMIFS(Input[Instr Unexp],Input[Institution Name],A62) +SUMIFS(Input[Cost Study Inst.],Input[Institution Name],A62) -> 11858577 | E62: =SUMIFS(Input[Res E&G],Input[Institution Name],A62) +SUMIFS(Input[Res Desg],Input[Institution Name],A62) +SUMIFS(Input[Res R Exp],Input[Institution Name],A62) +SUMIFS(Input[Res Unexp],Input[Institution Name],A62) +SUMIFS(Input[Cost Study Resh],Input[Institution Name],A62) -> 1599710 | F62: =SUMIFS(Input[Acad Sup E&G],Input[Institution Name],A62) +SUMIFS(Input[Acad Sup Desg],Input[Institution Name],A62) +SUMIFS(Input[Acad Sup R Exp],Input[Institution Name],A62) +SUMIFS(Input[Acad Sup Unexp],Input[Institution Name],A62) +SUMIFS(Input[Cost Study Aca Sppt],Input[Institution Name],A62) -> 7465919 | G62: =SUMIFS(Input[Stu Svc E&G],Input[Institution Name],A62) +SUMIFS(Input[Stu Svc Desg],Input[Institution Name],A62) +SUMIFS(Input[Stu Svc R Exp],Input[Institution Name],A62) +SUMIFS(Input[Stu Svc Unexp],Input[Institution Name],A62) +SUMIFS(Input[Cost Study Stu Svcs],Input[Institution Name],A62) -SUMIFS(Input[Cost Study Intr C. Ath],Input[Institution Name],A62) -> 6227887 | H62: =SUMIFS(Input[Inst. Spt E&G],Input[Institution Name],A62) +SUMIFS(Input[Inst. Spt Desg],Input[Institution Name],A62) +SUMIFS(Input[Inst. Spt R Exp],Input[Institution Name],A62) +SUMIFS(Input[Inst. Spt Unexp],Input[Institution Name],A62) +SUMIFS(Input[Cost Study Inst. Sppt],Input[Institution Name],A62) -> 6296850
A63: Texas A&M University - San Antonio | B63: 226 | C63: 42485 | D63: =SUMIFS(Input[Instr E&G],Input[Institution Name],A63) +SUMIFS(Input[Instr Desg],Input[Institution Name],A63) +SUMIFS(Input[Instr R Exp],Input[Institution Name],A63) +SUMIFS(Input[Instr Unexp],Input[Institution Name],A63) +SUMIFS(Input[Cost Study Inst.],Input[Institution Name],A63) -> 31301608 | E63: =SUMIFS(Input[Res E&G],Input[Institution Name],A63) +SUMIFS(Input[Res Desg],Input[Institution Name],A63) +SUMIFS(Input[Res R Exp],Input[Institution Name],A63) +SUMIFS(Input[Res Unexp],Input[Institution Name],A63) +SUMIFS(Input[Cost Study Resh],Input[Institution Name],A63) -> 3119876 | F63: =SUMIFS(Input[Acad Sup E&G],Input[Institution Name],A63) +SUMIFS(Input[Acad Sup Desg],Input[Institution Name],A63) +SUMIFS(Input[Acad Sup R Exp],Input[Institution Name],A63) +SUMIFS(Input[Acad Sup Unexp],Input[Institution Name],A63) +SUMIFS(Input[Cost Study Aca Sppt],Input[Institution Name],A63) -> 6871580 | G63: =SUMIFS(Input[Stu Svc E&G],Input[Institution Name],A63) +SUMIFS(Input[Stu Svc Desg],Input[Institution Name],A63) +SUMIFS(Input[Stu Svc R Exp],Input[Institution Name],A63) +SUMIFS(Input[Stu Svc Unexp],Input[Institution Name],A63) +SUMIFS(Input[Cost Study Stu Svcs],Input[Institution Name],A63) -SUMIFS(Input[Cost Study Intr C. Ath],Input[Institution Name],A63) -> 21998237 | H63: =SUMIFS(Input[Inst. Spt E&G],Input[Institution Name],A63) +SUMIFS(Input[Inst. Spt Desg],Input[Institution Name],A63) +SUMIFS(Input[Inst. Spt R Exp],Input[Institution Name],A63) +SUMIFS(Input[Inst. Spt Unexp],Input[Institution Name],A63) +SUMIFS(Input[Cost Study Inst. Sppt],Input[Institution Name],A63) -> 12386751
A64: University of Houston (A+H) | B64: 231 | C64: 3652 | D64: =SUMIFS(Input[Instr E&G],Input[Institution Name],A64) +SUMIFS(Input[Instr Desg],Input[Institution Name],A64) +SUMIFS(Input[Instr R Exp],Input[Institution Name],A64) +SUMIFS(Input[Instr Unexp],Input[Institution Name],A64) +SUMIFS(Input[Cost Study Inst.],Input[Institution Name],A64) -> 273484485 | E64: =SUMIFS(Input[Res E&G],Input[Institution Name],A64) +SUMIFS(Input[Res Desg],Input[Institution Name],A64) +SUMIFS(Input[Res R Exp],Input[Institution Name],A64) +SUMIFS(Input[Res Unexp],Input[Institution Name],A64) +SUMIFS(Input[Cost Study Resh],Input[Institution Name],A64) -> 171869252 | F64: =SUMIFS(Input[Acad Sup E&G],Input[Institution Name],A64) +SUMIFS(Input[Acad Sup Desg],Input[Institution Name],A64) +SUMIFS(Input[Acad Sup R Exp],Input[Institution Name],A64) +SUMIFS(Input[Acad Sup Unexp],Input[Institution Name],A64) +SUMIFS(Input[Cost Study Aca Sppt],Input[Institution Name],A64) -> 189238843 | G64: =SUMIFS(Input[Stu Svc E&G],Input[Institution Name],A64) +SUMIFS(Input[Stu Svc Desg],Input[Institution Name],A64) +SUMIFS(Input[Stu Svc R Exp],Input[Institution Name],A64) +SUMIFS(Input[Stu Svc Unexp],Input[Institution Name],A64) +SUMIFS(Input[Cost Study Stu Svcs],Input[Institution Name],A64) -SUMIFS(Input[Cost Study Intr C. Ath],Input[Institution Name],A64) -> 35318911 | H64: =SUMIFS(Input[Inst. Spt E&G],Input[Institution Name],A64) +SUMIFS(Input[Inst. Spt Desg],Input[Institution Name],A64) +SUMIFS(Input[Inst. Spt R Exp],Input[Institution Name],A64) +SUMIFS(Input[Inst. Spt Unexp],Input[Institution Name],A64) +SUMIFS(Input[Cost Study Inst. Sppt],Input[Institution Name],A64) -> 94166963
A65: University of Houston - Clear Lake | B65: 240 | C65: 11711 | D65: =SUMIFS(Input[Instr E&G],Input[Institution Name],A65) +SUMIFS(Input[Instr Desg],Input[Institution Name],A65) +SUMIFS(Input[Instr R Exp],Input[Institution Name],A65) +SUMIFS(Input[Instr Unexp],Input[Institution Name],A65) +SUMIFS(Input[Cost Study Inst.],Input[Institution Name],A65) -> 46440755 | E65: =SUMIFS(Input[Res E&G],Input[Institution Name],A65) +SUMIFS(Input[Res Desg],Input[Institution Name],A65) +SUMIFS(Input[Res R Exp],Input[Institution Name],A65) +SUMIFS(Input[Res Unexp],Input[Institution Name],A65) +SUMIFS(Input[Cost Study Resh],Input[Institution Name],A65) -> 2184946 | F65: =SUMIFS(Input[Acad Sup E&G],Input[Institution Name],A65) +SUMIFS(Input[Acad Sup Desg],Input[Institution Name],A65) +SUMIFS(Input[Acad Sup R Exp],Input[Institution Name],A65) +SUMIFS(Input[Acad Sup Unexp],Input[Institution Name],A65) +SUMIFS(Input[Cost Study Aca Sppt],Input[Institution Name],A65) -> 32051902 | G65: =SUMIFS(Input[Stu Svc E&G],Input[Institution Name],A65) +SUMIFS(Input[Stu Svc Desg],Input[Institution Name],A65) +SUMIFS(Input[Stu Svc R Exp],Input[Institution Name],A65) +SUMIFS(Input[Stu Svc Unexp],Input[Institution Name],A65) +SUMIFS(Input[Cost Study Stu Svcs],Input[Institution Name],A65) -SUMIFS(Input[Cost Study Intr C. Ath],Input[Institution Name],A65) -> 9206607 | H65: =SUMIFS(Input[Inst. Spt E&G],Input[Institution Name],A65) +SUMIFS(Input[Inst. Spt Desg],Input[Institution Name],A65) +SUMIFS(Input[Inst. Spt R Exp],Input[Institution Name],A65) +SUMIFS(Input[Inst. Spt Unexp],Input[Institution Name],A65) +SUMIFS(Input[Cost Study Inst. Sppt],Input[Institution Name],A65) -> 18226877
A66: University of Houston - Downtown | B66: 250 | C66: 12826 | D66: =SUMIFS(Input[Instr E&G],Input[Institution Name],A66) +SUMIFS(Input[Instr Desg],Input[Institution Name],A66) +SUMIFS(Input[Instr R Exp],Input[Institution Name],A66) +SUMIFS(Input[Instr Unexp],Input[Institution Name],A66) +SUMIFS(Input[Cost Study Inst.],Input[Institution Name],A66) -> 56124093 | E66: =SUMIFS(Input[Res E&G],Input[Institution Name],A66) +SUMIFS(Input[Res Desg],Input[Institution Name],A66) +SUMIFS(Input[Res R Exp],Input[Institution Name],A66) +SUMIFS(Input[Res Unexp],Input[Institution Name],A66) +SUMIFS(Input[Cost Study Resh],Input[Institution Name],A66) -> 1990793 | F66: =SUMIFS(Input[Acad Sup E&G],Input[Institution Name],A66) +SUMIFS(Input[Acad Sup Desg],Input[Institution Name],A66) +SUMIFS(Input[Acad Sup R Exp],Input[Institution Name],A66) +SUMIFS(Input[Acad Sup Unexp],Input[Institution Name],A66) +SUMIFS(Input[Cost Study Aca Sppt],Input[Institution Name],A66) -> 38459034 | G66: =SUMIFS(Input[Stu Svc E&G],Input[Institution Name],A66) +SUMIFS(Input[Stu Svc Desg],Input[Institution Name],A66) +SUMIFS(Input[Stu Svc R Exp],Input[Institution Name],A66) +SUMIFS(Input[Stu Svc Unexp],Input[Institution Name],A66) +SUMIFS(Input[Cost Study Stu Svcs],Input[Institution Name],A66) -SUMIFS(Input[Cost Study Intr C. Ath],Input[Institution Name],A66) -> 8805823 | H66: =SUMIFS(Input[Inst. Spt E&G],Input[Institution Name],A66) +SUMIFS(Input[Inst. Spt Desg],Input[Institution Name],A66) +SUMIFS(Input[Inst. Spt R Exp],Input[Institution Name],A66) +SUMIFS(Input[Inst. Spt Unexp],Input[Institution Name],A66) +SUMIFS(Input[Cost Study Inst. Sppt],Input[Institution Name],A66) -> 31341642
A67: University of Houston - Victoria | B67: 260 | C67: 13231 | D67: =SUMIFS(Input[Instr E&G],Input[Institution Name],A67) +SUMIFS(Input[Instr Desg],Input[Institution Name],A67) +SUMIFS(Input[Instr R Exp],Input[Institution Name],A67) +SUMIFS(Input[Instr Unexp],Input[Institution Name],A67) +SUMIFS(Input[Cost Study Inst.],Input[Institution Name],A67) -> 20956261 | E67: =SUMIFS(Input[Res E&G],Input[Institution Name],A67) +SUMIFS(Input[Res Desg],Input[Institution Name],A67) +SUMIFS(Input[Res R Exp],Input[Institution Name],A67) +SUMIFS(Input[Res Unexp],Input[Institution Name],A67) +SUMIFS(Input[Cost Study Resh],Input[Institution Name],A67) -> 765515 | F67: =SUMIFS(Input[Acad Sup E&G],Input[Institution Name],A67) +SUMIFS(Input[Acad Sup Desg],Input[Institution Name],A67) +SUMIFS(Input[Acad Sup R Exp],Input[Institution Name],A67) +SUMIFS(Input[Acad Sup Unexp],Input[Institution Name],A67) +SUMIFS(Input[Cost Study Aca Sppt],Input[Institution Name],A67) -> 10443683 | G67: =SUMIFS(Input[Stu Svc E&G],Input[Institution Name],A67) +SUMIFS(Input[Stu Svc Desg],Input[Institution Name],A67) +SUMIFS(Input[Stu Svc R Exp],Input[Institution Name],A67) +SUMIFS(Input[Stu Svc Unexp],Input[Institution Name],A67) +SUMIFS(Input[Cost Study Stu Svcs],Input[Institution Name],A67) -SUMIFS(Input[Cost Study Intr C. Ath],Input[Institution Name],A67) -> 3858919 | H67: =SUMIFS(Input[Inst. Spt E&G],Input[Institution Name],A67) +SUMIFS(Input[Inst. Spt Desg],Input[Institution Name],A67) +SUMIFS(Input[Inst. Spt R Exp],Input[Institution Name],A67) +SUMIFS(Input[Inst. Spt Unexp],Input[Institution Name],A67) +SUMIFS(Input[Cost Study Inst. Sppt],Input[Institution Name],A67) -> 6292644
A68: Lamar University | B68: 270 | C68: 3581 | D68: =SUMIFS(Input[Instr E&G],Input[Institution Name],A68) +SUMIFS(Input[Instr Desg],Input[Institution Name],A68) +SUMIFS(Input[Instr R Exp],Input[Institution Name],A68) +SUMIFS(Input[Instr Unexp],Input[Institution Name],A68) +SUMIFS(Input[Cost Study Inst.],Input[Institution Name],A68) -> 61689030 | E68: =SUMIFS(Input[Res E&G],Input[Institution Name],A68) +SUMIFS(Input[Res Desg],Input[Institution Name],A68) +SUMIFS(Input[Res R Exp],Input[Institution Name],A68) +SUMIFS(Input[Res Unexp],Input[Institution Name],A68) +SUMIFS(Input[Cost Study Resh],Input[Institution Name],A68) -> 8156275 | F68: =SUMIFS(Input[Acad Sup E&G],Input[Institution Name],A68) +SUMIFS(Input[Acad Sup Desg],Input[Institution Name],A68) +SUMIFS(Input[Acad Sup R Exp],Input[Institution Name],A68) +SUMIFS(Input[Acad Sup Unexp],Input[Institution Name],A68) +SUMIFS(Input[Cost Study Aca Sppt],Input[Institution Name],A68) -> 51707939 | G68: =SUMIFS(Input[Stu Svc E&G],Input[Institution Name],A68) +SUMIFS(Input[Stu Svc Desg],Input[Institution Name],A68) +SUMIFS(Input[Stu Svc R Exp],Input[Institution Name],A68) +SUMIFS(Input[Stu Svc Unexp],Input[Institution Name],A68) +SUMIFS(Input[Cost Study Stu Svcs],Input[Institution Name],A68) -SUMIFS(Input[Cost Study Intr C. Ath],Input[Institution Name],A68) -> 10234295 | H68: =SUMIFS(Input[Inst. Spt E&G],Input[Institution Name],A68) +SUMIFS(Input[Inst. Spt Desg],Input[Institution Name],A68) +SUMIFS(Input[Inst. Spt R Exp],Input[Institution Name],A68) +SUMIFS(Input[Inst. Spt Unexp],Input[Institution Name],A68) +SUMIFS(Input[Cost Study Inst. Sppt],Input[Institution Name],A68) -> 20795849
A69: Sam Houston State University (A+H) | B69: 281 | C69: 3606 | D69: =SUMIFS(Input[Instr E&G],Input[Institution Name],A69) +SUMIFS(Input[Instr Desg],Input[Institution Name],A69) +SUMIFS(Input[Instr R Exp],Input[Institution Name],A69) +SUMIFS(Input[Instr Unexp],Input[Institution Name],A69) +SUMIFS(Input[Cost Study Inst.],Input[Institution Name],A69) -> 109422549 | E69: =SUMIFS(Input[Res E&G],Input[Institution Name],A69) +SUMIFS(Input[Res Desg],Input[Institution Name],A69) +SUMIFS(Input[Res R Exp],Input[Institution Name],A69) +SUMIFS(Input[Res Unexp],Input[Institution Name],A69) +SUMIFS(Input[Cost Study Resh],Input[Institution Name],A69) -> 11255679 | F69: =SUMIFS(Input[Acad Sup E&G],Input[Institution Name],A69) +SUMIFS(Input[Acad Sup Desg],Input[Institution Name],A69) +SUMIFS(Input[Acad Sup R Exp],Input[Institution Name],A69) +SUMIFS(Input[Acad Sup Unexp],Input[Institution Name],A69) +SUMIFS(Input[Cost Study Aca Sppt],Input[Institution Name],A69) -> 55559888 | G69: =SUMIFS(Input[Stu Svc E&G],Input[Institution Name],A69) +SUMIFS(Input[Stu Svc Desg],Input[Institution Name],A69) +SUMIFS(Input[Stu Svc R Exp],Input[Institution Name],A69) +SUMIFS(Input[Stu Svc Unexp],Input[Institution Name],A69) +SUMIFS(Input[Cost Study Stu Svcs],Input[Institution Name],A69) -SUMIFS(Input[Cost Study Intr C. Ath],Input[Institution Name],A69) -> 32984982 | H69: =SUMIFS(Input[Inst. Spt E&G],Input[Institution Name],A69) +SUMIFS(Input[Inst. Spt Desg],Input[Institution Name],A69) +SUMIFS(Input[Inst. Spt R Exp],Input[Institution Name],A69) +SUMIFS(Input[Inst. Spt Unexp],Input[Institution Name],A69) +SUMIFS(Input[Cost Study Inst. Sppt],Input[Institution Name],A69) -> 29530019
A70: Texas State University | B70: 290 | C70: 3615 | D70: =SUMIFS(Input[Instr E&G],Input[Institution Name],A70) +SUMIFS(Input[Instr Desg],Input[Institution Name],A70) +SUMIFS(Input[Instr R Exp],Input[Institution Name],A70) +SUMIFS(Input[Instr Unexp],Input[Institution Name],A70) +SUMIFS(Input[Cost Study Inst.],Input[Institution Name],A70) -> 203385952 | E70: =SUMIFS(Input[Res E&G],Input[Institution Name],A70) +SUMIFS(Input[Res Desg],Input[Institution Name],A70) +SUMIFS(Input[Res R Exp],Input[Institution Name],A70) +SUMIFS(Input[Res Unexp],Input[Institution Name],A70) +SUMIFS(Input[Cost Study Resh],Input[Institution Name],A70) -> 132252703 | F70: =SUMIFS(Input[Acad Sup E&G],Input[Institution Name],A70) +SUMIFS(Input[Acad Sup Desg],Input[Institution Name],A70) +SUMIFS(Input[Acad Sup R Exp],Input[Institution Name],A70) +SUMIFS(Input[Acad Sup Unexp],Input[Institution Name],A70) +SUMIFS(Input[Cost Study Aca Sppt],Input[Institution Name],A70) -> 53929449 | G70: =SUMIFS(Input[Stu Svc E&G],Input[Institution Name],A70) +SUMIFS(Input[Stu Svc Desg],Input[Institution Name],A70) +SUMIFS(Input[Stu Svc R Exp],Input[Institution Name],A70) +SUMIFS(Input[Stu Svc Unexp],Input[Institution Name],A70) +SUMIFS(Input[Cost Study Stu Svcs],Input[Institution Name],A70) -SUMIFS(Input[Cost Study Intr C. Ath],Input[Institution Name],A70) -> 22567036 | H70: =SUMIFS(Input[Inst. Spt E&G],Input[Institution Name],A70) +SUMIFS(Input[Inst. Spt Desg],Input[Institution Name],A70) +SUMIFS(Input[Inst. Spt R Exp],Input[Institution Name],A70) +SUMIFS(Input[Inst. Spt Unexp],Input[Institution Name],A70) +SUMIFS(Input[Cost Study Inst. Sppt],Input[Institution Name],A70) -> 47066833
A71: Sul Ross State University | B71: 300 | C71: 3625 | D71: =SUMIFS(Input[Instr E&G],Input[Institution Name],A71) +SUMIFS(Input[Instr Desg],Input[Institution Name],A71) +SUMIFS(Input[Instr R Exp],Input[Institution Name],A71) +SUMIFS(Input[Instr Unexp],Input[Institution Name],A71) +SUMIFS(Input[Cost Study Inst.],Input[Institution Name],A71) -> 12245793 | E71: =SUMIFS(Input[Res E&G],Input[Institution Name],A71) +SUMIFS(Input[Res Desg],Input[Institution Name],A71) +SUMIFS(Input[Res R Exp],Input[Institution Name],A71) +SUMIFS(Input[Res Unexp],Input[Institution Name],A71) +SUMIFS(Input[Cost Study Resh],Input[Institution Name],A71) -> 4646398 | F71: =SUMIFS(Input[Acad Sup E&G],Input[Institution Name],A71) +SUMIFS(Input[Acad Sup Desg],Input[Institution Name],A71) +SUMIFS(Input[Acad Sup R Exp],Input[Institution Name],A71) +SUMIFS(Input[Acad Sup Unexp],Input[Institution Name],A71) +SUMIFS(Input[Cost Study Aca Sppt],Input[Institution Name],A71) -> 4333273 | G71: =SUMIFS(Input[Stu Svc E&G],Input[Institution Name],A71) +SUMIFS(Input[Stu Svc Desg],Input[Institution Name],A71) +SUMIFS(Input[Stu Svc R Exp],Input[Institution Name],A71) +SUMIFS(Input[Stu Svc Unexp],Input[Institution Name],A71) +SUMIFS(Input[Cost Study Stu Svcs],Input[Institution Name],A71) -SUMIFS(Input[Cost Study Intr C. Ath],Input[Institution Name],A71) -> 5206184 | H71: =SUMIFS(Input[Inst. Spt E&G],Input[Institution Name],A71) +SUMIFS(Input[Inst. Spt Desg],Input[Institution Name],A71) +SUMIFS(Input[Inst. Spt R Exp],Input[Institution Name],A71) +SUMIFS(Input[Inst. Spt Unexp],Input[Institution Name],A71) +SUMIFS(Input[Cost Study Inst. Sppt],Input[Institution Name],A71) -> 9579086
A72: Texas Tech University | B72: 310 | C72: 3644 | D72: =SUMIFS(Input[Instr E&G],Input[Institution Name],A72) +SUMIFS(Input[Instr Desg],Input[Institution Name],A72) +SUMIFS(Input[Instr R Exp],Input[Institution Name],A72) +SUMIFS(Input[Instr Unexp],Input[Institution Name],A72) +SUMIFS(Input[Cost Study Inst.],Input[Institution Name],A72) -> 239569910 | E72: =SUMIFS(Input[Res E&G],Input[Institution Name],A72) +SUMIFS(Input[Res Desg],Input[Institution Name],A72) +SUMIFS(Input[Res R Exp],Input[Institution Name],A72) +SUMIFS(Input[Res Unexp],Input[Institution Name],A72) +SUMIFS(Input[Cost Study Resh],Input[Institution Name],A72) -> 216798812 | F72: =SUMIFS(Input[Acad Sup E&G],Input[Institution Name],A72) +SUMIFS(Input[Acad Sup Desg],Input[Institution Name],A72) +SUMIFS(Input[Acad Sup R Exp],Input[Institution Name],A72) +SUMIFS(Input[Acad Sup Unexp],Input[Institution Name],A72) +SUMIFS(Input[Cost Study Aca Sppt],Input[Institution Name],A72) -> 128434151 | G72: =SUMIFS(Input[Stu Svc E&G],Input[Institution Name],A72) +SUMIFS(Input[Stu Svc Desg],Input[Institution Name],A72) +SUMIFS(Input[Stu Svc R Exp],Input[Institution Name],A72) +SUMIFS(Input[Stu Svc Unexp],Input[Institution Name],A72) +SUMIFS(Input[Cost Study Stu Svcs],Input[Institution Name],A72) -SUMIFS(Input[Cost Study Intr C. Ath],Input[Institution Name],A72) -> 73991053 | H72: =SUMIFS(Input[Inst. Spt E&G],Input[Institution Name],A72) +SUMIFS(Input[Inst. Spt Desg],Input[Institution Name],A72) +SUMIFS(Input[Inst. Spt R Exp],Input[Institution Name],A72) +SUMIFS(Input[Inst. Spt Unexp],Input[Institution Name],A72) +SUMIFS(Input[Cost Study Inst. Sppt],Input[Institution Name],A72) -> 68949988
A73: Angelo State University | B73: 320 | C73: 3541 | D73: =SUMIFS(Input[Instr E&G],Input[Institution Name],A73) +SUMIFS(Input[Instr Desg],Input[Institution Name],A73) +SUMIFS(Input[Instr R Exp],Input[Institution Name],A73) +SUMIFS(Input[Instr Unexp],Input[Institution Name],A73) +SUMIFS(Input[Cost Study Inst.],Input[Institution Name],A73) -> 50284030 | E73: =SUMIFS(Input[Res E&G],Input[Institution Name],A73) +SUMIFS(Input[Res Desg],Input[Institution Name],A73) +SUMIFS(Input[Res R Exp],Input[Institution Name],A73) +SUMIFS(Input[Res Unexp],Input[Institution Name],A73) +SUMIFS(Input[Cost Study Resh],Input[Institution Name],A73) -> 1009047 | F73: =SUMIFS(Input[Acad Sup E&G],Input[Institution Name],A73) +SUMIFS(Input[Acad Sup Desg],Input[Institution Name],A73) +SUMIFS(Input[Acad Sup R Exp],Input[Institution Name],A73) +SUMIFS(Input[Acad Sup Unexp],Input[Institution Name],A73) +SUMIFS(Input[Cost Study Aca Sppt],Input[Institution Name],A73) -> 6291795 | G73: =SUMIFS(Input[Stu Svc E&G],Input[Institution Name],A73) +SUMIFS(Input[Stu Svc Desg],Input[Institution Name],A73) +SUMIFS(Input[Stu Svc R Exp],Input[Institution Name],A73) +SUMIFS(Input[Stu Svc Unexp],Input[Institution Name],A73) +SUMIFS(Input[Cost Study Stu Svcs],Input[Institution Name],A73) -SUMIFS(Input[Cost Study Intr C. Ath],Input[Institution Name],A73) -> 10651781 | H73: =SUMIFS(Input[Inst. Spt E&G],Input[Institution Name],A73) +SUMIFS(Input[Inst. Spt Desg],Input[Institution Name],A73) +SUMIFS(Input[Inst. Spt R Exp],Input[Institution Name],A73) +SUMIFS(Input[Inst. Spt Unexp],Input[Institution Name],A73) +SUMIFS(Input[Cost Study Inst. Sppt],Input[Institution Name],A73) -> 23909022
